Workbook

Sheet Sheet1 (hidden)
A1: Tabs | D1: FERC Code
A2: 311 | B2: =IF(LEN(A2)=3,A2&"0",TEXT(A2,0)) -> 3110 | C2: =VLOOKUP(B2,D:D,1,0) ->  | D2: 3010 | E2: =VLOOKUP(D2,B:B,1,0) ->  | F2: new
A3: 375 | B3: =IF(LEN(A3)=3,A3&"0",TEXT(A3,0)) -> 3750 | C3: =VLOOKUP(B3,D:D,1,0) -> 3750 | D3: 3020 | E3: =VLOOKUP(D3,B:B,1,0) ->  | F3: new
D4: 3030 | F4: new
A5: 3761 | B5: 3761 | C5: =VLOOKUP(B5,D:D,1,0) -> 3761 | D5: 3500 | E5: =VLOOKUP(D5,B:B,1,0) ->  | F5: new
A6: 3762 | B6: 3762 | C6: 3762 | D6: 3740 | F6: new
A7: 376G | B7: 376G | C7: 376G | D7: 3750 | E7: 3750
A8: 378 | B8: 3780 | C8: 3780 | D8: 3760 | F8: new
A9: 379 | B9: 3790 | C9: 3790 | D9: 3761 | E9: 3761
A10: 3801 | B10: 3801 | C10: 3801 | D10: 3762 | E10: 3762
A11: 3802 | B11: 3802 | C11: 3802 | D11: 3780 | E11: 3780
A12: 380G | B12: 380G | C12: 380G | D12: 3781 | F12: new
A13: 381 | B13: 3810 | C13: 3810 | D13: 3790 | E13: 3790
A14: 382 | B14: 3820 | C14: 3820 | D14: 3791 | F14: new
A15: 383 | B15: 3830 | C15: 3830 | D15: 3800 | F15: new
A16: 384 | B16: 3840 | C16: 3840 | D16: 3801 | E16: 3801
A17: 385 | B17: 3850 | C17: 3850 | D17: 3802 | E17: 3802
A18: 387 | B18: 3870 | C18: 3870 | D18: 3810 | E18: 3810
A19: 389 | B19: 3890 | D19: 3811 | F19: new
A20: 390 | B20: 3900 | C20: 3900 | D20: 3820 | E20: 3820
A21: 3910 | B21: 3910 | C21: 3910 | D21: 3821 | F21: new
A22: 3912 | B22: 3912 | D22: 3830 | E22: 3830
A23: 3913 | B23: 3913 | C23: 3913 | D23: 3831 | F23: new
A24: 3914 | B24: 3914 | C24: 3914 | D24: 3840 | E24: 3840
A25: 391S | B25: 391S | C25: 391S | D25: 3850 | E25: 3850
A26: 3921 | B26: 3921 | C26: 3921 | D26: 3851 | F26: new
A27: 3922 | B27: 3922 | C27: 3922 | D27: 3870 | E27: 3870
A28: 3923 | B28: 3923 | C28: 3923 | D28: 3900 | E28: 3900
A29: 3924 | B29: 3924 | D29: 3910 | E29: 3910
A30: 393 | B30: 3930 | D30: 3913 | E30: 3913
A31: 394 | B31: 3940 | C31: 3940 | D31: 3914 | E31: 3914
A32: 395 | B32: 3950 | D32: 3920 | F32: new
A33: 396 | B33: 3960 | C33: 3960 | D33: 3921 | E33: 3921
A34: 397 | B34: 3970 | C34: 3970 | D34: 3922 | E34: 3922
A35: 398 | B35: 3980 | C35: 3980 | D35: 3923 | E35: 3923
A36: 399 | B36: 3990 | D36: 3940 | E36: 3940
D37: 3960 | E37: 3960
D38: 3970 | E38: 3970
D39: 3971 | F39: new
D40: 3980 | E40: 3980
D41: 376G | E41: 376G
D42: 380G | E42: 380G
D43: 389A | F43: new
D44: 390A | F44: new
D45: 391A | F45: new
D46: 391S | E46: 391S
D47: 398A | F47: new

Sheet Book_to_tax_Recon
A2: CFG (12/31/2017)
A3: Plant Balance | B3: 108566233.2
A4: - Land and other non depreciable items | B4: -228653.59
A5: - repairs basis adjustment | B5: -1658176.03
A6: Net Book Basis | C6: =+B3+B4+B5 -> 106679403.6
A9: Total Accumulated Plant Depr | B9: -26935814.12
A10: - Land and other non depreciable items | B10: 1318.13
A11: - repairs accum depr adjustment | B11: 202002.59
A12: Net Accum Depr | C12: =+B9+B10+B11 -> -26732493.4
A14: Net Book Value | D14: =+C6+C12 -> 79946910.17
A18: Tax Basis | B18: 108191518
A19: - Land and other non depreciable items | B19: -46456.12
A20: - Tax Repairs | B20: -594932.93
C21: =SUM(B18:B20) -> 107550129
A24: Accumulated Tax Reserve | B24: -44649262.08
A25: - Land and other non depreciable items | B25: 0
A26: - Bonus Depreciation | B26: -36521840.81
C27: =+B24+B26 -> -81171102.89
A29: Net Tax Value | D29: =+C21+C27 -> 26379026.07
A31: Net Book - Net Tax | D31: =+D14-D29 -> 53567884.1
A32: Rate Diff | D32: 0.1323
D33: =+D31*D32 -> 7087031.066
A36: Summary of Book Basis Items Not Included
A37: - Land and other non depreciable items | D37: =-B4-B10 -> 227335.46
A38: - Tax Repairs | D38: =-B5-B11 -> 1456173.44
A39: - Cost of Removal | D39: -4917564.55
A40: Total | D40: =SUM(D37:D39) -> -3234055.65

Sheet Summary
A1: Book Rollforward : | H1: FED Rate | I1: FBOS | J1: State Rate
A2: FAS Data 2017 : | F2: Historical Tax Rate | G2: =+H2+I2+J2 -> 0.38575 | H2: 0.35 | I2: =-+H2*+J2 -> -0.01925 | J2: 0.055
A3: FAS Data 2018+ : | F3: Current Tax Rate | G3: =+H3+I3+J3 -> 0.25345 | H3: 0.21 | I3: =-+H3*+J3 -> -0.01155 | J3: 0.055
A7: FERC Account | B7: Description | C7: Note | D7: Amortization/Reduction to Tax
D8: Total | E8: 2018 | F8: 2019 | G8: 2020 | H8: 2021 | I8: 2022 | J8: 2023 | K8: 2024 | L8: 2025 | M8: 2026 | N8: 2027 | O8: 2028 | P8: 2029 | Q8: 2030 | R8: 2031 | S8: 2032 | T8: 2033 | U8: 2034 | V8: 2035 | W8: 2036 | X8: 2037 | Y8: 2038 | Z8: 2039 | AA8: 2040 | AB8: 2041 | AC8: 2042 | AD8: 2043 | AE8: 2044 | AF8: 2045 | AG8: 2046 | AH8: 2047 | AI8: 2048 | AJ8: 2049 | AK8: 2050 | AL8: 2051 | AM8: 2052 | AN8: 2053 | AO8: 2054 | AP8: 2055 | AQ8: 2056 | AR8: 2057 | AS8: 2058 | AT8: 2059 | AU8: 2060 | AV8: 2061 | AW8: 2062 | AX8: 2063 | AY8: 2064 | AZ8: 2065 | BA8: 2066 | BB8: 2067 | BC8: 2068 | BD8: 2069 | BE8: 2070 | BF8: 2071 | BG8: 2072 | BH8: 2073 | BI8: 2074 | BJ8: 2075 | BK8: 2076 | BL8: 2077 | BM8: 2078 | BN8: 2079 | BO8: 2080 | BP8: 2081 | BQ8: 2082 | BR8: 2083 | BS8: 2084 | BT8: 2085 | BU8: 2086 | BV8: 2087 | BW8: 2088 | BX8: 2089 | BY8: 2090 | BZ8: 2091 | CA8: 2092 | CB8: 2093 | CC8: 2094 | CD8: 2095 | CE8: 2096 | CF8: 2097 | CG8: 2098 | CH8: 2099 | CI8: 2100
A9: 3010 | B9: ='[3]Plant Balance'!B11 -> Franchises & Consents | D9: =SUM(E9:CI9) -> 0 | E9: =INDIRECT($A9&"!E493") -> 0 | F9: =INDIRECT($A9&"!F493") -> 0 | G9: =INDIRECT($A9&"!G493") -> 0 | H9: =INDIRECT($A9&"!H493") -> 0 | I9: =INDIRECT($A9&"!I493") -> 0 | J9: =INDIRECT($A9&"!J493") -> 0 | K9: =INDIRECT($A9&"!K493") -> 0 | L9: =INDIRECT($A9&"!L493") -> 0 | M9: =INDIRECT($A9&"!M493") -> 0 | N9: =INDIRECT($A9&"!N493") -> 0 | O9: =INDIRECT($A9&"!O493") -> 0 | P9: =INDIRECT($A9&"!P493") -> 0 | Q9: =INDIRECT($A9&"!Q493") -> 0 | R9: =INDIRECT($A9&"!R493") -> 0 | S9: =INDIRECT($A9&"!S493") -> 0 | T9: =INDIRECT($A9&"!T493") -> 0 | U9: =INDIRECT($A9&"!U493") -> 0 | V9: =INDIRECT($A9&"!V493") -> 0 | W9: =INDIRECT($A9&"!W493") -> 0 | X9: =INDIRECT($A9&"!X493") -> 0 | Y9: =INDIRECT($A9&"!Y493") -> 0 | Z9: =INDIRECT($A9&"!Z493") -> 0 | AA9: =INDIRECT($A9&"!aa493") -> 0 | AB9: =INDIRECT($A9&"!ab493") -> 0 | AC9: =INDIRECT($A9&"!ac493") -> 0 | AD9: =INDIRECT($A9&"!ad493") -> 0 | AE9: =INDIRECT($A9&"!ae493") -> 0 | AF9: =INDIRECT($A9&"!af493") -> 0 | AG9: =INDIRECT($A9&"!ag493") -> 0 | AH9: =INDIRECT($A9&"!AH493") -> 0 | AI9: =INDIRECT($A9&"!aI493") -> 0 | AJ9: =INDIRECT($A9&"!AJ493") -> 0 | AK9: =INDIRECT($A9&"!AK493") -> 0 | AL9: =INDIRECT($A9&"!AL493") -> 0 | AM9: =INDIRECT($A9&"!AM493") -> 0 | AN9: =INDIRECT($A9&"!AN493") -> 0 | AO9: =INDIRECT($A9&"!AO493") -> 0 | AP9: =INDIRECT($A9&"!AP493") -> 0 | AQ9: =INDIRECT($A9&"!AQ493") -> 0 | AR9: =INDIRECT($A9&"!AR493") -> 0 | AS9: =INDIRECT($A9&"!AS493") -> 0 | AT9: =INDIRECT($A9&"!AT493") -> 0 | AU9: =INDIRECT($A9&"!AU493") -> 0 | AV9: =INDIRECT($A9&"!AV493") -> 0 | AW9: =INDIRECT($A9&"!AW493") -> 0 | AX9: =INDIRECT($A9&"!AX493") -> 0 | AY9: =INDIRECT($A9&"!AY493") -> 0 | AZ9: =INDIRECT($A9&"!AZ493") -> 0 | BA9: =INDIRECT($A9&"!BA493") -> 0 | BB9: =INDIRECT($A9&"!BB493") -> 0 | BC9: =INDIRECT($A9&"!BC493") -> 0 | BD9: =INDIRECT($A9&"!BD493") -> 0 | BE9: =INDIRECT($A9&"!BE493") -> 0 | BF9: =INDIRECT($A9&"!BF493") -> 0 | BG9: =INDIRECT($A9&"!BG493") -> 0 | BH9: =INDIRECT($A9&"!BH493") -> 0 | BI9: =INDIRECT($A9&"!BI493") -> 0 | BJ9: =INDIRECT($A9&"!BJ493") -> 0 | BK9: =INDIRECT($A9&"!BK493") -> 0 | BL9: =INDIRECT($A9&"!BL493") -> 0 | BM9: =INDIRECT($A9&"!BM493") -> 0 | BN9: =INDIRECT($A9&"!BN493") -> 0 | BO9: =INDIRECT($A9&"!BO493") -> 0 | BP9: =INDIRECT($A9&"!BP493") -> 0 | BQ9: =INDIRECT($A9&"!BQ493") -> 0 | BR9: =INDIRECT($A9&"!BR493") -> 0 | BS9: =INDIRECT($A9&"!BS493") -> 0 | BT9: =INDIRECT($A9&"!BT493") -> 0 | BU9: =INDIRECT($A9&"!BU493") -> 0 | BV9: =INDIRECT($A9&"!BV493") -> 0 | BW9: =INDIRECT($A9&"!BW493") -> 0 | BX9: =INDIRECT($A9&"!BX493") -> 0 | BY9: =INDIRECT($A9&"!BY493") -> 0 | BZ9: =INDIRECT($A9&"!BZ493") -> 0 | CA9: =INDIRECT($A9&"!CA493") -> 0 | CB9: =INDIRECT($A9&"!CB493") -> 0 | CC9: =INDIRECT($A9&"!CC493") -> 0 | CD9: =INDIRECT($A9&"!CD493") -> 0 | CE9: =INDIRECT($A9&"!CE493") -> 0 | CF9: =INDIRECT($A9&"!CF493") -> 0 | CG9: =INDIRECT($A9&"!CG493") -> 0 | CH9: =INDIRECT($A9&"!CH493") -> 0 | CI9: =INDIRECT($A9&"!CI493") -> 0
A10: 3020 | B10: ='[3]Plant Balance'!B12 -> Misc Intangible Plant | D10: =SUM(E10:CI10) -> 153.5477499 | E10: =INDIRECT($A10&"!E493") -> 56.04843923 | F10: =INDIRECT($A10&"!F493") -> 56.04843923 | G10: =INDIRECT($A10&"!G493") -> 41.45087144 | H10: =INDIRECT($A10&"!H493") -> 0 | I10: =INDIRECT($A10&"!I493") -> 0 | J10: =INDIRECT($A10&"!J493") -> 0 | K10: =INDIRECT($A10&"!K493") -> 0 | L10: =INDIRECT($A10&"!L493") -> 0 | M10: =INDIRECT($A10&"!M493") -> 0 | N10: =INDIRECT($A10&"!N493") -> 0 | O10: =INDIRECT($A10&"!O493") -> 0 | P10: =INDIRECT($A10&"!P493") -> 0 | Q10: =INDIRECT($A10&"!Q493") -> 0 | R10: =INDIRECT($A10&"!R493") -> 0 | S10: =INDIRECT($A10&"!S493") -> 0 | T10: =INDIRECT($A10&"!T493") -> 0 | U10: =INDIRECT($A10&"!U493") -> 0 | V10: =INDIRECT($A10&"!V493") -> 0 | W10: =INDIRECT($A10&"!W493") -> 0 | X10: =INDIRECT($A10&"!X493") -> 0 | Y10: =INDIRECT($A10&"!Y493") -> 0 | Z10: =INDIRECT($A10&"!Z493") -> 0 | AA10: =INDIRECT($A10&"!aa493") -> 0 | AB10: =INDIRECT($A10&"!ab493") -> 0 | AC10: =INDIRECT($A10&"!ac493") -> 0 | AD10: =INDIRECT($A10&"!ad493") -> 0 | AE10: =INDIRECT($A10&"!ae493") -> 0 | AF10: =INDIRECT($A10&"!af493") -> 0 | AG10: =INDIRECT($A10&"!ag493") -> 0 | AH10: =INDIRECT($A10&"!AH493") -> 0 | AI10: =INDIRECT($A10&"!aI493") -> 0 | AJ10: =INDIRECT($A10&"!AJ493") -> 0 | AK10: =INDIRECT($A10&"!AK493") -> 0 | AL10: =INDIRECT($A10&"!AL493") -> 0 | AM10: =INDIRECT($A10&"!AM493") -> 0 | AN10: =INDIRECT($A10&"!AN493") -> 0 | AO10: =INDIRECT($A10&"!AO493") -> 0 | AP10: =INDIRECT($A10&"!AP493") -> 0 | AQ10: =INDIRECT($A10&"!AQ493") -> 0 | AR10: =INDIRECT($A10&"!AR493") -> 0 | AS10: =INDIRECT($A10&"!AS493") -> 0 | AT10: =INDIRECT($A10&"!AT493") -> 0 | AU10: =INDIRECT($A10&"!AU493") -> 0 | AV10: =INDIRECT($A10&"!AV493") -> 0 | AW10: =INDIRECT($A10&"!AW493") -> 0 | AX10: =INDIRECT($A10&"!AX493") -> 0 | AY10: =INDIRECT($A10&"!AY493") -> 0 | AZ10: =INDIRECT($A10&"!AZ493") -> 0 | BA10: =INDIRECT($A10&"!BA493") -> 0 | BB10: =INDIRECT($A10&"!BB493") -> 0 | BC10: =INDIRECT($A10&"!BC493") -> 0 | BD10: =INDIRECT($A10&"!BD493") -> 0 | BE10: =INDIRECT($A10&"!BE493") -> 0 | BF10: =INDIRECT($A10&"!BF493") -> 0 | BG10: =INDIRECT($A10&"!BG493") -> 0 | BH10: =INDIRECT($A10&"!BH493") -> 0 | BI10: =INDIRECT($A10&"!BI493") -> 0 | BJ10: =INDIRECT($A10&"!BJ493") -> 0 | BK10: =INDIRECT($A10&"!BK493") -> 0 | BL10: =INDIRECT($A10&"!BL493") -> 0 | BM10: =INDIRECT($A10&"!BM493") -> 0 | BN10: =INDIRECT($A10&"!BN493") -> 0 | BO10: =INDIRECT($A10&"!BO493") -> 0 | BP10: =INDIRECT($A10&"!BP493") -> 0 | BQ10: =INDIRECT($A10&"!BQ493") -> 0 | BR10: =INDIRECT($A10&"!BR493") -> 0 | BS10: =INDIRECT($A10&"!BS493") -> 0 | BT10: =INDIRECT($A10&"!BT493") -> 0 | BU10: =INDIRECT($A10&"!BU493") -> 0 | BV10: =INDIRECT($A10&"!BV493") -> 0 | BW10: =INDIRECT($A10&"!BW493") -> 0 | BX10: =INDIRECT($A10&"!BX493") -> 0 | BY10: =INDIRECT($A10&"!BY493") -> 0 | BZ10: =INDIRECT($A10&"!BZ493") -> 0 | CA10: =INDIRECT($A10&"!CA493") -> 0 | CB10: =INDIRECT($A10&"!CB493") -> 0 | CC10: =INDIRECT($A10&"!CC493") -> 0 | CD10: =INDIRECT($A10&"!CD493") -> 0 | CE10: =INDIRECT($A10&"!CE493") -> 0 | CF10: =INDIRECT($A10&"!CF493") -> 0 | CG10: =INDIRECT($A10&"!CG493") -> 0 | CH10: =INDIRECT($A10&"!CH493") -> 0 | CI10: =INDIRECT($A10&"!CI493") -> 0
A11: 311 | B11: Liquefied Petroleum Gas Equip | D11: 0 | E11: 0 | F11: 0 | G11: 0 | H11: 0 | I11: 0 | J11: 0 | K11: 0 | L11: 0 | M11: 0 | N11: 0 | O11: 0 | P11: 0 | Q11: 0 | R11: 0 | S11: 0 | T11: 0 | U11: 0 | V11: 0 | W11: 0 | X11: 0 | Y11: 0 | Z11: 0 | AA11: 0 | AB11: 0 | AC11: 0 | AD11: 0 | AE11: 0 | AF11: 0 | AG11: 0 | AH11: 0 | AI11: 0 | AJ11: 0 | AK11: 0 | AL11: 0 | AM11: 0 | AN11: 0 | AO11: 0 | AP11: 0 | AQ11: 0 | AR11: 0 | AS11: 0 | AT11: 0 | AU11: 0 | AV11: 0 | AW11: 0 | AX11: 0 | AY11: 0 | AZ11: 0 | BA11: 0 | BB11: 0 | BC11: 0 | BD11: 0 | BE11: 0 | BF11: 0 | BG11: 0 | BH11: 0 | BI11: 0 | BJ11: 0 | BK11: 0 | BL11: 0 | BM11: 0 | BN11: 0 | BO11: 0 | BP11: 0 | BQ11: 0 | BR11: 0 | BS11: 0 | BT11: 0 | BU11: 0 | BV11: 0 | BW11: 0 | BX11: 0 | BY11: 0 | BZ11: 0 | CA11: 0 | CB11: 0 | CC11: 0 | CD11: 0 | CE11: 0 | CF11: 0 | CG11: 0 | CH11: 0 | CI11: 0
A12: 3500 | D12: 0 | E12: 0 | F12: 0 | G12: 0 | H12: 0 | I12: 0 | J12: 0 | K12: 0 | L12: 0 | M12: 0 | N12: 0 | O12: 0 | P12: 0 | Q12: 0 | R12: 0 | S12: 0 | T12: 0 | U12: 0 | V12: 0 | W12: 0 | X12: 0 | Y12: 0 | Z12: 0 | AA12: 0 | AB12: 0 | AC12: 0 | AD12: 0 | AE12: 0 | AF12: 0 | AG12: 0 | AH12: 0 | AI12: 0 | AJ12: 0 | AK12: 0 | AL12: 0 | AM12: 0 | AN12: 0 | AO12: 0 | AP12: 0 | AQ12: 0 | AR12: 0 | AS12: 0 | AT12: 0 | AU12: 0 | AV12: 0 | AW12: 0 | AX12: 0 | AY12: 0 | AZ12: 0 | BA12: 0 | BB12: 0 | BC12: 0 | BD12: 0 | BE12: 0 | BF12: 0 | BG12: 0 | BH12: 0 | BI12: 0 | BJ12: 0 | BK12: 0 | BL12: 0 | BM12: 0 | BN12: 0 | BO12: 0 | BP12: 0 | BQ12: 0 | BR12: 0 | BS12: 0 | BT12: 0 | BU12: 0 | BV12: 0 | BW12: 0 | BX12: 0 | BY12: 0 | BZ12: 0 | CA12: 0 | CB12: 0 | CC12: 0 | CD12: 0 | CE12: 0 | CF12: 0 | CG12: 0 | CH12: 0 | CI12: 0
A13: 3740 | B13: Land and Land Rights | D13: 0 | E13: 0 | F13: 0 | G13: 0 | H13: 0 | I13: 0 | J13: 0 | K13: 0 | L13: 0 | M13: 0 | N13: 0 | O13: 0 | P13: 0 | Q13: 0 | R13: 0 | S13: 0 | T13: 0 | U13: 0 | V13: 0 | W13: 0 | X13: 0 | Y13: 0 | Z13: 0 | AA13: 0 | AB13: 0 | AC13: 0 | AD13: 0 | AE13: 0 | AF13: 0 | AG13: 0 | AH13: 0 | AI13: 0 | AJ13: 0 | AK13: 0 | AL13: 0 | AM13: 0 | AN13: 0 | AO13: 0 | AP13: 0 | AQ13: 0 | AR13: 0 | AS13: 0 | AT13: 0 | AU13: 0 | AV13: 0 | AW13: 0 | AX13: 0 | AY13: 0 | AZ13: 0 | BA13: 0 | BB13: 0 | BC13: 0 | BD13: 0 | BE13: 0 | BF13: 0 | BG13: 0 | BH13: 0 | BI13: 0 | BJ13: 0 | BK13: 0 | BL13: 0 | BM13: 0 | BN13: 0 | BO13: 0 | BP13: 0 | BQ13: 0 | BR13: 0 | BS13: 0 | BT13: 0 | BU13: 0 | BV13: 0 | BW13: 0 | BX13: 0 | BY13: 0 | BZ13: 0 | CA13: 0 | CB13: 0 | CC13: 0 | CD13: 0 | CE13: 0 | CF13: 0 | CG13: 0 | CH13: 0 | CI13: 0
A14: 375 | B14: Structures & Improvements | D14: 16675.69466 | E14: 13.46202214 | F14: 13.46202214 | G14: 13.46202214 | H14: 19.17118097 | I14: 37.27872149 | J14: 298.6338657 | K14: 601.219534 | L14: 601.4276243 | M14: 630.2705654 | N14: 654.7143825 | O14: 667.5098831 | P14: 757.2291694 | Q14: 832.2202198 | R14: 942.5518915 | S14: 948.3139907 | T14: 964.3013486 | U14: 964.2987993 | V14: 992.826458 | W14: 633.5030531 | X14: 490.5323914 | Y14: 489.3054322 | Z14: 474.8184973 | AA14: 465.05647 | AB14: 464.12106 | AC14: 464.1156036 | AD14: 450.3191904 | AE14: 287.0100374 | AF14: 283.4620556 | AG14: 280.7074938 | AH14: 292.2773057 | AI14: 291.218984 | AJ14: 291.218984 | AK14: 291.218984 | AL14: 280.096853 | AM14: 275.9013642 | AN14: 174.6115933 | AO14: 37.80292741 | AP14: 6.042674879 | AQ14: 0 | AR14: 0 | AS14: 0 | AT14: 0 | AU14: 0 | AV14: 0 | AW14: 0 | AX14: 0 | AY14: 0 | AZ14: 0 | BA14: 0 | BB14: 0 | BC14: 0 | BD14: 0 | BE14: 0 | BF14: 0 | BG14: 0 | BH14: 0 | BI14: 0 | BJ14: 0 | BK14: 0 | BL14: 0 | BM14: 0 | BN14: 0 | BO14: 0 | BP14: 0 | BQ14: 0 | BR14: 0 | BS14: 0 | BT14: 0 | BU14: 0 | BV14: 0 | BW14: 0 | BX14: 0 | BY14: 0 | BZ14: 0 | CA14: 0 | CB14: 0 | CC14: 0 | CD14: 0 | CE14: 0 | CF14: 0 | CG14: 0 | CH14: 0 | CI14: 0
A15: 3760 | B15: Mains | D15: 0 | E15: 0 | F15: 0 | G15: 0 | H15: 0 | I15: 0 | J15: 0 | K15: 0 | L15: 0 | M15: 0 | N15: 0 | O15: 0 | P15: 0 | Q15: 0 | R15: 0 | S15: 0 | T15: 0 | U15: 0 | V15: 0 | W15: 0 | X15: 0 | Y15: 0 | Z15: 0 | AA15: 0 | AB15: 0 | AC15: 0 | AD15: 0 | AE15: 0 | AF15: 0 | AG15: 0 | AH15: 0 | AI15: 0 | AJ15: 0 | AK15: 0 | AL15: 0 | AM15: 0 | AN15: 0 | AO15: 0 | AP15: 0 | AQ15: 0 | AR15: 0 | AS15: 0 | AT15: 0 | AU15: 0 | AV15: 0 | AW15: 0 | AX15: 0 | AY15: 0 | AZ15: 0 | BA15: 0 | BB15: 0 | BC15: 0 | BD15: 0 | BE15: 0 | BF15: 0 | BG15: 0 | BH15: 0 | BI15: 0 | BJ15: 0 | BK15: 0 | BL15: 0 | BM15: 0 | BN15: 0 | BO15: 0 | BP15: 0 | BQ15: 0 | BR15: 0 | BS15: 0 | BT15: 0 | BU15: 0 | BV15: 0 | BW15: 0 | BX15: 0 | BY15: 0 | BZ15: 0 | CA15: 0 | CB15: 0 | CC15: 0 | CD15: 0 | CE15: 0 | CF15: 0 | CG15: 0 | CH15: 0 | CI15: 0
A16: 3761 | B16: Mains Plastic | D16: 1832953.142 | E16: 22139.56093 | F16: 24135.24797 | G16: 27344.96247 | H16: 37366.78119 | I16: 48720.95024 | J16: 54813.97152 | K16: 60711.06106 | L16: 64708.65291 | M16: 65845.55051 | N16: 65845.55051 | O16: 65845.55051 | P16: 65845.55051 | Q16: 65845.55051 | R16: 65845.55051 | S16: 65924.60796 | T16: 68411.96771 | U16: 70461.54566 | V16: 72081.15826 | W16: 75845.43379 | X16: 78337.65581 | Y16: 61803.41571 | Z16: 59360.73799 | AA16: 57622.90529 | AB16: 54669.1684 | AC16: 47609.53332 | AD16: 39798.17799 | AE16: 35378.65631 | AF16: 32241.15772 | AG16: 29835.36829 | AH16: 27659.90342 | AI16: 27659.90342 | AJ16: 26391.65332 | AK16: 24257.04979 | AL16: 21787.70671 | AM16: 19974.74552 | AN16: 19219.13798 | AO16: 16168.58036 | AP16: 14631.40023 | AQ16: 12891.16745 | AR16: 11552.46479 | AS16: 9883.131727 | AT16: 7727.321578 | AU16: 5566.86854 | AV16: 2846.750929 | AW16: 339.3744924 | AX16: 0 | AY16: 0 | AZ16: 0 | BA16: 0 | BB16: 0 | BC16: 0 | BD16: 0 | BE16: 0 | BF16: 0 | BG16: 0 | BH16: 0 | BI16: 0 | BJ16: 0 | BK16: 0 | BL16: 0 | BM16: 0 | BN16: 0 | BO16: 0 | BP16: 0 | BQ16: 0 | BR16: 0 | BS16: 0 | BT16: 0 | BU16: 0 | BV16: 0 | BW16: 0 | BX16: 0 | BY16: 0 | BZ16: 0 | CA16: 0 | CB16: 0 | CC16: 0 | CD16: 0 | CE16: 0 | CF16: 0 | CG16: 0 | CH16: 0 | CI16: 0
A17: 3762 | B17: Mains Steel | D17: 1019474.097 | E17: 38443.03417 | F17: 39367.67623 | G17: 42721.82124 | H17: 45673.97005 | I17: 49537.62089 | J17: 49747.87337 | K17: 49902.67098 | L17: 50141.62595 | M17: 50141.61934 | N17: 50141.62331 | O17: 50141.62066 | P17: 50141.62198 | Q17: 50141.62595 | R17: 50141.61801 | S17: 51144.0313 | T17: 53169.85256 | U17: 48088.78289 | V17: 41908.35938 | W17: 35987.13502 | X17: 35874.17609 | Y17: 33460.88798 | Z17: 25188.57236 | AA17: 16252.27688 | AB17: 8918.930479 | AC17: 2254.886786 | AD17: 796.6336484 | AE17: 43.54980764 | AF17: 0 | AG17: 0 | AH17: 0 | AI17: 0 | AJ17: 0 | AK17: 0 | AL17: 0 | AM17: 0 | AN17: 0 | AO17: 0 | AP17: 0 | AQ17: 0 | AR17: 0 | AS17: 0 | AT17: 0 | AU17: 0 | AV17: 0 | AW17: 0 | AX17: 0 | AY17: 0 | AZ17: 0 | BA17: 0 | BB17: 0 | BC17: 0 | BD17: 0 | BE17: 0 | BF17: 0 | BG17: 0 | BH17: 0 | BI17: 0 | BJ17: 0 | BK17: 0 | BL17: 0 | BM17: 0 | BN17: 0 | BO17: 0 | BP17: 0 | BQ17: 0 | BR17: 0 | BS17: 0 | BT17: 0 | BU17: 0 | BV17: 0 | BW17: 0 | BX17: 0 | BY17: 0 | BZ17: 0 | CA17: 0 | CB17: 0 | CC17: 0 | CD17: 0 | CE17: 0 | CF17: 0 | CG17: 0 | CH17: 0 | CI17: 0
A18: 376G | B18: Mains Plastic - GRIP | D18: 1533847.112 | E18: 88.15839466 | F18: 943.0993991 | G18: 2443.700582 | H18: 4488.944403 | I18: 7039.692789 | J18: 8642.82818 | K18: 8824.055636 | L18: 8824.059548 | M18: 8824.075425 | N18: 8824.054318 | O18: 8824.070318 | P18: 8824.120464 | Q18: 8824.087258 | R18: 8824.092505 | S18: 8896.795124 | T18: 15396.15404 | U18: 24745.65412 | V18: 37339.30387 | W18: 54737.14347 | X18: 67940.9258 | Y18: 74688.00707 | Z18: 74688.00707 | AA18: 74688.00707 | AB18: 74688.00707 | AC18: 74688.00707 | AD18: 74688.00707 | AE18: 74688.00707 | AF18: 74688.00707 | AG18: 74688.00707 | AH18: 74688.00707 | AI18: 74688.00707 | AJ18: 74688.00707 | AK18: 74688.00707 | AL18: 72810.71524 | AM18: 64842.30286 | AN18: 53981.46255 | AO18: 38983.46648 | AP18: 21562.60409 | AQ18: 7427.452971 | AR18: 0 | AS18: 0 | AT18: 0 | AU18: 0 | AV18: 0 | AW18: 0 | AX18: 0 | AY18: 0 | AZ18: 0 | BA18: 0 | BB18: 0 | BC18: 0 | BD18: 0 | BE18: 0 | BF18: 0 | BG18: 0 | BH18: 0 | BI18: 0 | BJ18: 0 | BK18: 0 | BL18: 0 | BM18: 0 | BN18: 0 | BO18: 0 | BP18: 0 | BQ18: 0 | BR18: 0 | BS18: 0 | BT18: 0 | BU18: 0 | BV18: 0 | BW18: 0 | BX18: 0 | BY18: 0 | BZ18: 0 | CA18: 0 | CB18: 0 | CC18: 0 | CD18: 0 | CE18: 0 | CF18: 0 | CG18: 0 | CH18: 0 | CI18: 0
A19: 378 | B19: M&R Station Equip-General | D19: 121321.6177 | E19: 2965.530899 | F19: 3265.630248 | G19: 3721.400682 | H19: 4252.344894 | I19: 4647.562012 | J19: 5178.425373 | K19: 5694.914826 | L19: 5815.034344 | M19: 5822.161346 | N19: 4461.145027 | O19: 3637.53833 | P19: 3478.182878 | Q19: 3365.567013 | R19: 3280.59131 | S19: 3233.261173 | T19: 2908.702724 | U19: 2723.149284 | V19: 3175.639519 | W19: 3784.547636 | X19: 4587.265408 | Y19: 5370.987253 | Z19: 5336.653709 | AA19: 5299.209855 | AB19: 5152.467366 | AC19: 4925.449603 | AD19: 4700.019149 | AE19: 4106.157554 | AF19: 3003.234054 | AG19: 2386.765112 | AH19: 1042.079087 | AI19: 0 | AJ19: 0 | AK19: 0 | AL19: 0 | AM19: 0 | AN19: 0 | AO19: 0 | AP19: 0 | AQ19: 0 | AR19: 0 | AS19: 0 | AT19: 0 | AU19: 0 | AV19: 0 | AW19: 0 | AX19: 0 | AY19: 0 | AZ19: 0 | BA19: 0 | BB19: 0 | BC19: 0 | BD19: 0 | BE19: 0 | BF19: 0 | BG19: 0 | BH19: 0 | BI19: 0 | BJ19: 0 | BK19: 0 | BL19: 0 | BM19: 0 | BN19: 0 | BO19: 0 | BP19: 0 | BQ19: 0 | BR19: 0 | BS19: 0 | BT19: 0 | BU19: 0 | BV19: 0 | BW19: 0 | BX19: 0 | BY19: 0 | BZ19: 0 | CA19: 0 | CB19: 0 | CC19: 0 | CD19: 0 | CE19: 0 | CF19: 0 | CG19: 0 | CH19: 0 | CI19: 0
A20: 3781 | B20: M & R Equipment | D20: 0 | E20: 0 | F20: 0 | G20: 0 | H20: 0 | I20: 0 | J20: 0 | K20: 0 | L20: 0 | M20: 0 | N20: 0 | O20: 0 | P20: 0 | Q20: 0 | R20: 0 | S20: 0 | T20: 0 | U20: 0 | V20: 0 | W20: 0 | X20: 0 | Y20: 0 | Z20: 0 | AA20: 0 | AB20: 0 | AC20: 0 | AD20: 0 | AE20: 0 | AF20: 0 | AG20: 0 | AH20: 0 | AI20: 0 | AJ20: 0 | AK20: 0 | AL20: 0 | AM20: 0 | AN20: 0 | AO20: 0 | AP20: 0 | AQ20: 0 | AR20: 0 | AS20: 0 | AT20: 0 | AU20: 0 | AV20: 0 | AW20: 0 | AX20: 0 | AY20: 0 | AZ20: 0 | BA20: 0 | BB20: 0 | BC20: 0 | BD20: 0 | BE20: 0 | BF20: 0 | BG20: 0 | BH20: 0 | BI20: 0 | BJ20: 0 | BK20: 0 | BL20: 0 | BM20: 0 | BN20: 0 | BO20: 0 | BP20: 0 | BQ20: 0 | BR20: 0 | BS20: 0 | BT20: 0 | BU20: 0 | BV20: 0 | BW20: 0 | BX20: 0 | BY20: 0 | BZ20: 0 | CA20: 0 | CB20: 0 | CC20: 0 | CD20: 0 | CE20: 0 | CF20: 0 | CG20: 0 | CH20: 0 | CI20: 0
A21: 379 | B21: M&R Station Equip-City Gate | D21: 370065.019 | E21: 19740.11019 | F21: 19939.33726 | G21: 20964.5092 | H21: 20611.31275 | I21: 20385.24441 | J21: 20518.61339 | K21: 20639.52236 | L21: 21896.23874 | M21: 23489.40831 | N21: 23432.09984 | O21: 23432.06901 | P21: 23432.03415 | Q21: 19000.04668 | R21: 15274.72362 | S21: 11148.85462 | T21: 9608.731437 | U21: 11979.13069 | V21: 12198.13879 | W21: 4893.309914 | X21: 5251.325846 | Y21: 4805.876631 | Z21: 4687.709463 | AA21: 4343.268637 | AB21: 3852.832786 | AC21: 3110.587852 | AD21: 1429.982475 | AE21: 0 | AF21: 0 | AG21: 0 | AH21: 0 | AI21: 0 | AJ21: 0 | AK21: 0 | AL21: 0 | AM21: 0 | AN21: 0 | AO21: 0 | AP21: 0 | AQ21: 0 | AR21: 0 | AS21: 0 | AT21: 0 | AU21: 0 | AV21: 0 | AW21: 0 | AX21: 0 | AY21: 0 | AZ21: 0 | BA21: 0 | BB21: 0 | BC21: 0 | BD21: 0 | BE21: 0 | BF21: 0 | BG21: 0 | BH21: 0 | BI21: 0 | BJ21: 0 | BK21: 0 | BL21: 0 | BM21: 0 | BN21: 0 | BO21: 0 | BP21: 0 | BQ21: 0 | BR21: 0 | BS21: 0 | BT21: 0 | BU21: 0 | BV21: 0 | BW21: 0 | BX21: 0 | BY21: 0 | BZ21: 0 | CA21: 0 | CB21: 0 | CC21: 0 | CD21: 0 | CE21: 0 | CF21: 0 | CG21: 0 | CH21: 0 | CI21: 0
A22: 3791 | B22: M & R Equipment | D22: 0 | E22: 0 | F22: 0 | G22: 0 | H22: 0 | I22: 0 | J22: 0 | K22: 0 | L22: 0 | M22: 0 | N22: 0 | O22: 0 | P22: 0 | Q22: 0 | R22: 0 | S22: 0 | T22: 0 | U22: 0 | V22: 0 | W22: 0 | X22: 0 | Y22: 0 | Z22: 0 | AA22: 0 | AB22: 0 | AC22: 0 | AD22: 0 | AE22: 0 | AF22: 0 | AG22: 0 | AH22: 0 | AI22: 0 | AJ22: 0 | AK22: 0 | AL22: 0 | AM22: 0 | AN22: 0 | AO22: 0 | AP22: 0 | AQ22: 0 | AR22: 0 | AS22: 0 | AT22: 0 | AU22: 0 | AV22: 0 | AW22: 0 | AX22: 0 | AY22: 0 | AZ22: 0 | BA22: 0 | BB22: 0 | BC22: 0 | BD22: 0 | BE22: 0 | BF22: 0 | BG22: 0 | BH22: 0 | BI22: 0 | BJ22: 0 | BK22: 0 | BL22: 0 | BM22: 0 | BN22: 0 | BO22: 0 | BP22: 0 | BQ22: 0 | BR22: 0 | BS22: 0 | BT22: 0 | BU22: 0 | BV22: 0 | BW22: 0 | BX22: 0 | BY22: 0 | BZ22: 0 | CA22: 0 | CB22: 0 | CC22: 0 | CD22: 0 | CE22: 0 | CF22: 0 | CG22: 0 | CH22: 0 | CI22: 0
A23: 3800 | B23: Dist Plant - Services (CIAC) | D23: 0 | E23: 0 | F23: 0 | G23: 0 | H23: 0 | I23: 0 | J23: 0 | K23: 0 | L23: 0 | M23: 0 | N23: 0 | O23: 0 | P23: 0 | Q23: 0 | R23: 0 | S23: 0 | T23: 0 | U23: 0 | V23: 0 | W23: 0 | X23: 0 | Y23: 0 | Z23: 0 | AA23: 0 | AB23: 0 | AC23: 0 | AD23: 0 | AE23: 0 | AF23: 0 | AG23: 0 | AH23: 0 | AI23: 0 | AJ23: 0 | AK23: 0 | AL23: 0 | AM23: 0 | AN23: 0 | AO23: 0 | AP23: 0 | AQ23: 0 | AR23: 0 | AS23: 0 | AT23: 0 | AU23: 0 | AV23: 0 | AW23: 0 | AX23: 0 | AY23: 0 | AZ23: 0 | BA23: 0 | BB23: 0 | BC23: 0 | BD23: 0 | BE23: 0 | BF23: 0 | BG23: 0 | BH23: 0 | BI23: 0 | BJ23: 0 | BK23: 0 | BL23: 0 | BM23: 0 | BN23: 0 | BO23: 0 | BP23: 0 | BQ23: 0 | BR23: 0 | BS23: 0 | BT23: 0 | BU23: 0 | BV23: 0 | BW23: 0 | BX23: 0 | BY23: 0 | BZ23: 0 | CA23: 0 | CB23: 0 | CC23: 0 | CD23: 0 | CE23: 0 | CF23: 0 | CG23: 0 | CH23: 0 | CI23: 0
A24: 3801 | B24: Dist Plant - Services (Plastic) | D24: 980580.9773 | E24: 5230.905856 | F24: 6166.54328 | G24: 7505.176208 | H24: 12807.66878 | I24: 18837.72378 | J24: 24081.47548 | K24: 27695.90565 | L24: 29653.7286 | M24: 29851.7103 | N24: 29903.31917 | O24: 29910.6962 | P24: 29910.70664 | Q24: 29910.70543 | R24: 29910.70283 | S24: 30640.36631 | T24: 31948.91264 | U24: 33516.66976 | V24: 35157.2234 | W24: 36672.40949 | X24: 38080.39566 | Y24: 39100.6273 | Z24: 38090.07758 | AA24: 36879.19391 | AB24: 35264.46797 | AC24: 33624.5695 | AD24: 31768.82012 | AE24: 29549.37108 | AF24: 27288.75901 | AG24: 24287.8118 | AH24: 21411.33296 | AI24: 19718.38433 | AJ24: 18187.17068 | AK24: 16948.81551 | AL24: 16154.25904 | AM24: 15413.53119 | AN24: 13438.734 | AO24: 11942.15179 | AP24: 10406.95254 | AQ24: 8703.756986 | AR24: 7002.356043 | AS24: 5195.46641 | AT24: 2811.422085 | AU24: 0 | AV24: 0 | AW24: 0 | AX24: 0 | AY24: 0 | AZ24: 0 | BA24: 0 | BB24: 0 | BC24: 0 | BD24: 0 | BE24: 0 | BF24: 0 | BG24: 0 | BH24: 0 | BI24: 0 | BJ24: 0 | BK24: 0 | BL24: 0 | BM24: 0 | BN24: 0 | BO24: 0 | BP24: 0 | BQ24: 0 | BR24: 0 | BS24: 0 | BT24: 0 | BU24: 0 | BV24: 0 | BW24: 0 | BX24: 0 | BY24: 0 | BZ24: 0 | CA24: 0 | CB24: 0 | CC24: 0 | CD24: 0 | CE24: 0 | CF24: 0 | CG24: 0 | CH24: 0 | CI24: 0
A25: 3802 | B25: Dist Plant - Services (Steel) | D25: 0 | E25: 0 | F25: 0 | G25: 0 | H25: 0 | I25: 0 | J25: 0 | K25: 0 | L25: 0 | M25: 0 | N25: 0 | O25: 0 | P25: 0 | Q25: 0 | R25: 0 | S25: 0 | T25: 0 | U25: 0 | V25: 0 | W25: 0 | X25: 0 | Y25: 0 | Z25: 0 | AA25: 0 | AB25: 0 | AC25: 0 | AD25: 0 | AE25: 0 | AF25: 0 | AG25: 0 | AH25: 0 | AI25: 0 | AJ25: 0 | AK25: 0 | AL25: 0 | AM25: 0 | AN25: 0 | AO25: 0 | AP25: 0 | AQ25: 0 | AR25: 0 | AS25: 0 | AT25: 0 | AU25: 0 | AV25: 0 | AW25: 0 | AX25: 0 | AY25: 0 | AZ25: 0 | BA25: 0 | BB25: 0 | BC25: 0 | BD25: 0 | BE25: 0 | BF25: 0 | BG25: 0 | BH25: 0 | BI25: 0 | BJ25: 0 | BK25: 0 | BL25: 0 | BM25: 0 | BN25: 0 | BO25: 0 | BP25: 0 | BQ25: 0 | BR25: 0 | BS25: 0 | BT25: 0 | BU25: 0 | BV25: 0 | BW25: 0 | BX25: 0 | BY25: 0 | BZ25: 0 | CA25: 0 | CB25: 0 | CC25: 0 | CD25: 0 | CE25: 0 | CF25: 0 | CG25: 0 | CH25: 0 | CI25: 0
A26: 380G | B26: Dist Plant - Services (GRIP) | D26: 143732.5193 | E26: 20.75720453 | F26: 98.33931034 | G26: 286.7258516 | H26: 546.1807357 | I26: 856.2088469 | J26: 1037.45436 | K26: 1065.679677 | L26: 1082.379831 | M26: 1082.383592 | N26: 1082.389965 | O26: 1082.378574 | P26: 1082.400349 | Q26: 1082.393467 | R26: 1082.390452 | S26: 1092.508258 | T26: 1485.236045 | U26: 2180.761136 | V26: 3532.778522 | W26: 5153.0136 | X26: 6753.146159 | Y26: 7371.09816 | Z26: 7371.09816 | AA26: 7371.09816 | AB26: 7371.09816 | AC26: 7371.09816 | AD26: 7371.09816 | AE26: 7371.09816 | AF26: 7371.09816 | AG26: 7371.09816 | AH26: 7371.09816 | AI26: 7371.09816 | AJ26: 7362.278048 | AK26: 7215.456454 | AL26: 6299.328907 | AM26: 5084.796386 | AN26: 3631.861098 | AO26: 1307.737599 | AP26: 63.47508874 | AQ26: 0 | AR26: 0 | AS26: 0 | AT26: 0 | AU26: 0 | AV26: 0 | AW26: 0 | AX26: 0 | AY26: 0 | AZ26: 0 | BA26: 0 | BB26: 0 | BC26: 0 | BD26: 0 | BE26: 0 | BF26: 0 | BG26: 0 | BH26: 0 | BI26: 0 | BJ26: 0 | BK26: 0 | BL26: 0 | BM26: 0 | BN26: 0 | BO26: 0 | BP26: 0 | BQ26: 0 | BR26: 0 | BS26: 0 | BT26: 0 | BU26: 0 | BV26: 0 | BW26: 0 | BX26: 0 | BY26: 0 | BZ26: 0 | CA26: 0 | CB26: 0 | CC26: 0 | CD26: 0 | CE26: 0 | CF26: 0 | CG26: 0 | CH26: 0 | CI26: 0
A27: 381 | B27: Meters | D27: 387785.1846 | E27: 26707.98766 | F27: 36017.68642 | G27: 27230.70085 | H27: 27459.08637 | I27: 26852.7761 | J27: 26263.36064 | K27: 22647.60058 | L27: 16873.34113 | M27: 16873.35304 | N27: 16885.59741 | O27: 16676.90349 | P27: 16172.55047 | Q27: 14627.34929 | R27: 13608.94191 | S27: 12734.89294 | T27: 11240.03241 | U27: 11120.29044 | V27: 9657.902616 | W27: 10051.03874 | X27: 8038.352563 | Y27: 8501.952931 | Z27: 5590.961499 | AA27: 5564.32194 | AB27: 388.2031358 | AC27: 0 | AD27: 0 | AE27: 0 | AF27: 0 | AG27: 0 | AH27: 0 | AI27: 0 | AJ27: 0 | AK27: 0 | AL27: 0 | AM27: 0 | AN27: 0 | AO27: 0 | AP27: 0 | AQ27: 0 | AR27: 0 | AS27: 0 | AT27: 0 | AU27: 0 | AV27: 0 | AW27: 0 | AX27: 0 | AY27: 0 | AZ27: 0 | BA27: 0 | BB27: 0 | BC27: 0 | BD27: 0 | BE27: 0 | BF27: 0 | BG27: 0 | BH27: 0 | BI27: 0 | BJ27: 0 | BK27: 0 | BL27: 0 | BM27: 0 | BN27: 0 | BO27: 0 | BP27: 0 | BQ27: 0 | BR27: 0 | BS27: 0 | BT27: 0 | BU27: 0 | BV27: 0 | BW27: 0 | BX27: 0 | BY27: 0 | BZ27: 0 | CA27: 0 | CB27: 0 | CC27: 0 | CD27: 0 | CE27: 0 | CF27: 0 | CG27: 0 | CH27: 0 | CI27: 0
A28: 3811 | B28: Meters MTU/DCU | D28: 0 | E28: 0 | F28: 0 | G28: 0 | H28: 0 | I28: 0 | J28: 0 | K28: 0 | L28: 0 | M28: 0 | N28: 0 | O28: 0 | P28: 0 | Q28: 0 | R28: 0 | S28: 0 | T28: 0 | U28: 0 | V28: 0 | W28: 0 | X28: 0 | Y28: 0 | Z28: 0 | AA28: 0 | AB28: 0 | AC28: 0 | AD28: 0 | AE28: 0 | AF28: 0 | AG28: 0 | AH28: 0 | AI28: 0 | AJ28: 0 | AK28: 0 | AL28: 0 | AM28: 0 | AN28: 0 | AO28: 0 | AP28: 0 | AQ28: 0 | AR28: 0 | AS28: 0 | AT28: 0 | AU28: 0 | AV28: 0 | AW28: 0 | AX28: 0 | AY28: 0 | AZ28: 0 | BA28: 0 | BB28: 0 | BC28: 0 | BD28: 0 | BE28: 0 | BF28: 0 | BG28: 0 | BH28: 0 | BI28: 0 | BJ28: 0 | BK28: 0 | BL28: 0 | BM28: 0 | BN28: 0 | BO28: 0 | BP28: 0 | BQ28: 0 | BR28: 0 | BS28: 0 | BT28: 0 | BU28: 0 | BV28: 0 | BW28: 0 | BX28: 0 | BY28: 0 | BZ28: 0 | CA28: 0 | CB28: 0 | CC28: 0 | CD28: 0 | CE28: 0 | CF28: 0 | CG28: 0 | CH28: 0 | CI28: 0
A29: 382 | B29: Meter Installations | D29: 297485.3981 | E29: 12954.63966 | F29: 13613.82308 | G29: 14517.91378 | H29: 16079.10912 | I29: 17005.45398 | J29: 17935.43434 | K29: 17969.61204 | L29: 17494.97621 | M29: 16529.37636 | N29: 15795.76397 | O29: 15175.94539 | P29: 13745.0628 | Q29: 12408.14411 | R29: 12046.88752 | S29: 11567.50341 | T29: 11246.59306 | U29: 10929.81215 | V29: 10692.32528 | W29: 10273.06962 | X29: 10737.11938 | Y29: 10294.56685 | Z29: 6807.26472 | AA29: 1665.001317 | AB29: 0 | AC29: 0 | AD29: 0 | AE29: 0 | AF29: 0 | AG29: 0 | AH29: 0 | AI29: 0 | AJ29: 0 | AK29: 0 | AL29: 0 | AM29: 0 | AN29: 0 | AO29: 0 | AP29: 0 | AQ29: 0 | AR29: 0 | AS29: 0 | AT29: 0 | AU29: 0 | AV29: 0 | AW29: 0 | AX29: 0 | AY29: 0 | AZ29: 0 | BA29: 0 | BB29: 0 | BC29: 0 | BD29: 0 | BE29: 0 | BF29: 0 | BG29: 0 | BH29: 0 | BI29: 0 | BJ29: 0 | BK29: 0 | BL29: 0 | BM29: 0 | BN29: 0 | BO29: 0 | BP29: 0 | BQ29: 0 | BR29: 0 | BS29: 0 | BT29: 0 | BU29: 0 | BV29: 0 | BW29: 0 | BX29: 0 | BY29: 0 | BZ29: 0 | CA29: 0 | CB29: 0 | CC29: 0 | CD29: 0 | CE29: 0 | CF29: 0 | CG29: 0 | CH29: 0 | CI29: 0
A30: 3821 | B30: Meter Installations-MTU/DCU's | D30: 0 | E30: 0 | F30: 0 | G30: 0 | H30: 0 | I30: 0 | J30: 0 | K30: 0 | L30: 0 | M30: 0 | N30: 0 | O30: 0 | P30: 0 | Q30: 0 | R30: 0 | S30: 0 | T30: 0 | U30: 0 | V30: 0 | W30: 0 | X30: 0 | Y30: 0 | Z30: 0 | AA30: 0 | AB30: 0 | AC30: 0 | AD30: 0 | AE30: 0 | AF30: 0 | AG30: 0 | AH30: 0 | AI30: 0 | AJ30: 0 | AK30: 0 | AL30: 0 | AM30: 0 | AN30: 0 | AO30: 0 | AP30: 0 | AQ30: 0 | AR30: 0 | AS30: 0 | AT30: 0 | AU30: 0 | AV30: 0 | AW30: 0 | AX30: 0 | AY30: 0 | AZ30: 0 | BA30: 0 | BB30: 0 | BC30: 0 | BD30: 0 | BE30: 0 | BF30: 0 | BG30: 0 | BH30: 0 | BI30: 0 | BJ30: 0 | BK30: 0 | BL30: 0 | BM30: 0 | BN30: 0 | BO30: 0 | BP30: 0 | BQ30: 0 | BR30: 0 | BS30: 0 | BT30: 0 | BU30: 0 | BV30: 0 | BW30: 0 | BX30: 0 | BY30: 0 | BZ30: 0 | CA30: 0 | CB30: 0 | CC30: 0 | CD30: 0 | CE30: 0 | CF30: 0 | CG30: 0 | CH30: 0 | CI30: 0
A31: 383 | B31: House Regulators | D31: 81102.51557 | E31: 2510.070677 | F31: 2832.221547 | G31: 3044.587277 | H31: 3828.270727 | I31: 4293.682574 | J31: 4728.933357 | K31: 5042.582259 | L31: 5093.226699 | M31: 4114.920268 | N31: 3273.586833 | O31: 3032.487191 | P31: 2710.893382 | Q31: 2457.025835 | R31: 2298.358432 | S31: 2169.971407 | T31: 1950.567711 | U31: 1920.475415 | V31: 1846.007549 | W31: 1797.769857 | X31: 1759.668134 | Y31: 1784.158187 | Z31: 1595.366787 | AA31: 1387.51342 | AB31: 1172.812126 | AC31: 735.855277 | AD31: 356.8159243 | AE31: 77.72608433 | AF31: 0 | AG31: 0 | AH31: 0 | AI31: 0 | AJ31: 0 | AK31: 0 | AL31: 0 | AM31: 0 | AN31: 0 | AO31: 0 | AP31: 0 | AQ31: 0 | AR31: 0 | AS31: 0 | AT31: 0 | AU31: 0 | AV31: 0 | AW31: 0 | AX31: 0 | AY31: 0 | AZ31: 674.4353059 | BA31: 674.4353059 | BB31: 674.4353059 | BC31: 674.4353059 | BD31: 674.4353059 | BE31: 674.4353059 | BF31: 674.4353059 | BG31: 674.4353059 | BH31: 674.4353059 | BI31: 674.4353059 | BJ31: 674.4353059 | BK31: 674.4353059 | BL31: 674.4353059 | BM31: 674.4353059 | BN31: 674.4353059 | BO31: 674.4353059 | BP31: 674.4353059 | BQ31: 674.4353059 | BR31: 674.4353059 | BS31: 427.721334 | BT31: 44.96848668 | BU31: 0 | BV31: 0 | BW31: 0 | BX31: 0 | BY31: 0 | BZ31: 0 | CA31: 0 | CB31: 0 | CC31: 0 | CD31: 0 | CE31: 0 | CF31: 0 | CG31: 0 | CH31: 0 | CI31: 0
A32: 3831 | D32: 0 | E32: 0 | F32: 0 | G32: 0 | H32: 0 | I32: 0 | J32: 0 | K32: 0 | L32: 0 | M32: 0 | N32: 0 | O32: 0 | P32: 0 | Q32: 0 | R32: 0 | S32: 0 | T32: 0 | U32: 0 | V32: 0 | W32: 0 | X32: 0 | Y32: 0 | Z32: 0 | AA32: 0 | AB32: 0 | AC32: 0 | AD32: 0 | AE32: 0 | AF32: 0 | AG32: 0 | AH32: 0 | AI32: 0 | AJ32: 0 | AK32: 0 | AL32: 0 | AM32: 0 | AN32: 0 | AO32: 0 | AP32: 0 | AQ32: 0 | AR32: 0 | AS32: 0 | AT32: 0 | AU32: 0 | AV32: 0 | AW32: 0 | AX32: 0 | AY32: 0 | AZ32: 0 | BA32: 0 | BB32: 0 | BC32: 0 | BD32: 0 | BE32: 0 | BF32: 0 | BG32: 0 | BH32: 0 | BI32: 0 | BJ32: 0 | BK32: 0 | BL32: 0 | BM32: 0 | BN32: 0 | BO32: 0 | BP32: 0 | BQ32: 0 | BR32: 0 | BS32: 0 | BT32: 0 | BU32: 0 | BV32: 0 | BW32: 0 | BX32: 0 | BY32: 0 | BZ32: 0 | CA32: 0 | CB32: 0 | CC32: 0 | CD32: 0 | CE32: 0 | CF32: 0 | CG32: 0 | CH32: 0 | CI32: 0
A33: 384 | B33: House Reg Installs | D33: 72.167004 | E33: 14.206374 | F33: 14.206374 | G33: 14.206374 | H33: 14.206374 | I33: 14.207697 | J33: 1.133811 | K33: 0 | L33: 0 | M33: 0 | N33: 0 | O33: 0 | P33: 0 | Q33: 0 | R33: 0 | S33: 0 | T33: 0 | U33: 0 | V33: 0 | W33: 0 | X33: 0 | Y33: 0 | Z33: 0 | AA33: 0 | AB33: 0 | AC33: 0 | AD33: 0 | AE33: 0 | AF33: 0 | AG33: 0 | AH33: 0 | AI33: 0 | AJ33: 0 | AK33: 0 | AL33: 0 | AM33: 0 | AN33: 0 | AO33: 0 | AP33: 0 | AQ33: 0 | AR33: 0 | AS33: 0 | AT33: 0 | AU33: 0 | AV33: 0 | AW33: 0 | AX33: 0 | AY33: 0 | AZ33: 0 | BA33: 0 | BB33: 0 | BC33: 0 | BD33: 0 | BE33: 0 | BF33: 0 | BG33: 0 | BH33: 0 | BI33: 0 | BJ33: 0 | BK33: 0 | BL33: 0 | BM33: 0 | BN33: 0 | BO33: 0 | BP33: 0 | BQ33: 0 | BR33: 0 | BS33: 0 | BT33: 0 | BU33: 0 | BV33: 0 | BW33: 0 | BX33: 0 | BY33: 0 | BZ33: 0 | CA33: 0 | CB33: 0 | CC33: 0 | CD33: 0 | CE33: 0 | CF33: 0 | CG33: 0 | CH33: 0 | CI33: 0
A34: 385 | B34: M&R Station Equip-Industrial | D34: 82662.02696 | E34: 1939.005205 | F34: 2033.425069 | G34: 2350.943819 | H34: 1594.88468 | I34: 2398.287002 | J34: 2727.734665 | K34: 2929.167514 | L34: 2963.036314 | M34: 2743.012237 | N34: 2631.821165 | O34: 2631.822488 | P34: 2631.821165 | Q34: 2631.823811 | R34: 2062.59396 | S34: 1963.628845 | T34: 1996.906264 | U34: 2078.90845 | V34: 2251.791475 | W34: 1766.33481 | X34: 1733.447455 | Y34: 1736.065672 | Z34: 1736.065672 | AA34: 1720.273058 | AB34: 1459.811553 | AC34: 1459.811553 | AD34: 1459.811553 | AE34: 1459.811553 | AF34: 1422.657486 | AG34: 1255.46057 | AH34: 1255.46057 | AI34: 1255.46057 | AJ34: 1255.46057 | AK34: 1204.861282 | AL34: 1090.353212 | AM34: 1090.353212 | AN34: 1090.353212 | AO34: 1090.353212 | AP34: 1029.218158 | AQ34: 948.5450392 | AR34: 948.5450392 | AS34: 948.5450392 | AT34: 948.5450392 | AU34: 845.1431616 | AV34: 762.4897649 | AW34: 762.4897649 | AX34: 762.4897649 | AY34: 762.4897649 | AZ34: 762.4897649 | BA34: 762.4897649 | BB34: 762.4897649 | BC34: 762.4897649 | BD34: 762.4897649 | BE34: 227.9349906 | BF34: 98.49183735 | BG34: 98.49183735 | BH34: 98.49183735 | BI34: 98.49183735 | BJ34: 70.09650352 | BK34: 67.94946212 | BL34: 67.94946212 | BM34: 67.94946212 | BN34: 65.01612793 | BO34: 13.97911686 | BP34: 13.97911686 | BQ34: 13.97911686 | BR34: 13.97911686 | BS34: 11.47687123 | BT34: 0 | BU34: 0 | BV34: 0 | BW34: 0 | BX34: 0 | BY34: 0 | BZ34: 0 | CA34: 0 | CB34: 0 | CC34: 0 | CD34: 0 | CE34: 0 | CF34: 0 | CG34: 0 | CH34: 0 | CI34: 0
A35: 3851 | B35: M&R Station Equip-Industrial | D35: 0 | E35: 0 | F35: 0 | G35: 0 | H35: 0 | I35: 0 | J35: 0 | K35: 0 | L35: 0 | M35: 0 | N35: 0 | O35: 0 | P35: 0 | Q35: 0 | R35: 0 | S35: 0 | T35: 0 | U35: 0 | V35: 0 | W35: 0 | X35: 0 | Y35: 0 | Z35: 0 | AA35: 0 | AB35: 0 | AC35: 0 | AD35: 0 | AE35: 0 | AF35: 0 | AG35: 0 | AH35: 0 | AI35: 0 | AJ35: 0 | AK35: 0 | AL35: 0 | AM35: 0 | AN35: 0 | AO35: 0 | AP35: 0 | AQ35: 0 | AR35: 0 | AS35: 0 | AT35: 0 | AU35: 0 | AV35: 0 | AW35: 0 | AX35: 0 | AY35: 0 | AZ35: 0 | BA35: 0 | BB35: 0 | BC35: 0 | BD35: 0 | BE35: 0 | BF35: 0 | BG35: 0 | BH35: 0 | BI35: 0 | BJ35: 0 | BK35: 0 | BL35: 0 | BM35: 0 | BN35: 0 | BO35: 0 | BP35: 0 | BQ35: 0 | BR35: 0 | BS35: 0 | BT35: 0 | BU35: 0 | BV35: 0 | BW35: 0 | BX35: 0 | BY35: 0 | BZ35: 0 | CA35: 0 | CB35: 0 | CC35: 0 | CD35: 0 | CE35: 0 | CF35: 0 | CG35: 0 | CH35: 0 | CI35: 0
A36: 387 | B36: Other Equipment | D36: 40519.58847 | E36: 2124.084106 | F36: 2375.420562 | G36: 2675.894476 | H36: 2274.959813 | I36: 2019.596624 | J36: 2434.295148 | K36: 2504.16412 | L36: 2608.343756 | M36: 2521.307787 | N36: 2473.814652 | O36: 2434.943761 | P36: 2285.587544 | Q36: 2125.207747 | R36: 1977.111259 | S36: 1919.999169 | T36: 1771.138441 | U36: 1778.010179 | V36: 1192.223072 | W36: 698.7602345 | X36: 302.1195849 | Y36: 22.60643606 | Z36: 0 | AA36: 0 | AB36: 0 | AC36: 0 | AD36: 0 | AE36: 0 | AF36: 0 | AG36: 0 | AH36: 0 | AI36: 0 | AJ36: 0 | AK36: 0 | AL36: 0 | AM36: 0 | AN36: 0 | AO36: 0 | AP36: 0 | AQ36: 0 | AR36: 0 | AS36: 0 | AT36: 0 | AU36: 0 | AV36: 0 | AW36: 0 | AX36: 0 | AY36: 0 | AZ36: 0 | BA36: 0 | BB36: 0 | BC36: 0 | BD36: 0 | BE36: 0 | BF36: 0 | BG36: 0 | BH36: 0 | BI36: 0 | BJ36: 0 | BK36: 0 | BL36: 0 | BM36: 0 | BN36: 0 | BO36: 0 | BP36: 0 | BQ36: 0 | BR36: 0 | BS36: 0 | BT36: 0 | BU36: 0 | BV36: 0 | BW36: 0 | BX36: 0 | BY36: 0 | BZ36: 0 | CA36: 0 | CB36: 0 | CC36: 0 | CD36: 0 | CE36: 0 | CF36: 0 | CG36: 0 | CH36: 0 | CI36: 0
A37: 389 | B37: Land and Land Rights | D37: 0 | E37: 0 | F37: 0 | G37: 0 | H37: 0 | I37: 0 | J37: 0 | K37: 0 | L37: 0 | M37: 0 | N37: 0 | O37: 0 | P37: 0 | Q37: 0 | R37: 0 | S37: 0 | T37: 0 | U37: 0 | V37: 0 | W37: 0 | X37: 0 | Y37: 0 | Z37: 0 | AA37: 0 | AB37: 0 | AC37: 0 | AD37: 0 | AE37: 0 | AF37: 0 | AG37: 0 | AH37: 0 | AI37: 0 | AJ37: 0 | AK37: 0 | AL37: 0 | AM37: 0 | AN37: 0 | AO37: 0 | AP37: 0 | AQ37: 0 | AR37: 0 | AS37: 0 | AT37: 0 | AU37: 0 | AV37: 0 | AW37: 0 | AX37: 0 | AY37: 0 | AZ37: 0 | BA37: 0 | BB37: 0 | BC37: 0 | BD37: 0 | BE37: 0 | BF37: 0 | BG37: 0 | BH37: 0 | BI37: 0 | BJ37: 0 | BK37: 0 | BL37: 0 | BM37: 0 | BN37: 0 | BO37: 0 | BP37: 0 | BQ37: 0 | BR37: 0 | BS37: 0 | BT37: 0 | BU37: 0 | BV37: 0 | BW37: 0 | BX37: 0 | BY37: 0 | BZ37: 0 | CA37: 0 | CB37: 0 | CC37: 0 | CD37: 0 | CE37: 0 | CF37: 0 | CG37: 0 | CH37: 0 | CI37: 0
A38: 389A | B38: Land and Land Rights FB | D38: 0 | E38: 0 | F38: 0 | G38: 0 | H38: 0 | I38: 0 | J38: 0 | K38: 0 | L38: 0 | M38: 0 | N38: 0 | O38: 0 | P38: 0 | Q38: 0 | R38: 0 | S38: 0 | T38: 0 | U38: 0 | V38: 0 | W38: 0 | X38: 0 | Y38: 0 | Z38: 0 | AA38: 0 | AB38: 0 | AC38: 0 | AD38: 0 | AE38: 0 | AF38: 0 | AG38: 0 | AH38: 0 | AI38: 0 | AJ38: 0 | AK38: 0 | AL38: 0 | AM38: 0 | AN38: 0 | AO38: 0 | AP38: 0 | AQ38: 0 | AR38: 0 | AS38: 0 | AT38: 0 | AU38: 0 | AV38: 0 | AW38: 0 | AX38: 0 | AY38: 0 | AZ38: 0 | BA38: 0 | BB38: 0 | BC38: 0 | BD38: 0 | BE38: 0 | BF38: 0 | BG38: 0 | BH38: 0 | BI38: 0 | BJ38: 0 | BK38: 0 | BL38: 0 | BM38: 0 | BN38: 0 | BO38: 0 | BP38: 0 | BQ38: 0 | BR38: 0 | BS38: 0 | BT38: 0 | BU38: 0 | BV38: 0 | BW38: 0 | BX38: 0 | BY38: 0 | BZ38: 0 | CA38: 0 | CB38: 0 | CC38: 0 | CD38: 0 | CE38: 0 | CF38: 0 | CG38: 0 | CH38: 0 | CI38: 0
A39: 390 | B39: Structures and improvements | D39: 11426.81655 | E39: 0 | F39: 0 | G39: 0 | H39: 0 | I39: 0 | J39: 0 | K39: 0 | L39: 0 | M39: 0 | N39: 0 | O39: 0 | P39: 0 | Q39: 0 | R39: 0 | S39: 0 | T39: 0 | U39: 0 | V39: 0 | W39: 166.8894905 | X39: 173.8477147 | Y39: 173.8477147 | Z39: 174.2937263 | AA39: 176.0317689 | AB39: 176.0317689 | AC39: 176.0317689 | AD39: 176.0317689 | AE39: 176.0317689 | AF39: 176.0317689 | AG39: 176.0317689 | AH39: 176.0317689 | AI39: 176.0317689 | AJ39: 176.0317689 | AK39: 176.0317689 | AL39: 176.0317689 | AM39: 176.0317689 | AN39: 176.0317689 | AO39: 176.0317689 | AP39: 176.0317689 | AQ39: 176.0317689 | AR39: 176.0317689 | AS39: 176.0317689 | AT39: 176.0317689 | AU39: 176.0317689 | AV39: 176.0317689 | AW39: 176.0317689 | AX39: 176.0317689 | AY39: 176.0317689 | AZ39: 176.0317689 | BA39: 176.0317689 | BB39: 176.0317689 | BC39: 176.0317689 | BD39: 176.0317689 | BE39: 176.0317689 | BF39: 176.0317689 | BG39: 176.0317689 | BH39: 176.0317689 | BI39: 176.0317689 | BJ39: 176.0317689 | BK39: 176.0317689 | BL39: 176.0317689 | BM39: 176.0317689 | BN39: 176.0317689 | BO39: 176.0317689 | BP39: 176.0317689 | BQ39: 176.0317689 | BR39: 176.0317689 | BS39: 176.0317689 | BT39: 176.0317689 | BU39: 176.0317689 | BV39: 176.0317689 | BW39: 176.0317689 | BX39: 176.0317689 | BY39: 176.0317689 | BZ39: 176.0317689 | CA39: 176.0317689 | CB39: 176.0317689 | CC39: 176.0317689 | CD39: 176.0317689 | CE39: 176.0317689 | CF39: 176.0317689 | CG39: 176.0317689 | CH39: 176.0317689 | CI39: 176.0317689
A40: 390A | B40: Fernandina Office Building | D40: 126.9334622 | E40: 0 | F40: 0 | G40: 0 | H40: 0 | I40: 0 | J40: 0 | K40: 0 | L40: 0 | M40: 0 | N40: 0 | O40: 0 | P40: 0 | Q40: 0 | R40: 0 | S40: 0 | T40: 0 | U40: 0 | V40: 0 | W40: 0 | X40: 0 | Y40: 0 | Z40: 0 | AA40: 0 | AB40: 0 | AC40: 0 | AD40: 0 | AE40: 0 | AF40: 0 | AG40: 0 | AH40: 0 | AI40: 0 | AJ40: 0 | AK40: 0 | AL40: 0 | AM40: 0 | AN40: 0 | AO40: 12.14372932 | AP40: 12.50820138 | AQ40: 12.50820138 | AR40: 12.50820138 | AS40: 12.50820138 | AT40: 12.50820138 | AU40: 12.50820138 | AV40: 12.50820138 | AW40: 12.50820138 | AX40: 12.50820138 | AY40: 2.092812453 | AZ40: 0.1231080327 | BA40: 0 | BB40: 0 | BC40: 0 | BD40: 0 | BE40: 0 | BF40: 0 | BG40: 0 | BH40: 0 | BI40: 0 | BJ40: 0 | BK40: 0 | BL40: 0 | BM40: 0 | BN40: 0 | BO40: 0 | BP40: 0 | BQ40: 0 | BR40: 0 | BS40: 0 | BT40: 0 | BU40: 0 | BV40: 0 | BW40: 0 | BX40: 0 | BY40: 0 | BZ40: 0 | CA40: 0 | CB40: 0 | CC40: 0 | CD40: 0 | CE40: 0 | CF40: 0 | CG40: 0 | CH40: 0 | CI40: 0
A41: 3910 | B41: Office Furn & Equip | D41: 19541.70199 | E41: 1905.766153 | F41: 1980.731061 | G41: 2015.996874 | H41: 2031.146169 | I41: 2048.618051 | J41: 2049.654941 | K41: 2049.654941 | L41: 1957.291035 | M41: 1732.399628 | N41: 1297.914016 | O41: 254.5137956 | P41: 147.6400655 | Q41: 33.65806653 | R41: 24.68241685 | S41: 11.2456313 | T41: 0.789146744 | U41: 0 | V41: 0 | W41: 0 | X41: 0 | Y41: 0 | Z41: 0 | AA41: 0 | AB41: 0 | AC41: 0 | AD41: 0 | AE41: 0 | AF41: 0 | AG41: 0 | AH41: 0 | AI41: 0 | AJ41: 0 | AK41: 0 | AL41: 0 | AM41: 0 | AN41: 0 | AO41: 0 | AP41: 0 | AQ41: 0 | AR41: 0 | AS41: 0 | AT41: 0 | AU41: 0 | AV41: 0 | AW41: 0 | AX41: 0 | AY41: 0 | AZ41: 0 | BA41: 0 | BB41: 0 | BC41: 0 | BD41: 0 | BE41: 0 | BF41: 0 | BG41: 0 | BH41: 0 | BI41: 0 | BJ41: 0 | BK41: 0 | BL41: 0 | BM41: 0 | BN41: 0 | BO41: 0 | BP41: 0 | BQ41: 0 | BR41: 0 | BS41: 0 | BT41: 0 | BU41: 0 | BV41: 0 | BW41: 0 | BX41: 0 | BY41: 0 | BZ41: 0 | CA41: 0 | CB41: 0 | CC41: 0 | CD41: 0 | CE41: 0 | CF41: 0 | CG41: 0 | CH41: 0 | CI41: 0
A42: 3912 | B42: Computer Hardware | D42: 19113.38497 | E42: 2112.565209 | F42: 2112.565209 | G42: 2112.565209 | H42: 2112.565209 | I42: 2112.565209 | J42: 2112.565209 | K42: 2112.565209 | L42: 2112.565209 | M42: 2112.565209 | N42: 100.2980853 | O42: 0 | P42: 0 | Q42: 0 | R42: 0 | S42: 0 | T42: 0 | U42: 0 | V42: 0 | W42: 0 | X42: 0 | Y42: 0 | Z42: 0 | AA42: 0 | AB42: 0 | AC42: 0 | AD42: 0 | AE42: 0 | AF42: 0 | AG42: 0 | AH42: 0 | AI42: 0 | AJ42: 0 | AK42: 0 | AL42: 0 | AM42: 0 | AN42: 0 | AO42: 0 | AP42: 0 | AQ42: 0 | AR42: 0 | AS42: 0 | AT42: 0 | AU42: 0 | AV42: 0 | AW42: 0 | AX42: 0 | AY42: 0 | AZ42: 0 | BA42: 0 | BB42: 0 | BC42: 0 | BD42: 0 | BE42: 0 | BF42: 0 | BG42: 0 | BH42: 0 | BI42: 0 | BJ42: 0 | BK42: 0 | BL42: 0 | BM42: 0 | BN42: 0 | BO42: 0 | BP42: 0 | BQ42: 0 | BR42: 0 | BS42: 0 | BT42: 0 | BU42: 0 | BV42: 0 | BW42: 0 | BX42: 0 | BY42: 0 | BZ42: 0 | CA42: 0 | CB42: 0 | CC42: 0 | CD42: 0 | CE42: 0 | CF42: 0 | CG42: 0 | CH42: 0 | CI42: 0
A43: 3913 | B43: Furniture & Fixtures | D43: 42988.98914 | E43: 2079.251928 | F43: 2079.251928 | G43: 2079.251928 | H43: 2079.251928 | I43: 2079.251928 | J43: 2079.251928 | K43: 2079.251928 | L43: 2079.251928 | M43: 2079.251928 | N43: 2079.251928 | O43: 2079.251928 | P43: 2079.251928 | Q43: 2079.251928 | R43: 2079.251928 | S43: 2079.251928 | T43: 2079.251928 | U43: 2079.251928 | V43: 2079.251928 | W43: 2079.251928 | X43: 2079.251928 | Y43: 1403.950586 | Z43: 0 | AA43: 0 | AB43: 0 | AC43: 0 | AD43: 0 | AE43: 0 | AF43: 0 | AG43: 0 | AH43: 0 | AI43: 0 | AJ43: 0 | AK43: 0 | AL43: 0 | AM43: 0 | AN43: 0 | AO43: 0 | AP43: 0 | AQ43: 0 | AR43: 0 | AS43: 0 | AT43: 0 | AU43: 0 | AV43: 0 | AW43: 0 | AX43: 0 | AY43: 0 | AZ43: 0 | BA43: 0 | BB43: 0 | BC43: 0 | BD43: 0 | BE43: 0 | BF43: 0 | BG43: 0 | BH43: 0 | BI43: 0 | BJ43: 0 | BK43: 0 | BL43: 0 | BM43: 0 | BN43: 0 | BO43: 0 | BP43: 0 | BQ43: 0 | BR43: 0 | BS43: 0 | BT43: 0 | BU43: 0 | BV43: 0 | BW43: 0 | BX43: 0 | BY43: 0 | BZ43: 0 | CA43: 0 | CB43: 0 | CC43: 0 | CD43: 0 | CE43: 0 | CF43: 0 | CG43: 0 | CH43: 0 | CI43: 0
A44: 3914 | B44: System Software | D44: 27994.32279 | E44: 0 | F44: 25.49013666 | G44: 25.49144475 | H44: 2133.127562 | I44: 2225.472324 | J44: 2280.877873 | K44: 2280.877873 | L44: 2280.877873 | M44: 2280.877873 | N44: 2280.877873 | O44: 2280.877873 | P44: 2280.877873 | Q44: 2280.877873 | R44: 2280.877873 | S44: 2280.877873 | T44: 548.786581 | U44: 173.2404472 | V44: 53.93556699 | W44: 0 | X44: 0 | Y44: 0 | Z44: 0 | AA44: 0 | AB44: 0 | AC44: 0 | AD44: 0 | AE44: 0 | AF44: 0 | AG44: 0 | AH44: 0 | AI44: 0 | AJ44: 0 | AK44: 0 | AL44: 0 | AM44: 0 | AN44: 0 | AO44: 0 | AP44: 0 | AQ44: 0 | AR44: 0 | AS44: 0 | AT44: 0 | AU44: 0 | AV44: 0 | AW44: 0 | AX44: 0 | AY44: 0 | AZ44: 0 | BA44: 0 | BB44: 0 | BC44: 0 | BD44: 0 | BE44: 0 | BF44: 0 | BG44: 0 | BH44: 0 | BI44: 0 | BJ44: 0 | BK44: 0 | BL44: 0 | BM44: 0 | BN44: 0 | BO44: 0 | BP44: 0 | BQ44: 0 | BR44: 0 | BS44: 0 | BT44: 0 | BU44: 0 | BV44: 0 | BW44: 0 | BX44: 0 | BY44: 0 | BZ44: 0 | CA44: 0 | CB44: 0 | CC44: 0 | CD44: 0 | CE44: 0 | CF44: 0 | CG44: 0 | CH44: 0 | CI44: 0
A45: 391A | B45: Office Furniture FB | D45: 0 | E45: 0 | F45: 0 | G45: 0 | H45: 0 | I45: 0 | J45: 0 | K45: 0 | L45: 0 | M45: 0 | N45: 0 | O45: 0 | P45: 0 | Q45: 0 | R45: 0 | S45: 0 | T45: 0 | U45: 0 | V45: 0 | W45: 0 | X45: 0 | Y45: 0 | Z45: 0 | AA45: 0 | AB45: 0 | AC45: 0 | AD45: 0 | AE45: 0 | AF45: 0 | AG45: 0 | AH45: 0 | AI45: 0 | AJ45: 0 | AK45: 0 | AL45: 0 | AM45: 0 | AN45: 0 | AO45: 0 | AP45: 0 | AQ45: 0 | AR45: 0 | AS45: 0 | AT45: 0 | AU45: 0 | AV45: 0 | AW45: 0 | AX45: 0 | AY45: 0 | AZ45: 0 | BA45: 0 | BB45: 0 | BC45: 0 | BD45: 0 | BE45: 0 | BF45: 0 | BG45: 0 | BH45: 0 | BI45: 0 | BJ45: 0 | BK45: 0 | BL45: 0 | BM45: 0 | BN45: 0 | BO45: 0 | BP45: 0 | BQ45: 0 | BR45: 0 | BS45: 0 | BT45: 0 | BU45: 0 | BV45: 0 | BW45: 0 | BX45: 0 | BY45: 0 | BZ45: 0 | CA45: 0 | CB45: 0 | CC45: 0 | CD45: 0 | CE45: 0 | CF45: 0 | CG45: 0 | CH45: 0 | CI45: 0
A46: 391S | B46: ECIS Improvements | D46: 9378.69408 | E46: 0 | F46: 0 | G46: 0 | H46: 0 | I46: 0 | J46: 0 | K46: 315.3940851 | L46: 767.180798 | M46: 767.180798 | N46: 767.180798 | O46: 767.180798 | P46: 767.180798 | Q46: 767.180798 | R46: 767.180798 | S46: 767.180798 | T46: 767.180798 | U46: 767.180798 | V46: 767.180798 | W46: 624.3112171 | X46: 0 | Y46: 0 | Z46: 0 | AA46: 0 | AB46: 0 | AC46: 0 | AD46: 0 | AE46: 0 | AF46: 0 | AG46: 0 | AH46: 0 | AI46: 0 | AJ46: 0 | AK46: 0 | AL46: 0 | AM46: 0 | AN46: 0 | AO46: 0 | AP46: 0 | AQ46: 0 | AR46: 0 | AS46: 0 | AT46: 0 | AU46: 0 | AV46: 0 | AW46: 0 | AX46: 0 | AY46: 0 | AZ46: 0 | BA46: 0 | BB46: 0 | BC46: 0 | BD46: 0 | BE46: 0 | BF46: 0 | BG46: 0 | BH46: 0 | BI46: 0 | BJ46: 0 | BK46: 0 | BL46: 0 | BM46: 0 | BN46: 0 | BO46: 0 | BP46: 0 | BQ46: 0 | BR46: 0 | BS46: 0 | BT46: 0 | BU46: 0 | BV46: 0 | BW46: 0 | BX46: 0 | BY46: 0 | BZ46: 0 | CA46: 0 | CB46: 0 | CC46: 0 | CD46: 0 | CE46: 0 | CF46: 0 | CG46: 0 | CH46: 0 | CI46: 0
A47: 3920 | B47: Vehicles | D47: 0 | E47: 0 | F47: 0 | G47: 0 | H47: 0 | I47: 0 | J47: 0 | K47: 0 | L47: 0 | M47: 0 | N47: 0 | O47: 0 | P47: 0 | Q47: 0 | R47: 0 | S47: 0 | T47: 0 | U47: 0 | V47: 0 | W47: 0 | X47: 0 | Y47: 0 | Z47: 0 | AA47: 0 | AB47: 0 | AC47: 0 | AD47: 0 | AE47: 0 | AF47: 0 | AG47: 0 | AH47: 0 | AI47: 0 | AJ47: 0 | AK47: 0 | AL47: 0 | AM47: 0 | AN47: 0 | AO47: 0 | AP47: 0 | AQ47: 0 | AR47: 0 | AS47: 0 | AT47: 0 | AU47: 0 | AV47: 0 | AW47: 0 | AX47: 0 | AY47: 0 | AZ47: 0 | BA47: 0 | BB47: 0 | BC47: 0 | BD47: 0 | BE47: 0 | BF47: 0 | BG47: 0 | BH47: 0 | BI47: 0 | BJ47: 0 | BK47: 0 | BL47: 0 | BM47: 0 | BN47: 0 | BO47: 0 | BP47: 0 | BQ47: 0 | BR47: 0 | BS47: 0 | BT47: 0 | BU47: 0 | BV47: 0 | BW47: 0 | BX47: 0 | BY47: 0 | BZ47: 0 | CA47: 0 | CB47: 0 | CC47: 0 | CD47: 0 | CE47: 0 | CF47: 0 | CG47: 0 | CH47: 0 | CI47: 0
A48: 3921 | B48: Transportation Equip - Autos | D48: 3000.120795 | E48: 682.4326515 | F48: 501.8345821 | G48: 142.9105463 | H48: 142.9105463 | I48: 169.2104633 | J48: 195.5050883 | K48: 195.5050883 | L48: 195.5050883 | M48: 195.5050883 | N48: 195.5050883 | O48: 195.5050883 | P48: 187.7914753 | Q48: 0 | R48: 0 | S48: 0 | T48: 0 | U48: 0 | V48: 0 | W48: 0 | X48: 0 | Y48: 0 | Z48: 0 | AA48: 0 | AB48: 0 | AC48: 0 | AD48: 0 | AE48: 0 | AF48: 0 | AG48: 0 | AH48: 0 | AI48: 0 | AJ48: 0 | AK48: 0 | AL48: 0 | AM48: 0 | AN48: 0 | AO48: 0 | AP48: 0 | AQ48: 0 | AR48: 0 | AS48: 0 | AT48: 0 | AU48: 0 | AV48: 0 | AW48: 0 | AX48: 0 | AY48: 0 | AZ48: 0 | BA48: 0 | BB48: 0 | BC48: 0 | BD48: 0 | BE48: 0 | BF48: 0 | BG48: 0 | BH48: 0 | BI48: 0 | BJ48: 0 | BK48: 0 | BL48: 0 | BM48: 0 | BN48: 0 | BO48: 0 | BP48: 0 | BQ48: 0 | BR48: 0 | BS48: 0 | BT48: 0 | BU48: 0 | BV48: 0 | BW48: 0 | BX48: 0 | BY48: 0 | BZ48: 0 | CA48: 0 | CB48: 0 | CC48: 0 | CD48: 0 | CE48: 0 | CF48: 0 | CG48: 0 | CH48: 0 | CI48: 0
A49: 3922 | B49: Transportation Equip-Lt Trck/Vans | D49: 47382.16014 | E49: 9218.228151 | F49: 6570.702613 | G49: 6581.95614 | H49: 6685.179246 | I49: 6685.492797 | J49: 6583.867875 | K49: 4700.213283 | L49: 356.5200353 | M49: 0 | N49: 0 | O49: 0 | P49: 0 | Q49: 0 | R49: 0 | S49: 0 | T49: 0 | U49: 0 | V49: 0 | W49: 0 | X49: 0 | Y49: 0 | Z49: 0 | AA49: 0 | AB49: 0 | AC49: 0 | AD49: 0 | AE49: 0 | AF49: 0 | AG49: 0 | AH49: 0 | AI49: 0 | AJ49: 0 | AK49: 0 | AL49: 0 | AM49: 0 | AN49: 0 | AO49: 0 | AP49: 0 | AQ49: 0 | AR49: 0 | AS49: 0 | AT49: 0 | AU49: 0 | AV49: 0 | AW49: 0 | AX49: 0 | AY49: 0 | AZ49: 0 | BA49: 0 | BB49: 0 | BC49: 0 | BD49: 0 | BE49: 0 | BF49: 0 | BG49: 0 | BH49: 0 | BI49: 0 | BJ49: 0 | BK49: 0 | BL49: 0 | BM49: 0 | BN49: 0 | BO49: 0 | BP49: 0 | BQ49: 0 | BR49: 0 | BS49: 0 | BT49: 0 | BU49: 0 | BV49: 0 | BW49: 0 | BX49: 0 | BY49: 0 | BZ49: 0 | CA49: 0 | CB49: 0 | CC49: 0 | CD49: 0 | CE49: 0 | CF49: 0 | CG49: 0 | CH49: 0 | CI49: 0
A50: 3923 | B50: Trans Equip-HD Truck/Bobtail | D50: 370.14894 | E50: 85.22595068 | F50: 85.22595068 | G50: 85.22595068 | H50: 85.22595068 | I50: 29.24513726 | J50: 0 | K50: 0 | L50: 0 | M50: 0 | N50: 0 | O50: 0 | P50: 0 | Q50: 0 | R50: 0 | S50: 0 | T50: 0 | U50: 0 | V50: 0 | W50: 0 | X50: 0 | Y50: 0 | Z50: 0 | AA50: 0 | AB50: 0 | AC50: 0 | AD50: 0 | AE50: 0 | AF50: 0 | AG50: 0 | AH50: 0 | AI50: 0 | AJ50: 0 | AK50: 0 | AL50: 0 | AM50: 0 | AN50: 0 | AO50: 0 | AP50: 0 | AQ50: 0 | AR50: 0 | AS50: 0 | AT50: 0 | AU50: 0 | AV50: 0 | AW50: 0 | AX50: 0 | AY50: 0 | AZ50: 0 | BA50: 0 | BB50: 0 | BC50: 0 | BD50: 0 | BE50: 0 | BF50: 0 | BG50: 0 | BH50: 0 | BI50: 0 | BJ50: 0 | BK50: 0 | BL50: 0 | BM50: 0 | BN50: 0 | BO50: 0 | BP50: 0 | BQ50: 0 | BR50: 0 | BS50: 0 | BT50: 0 | BU50: 0 | BV50: 0 | BW50: 0 | BX50: 0 | BY50: 0 | BZ50: 0 | CA50: 0 | CB50: 0 | CC50: 0 | CD50: 0 | CE50: 0 | CF50: 0 | CG50: 0 | CH50: 0 | CI50: 0
A51: 3924 | B51: Trans Equip-Trailers | D51: 0 | E51: 0 | F51: 0 | G51: 0 | H51: 0 | I51: 0 | J51: 0 | K51: 0 | L51: 0 | M51: 0 | N51: 0 | O51: 0 | P51: 0 | Q51: 0 | R51: 0 | S51: 0 | T51: 0 | U51: 0 | V51: 0 | W51: 0 | X51: 0 | Y51: 0 | Z51: 0 | AA51: 0 | AB51: 0 | AC51: 0 | AD51: 0 | AE51: 0 | AF51: 0 | AG51: 0 | AH51: 0 | AI51: 0 | AJ51: 0 | AK51: 0 | AL51: 0 | AM51: 0 | AN51: 0 | AO51: 0 | AP51: 0 | AQ51: 0 | AR51: 0 | AS51: 0 | AT51: 0 | AU51: 0 | AV51: 0 | AW51: 0 | AX51: 0 | AY51: 0 | AZ51: 0 | BA51: 0 | BB51: 0 | BC51: 0 | BD51: 0 | BE51: 0 | BF51: 0 | BG51: 0 | BH51: 0 | BI51: 0 | BJ51: 0 | BK51: 0 | BL51: 0 | BM51: 0 | BN51: 0 | BO51: 0 | BP51: 0 | BQ51: 0 | BR51: 0 | BS51: 0 | BT51: 0 | BU51: 0 | BV51: 0 | BW51: 0 | BX51: 0 | BY51: 0 | BZ51: 0 | CA51: 0 | CB51: 0 | CC51: 0 | CD51: 0 | CE51: 0 | CF51: 0 | CG51: 0 | CH51: 0 | CI51: 0
A52: 393 | B52: Stores equipment | D52: 0 | E52: 0 | F52: 0 | G52: 0 | H52: 0 | I52: 0 | J52: 0 | K52: 0 | L52: 0 | M52: 0 | N52: 0 | O52: 0 | P52: 0 | Q52: 0 | R52: 0 | S52: 0 | T52: 0 | U52: 0 | V52: 0 | W52: 0 | X52: 0 | Y52: 0 | Z52: 0 | AA52: 0 | AB52: 0 | AC52: 0 | AD52: 0 | AE52: 0 | AF52: 0 | AG52: 0 | AH52: 0 | AI52: 0 | AJ52: 0 | AK52: 0 | AL52: 0 | AM52: 0 | AN52: 0 | AO52: 0 | AP52: 0 | AQ52: 0 | AR52: 0 | AS52: 0 | AT52: 0 | AU52: 0 | AV52: 0 | AW52: 0 | AX52: 0 | AY52: 0 | AZ52: 0 | BA52: 0 | BB52: 0 | BC52: 0 | BD52: 0 | BE52: 0 | BF52: 0 | BG52: 0 | BH52: 0 | BI52: 0 | BJ52: 0 | BK52: 0 | BL52: 0 | BM52: 0 | BN52: 0 | BO52: 0 | BP52: 0 | BQ52: 0 | BR52: 0 | BS52: 0 | BT52: 0 | BU52: 0 | BV52: 0 | BW52: 0 | BX52: 0 | BY52: 0 | BZ52: 0 | CA52: 0 | CB52: 0 | CC52: 0 | CD52: 0 | CE52: 0 | CF52: 0 | CG52: 0 | CH52: 0 | CI52: 0
A53: 394 | B53: Tools, shop and garage equipment | D53: 3427.866011 | E53: 135.2996387 | F53: 324.4341921 | G53: 472.9865143 | H53: 422.7322633 | I53: 397.3013211 | J53: 522.6569426 | K53: 853.3976937 | L53: 299.057445 | M53: 0 | N53: 0 | O53: 0 | P53: 0 | Q53: 0 | R53: 0 | S53: 0 | T53: 0 | U53: 0 | V53: 0 | W53: 0 | X53: 0 | Y53: 0 | Z53: 0 | AA53: 0 | AB53: 0 | AC53: 0 | AD53: 0 | AE53: 0 | AF53: 0 | AG53: 0 | AH53: 0 | AI53: 0 | AJ53: 0 | AK53: 0 | AL53: 0 | AM53: 0 | AN53: 0 | AO53: 0 | AP53: 0 | AQ53: 0 | AR53: 0 | AS53: 0 | AT53: 0 | AU53: 0 | AV53: 0 | AW53: 0 | AX53: 0 | AY53: 0 | AZ53: 0 | BA53: 0 | BB53: 0 | BC53: 0 | BD53: 0 | BE53: 0 | BF53: 0 | BG53: 0 | BH53: 0 | BI53: 0 | BJ53: 0 | BK53: 0 | BL53: 0 | BM53: 0 | BN53: 0 | BO53: 0 | BP53: 0 | BQ53: 0 | BR53: 0 | BS53: 0 | BT53: 0 | BU53: 0 | BV53: 0 | BW53: 0 | BX53: 0 | BY53: 0 | BZ53: 0 | CA53: 0 | CB53: 0 | CC53: 0 | CD53: 0 | CE53: 0 | CF53: 0 | CG53: 0 | CH53: 0 | CI53: 0
A54: 395 | B54: Laboratory equipment | D54: 0 | E54: 0 | F54: 0 | G54: 0 | H54: 0 | I54: 0 | J54: 0 | K54: 0 | L54: 0 | M54: 0 | N54: 0 | O54: 0 | P54: 0 | Q54: 0 | R54: 0 | S54: 0 | T54: 0 | U54: 0 | V54: 0 | W54: 0 | X54: 0 | Y54: 0 | Z54: 0 | AA54: 0 | AB54: 0 | AC54: 0 | AD54: 0 | AE54: 0 | AF54: 0 | AG54: 0 | AH54: 0 | AI54: 0 | AJ54: 0 | AK54: 0 | AL54: 0 | AM54: 0 | AN54: 0 | AO54: 0 | AP54: 0 | AQ54: 0 | AR54: 0 | AS54: 0 | AT54: 0 | AU54: 0 | AV54: 0 | AW54: 0 | AX54: 0 | AY54: 0 | AZ54: 0 | BA54: 0 | BB54: 0 | BC54: 0 | BD54: 0 | BE54: 0 | BF54: 0 | BG54: 0 | BH54: 0 | BI54: 0 | BJ54: 0 | BK54: 0 | BL54: 0 | BM54: 0 | BN54: 0 | BO54: 0 | BP54: 0 | BQ54: 0 | BR54: 0 | BS54: 0 | BT54: 0 | BU54: 0 | BV54: 0 | BW54: 0 | BX54: 0 | BY54: 0 | BZ54: 0 | CA54: 0 | CB54: 0 | CC54: 0 | CD54: 0 | CE54: 0 | CF54: 0 | CG54: 0 | CH54: 0 | CI54: 0
A55: 396 | B55: Power operated equipment | D55: 0 | E55: 0 | F55: 0 | G55: 0 | H55: 0 | I55: 0 | J55: 0 | K55: 0 | L55: 0 | M55: 0 | N55: 0 | O55: 0 | P55: 0 | Q55: 0 | R55: 0 | S55: 0 | T55: 0 | U55: 0 | V55: 0 | W55: 0 | X55: 0 | Y55: 0 | Z55: 0 | AA55: 0 | AB55: 0 | AC55: 0 | AD55: 0 | AE55: 0 | AF55: 0 | AG55: 0 | AH55: 0 | AI55: 0 | AJ55: 0 | AK55: 0 | AL55: 0 | AM55: 0 | AN55: 0 | AO55: 0 | AP55: 0 | AQ55: 0 | AR55: 0 | AS55: 0 | AT55: 0 | AU55: 0 | AV55: 0 | AW55: 0 | AX55: 0 | AY55: 0 | AZ55: 0 | BA55: 0 | BB55: 0 | BC55: 0 | BD55: 0 | BE55: 0 | BF55: 0 | BG55: 0 | BH55: 0 | BI55: 0 | BJ55: 0 | BK55: 0 | BL55: 0 | BM55: 0 | BN55: 0 | BO55: 0 | BP55: 0 | BQ55: 0 | BR55: 0 | BS55: 0 | BT55: 0 | BU55: 0 | BV55: 0 | BW55: 0 | BX55: 0 | BY55: 0 | BZ55: 0 | CA55: 0 | CB55: 0 | CC55: 0 | CD55: 0 | CE55: 0 | CF55: 0 | CG55: 0 | CH55: 0 | CI55: 0
A56: 397 | B56: Communication equipment | C56: combine all 397x | D56: 24852.51399 | E56: 299.4942961 | F56: 329.6564395 | G56: 319.2542613 | H56: 345.8783133 | I56: 351.6902523 | J56: 717.4424704 | K56: 801.1055811 | L56: 968.5545265 | M56: 914.4343729 | N56: 914.4356959 | O56: 914.4343729 | P56: 914.4330499 | Q56: 914.4343729 | R56: 914.4343729 | S56: 914.4317269 | T56: 929.5893379 | U56: 1116.637798 | V56: 1109.159456 | W56: 1109.159456 | X56: 1109.159456 | Y56: 1109.159456 | Z56: 1104.883614 | AA56: 698.2515734 | AB56: 698.2515734 | AC56: 698.2515734 | AD56: 698.2515734 | AE56: 698.2515734 | AF56: 400.6112952 | AG56: 380.2204469 | AH56: 380.2204469 | AI56: 380.2204469 | AJ56: 380.2204469 | AK56: 267.4690411 | AL56: 249.3215266 | AM56: 249.3215266 | AN56: 249.3215266 | AO56: 249.3215266 | AP56: 53.14521384 | AQ56: 0 | AR56: 0 | AS56: 0 | AT56: 0 | AU56: 0 | AV56: 0 | AW56: 0 | AX56: 0 | AY56: 0 | AZ56: 0 | BA56: 0 | BB56: 0 | BC56: 0 | BD56: 0 | BE56: 0 | BF56: 0 | BG56: 0 | BH56: 0 | BI56: 0 | BJ56: 0 | BK56: 0 | BL56: 0 | BM56: 0 | BN56: 0 | BO56: 0 | BP56: 0 | BQ56: 0 | BR56: 0 | BS56: 0 | BT56: 0 | BU56: 0 | BV56: 0 | BW56: 0 | BX56: 0 | BY56: 0 | BZ56: 0 | CA56: 0 | CB56: 0 | CC56: 0 | CD56: 0 | CE56: 0 | CF56: 0 | CG56: 0 | CH56: 0 | CI56: 0
A57: 398 | B57: Miscellaneous equipment | D57: 0 | E57: 0 | F57: 0 | G57: 0 | H57: 0 | I57: 0 | J57: 0 | K57: 0 | L57: 0 | M57: 0 | N57: 0 | O57: 0 | P57: 0 | Q57: 0 | R57: 0 | S57: 0 | T57: 0 | U57: 0 | V57: 0 | W57: 0 | X57: 0 | Y57: 0 | Z57: 0 | AA57: 0 | AB57: 0 | AC57: 0 | AD57: 0 | AE57: 0 | AF57: 0 | AG57: 0 | AH57: 0 | AI57: 0 | AJ57: 0 | AK57: 0 | AL57: 0 | AM57: 0 | AN57: 0 | AO57: 0 | AP57: 0 | AQ57: 0 | AR57: 0 | AS57: 0 | AT57: 0 | AU57: 0 | AV57: 0 | AW57: 0 | AX57: 0 | AY57: 0 | AZ57: 0 | BA57: 0 | BB57: 0 | BC57: 0 | BD57: 0 | BE57: 0 | BF57: 0 | BG57: 0 | BH57: 0 | BI57: 0 | BJ57: 0 | BK57: 0 | BL57: 0 | BM57: 0 | BN57: 0 | BO57: 0 | BP57: 0 | BQ57: 0 | BR57: 0 | BS57: 0 | BT57: 0 | BU57: 0 | BV57: 0 | BW57: 0 | BX57: 0 | BY57: 0 | BZ57: 0 | CA57: 0 | CB57: 0 | CC57: 0 | CD57: 0 | CE57: 0 | CF57: 0 | CG57: 0 | CH57: 0 | CI57: 0
A58: 398A | B58: ='[3]Plant Balance'!B61 -> TOTAL UTILITY PLANT IN SERVICE | D58: 1890.782649 | E58: 0 | F58: 17.19123772 | G58: 113.5892013 | H58: 113.5892013 | I58: 113.5892013 | J58: 113.5892013 | K58: 113.5892013 | L58: 113.5892013 | M58: 113.5892013 | N58: 113.5892013 | O58: 113.5892013 | P58: 113.5892013 | Q58: 113.5892013 | R58: 113.5892013 | S58: 113.5892013 | T58: 113.5892013 | U58: 113.5892013 | V58: 113.5892013 | W58: 56.16418978 | X58: 0 | Y58: 0 | Z58: 0 | AA58: 0 | AB58: 0 | AC58: 0 | AD58: 0 | AE58: 0 | AF58: 0 | AG58: 0 | AH58: 0 | AI58: 0 | AJ58: 0 | AK58: 0 | AL58: 0 | AM58: 0 | AN58: 0 | AO58: 0 | AP58: 0 | AQ58: 0 | AR58: 0 | AS58: 0 | AT58: 0 | AU58: 0 | AV58: 0 | AW58: 0 | AX58: 0 | AY58: 0 | AZ58: 0 | BA58: 0 | BB58: 0 | BC58: 0 | BD58: 0 | BE58: 0 | BF58: 0 | BG58: 0 | BH58: 0 | BI58: 0 | BJ58: 0 | BK58: 0 | BL58: 0 | BM58: 0 | BN58: 0 | BO58: 0 | BP58: 0 | BQ58: 0 | BR58: 0 | BS58: 0 | BT58: 0 | BU58: 0 | BV58: 0 | BW58: 0 | BX58: 0 | BY58: 0 | BZ58: 0 | CA58: 0 | CB58: 0 | CC58: 0 | CD58: 0 | CE58: 0 | CF58: 0 | CG58: 0 | CH58: 0 | CI58: 0
A59: 399 | B59: Other tangible property | D59: 0 | E59: 0 | F59: 0 | G59: 0 | H59: 0 | I59: 0 | J59: 0 | K59: 0 | L59: 0 | M59: 0 | N59: 0 | O59: 0 | P59: 0 | Q59: 0 | R59: 0 | S59: 0 | T59: 0 | U59: 0 | V59: 0 | W59: 0 | X59: 0 | Y59: 0 | Z59: 0 | AA59: 0 | AB59: 0 | AC59: 0 | AD59: 0 | AE59: 0 | AF59: 0 | AG59: 0 | AH59: 0 | AI59: 0 | AJ59: 0 | AK59: 0 | AL59: 0 | AM59: 0 | AN59: 0 | AO59: 0 | AP59: 0 | AQ59: 0 | AR59: 0 | AS59: 0 | AT59: 0 | AU59: 0 | AV59: 0 | AW59: 0 | AX59: 0 | AY59: 0 | AZ59: 0 | BA59: 0 | BB59: 0 | BC59: 0 | BD59: 0 | BE59: 0 | BF59: 0 | BG59: 0 | BH59: 0 | BI59: 0 | BJ59: 0 | BK59: 0 | BL59: 0 | BM59: 0 | BN59: 0 | BO59: 0 | BP59: 0 | BQ59: 0 | BR59: 0 | BS59: 0 | BT59: 0 | BU59: 0 | BV59: 0 | BW59: 0 | BX59: 0 | BY59: 0 | BZ59: 0 | CA59: 0 | CB59: 0 | CC59: 0 | CD59: 0 | CE59: 0 | CF59: 0 | CG59: 0 | CH59: 0 | CI59: 0
B61: Amortization/Reduction to Tax | D61: =SUM(D9:D60) -> 7119925.043 | E61: =SUM(E9:E60) -> 151465.8258 | F61: 164899.2506 | G61: 168826.6838 | H61: 193168.4975 | I61: 218858.7224 | J61: 235065.579 | K61: 241729.7111 | L61: 238886.4648 | M61: 238664.9532 | N61: 233154.5332 | O61: 230098.8888 | P61: 227508.5259 | Q61: 219440.7396 | R61: 213476.1308 | S61: 209551.3117 | T61: 216538.2834 | U61: 226737.3891 | V61: 236148.7951 | W61: 246329.2455 | X61: 263248.3894 | Y61: 252116.5134 | Z61: 232206.5108 | AA61: 214132.4094 | AB61: 194276.2034 | AC61: 177118.1981 | AD61: 163693.9686 | AE61: 153835.671 | AF61: 146875.0186 | AG61: 140661.4707 | AH61: 134276.4108 | AI61: 131540.3247 | AJ61: 128732.0409 | AK61: 125048.9099 | AL61: 118847.8133 | AM61: 107106.9838 | AN61: 91961.51373 | AO61: 69967.58939 | AP61: 47941.37796 | AQ61: 30159.46242 | AR61: 19691.90585 | AS61: 16215.68315 | AT61: 11675.82867 | AU61: 6600.551672 | AV61: 3797.780665 | AW61: 1290.404228 | AX61: 951.0297352 | AY61: 940.6143463 | AZ61: 1613.079948 | BA61: 1612.95684 | BB61: 1612.95684 | BC61: 1612.95684 | BD61: 1612.95684 | BE61: 1078.402065 | BF61: 948.9589121 | BG61: 948.9589121 | BH61: 948.9589121 | BI61: 948.9589121 | BJ61: 920.5635783 | BK61: 918.4165369 | BL61: 918.4165369 | BM61: 918.4165369 | BN61: 915.4832027 | BO61: 864.4461916 | BP61: 864.4461916 | BQ61: =SUM(BQ9:BQ60) -> 864.4461916 | BR61: 864.4461916 | BS61: 615.2299741 | BT61: 221.0002556 | BU61: 176.0317689 | BV61: 176.0317689 | BW61: 176.0317689 | BX61: 176.0317689 | BY61: 176.0317689 | BZ61: 176.0317689 | CA61: 176.0317689 | CB61: 176.0317689 | CC61: 176.0317689 | CD61: 176.0317689 | CE61: 176.0317689 | CF61: 176.0317689 | CG61: 176.0317689 | CH61: 176.0317689 | CI61: 176.0317689

Sheet Summary (check)
B1: Not Depreciable, should not have a difference | G1: FED Rate | H1: FBOS | I1: State Rate
E2: Historical Tax Rate | F2: =+G2+H2+I2 -> 0.38575 | G2: 0.35 | H2: =-+G2*+I2 -> -0.01925 | I2: 0.055
E3: Current Tax Rate | F3: =+G3+H3+I3 -> 0.25345 | G3: 0.21 | H3: =-+G3*+I3 -> -0.01155 | I3: 0.055
A7: FERC Account | B7: Description | C7: Note
D8: Net Book | E8: Net Tax | F8: rate diff | G8: Gross Calc | H8: Detail Calc | I8: Difference | K8: Negative Tax Depr Diff
A9: 3010 | B9: ='[3]Plant Balance'!B11 -> Franchises & Consents | D9: =INDIRECT(A9&"!C60") -> 0 | E9: =INDIRECT(A9&"!C89") -> 0 | F9: =+$F$2-$F$3 -> 0.1323 | G9: =+(D9-E9)*F9 -> 0 | H9: =INDEX(Summary!D:D,MATCH($A9,Summary!A:A,0)) -> 0 | I9: =+G9-H9 -> 0 | K9: =INDIRECT(A9&"!b3") -> 0
A10: 3020 | B10: ='[3]Plant Balance'!B12 -> Misc Intangible Plant | D10: =INDIRECT(A10&"!C60") -> 1161.7 | E10: =INDIRECT(A10&"!C89") -> 3.78 | F10: 0.1323 | G10: =+(D10-E10)*F10 -> 153.192816 | H10: =INDEX(Summary!D:D,MATCH($A10,Summary!A:A,0)) -> 153.5477499 | I10: =+G10-H10 -> -0.3549338939 | K10: 0
A11: 311 | B11: Liquefied Petroleum Gas Equip | D11: 0 | E11: 0 | F11: 0.1323 | G11: 0 | H11: =INDEX(Summary!D:D,MATCH($A11,Summary!A:A,0)) -> 0 | I11: 0 | K11: 0
A12: 3500 | D12: 0 | E12: 0 | F12: 0.1323 | G12: 0 | H12: =INDEX(Summary!D:D,MATCH($A12,Summary!A:A,0)) -> 0 | I12: 0 | K12: 0
A13: 375 | B13: Structures & Improvements | D13: =INDIRECT(A13&"!C60") -> 328474.0257 | E13: =INDIRECT(A13&"!C89") -> 203072.27 | F13: 0.1323 | G13: 16590.65229 | H13: =INDEX(Summary!D:D,MATCH($A13,Summary!A:A,0)) -> 16675.69466 | I13: -85.04237075 | K13: 0
A14: 3760 | B14: Mains | D14: 0 | E14: 0 | F14: 0.1323 | G14: 0 | H14: =INDEX(Summary!D:D,MATCH($A14,Summary!A:A,0)) -> 0 | I14: 0 | K14: 0
A15: 3761 | B15: Mains Plastic | C15: merged 3760 into 3761 | D15: 20442345.64 | E15: 6587824.54 | F15: 0.1323 | G15: 1832953.142 | H15: =INDEX(Summary!D:D,MATCH($A15,Summary!A:A,0)) -> 1832953.142 | I15: 0 | K15: 0
A16: 3762 | B16: Mains Steel | D16: 8676375.02 | E16: 954736.84 | F16: 0.1323 | G16: 1021572.731 | H16: =INDEX(Summary!D:D,MATCH($A16,Summary!A:A,0)) -> 1019474.097 | I16: 2098.633887 | K16: -2098.633887
A17: 376G | B17: Mains Plastic - GRIP | D17: 21404663.01 | E17: 9810958.46 | F17: 0.1323 | G17: 1533847.112 | H17: =INDEX(Summary!D:D,MATCH($A17,Summary!A:A,0)) -> 1533847.112 | I17: 0 | K17: 0
A18: 378 | B18: M&R Station Equip-General | D18: 1488427.97 | E18: 571408.94 | F18: 0.1323 | G18: 121321.6177 | H18: =INDEX(Summary!D:D,MATCH($A18,Summary!A:A,0)) -> 121321.6177 | I18: 0 | K18: 0
A19: 3781 | B19: M & R Equipment | D19: 0 | E19: 0 | F19: 0.1323 | G19: 0 | H19: =INDEX(Summary!D:D,MATCH($A19,Summary!A:A,0)) -> 0 | I19: 0 | K19: 0
A20: 379 | B20: M&R Station Equip-City Gate | D20: 3675254.07 | E20: 1061370.14 | F20: 0.1323 | G20: 345816.8439 | H20: =INDEX(Summary!D:D,MATCH($A20,Summary!A:A,0)) -> 370065.019 | I20: =+G20-H20 -> -24248.17511 | K20: =INDIRECT(A20&"!b3") -> -1742.723073
A21: 3791 | B21: M & R Equipment | D21: 0 | E21: 0 | F21: 0.1323 | G21: 0 | H21: =INDEX(Summary!D:D,MATCH($A21,Summary!A:A,0)) -> 0 | I21: 0 | K21: 0
A22: 3800 | B22: Dist Plant - Services (CIAC) | D22: 0 | E22: 0 | F22: 0.1323 | G22: 0 | H22: =INDEX(Summary!D:D,MATCH($A22,Summary!A:A,0)) -> 0 | I22: 0 | K22: 0
A23: 3801 | B23: Dist Plant - Services (Plastic) | C23: merged 3800 into 3801 | D23: 10276996.47 | E23: 2865197.7 | F23: 0.1323 | G23: 980580.9773 | H23: =INDEX(Summary!D:D,MATCH($A23,Summary!A:A,0)) -> 980580.9773 | I23: 0 | K23: 0
A24: 3802 | B24: Dist Plant - Services (Steel) | D24: 421944.32 | E24: 1655.51 | F24: 0.1323 | G24: 55604.20956 | H24: =INDEX(Summary!D:D,MATCH($A24,Summary!A:A,0)) -> 0 | I24: 55604.20956 | K24: -55604.20956
A25: 380G | B25: Dist Plant - Services (GRIP) | D25: 2024285.29 | E25: 937871.69 | F25: 0.1323 | G25: 143732.5193 | H25: =INDEX(Summary!D:D,MATCH($A25,Summary!A:A,0)) -> 143732.5193 | I25: 0 | K25: 0
A26: 381 | B26: Meters | C26: merged 3811 into 381 | D26: 3544419.08 | E26: 767287.47 | F26: 0.1323 | G26: 367414.512 | H26: =INDEX(Summary!D:D,MATCH($A26,Summary!A:A,0)) -> 387785.1846 | I26: -20370.67258 | K26: 2281.111802
A27: 3811 | B27: Meters MTU/DCU | D27: 0 | E27: 0 | F27: 0.1323 | G27: 0 | H27: =INDEX(Summary!D:D,MATCH($A27,Summary!A:A,0)) -> 0 | I27: 0 | K27: 0 | L27: -4053.38
A28: 382 | B28: Meter Installations | C28: merged 3821 into 382 | D28: 3339405.13 | E28: 1116031.34 | F28: 0.1323 | G28: 294152.3524 | H28: =INDEX(Summary!D:D,MATCH($A28,Summary!A:A,0)) -> 297485.3981 | I28: -3333.045731 | K28: 0 | L28: -54704.29
A29: 3821 | B29: Meter Installations-MTU/DCU's | D29: 0 | E29: 0 | F29: 0.1323 | G29: 0 | H29: =INDEX(Summary!D:D,MATCH($A29,Summary!A:A,0)) -> 0 | I29: 0 | K29: 0 | L29: -530681.29
A30: 383 | B30: House Regulators | D30: 868090.14 | E30: 255070.37 | F30: 0.1323 | G30: 81102.51557 | H30: =INDEX(Summary!D:D,MATCH($A30,Summary!A:A,0)) -> 81102.51557 | I30: -1.455191523e-10 | K30: 1.164153218e-10 | L30: -5493.97
A31: 3831 | D31: 0 | E31: 400.65 | F31: 0.1323 | G31: -53.005995 | H31: =INDEX(Summary!D:D,MATCH($A31,Summary!A:A,0)) -> 0 | I31: -53.005995 | K31: 0 | L31: -594932.93
A32: 384 | B32: House Reg Installs | D32: -4.85 | E32: -550.33 | F32: 0.1323 | G32: 72.167004 | H32: =INDEX(Summary!D:D,MATCH($A32,Summary!A:A,0)) -> 72.167004 | I32: 0 | K32: 0
A33: 385 | B33: M&R Station Equip-Industrial | D33: 748097.91 | E33: 165413.47 | F33: 0.1323 | G33: 77089.15141 | H33: =INDEX(Summary!D:D,MATCH($A33,Summary!A:A,0)) -> 82662.02696 | I33: -5572.875546 | K33: 0
A34: 3851 | B34: M&R Station Equip-Industrial | D34: 0 | E34: 0 | F34: 0.1323 | G34: 0 | H34: =INDEX(Summary!D:D,MATCH($A34,Summary!A:A,0)) -> 0 | I34: 0 | K34: 0
A35: 387 | B35: Other Equipment | D35: 492512.72 | E35: 186242.21 | F35: 0.1323 | G35: 40519.58847 | H35: =INDEX(Summary!D:D,MATCH($A35,Summary!A:A,0)) -> 40519.58847 | I35: 0 | K35: 0
A36: 390 | B36: Structures and improvements | D36: 253777.22 | E36: 31966.54 | F36: 0.1323 | G36: 29345.55296 | H36: =INDEX(Summary!D:D,MATCH($A36,Summary!A:A,0)) -> 11426.81655 | I36: 17918.73642 | K36: -17918.73642
A37: 390A | B37: Fernandina Office Building | D37: 42405.8666 | E37: 41446.43 | F37: 0.1323 | G37: 126.9334622 | H37: =INDEX(Summary!D:D,MATCH($A37,Summary!A:A,0)) -> 126.9334622 | I37: -2.088995643e-12 | K37: 2.344791028e-12
A38: 3910 | B38: Office Furn & Equip | D38: 179593.84 | E38: 56021.15 | F38: 0.1323 | G38: 16348.66689 | H38: =INDEX(Summary!D:D,MATCH($A38,Summary!A:A,0)) -> 19541.70199 | I38: -3193.035105 | K38: 0
A39: 3912 | B39: Computer Hardware | D39: 144470.03 | E39: 0 | F39: 0.1323 | G39: 19113.38497 | H39: =INDEX(Summary!D:D,MATCH($A39,Summary!A:A,0)) -> 19113.38497 | I39: 0 | K39: 0
A40: 3913 | B40: Furniture & Fixtures | D40: 324935.67 | E40: 0 | F40: 0.1323 | G40: 42988.98914 | H40: =INDEX(Summary!D:D,MATCH($A40,Summary!A:A,0)) -> 42988.98914 | I40: 0 | K40: 0
A41: 3914 | B41: System Software | D41: 307408.44 | E41: 95811.14 | F41: 0.1323 | G41: 27994.32279 | H41: =INDEX(Summary!D:D,MATCH($A41,Summary!A:A,0)) -> 27994.32279 | I41: 0 | K41: 0
A42: 391A | B42: Office Furniture FB | D42: 0 | E42: 627.42 | F42: 0.1323 | G42: -83.007666 | H42: =INDEX(Summary!D:D,MATCH($A42,Summary!A:A,0)) -> 0 | I42: -83.007666 | K42: 0
A43: 391S | B43: ECIS Improvements | D43: 130389.28 | E43: 59499.68 | F43: 0.1323 | G43: 9378.69408 | H43: =INDEX(Summary!D:D,MATCH($A43,Summary!A:A,0)) -> 9378.69408 | I43: 0 | K43: 0
A44: 3920 | B44: Vehicles | D44: 49375.87 | E44: 300841.93 | F44: 0.1323 | G44: -33268.95974 | H44: =INDEX(Summary!D:D,MATCH($A44,Summary!A:A,0)) -> 0 | I44: -33268.95974 | K44: -1929.557081
A45: 3921 | B45: Transportation Equip - Autos | D45: 28414.45 | E45: 5737.8 | F45: 0.1323 | G45: 3000.120795 | H45: =INDEX(Summary!D:D,MATCH($A45,Summary!A:A,0)) -> 3000.120795 | I45: 0 | K45: 0
A46: 3922 | B46: Transportation Equip-Lt Trck/Vans | D46: 454420.13 | E46: 96278.33 | F46: 0.1323 | G46: 47382.16014 | H46: =INDEX(Summary!D:D,MATCH($A46,Summary!A:A,0)) -> 47382.16014 | I46: 0 | K46: 0
A47: 3923 | B47: Trans Equip-HD Truck/Bobtail | D47: 2797.8 | E47: 0 | F47: 0.1323 | G47: 370.14894 | H47: =INDEX(Summary!D:D,MATCH($A47,Summary!A:A,0)) -> 370.14894 | I47: 0 | K47: 0
A48: 3924 | B48: Trans Equip-Trailers | D48: 0 | E48: 0 | F48: 0.1323 | G48: 0 | H48: =INDEX(Summary!D:D,MATCH($A48,Summary!A:A,0)) -> 0 | I48: 0 | K48: 0
A49: 393 | B49: Stores equipment | D49: 0 | E49: 0 | F49: 0.1323 | G49: 0 | H49: =INDEX(Summary!D:D,MATCH($A49,Summary!A:A,0)) -> 0 | I49: 0 | K49: 0
A50: 394 | B50: Tools, shop and garage equipment | D50: 74274.19 | E50: 48328.73 | F50: 0.1323 | G50: 3432.584358 | H50: =INDEX(Summary!D:D,MATCH($A50,Summary!A:A,0)) -> 3427.866011 | I50: 4.718347252 | K50: -4.718347252
A51: 395 | B51: Laboratory equipment | D51: 0 | E51: 0 | F51: 0.1323 | G51: 0 | H51: =INDEX(Summary!D:D,MATCH($A51,Summary!A:A,0)) -> 0 | I51: 0 | K51: 0
A52: 396 | B52: Power operated equipment | D52: -105678.09 | E52: 8704.03 | F52: 0.1323 | G52: -15132.75448 | H52: =INDEX(Summary!D:D,MATCH($A52,Summary!A:A,0)) -> 0 | I52: -15132.75448 | K52: 0
A53: 397 | B53: Communication equipment | D53: 325930.82 | E53: 147774.19 | F53: 0.1323 | G53: 23570.12215 | H53: =INDEX(Summary!D:D,MATCH($A53,Summary!A:A,0)) -> 24852.51399 | I53: -1282.391838 | K53: 0
A54: 398 | B54: Miscellaneous equipment | D54: -14280.69 | E54: 58 | F54: 0.1323 | G54: -1897.008687 | H54: =INDEX(Summary!D:D,MATCH($A54,Summary!A:A,0)) -> 0 | I54: -1897.008687 | K54: 0
A55: 398A | B55: ='[3]Plant Balance'!B61 -> TOTAL UTILITY PLANT IN SERVICE | D55: 16227.7 | E55: 1936.07 | F55: 0.1323 | G55: 1890.782649 | H55: =INDEX(Summary!D:D,MATCH($A55,Summary!A:A,0)) -> 1890.782649 | I55: -2.046363079e-12 | K55: 0
A56: 399 | B56: Other tangible property | D56: 0 | E56: 0 | F56: 0.1323 | G56: 0 | H56: =INDEX(Summary!D:D,MATCH($A56,Summary!A:A,0)) -> 0 | I56: 0 | K56: 0
C57: Depreciable Totals | D57: =SUM(D9:D56) -> 79946910.17 | E57: =SUM(E9:E56) -> 26379026.49 | G57: =SUM(G9:G56) -> 7087031.011 | H57: =SUM(H9:H56) -> 7119925.043 | I57: =SUM(I9:I56) -> -32894.03156 | K57: =SUM(K9:K56) -> -77017.46657
A59: 3740 | B59: Land and Land Rights | D59: =INDIRECT(A59&"!C60") -> 212190.55 | E59: =INDIRECT(A59&"!C89") -> 46456.12 | F59: 0.1323 | G59: =+(D59-E59)*F59 -> 21926.66509 | H59: =INDEX(Summary!D:D,MATCH($A59,Summary!A:A,0)) -> 0 | I59: =+G59-H59 -> 21926.66509 | K59: =INDIRECT(A59&"!b3") -> -21926.66509
A60: 389 | B60: Land and Land Rights | D60: =INDIRECT(A60&"!E8") -> -1318.13 | E60: =INDIRECT(A60&"!C89") -> 0 | F60: 0.1323 | G60: =+(D60-E60)*F60 -> -174.388599 | H60: =INDEX(Summary!D:D,MATCH($A60,Summary!A:A,0)) -> 0 | I60: =+G60-H60 -> -174.388599 | K60: =INDIRECT(A60&"!b3") -> 0
A61: 389A | B61: Land and Land Rights FB | D61: =INDIRECT(A61&"!E8") -> 16463.04 | E61: =INDIRECT(A61&"!C89") -> 0 | F61: 0.1323 | G61: 2178.060192 | H61: =INDEX(Summary!D:D,MATCH($A61,Summary!A:A,0)) -> 0 | I61: 2178.060192 | K61: 0
C62: Non-Depreciable Totals | D62: =SUM(D59:D61) -> 227335.46 | E62: =SUM(E59:E61) -> 46456.12 | G62: =SUM(G59:G61) -> 23930.33668 | H62: =SUM(H59:H61) -> 0 | I62: =SUM(I59:I61) -> 23930.33668 | K62: =SUM(K59:K61) -> -21926.66509
C65: Totals | D65: =+D57+D62 -> 80174245.63 | E65: =+E57+E62 -> 26425482.61 | G65: =+G57+G62 -> 7110961.348 | H65: =+H57+H62 -> 7119925.043 | I65: =+I57+I62 -> -8963.694881 | K65: =+K57+K62 -> -98944.13165

Sheet ARAM Calc Explanation
A2: Ending 2017 | E2: 2018 | F2: =E2+1 -> 2019 | G2: Description
A3: Initial Difference | B3: Book NBV - Tax NBV | D3: Begin Cumulative Difference | E3: Initial Difference | F3: PRIOR YEAR End Cumulative Difference | G3: The begin of year cumulative difference between book and tax depreciation.
D4: Current Diff (Tax - Book) | E4: Current Difference (tax nbv - book nbv) | F4: Current Difference (tax nbv - book nbv) | G4: The current year difference between book and tax depreciation.
D5: End Cumulative Difference | E5: Begin Cumulative Difference + Current Diff (Tax - Book) | F5: Begin Cumulative Difference + Current Diff (Tax - Book) | G5: The end of year cumulative difference between book and tax depreciation.
D6: Current Diff Utilized | E6: IF Begin Cumulative Difference + Current Diff (Tax - Book) > 0 THEN Current Diff (Tax - Book) ELSE Begin Cumulative Difference + Current Diff (Tax - Book) | F6: IF Begin Cumulative Difference + Current Diff (Tax - Book) > 0 THEN Current Diff (Tax - Book) ELSE Begin Cumulative Difference + Current Diff (Tax - Book) | G6: This is the amount of the current year difference that is able to be used for the reversal of deferred tax liability. If the beginning amount is less than the current amount, then only a partial amount of the current will be able to be used for reversal.
A7: Historical Tax rate | B7: FED Rate + FBOS + State Rate | D7: Tax rate (or ARAM rate) | E7: Current Statutor Rate or ARAM Rate. The ARAM rate is used when book depreciation is greater than tax depreciation | F7: Current Statutor Rate or ARAM Rate. The ARAM rate is used when book depreciation is greater than tax depreciation. | G7: As the cumulative difference builds, the statutory rate will be used. When the cumulative difference starts to reverse, the ARAM rate will be used.
A8: Current Statutory Rate | B8: FED Rate + FBOS + State Rate | D8: Begin Current DFIT @ Current Statutory | E8: Current Diff Utilized * Current Statutory Rate | F8: Current Diff Utilized * Current Statutory Rate | G8: The begin of year deferred income tax at the current statutory rate.
D9: Begin Current DFIT at Statutory or ARAM Rate | E9: Current Diff Utilized * Tax Rate (or ARAM Rate) | F9: Current Diff Utilized * Tax Rate (or ARAM Rate) | G9: The begin of year deferred income tax at the current statutory rate or ARAM rate. The ARAM rate is used when book depreciation is greater than tax depreciation and the difference is being reversed..
A10: Initial Cumulative DFIT | B10: Initial Difference * Historical Tax Rate | D10: Begin Cumulative DFIT | E10: Initial Cumulative DFIT | F10: PRIOR YEAR End Cumulative DFIT | G10: The begin of year cumulative deferred income tax. This value is build up using statutory rates and reduced using ARAM.
D11: End Cumulative DFIT | E11: Begin Cumulative DFIT + Begin Current DFIT at Statutory or ARAM Rate | F11: Begin Cumulative DFIT + Begin Current DFIT at Statutory or ARAM Rate | G11: The end of year cumulative deferred income tax. This value is build up using statutory rates and reduced using ARAM.
A12: Initial ARAM Rate (cum dfit/cum diff) | B12: Initial Difference / Initial Cumulative DFIT | D12: Begin ARAM Rate (cum dfit/cum diff) | E12: Begin Cumulative DFIT / Begin Cumulative Difference | F12: Begin Cumulative DFIT / Begin Cumulative Difference | G12: Begin Cumulative DFIT divided by the Begin Cumulative Difference. This is the average rate at which the deferred income taxes were built.
D13: End ARAM Rate (cum dfit/cum diff) | E13: End Cumulative DFIT / Begin Cumulative Difference | F13: End Cumulative DFIT / Begin Cumulative Difference | G13: End Cumulative DFIT divided by the End Cumulative Difference. This is the average rate at which the deferred income taxes were built
A14: Initial Cumulative DFIT at Historic Rate | B14: Initial Difference * Initial ARAM Rate | D14: Cumulative DFIT at Historic Rate | E14: Initial Cumulative DFIT at Historic Rate * Tax rate (or ARAM rate) | F14: Initial Cumulative DFIT at Historic Rate * Tax rate (or ARAM rate) | G14: The beginning accumulated deferred income tax balance build using historic statutory rates.
A15: Initial Cumulative DFIT at Statutory Rate | B15: Initial Difference * Current Tax Rate | D15: Cumulative DFIT at Statutory Rate | E15: Initial Cumulative DFIT at Statutory Rate + Begin Current DFIT @ Current Statutory | F15: PRIOR YEAR Cumulative DFIT at Statutory Rate + Begin Current DFIT @ Current Statutory | G15: The ending accumulated deferred income tax balance build using historic statutory rates.
D16: Begin Excess Deferred | E16: Initial Excess Deferred | F16: PRIOR YEAR End Excess Deferred | G16: The beginning excess deferred amount. The cumulative DFIT at Historic Rate minus the cumulative DFIT at Statutory Rate.
D17: Amortization of Excess Deferred | E17: Begin Current DFIT @ Current Statutory - Begin Current DFIT at Statutory or ARAM Rate | F17: Begin Current DFIT @ Current Statutory - Begin Current DFIT at Statutory or ARAM Rate | G17: The current reduction of any excess deferred amount. The Begin Current DFIT @ Current Statutory minus the Begin Current DFIT at Statutory or ARAM Rate. An alternate calculation is the current utilized tax/book depreciation difference multiplied by the difference in the current statutory rate and the ARAM rate.
A18: Initial Excess Deferred | B18: Initial Cumulative DFIT at Historic Rate - Initial Cumulative DFIT at Statutory Rate | D18: End Excess Deferred | E18: Begin Excess Deferred - Amortization of Excess Deferred | F18: Begin Excess Deferred - Amortization of Excess Deferred | G18: The Begin Excess Deferred minus the Amortization of Excess Deferred (current).

Sheet 3010
A1: Excess Reserve Amortized | B1: =+D493 -> 0
A2: Initial Excess Reserve Calc | B2: =+C493 -> 0 | D2: Historical Tax Rate | E2: =+Summary!G2 -> 0.38575
A3: Diff due to negative tax depr | B3: =+B1-B2 -> 0 | D3: Current Tax Rate | E3: =+Summary!G3 -> 0.25345
A5: Excess Reserve Gross Calc | B5: =+(C60-C89)*(E2-E3) -> 0
D6: Plant Balance | E6: Book NBV | F6: Depr %
D7: From: Plant Balance #1 | E7: From: Depreciation Expense #4 | F7: From: Depreciation Expense #4
D8: =SUMIFS('Plant Balance'!Q:Q,'Plant Balance'!B:B,MID(CELL("filename",$A$1),FIND("]",CELL("filename",$A$1))+1,255)) -> 23328.06 | E8: =SUMIFS('ACCUM DEPR'!Y:Y,'ACCUM DEPR'!C:C,MID(CELL("filename",$A$1),FIND("]",CELL("filename",$A$1))+1,255)) -> 0 | F8: =SUMIFS('New Calc'!D:D,'New Calc'!B:B,MID(CELL("filename",$A$1),FIND("]",CELL("filename",$A$1))+1,255)) -> 0.03
A9: Book Data from FAS and Rollforwards
A10: Vintage | B10: Acquired Value from FAS | C10: Vintage Allocation Percentage | D10: Plant Balance allocated to Vintages | E10: Depreciation Years | F10: Depr % by Vintage | G10: Accumulated Reserve | H10: Initial NBV by Vintage | I10: Book NBV with 1997 and prior adjusted
A11: 1997 & Prior | B11: =SUMIFS(CY_Report!$L:$L,CY_Report!$J:$J,$A11,CY_Report!$E:$E,MID(CELL("filename",$A$1),FIND("]",CELL("filename",$A$1))+1,255),CY_Report!$U:$U,"<>*d*",CY_Report!$U:$U,"<>*t*",CY_Report!$N:$N,"<>"&" 00 00") -> 22498 | C11: =IFERROR(+B11/$B$32,0) -> 1 | D11: =+C11*$D$8 -> 23328.06 | E11: =2018-1997 -> 21 | F11: =+D11*$F$8 -> 699.8418 | G11: =+F11*E11 -> 14696.6778 | H11: =+IF(D11-G11<0,0,D11-G11) -> 8631.3822 | I11: =+$E$8*J11 -> 0 | J11: =IF($H$32=0,IF($B$32=0,0,C11),H11/$H$32) -> 1
A12: 1998 | B12: =SUMIFS(CY_Report!$L:$L,CY_Report!$J:$J,$A12,CY_Report!$E:$E,MID(CELL("filename",$A$1),FIND("]",CELL("filename",$A$1))+1,255),CY_Report!$U:$U,"<>*d*",CY_Report!$U:$U,"<>*t*",CY_Report!$N:$N,"<>"&" 00 00") -> 0 | C12: =IFERROR(+B12/$B$32,0) -> 0 | D12: =+C12*$D$8 -> 0 | E12: =2018-A12 -> 20 | F12: =+D12*$F$8 -> 0 | G12: =+F12*E12 -> 0 | H12: =+IF(D12-G12<0,0,D12-G12) -> 0 | I12: =+$E$8*J12 -> 0 | J12: =IF($H$32=0,IF($B$32=0,0,C12),H12/$H$32) -> 0
A13: 1999 | B13: =SUMIFS(CY_Report!$L:$L,CY_Report!$J:$J,$A13,CY_Report!$E:$E,MID(CELL("filename",$A$1),FIND("]",CELL("filename",$A$1))+1,255),CY_Report!$U:$U,"<>*d*",CY_Report!$U:$U,"<>*t*",CY_Report!$N:$N,"<>"&" 00 00") -> 0 | C13: 0 | D13: 0 | E13: =2018-A13 -> 19 | F13: 0 | G13: 0 | H13: 0 | I13: 0 | J13: 0
A14: 2000 | B14: =SUMIFS(CY_Report!$L:$L,CY_Report!$J:$J,$A14,CY_Report!$E:$E,MID(CELL("filename",$A$1),FIND("]",CELL("filename",$A$1))+1,255),CY_Report!$U:$U,"<>*d*",CY_Report!$U:$U,"<>*t*",CY_Report!$N:$N,"<>"&" 00 00") -> 0 | C14: 0 | D14: 0 | E14: 18 | F14: 0 | G14: 0 | H14: 0 | I14: 0 | J14: 0
A15: 2001 | B15: =SUMIFS(CY_Report!$L:$L,CY_Report!$J:$J,$A15,CY_Report!$E:$E,MID(CELL("filename",$A$1),FIND("]",CELL("filename",$A$1))+1,255),CY_Report!$U:$U,"<>*d*",CY_Report!$U:$U,"<>*t*",CY_Report!$N:$N,"<>"&" 00 00") -> 0 | C15: 0 | D15: 0 | E15: 17 | F15: 0 | G15: 0 | H15: 0 | I15: 0 | J15: 0
A16: 2002 | B16: =SUMIFS(CY_Report!$L:$L,CY_Report!$J:$J,$A16,CY_Report!$E:$E,MID(CELL("filename",$A$1),FIND("]",CELL("filename",$A$1))+1,255),CY_Report!$U:$U,"<>*d*",CY_Report!$U:$U,"<>*t*",CY_Report!$N:$N,"<>"&" 00 00") -> 0 | C16: 0 | D16: 0 | E16: 16 | F16: 0 | G16: 0 | H16: 0 | I16: 0 | J16: 0
A17: 2003 | B17: =SUMIFS(CY_Report!$L:$L,CY_Report!$J:$J,$A17,CY_Report!$E:$E,MID(CELL("filename",$A$1),FIND("]",CELL("filename",$A$1))+1,255),CY_Report!$U:$U,"<>*d*",CY_Report!$U:$U,"<>*t*",CY_Report!$N:$N,"<>"&" 00 00") -> 0 | C17: 0 | D17: 0 | E17: 15 | F17: 0 | G17: 0 | H17: 0 | I17: 0 | J17: 0
A18: 2004 | B18: =SUMIFS(CY_Report!$L:$L,CY_Report!$J:$J,$A18,CY_Report!$E:$E,MID(CELL("filename",$A$1),FIND("]",CELL("filename",$A$1))+1,255),CY_Report!$U:$U,"<>*d*",CY_Report!$U:$U,"<>*t*",CY_Report!$N:$N,"<>"&" 00 00") -> 0 | C18: 0 | D18: 0 | E18: 14 | F18: 0 | G18: 0 | H18: 0 | I18: 0 | J18: 0
A19: 2005 | B19: =SUMIFS(CY_Report!$L:$L,CY_Report!$J:$J,$A19,CY_Report!$E:$E,MID(CELL("filename",$A$1),FIND("]",CELL("filename",$A$1))+1,255),CY_Report!$U:$U,"<>*d*",CY_Report!$U:$U,"<>*t*",CY_Report!$N:$N,"<>"&" 00 00") -> 0 | C19: 0 | D19: 0 | E19: 13 | F19: 0 | G19: 0 | H19: 0 | I19: 0 | J19: 0
A20: 2006 | B20: =SUMIFS(CY_Report!$L:$L,CY_Report!$J:$J,$A20,CY_Report!$E:$E,MID(CELL("filename",$A$1),FIND("]",CELL("filename",$A$1))+1,255),CY_Report!$U:$U,"<>*d*",CY_Report!$U:$U,"<>*t*",CY_Report!$N:$N,"<>"&" 00 00") -> 0 | C20: 0 | D20: 0 | E20: 12 | F20: 0 | G20: 0 | H20: 0 | I20: 0 | J20: 0
A21: 2007 | B21: =SUMIFS(CY_Report!$L:$L,CY_Report!$J:$J,$A21,CY_Report!$E:$E,MID(CELL("filename",$A$1),FIND("]",CELL("filename",$A$1))+1,255),CY_Report!$U:$U,"<>*d*",CY_Report!$U:$U,"<>*t*",CY_Report!$N:$N,"<>"&" 00 00") -> 0 | C21: 0 | D21: 0 | E21: 11 | F21: 0 | G21: 0 | H21: 0 | I21: 0 | J21: 0
A22: 2008 | B22: =SUMIFS(CY_Report!$L:$L,CY_Report!$J:$J,$A22,CY_Report!$E:$E,MID(CELL("filename",$A$1),FIND("]",CELL("filename",$A$1))+1,255),CY_Report!$U:$U,"<>*d*",CY_Report!$U:$U,"<>*t*",CY_Report!$N:$N,"<>"&" 00 00") -> 0 | C22: 0 | D22: 0 | E22: 10 | F22: 0 | G22: 0 | H22: 0 | I22: 0 | J22: 0
A23: 2009 | B23: =SUMIFS(CY_Report!$L:$L,CY_Report!$J:$J,$A23,CY_Report!$E:$E,MID(CELL("filename",$A$1),FIND("]",CELL("filename",$A$1))+1,255),CY_Report!$U:$U,"<>*d*",CY_Report!$U:$U,"<>*t*",CY_Report!$N:$N,"<>"&" 00 00") -> 0 | C23: 0 | D23: 0 | E23: 9 | F23: 0 | G23: 0 | H23: 0 | I23: 0 | J23: 0
A24: 2010 | B24: =SUMIFS(CY_Report!$L:$L,CY_Report!$J:$J,$A24,CY_Report!$E:$E,MID(CELL("filename",$A$1),FIND("]",CELL("filename",$A$1))+1,255),CY_Report!$U:$U,"<>*d*",CY_Report!$U:$U,"<>*t*",CY_Report!$N:$N,"<>"&" 00 00") -> 0 | C24: 0 | D24: 0 | E24: 8 | F24: 0 | G24: 0 | H24: 0 | I24: 0 | J24: 0
A25: 2011 | B25: =SUMIFS(CY_Report!$L:$L,CY_Report!$J:$J,$A25,CY_Report!$E:$E,MID(CELL("filename",$A$1),FIND("]",CELL("filename",$A$1))+1,255),CY_Report!$U:$U,"<>*d*",CY_Report!$U:$U,"<>*t*",CY_Report!$N:$N,"<>"&" 00 00") -> 0 | C25: 0 | D25: 0 | E25: 7 | F25: 0 | G25: 0 | H25: 0 | I25: 0 | J25: 0
A26: 2012 | B26: =SUMIFS(CY_Report!$L:$L,CY_Report!$J:$J,$A26,CY_Report!$E:$E,MID(CELL("filename",$A$1),FIND("]",CELL("filename",$A$1))+1,255),CY_Report!$U:$U,"<>*d*",CY_Report!$U:$U,"<>*t*",CY_Report!$N:$N,"<>"&" 00 00") -> 0 | C26: 0 | D26: 0 | E26: 6 | F26: 0 | G26: 0 | H26: 0 | I26: 0 | J26: 0
A27: 2013 | B27: =SUMIFS(CY_Report!$L:$L,CY_Report!$J:$J,$A27,CY_Report!$E:$E,MID(CELL("filename",$A$1),FIND("]",CELL("filename",$A$1))+1,255),CY_Report!$U:$U,"<>*d*",CY_Report!$U:$U,"<>*t*",CY_Report!$N:$N,"<>"&" 00 00") -> 0 | C27: 0 | D27: 0 | E27: 5 | F27: 0 | G27: 0 | H27: 0 | I27: 0 | J27: 0
A28: 2014 | B28: =SUMIFS(CY_Report!$L:$L,CY_Report!$J:$J,$A28,CY_Report!$E:$E,MID(CELL("filename",$A$1),FIND("]",CELL("filename",$A$1))+1,255),CY_Report!$U:$U,"<>*d*",CY_Report!$U:$U,"<>*t*",CY_Report!$N:$N,"<>"&" 00 00") -> 0 | C28: 0 | D28: 0 | E28: 4 | F28: 0 | G28: 0 | H28: 0 | I28: 0 | J28: 0
A29: 2015 | B29: =SUMIFS(CY_Report!$L:$L,CY_Report!$J:$J,$A29,CY_Report!$E:$E,MID(CELL("filename",$A$1),FIND("]",CELL("filename",$A$1))+1,255),CY_Report!$U:$U,"<>*d*",CY_Report!$U:$U,"<>*t*",CY_Report!$N:$N,"<>"&" 00 00") -> 0 | C29: 0 | D29: 0 | E29: 3 | F29: 0 | G29: 0 | H29: 0 | I29: 0 | J29: 0
A30: 2016 | B30: =SUMIFS(CY_Report!$L:$L,CY_Report!$J:$J,$A30,CY_Report!$E:$E,MID(CELL("filename",$A$1),FIND("]",CELL("filename",$A$1))+1,255),CY_Report!$U:$U,"<>*d*",CY_Report!$U:$U,"<>*t*",CY_Report!$N:$N,"<>"&" 00 00") -> 0 | C30: 0 | D30: 0 | E30: 2 | F30: 0 | G30: 0 | H30: 0 | I30: 0 | J30: 0
A31: 2017 | B31: =SUMIFS(CY_Report!$L:$L,CY_Report!$J:$J,$A31,CY_Report!$E:$E,MID(CELL("filename",$A$1),FIND("]",CELL("filename",$A$1))+1,255),CY_Report!$U:$U,"<>*d*",CY_Report!$U:$U,"<>*t*",CY_Report!$N:$N,"<>"&" 00 00") -> 0 | C31: 0 | D31: 0 | E31: 1 | F31: 0 | G31: 0 | H31: 0 | I31: 0 | J31: 0
A32: Total | B32: =SUM(B11:B31) -> 22498 | D32: =SUM(D11:D31) -> 23328.06 | F32: =SUM(F11:F31) -> 699.8418 | G32: =SUM(G11:G31) -> 14696.6778 | H32: =SUM(H11:H31) -> 8631.3822 | I32: =SUM(I11:I31) -> 0
A36: Vintage | C36: Book NBV | E36: Book Deprecation
E37: 2018 | F37: =E37+1 -> 2019 | G37: =F37+1 -> 2020 | H37: 2021 | I37: 2022 | J37: 2023 | K37: 2024 | L37: 2025 | M37: 2026 | N37: 2027 | O37: 2028 | P37: 2029 | Q37: 2030 | R37: 2031 | S37: 2032 | T37: 2033 | U37: 2034 | V37: 2035 | W37: 2036 | X37: 2037 | Y37: 2038 | Z37: 2039 | AA37: 2040 | AB37: 2041 | AC37: 2042 | AD37: 2043 | AE37: 2044 | AF37: 2045 | AG37: 2046 | AH37: 2047 | AI37: 2048 | AJ37: 2049 | AK37: 2050 | AL37: 2051 | AM37: 2052 | AN37: 2053 | AO37: 2054 | AP37: 2055 | AQ37: 2056 | AR37: 2057 | AS37: 2058 | AT37: 2059 | AU37: 2060 | AV37: 2061 | AW37: 2062 | AX37: 2063 | AY37: 2064 | AZ37: 2065 | BA37: 2066 | BB37: 2067 | BC37: 2068 | BD37: 2069 | BE37: 2070 | BF37: 2071 | BG37: 2072 | BH37: 2073 | BI37: 2074 | BJ37: 2075 | BK37: 2076 | BL37: 2077 | BM37: 2078 | BN37: 2079 | BO37: 2080 | BP37: 2081 | BQ37: 2082 | BR37: 2083 | BS37: =BR37+1 -> 2084 | BT37: 2085 | BU37: 2086 | BV37: 2087 | BW37: 2088 | BX37: 2089 | BY37: 2090 | BZ37: 2091 | CA37: 2092 | CB37: 2093 | CC37: 2094 | CD37: 2095 | CE37: 2096 | CF37: 2097 | CG37: 2098 | CH37: 2099 | CI37: 2100
A38: 1997 & Prior | C38: =+I11 -> 0 | E38: =+$F11 -> 699.8418 | F38: =+$F11 -> 699.8418 | G38: 699.8418 | H38: 699.8418 | I38: 699.8418 | J38: 699.8418 | K38: 699.8418 | L38: 699.8418 | M38: 699.8418 | N38: 699.8418 | O38: 699.8418 | P38: 699.8418 | Q38: 699.8418 | R38: 699.8418 | S38: 699.8418 | T38: 699.8418 | U38: 699.8418 | V38: 699.8418 | W38: 699.8418 | X38: 699.8418 | Y38: 699.8418 | Z38: 699.8418 | AA38: 699.8418 | AB38: 699.8418 | AC38: 699.8418 | AD38: 699.8418 | AE38: 699.8418 | AF38: 699.8418 | AG38: 699.8418 | AH38: 699.8418 | AI38: 699.8418 | AJ38: 699.8418 | AK38: 699.8418 | AL38: 699.8418 | AM38: 699.8418 | AN38: 699.8418 | AO38: 699.8418 | AP38: 699.8418 | AQ38: 699.8418 | AR38: 699.8418 | AS38: 699.8418 | AT38: 699.8418 | AU38: 699.8418 | AV38: 699.8418 | AW38: 699.8418 | AX38: 699.8418 | AY38: 699.8418 | AZ38: 699.8418 | BA38: 699.8418 | BB38: 699.8418 | BC38: 699.8418 | BD38: 699.8418 | BE38: 699.8418 | BF38: 699.8418 | BG38: 699.8418 | BH38: 699.8418 | BI38: 699.8418 | BJ38: 699.8418 | BK38: 699.8418 | BL38: 699.8418 | BM38: 699.8418 | BN38: 699.8418 | BO38: 699.8418 | BP38: 699.8418 | BQ38: 699.8418 | BR38: =+$F11 -> 699.8418 | BS38: 699.8418 | BT38: 699.8418 | BU38: 699.8418 | BV38: 699.8418 | BW38: 699.8418 | BX38: 699.8418 | BY38: 699.8418 | BZ38: 699.8418 | CA38: 699.8418 | CB38: 699.8418 | CC38: 699.8418 | CD38: 699.8418 | CE38: 699.8418 | CF38: 699.8418 | CG38: 699.8418 | CH38: 699.8418 | CI38: 699.8418
A39: 1998 | C39: =+I12 -> 0 | E39: =+$F12 -> 0 | F39: 0 | G39: 0 | H39: 0 | I39: 0 | J39: 0 | K39: 0 | L39: 0 | M39: 0 | N39: 0 | O39: 0 | P39: 0 | Q39: 0 | R39: 0 | S39: 0 | T39: 0 | U39: 0 | V39: 0 | W39: 0 | X39: 0 | Y39: 0 | Z39: 0 | AA39: 0 | AB39: 0 | AC39: 0 | AD39: 0 | AE39: 0 | AF39: 0 | AG39: 0 | AH39: 0 | AI39: 0 | AJ39: 0 | AK39: 0 | AL39: 0 | AM39: 0 | AN39: 0 | AO39: 0 | AP39: 0 | AQ39: 0 | AR39: 0 | AS39: 0 | AT39: 0 | AU39: 0 | AV39: 0 | AW39: 0 | AX39: 0 | AY39: 0 | AZ39: 0 | BA39: 0 | BB39: 0 | BC39: 0 | BD39: 0 | BE39: 0 | BF39: 0 | BG39: 0 | BH39: 0 | BI39: 0 | BJ39: 0 | BK39: 0 | BL39: 0 | BM39: 0 | BN39: 0 | BO39: 0 | BP39: 0 | BQ39: 0 | BR39: 0 | BS39: 0 | BT39: 0 | BU39: 0 | BV39: 0 | BW39: 0 | BX39: 0 | BY39: 0 | BZ39: 0 | CA39: 0 | CB39: 0 | CC39: 0 | CD39: 0 | CE39: 0 | CF39: 0 | CG39: 0 | CH39: 0 | CI39: 0
A40: 1999 | C40: 0 | E40: 0 | F40: 0 | G40: 0 | H40: 0 | I40: 0 | J40: 0 | K40: 0 | L40: 0 | M40: 0 | N40: 0 | O40: 0 | P40: 0 | Q40: 0 | R40: 0 | S40: 0 | T40: 0 | U40: 0 | V40: 0 | W40: 0 | X40: 0 | Y40: 0 | Z40: 0 | AA40: 0 | AB40: 0 | AC40: 0 | AD40: 0 | AE40: 0 | AF40: 0 | AG40: 0 | AH40: 0 | AI40: 0 | AJ40: 0 | AK40: 0 | AL40: 0 | AM40: 0 | AN40: 0 | AO40: 0 | AP40: 0 | AQ40: 0 | AR40: 0 | AS40: 0 | AT40: 0 | AU40: 0 | AV40: 0 | AW40: 0 | AX40: 0 | AY40: 0 | AZ40: 0 | BA40: 0 | BB40: 0 | BC40: 0 | BD40: 0 | BE40: 0 | BF40: 0 | BG40: 0 | BH40: 0 | BI40: 0 | BJ40: 0 | BK40: 0 | BL40: 0 | BM40: 0 | BN40: 0 | BO40: 0 | BP40: 0 | BQ40: 0 | BR40: 0 | BS40: 0 | BT40: 0 | BU40: 0 | BV40: 0 | BW40: 0 | BX40: 0 | BY40: 0 | BZ40: 0 | CA40: 0 | CB40: 0 | CC40: 0 | CD40: 0 | CE40: 0 | CF40: 0 | CG40: 0 | CH40: 0 | CI40: 0
A41: =A40+1 -> 2000 | C41: 0 | E41: 0 | F41: 0 | G41: 0 | H41: 0 | I41: 0 | J41: 0 | K41: 0 | L41: 0 | M41: 0 | N41: 0 | O41: 0 | P41: 0 | Q41: 0 | R41: 0 | S41: 0 | T41: 0 | U41: 0 | V41: 0 | W41: 0 | X41: 0 | Y41: 0 | Z41: 0 | AA41: 0 | AB41: 0 | AC41: 0 | AD41: 0 | AE41: 0 | AF41: 0 | AG41: 0 | AH41: 0 | AI41: 0 | AJ41: 0 | AK41: 0 | AL41: 0 | AM41: 0 | AN41: 0 | AO41: 0 | AP41: 0 | AQ41: 0 | AR41: 0 | AS41: 0 | AT41: 0 | AU41: 0 | AV41: 0 | AW41: 0 | AX41: 0 | AY41: 0 | AZ41: 0 | BA41: 0 | BB41: 0 | BC41: 0 | BD41: 0 | BE41: 0 | BF41: 0 | BG41: 0 | BH41: 0 | BI41: 0 | BJ41: 0 | BK41: 0 | BL41: 0 | BM41: 0 | BN41: 0 | BO41: 0 | BP41: 0 | BQ41: 0 | BR41: 0 | BS41: 0 | BT41: 0 | BU41: 0 | BV41: 0 | BW41: 0 | BX41: 0 | BY41: 0 | BZ41: 0 | CA41: 0 | CB41: 0 | CC41: 0 | CD41: 0 | CE41: 0 | CF41: 0 | CG41: 0 | CH41: 0 | CI41: 0
A42: =A41+1 -> 2001 | C42: 0 | E42: 0 | F42: 0 | G42: 0 | H42: 0 | I42: 0 | J42: 0 | K42: 0 | L42: 0 | M42: 0 | N42: 0 | O42: 0 | P42: 0 | Q42: 0 | R42: 0 | S42: 0 | T42: 0 | U42: 0 | V42: 0 | W42: 0 | X42: 0 | Y42: 0 | Z42: 0 | AA42: 0 | AB42: 0 | AC42: 0 | AD42: 0 | AE42: 0 | AF42: 0 | AG42: 0 | AH42: 0 | AI42: 0 | AJ42: 0 | AK42: 0 | AL42: 0 | AM42: 0 | AN42: 0 | AO42: 0 | AP42: 0 | AQ42: 0 | AR42: 0 | AS42: 0 | AT42: 0 | AU42: 0 | AV42: 0 | AW42: 0 | AX42: 0 | AY42: 0 | AZ42: 0 | BA42: 0 | BB42: 0 | BC42: 0 | BD42: 0 | BE42: 0 | BF42: 0 | BG42: 0 | BH42: 0 | BI42: 0 | BJ42: 0 | BK42: 0 | BL42: 0 | BM42: 0 | BN42: 0 | BO42: 0 | BP42: 0 | BQ42: 0 | BR42: 0 | BS42: 0 | BT42: 0 | BU42: 0 | BV42: 0 | BW42: 0 | BX42: 0 | BY42: 0 | BZ42: 0 | CA42: 0 | CB42: 0 | CC42: 0 | CD42: 0 | CE42: 0 | CF42: 0 | CG42: 0 | CH42: 0 | CI42: 0
A43: 2002 | C43: 0 | E43: 0 | F43: 0 | G43: 0 | H43: 0 | I43: 0 | J43: 0 | K43: 0 | L43: 0 | M43: 0 | N43: 0 | O43: 0 | P43: 0 | Q43: 0 | R43: 0 | S43: 0 | T43: 0 | U43: 0 | V43: 0 | W43: 0 | X43: 0 | Y43: 0 | Z43: 0 | AA43: 0 | AB43: 0 | AC43: 0 | AD43: 0 | AE43: 0 | AF43: 0 | AG43: 0 | AH43: 0 | AI43: 0 | AJ43: 0 | AK43: 0 | AL43: 0 | AM43: 0 | AN43: 0 | AO43: 0 | AP43: 0 | AQ43: 0 | AR43: 0 | AS43: 0 | AT43: 0 | AU43: 0 | AV43: 0 | AW43: 0 | AX43: 0 | AY43: 0 | AZ43: 0 | BA43: 0 | BB43: 0 | BC43: 0 | BD43: 0 | BE43: 0 | BF43: 0 | BG43: 0 | BH43: 0 | BI43: 0 | BJ43: 0 | BK43: 0 | BL43: 0 | BM43: 0 | BN43: 0 | BO43: 0 | BP43: 0 | BQ43: 0 | BR43: 0 | BS43: 0 | BT43: 0 | BU43: 0 | BV43: 0 | BW43: 0 | BX43: 0 | BY43: 0 | BZ43: 0 | CA43: 0 | CB43: 0 | CC43: 0 | CD43: 0 | CE43: 0 | CF43: 0 | CG43: 0 | CH43: 0 | CI43: 0
A44: 2003 | C44: 0 | E44: 0 | F44: 0 | G44: 0 | H44: 0 | I44: 0 | J44: 0 | K44: 0 | L44: 0 | M44: 0 | N44: 0 | O44: 0 | P44: 0 | Q44: 0 | R44: 0 | S44: 0 | T44: 0 | U44: 0 | V44: 0 | W44: 0 | X44: 0 | Y44: =+$F17 -> 0 | Z44: 0 | AA44: 0 | AB44: 0 | AC44: 0 | AD44: 0 | AE44: 0 | AF44: 0 | AG44: 0 | AH44: 0 | AI44: 0 | AJ44: 0 | AK44: 0 | AL44: 0 | AM44: 0 | AN44: 0 | AO44: 0 | AP44: 0 | AQ44: 0 | AR44: 0 | AS44: 0 | AT44: 0 | AU44: 0 | AV44: 0 | AW44: 0 | AX44: 0 | AY44: 0 | AZ44: 0 | BA44: 0 | BB44: 0 | BC44: 0 | BD44: 0 | BE44: 0 | BF44: 0 | BG44: 0 | BH44: 0 | BI44: 0 | BJ44: 0 | BK44: 0 | BL44: 0 | BM44: 0 | BN44: 0 | BO44: 0 | BP44: 0 | BQ44: 0 | BR44: 0 | BS44: 0 | BT44: 0 | BU44: 0 | BV44: 0 | BW44: 0 | BX44: 0 | BY44: 0 | BZ44: 0 | CA44: 0 | CB44: 0 | CC44: 0 | CD44: 0 | CE44: 0 | CF44: 0 | CG44: 0 | CH44: 0 | CI44: 0
A45: 2004 | C45: 0 | E45: =+$F18 -> 0 | F45: 0 | G45: 0 | H45: 0 | I45: 0 | J45: 0 | K45: 0 | L45: 0 | M45: 0 | N45: 0 | O45: 0 | P45: 0 | Q45: 0 | R45: 0 | S45: 0 | T45: 0 | U45: 0 | V45: 0 | W45: 0 | X45: 0 | Y45: 0 | Z45: 0 | AA45: 0 | AB45: 0 | AC45: 0 | AD45: 0 | AE45: 0 | AF45: 0 | AG45: 0 | AH45: 0 | AI45: 0 | AJ45: 0 | AK45: 0 | AL45: 0 | AM45: 0 | AN45: 0 | AO45: 0 | AP45: 0 | AQ45: 0 | AR45: 0 | AS45: 0 | AT45: 0 | AU45: 0 | AV45: 0 | AW45: 0 | AX45: 0 | AY45: 0 | AZ45: 0 | BA45: 0 | BB45: 0 | BC45: 0 | BD45: 0 | BE45: 0 | BF45: 0 | BG45: 0 | BH45: 0 | BI45: 0 | BJ45: 0 | BK45: 0 | BL45: 0 | BM45: 0 | BN45: 0 | BO45: 0 | BP45: 0 | BQ45: 0 | BR45: 0 | BS45: 0 | BT45: 0 | BU45: =+$F18 -> 0 | BV45: 0 | BW45: 0 | BX45: 0 | BY45: 0 | BZ45: 0 | CA45: 0 | CB45: 0 | CC45: 0 | CD45: 0 | CE45: 0 | CF45: 0 | CG45: 0 | CH45: 0 | CI45: 0
A46: 2005 | C46: 0 | E46: 0 | F46: 0 | G46: 0 | H46: 0 | I46: 0 | J46: 0 | K46: 0 | L46: 0 | M46: 0 | N46: 0 | O46: 0 | P46: 0 | Q46: 0 | R46: 0 | S46: 0 | T46: 0 | U46: 0 | V46: 0 | W46: 0 | X46: 0 | Y46: 0 | Z46: 0 | AA46: 0 | AB46: 0 | AC46: 0 | AD46: 0 | AE46: 0 | AF46: 0 | AG46: 0 | AH46: 0 | AI46: 0 | AJ46: 0 | AK46: 0 | AL46: 0 | AM46: 0 | AN46: 0 | AO46: 0 | AP46: 0 | AQ46: 0 | AR46: 0 | AS46: 0 | AT46: 0 | AU46: 0 | AV46: 0 | AW46: 0 | AX46: 0 | AY46: 0 | AZ46: 0 | BA46: 0 | BB46: 0 | BC46: 0 | BD46: 0 | BE46: 0 | BF46: 0 | BG46: 0 | BH46: 0 | BI46: 0 | BJ46: 0 | BK46: 0 | BL46: 0 | BM46: 0 | BN46: 0 | BO46: 0 | BP46: 0 | BQ46: 0 | BR46: 0 | BS46: 0 | BT46: 0 | BU46: 0 | BV46: 0 | BW46: 0 | BX46: 0 | BY46: 0 | BZ46: 0 | CA46: 0 | CB46: 0 | CC46: 0 | CD46: 0 | CE46: 0 | CF46: 0 | CG46: 0 | CH46: 0 | CI46: 0
A47: 2006 | C47: 0 | E47: 0 | F47: 0 | G47: 0 | H47: 0 | I47: 0 | J47: 0 | K47: 0 | L47: 0 | M47: 0 | N47: 0 | O47: 0 | P47: 0 | Q47: 0 | R47: 0 | S47: 0 | T47: 0 | U47: 0 | V47: 0 | W47: 0 | X47: 0 | Y47: 0 | Z47: 0 | AA47: 0 | AB47: 0 | AC47: 0 | AD47: 0 | AE47: 0 | AF47: 0 | AG47: 0 | AH47: 0 | AI47: 0 | AJ47: 0 | AK47: 0 | AL47: 0 | AM47: 0 | AN47: 0 | AO47: 0 | AP47: 0 | AQ47: 0 | AR47: 0 | AS47: 0 | AT47: 0 | AU47: 0 | AV47: 0 | AW47: 0 | AX47: 0 | AY47: 0 | AZ47: 0 | BA47: 0 | BB47: 0 | BC47: 0 | BD47: 0 | BE47: 0 | BF47: 0 | BG47: 0 | BH47: 0 | BI47: 0 | BJ47: 0 | BK47: 0 | BL47: 0 | BM47: 0 | BN47: 0 | BO47: 0 | BP47: 0 | BQ47: 0 | BR47: 0 | BS47: 0 | BT47: 0 | BU47: 0 | BV47: 0 | BW47: 0 | BX47: 0 | BY47: 0 | BZ47: 0 | CA47: 0 | CB47: 0 | CC47: 0 | CD47: 0 | CE47: 0 | CF47: 0 | CG47: 0 | CH47: 0 | CI47: 0
A48: 2007 | C48: 0 | E48: 0 | F48: 0 | G48: 0 | H48: 0 | I48: 0 | J48: 0 | K48: 0 | L48: 0 | M48: 0 | N48: 0 | O48: 0 | P48: 0 | Q48: 0 | R48: 0 | S48: 0 | T48: 0 | U48: 0 | V48: 0 | W48: 0 | X48: 0 | Y48: 0 | Z48: 0 | AA48: 0 | AB48: 0 | AC48: 0 | AD48: 0 | AE48: 0 | AF48: 0 | AG48: 0 | AH48: 0 | AI48: 0 | AJ48: 0 | AK48: 0 | AL48: 0 | AM48: 0 | AN48: 0 | AO48: 0 | AP48: 0 | AQ48: 0 | AR48: 0 | AS48: 0 | AT48: 0 | AU48: 0 | AV48: 0 | AW48: 0 | AX48: 0 | AY48: 0 | AZ48: 0 | BA48: 0 | BB48: 0 | BC48: 0 | BD48: 0 | BE48: 0 | BF48: 0 | BG48: 0 | BH48: 0 | BI48: 0 | BJ48: 0 | BK48: 0 | BL48: 0 | BM48: 0 | BN48: 0 | BO48: 0 | BP48: 0 | BQ48: 0 | BR48: 0 | BS48: 0 | BT48: 0 | BU48: 0 | BV48: 0 | BW48: 0 | BX48: 0 | BY48: 0 | BZ48: 0 | CA48: 0 | CB48: 0 | CC48: 0 | CD48: 0 | CE48: 0 | CF48: 0 | CG48: 0 | CH48: 0 | CI48: 0
A49: 2008 | C49: 0 | E49: 0 | F49: 0 | G49: 0 | H49: 0 | I49: 0 | J49: 0 | K49: 0 | L49: 0 | M49: 0 | N49: 0 | O49: 0 | P49: 0 | Q49: 0 | R49: 0 | S49: 0 | T49: 0 | U49: 0 | V49: 0 | W49: 0 | X49: 0 | Y49: 0 | Z49: 0 | AA49: 0 | AB49: 0 | AC49: 0 | AD49: 0 | AE49: 0 | AF49: 0 | AG49: 0 | AH49: 0 | AI49: 0 | AJ49: 0 | AK49: 0 | AL49: 0 | AM49: 0 | AN49: 0 | AO49: 0 | AP49: 0 | AQ49: 0 | AR49: 0 | AS49: 0 | AT49: 0 | AU49: 0 | AV49: 0 | AW49: 0 | AX49: 0 | AY49: 0 | AZ49: 0 | BA49: 0 | BB49: 0 | BC49: 0 | BD49: 0 | BE49: 0 | BF49: 0 | BG49: 0 | BH49: 0 | BI49: 0 | BJ49: 0 | BK49: 0 | BL49: 0 | BM49: 0 | BN49: 0 | BO49: 0 | BP49: 0 | BQ49: 0 | BR49: 0 | BS49: 0 | BT49: 0 | BU49: 0 | BV49: 0 | BW49: 0 | BX49: 0 | BY49: 0 | BZ49: 0 | CA49: 0 | CB49: 0 | CC49: 0 | CD49: 0 | CE49: 0 | CF49: 0 | CG49: 0 | CH49: 0 | CI49: 0
A50: 2009 | C50: 0 | E50: 0 | F50: 0 | G50: 0 | H50: 0 | I50: 0 | J50: 0 | K50: 0 | L50: 0 | M50: 0 | N50: 0 | O50: 0 | P50: 0 | Q50: 0 | R50: 0 | S50: 0 | T50: 0 | U50: 0 | V50: 0 | W50: 0 | X50: 0 | Y50: =+$F23 -> 0 | Z50: 0 | AA50: 0 | AB50: 0 | AC50: 0 | AD50: 0 | AE50: 0 | AF50: 0 | AG50: 0 | AH50: 0 | AI50: 0 | AJ50: 0 | AK50: 0 | AL50: 0 | AM50: 0 | AN50: 0 | AO50: 0 | AP50: 0 | AQ50: 0 | AR50: 0 | AS50: 0 | AT50: 0 | AU50: 0 | AV50: 0 | AW50: 0 | AX50: 0 | AY50: 0 | AZ50: 0 | BA50: 0 | BB50: 0 | BC50: 0 | BD50: 0 | BE50: 0 | BF50: 0 | BG50: 0 | BH50: 0 | BI50: 0 | BJ50: 0 | BK50: 0 | BL50: 0 | BM50: 0 | BN50: 0 | BO50: 0 | BP50: 0 | BQ50: 0 | BR50: 0 | BS50: 0 | BT50: 0 | BU50: 0 | BV50: 0 | BW50: 0 | BX50: 0 | BY50: 0 | BZ50: 0 | CA50: 0 | CB50: 0 | CC50: 0 | CD50: 0 | CE50: 0 | CF50: 0 | CG50: 0 | CH50: 0 | CI50: 0
A51: 2010 | C51: 0 | E51: =+$F24 -> 0 | F51: 0 | G51: 0 | H51: 0 | I51: 0 | J51: 0 | K51: 0 | L51: 0 | M51: 0 | N51: 0 | O51: 0 | P51: 0 | Q51: 0 | R51: 0 | S51: 0 | T51: 0 | U51: 0 | V51: 0 | W51: 0 | X51: 0 | Y51: 0 | Z51: 0 | AA51: 0 | AB51: 0 | AC51: 0 | AD51: 0 | AE51: 0 | AF51: 0 | AG51: 0 | AH51: 0 | AI51: 0 | AJ51: 0 | AK51: 0 | AL51: 0 | AM51: 0 | AN51: 0 | AO51: 0 | AP51: 0 | AQ51: 0 | AR51: 0 | AS51: 0 | AT51: 0 | AU51: 0 | AV51: 0 | AW51: 0 | AX51: 0 | AY51: 0 | AZ51: 0 | BA51: 0 | BB51: 0 | BC51: 0 | BD51: 0 | BE51: 0 | BF51: 0 | BG51: 0 | BH51: 0 | BI51: 0 | BJ51: 0 | BK51: 0 | BL51: 0 | BM51: 0 | BN51: 0 | BO51: 0 | BP51: 0 | BQ51: 0 | BR51: 0 | BS51: 0 | BT51: 0 | BU51: 0 | BV51: 0 | BW51: 0 | BX51: 0 | BY51: 0 | BZ51: 0 | CA51: 0 | CB51: 0 | CC51: 0 | CD51: 0 | CE51: 0 | CF51: 0 | CG51: 0 | CH51: 0 | CI51: 0
A52: =A51+1 -> 2011 | C52: 0 | E52: 0 | F52: 0 | G52: 0 | H52: 0 | I52: 0 | J52: 0 | K52: 0 | L52: 0 | M52: 0 | N52: 0 | O52: 0 | P52: 0 | Q52: 0 | R52: 0 | S52: 0 | T52: 0 | U52: 0 | V52: 0 | W52: 0 | X52: 0 | Y52: 0 | Z52: 0 | AA52: 0 | AB52: 0 | AC52: 0 | AD52: 0 | AE52: 0 | AF52: 0 | AG52: 0 | AH52: 0 | AI52: 0 | AJ52: 0 | AK52: 0 | AL52: 0 | AM52: 0 | AN52: 0 | AO52: 0 | AP52: 0 | AQ52: 0 | AR52: 0 | AS52: 0 | AT52: 0 | AU52: 0 | AV52: 0 | AW52: 0 | AX52: 0 | AY52: 0 | AZ52: 0 | BA52: 0 | BB52: 0 | BC52: 0 | BD52: 0 | BE52: 0 | BF52: 0 | BG52: 0 | BH52: 0 | BI52: 0 | BJ52: 0 | BK52: 0 | BL52: 0 | BM52: 0 | BN52: 0 | BO52: 0 | BP52: 0 | BQ52: 0 | BR52: 0 | BS52: 0 | BT52: 0 | BU52: 0 | BV52: 0 | BW52: 0 | BX52: =+$F25 -> 0 | BY52: 0 | BZ52: 0 | CA52: 0 | CB52: 0 | CC52: 0 | CD52: 0 | CE52: 0 | CF52: 0 | CG52: 0 | CH52: 0 | CI52: 0
A53: 2012 | C53: 0 | E53: 0 | F53: 0 | G53: 0 | H53: 0 | I53: 0 | J53: 0 | K53: 0 | L53: 0 | M53: 0 | N53: 0 | O53: 0 | P53: 0 | Q53: 0 | R53: 0 | S53: 0 | T53: 0 | U53: 0 | V53: 0 | W53: 0 | X53: 0 | Y53: 0 | Z53: 0 | AA53: 0 | AB53: 0 | AC53: 0 | AD53: 0 | AE53: 0 | AF53: 0 | AG53: 0 | AH53: 0 | AI53: 0 | AJ53: 0 | AK53: 0 | AL53: 0 | AM53: 0 | AN53: 0 | AO53: 0 | AP53: 0 | AQ53: 0 | AR53: 0 | AS53: 0 | AT53: 0 | AU53: 0 | AV53: 0 | AW53: 0 | AX53: 0 | AY53: 0 | AZ53: =+$F26 -> 0 | BA53: 0 | BB53: 0 | BC53: 0 | BD53: 0 | BE53: 0 | BF53: 0 | BG53: 0 | BH53: 0 | BI53: 0 | BJ53: 0 | BK53: 0 | BL53: 0 | BM53: 0 | BN53: 0 | BO53: 0 | BP53: 0 | BQ53: 0 | BR53: 0 | BS53: 0 | BT53: 0 | BU53: 0 | BV53: 0 | BW53: 0 | BX53: 0 | BY53: 0 | BZ53: 0 | CA53: 0 | CB53: 0 | CC53: 0 | CD53: 0 | CE53: 0 | CF53: 0 | CG53: 0 | CH53: 0 | CI53: 0
A54: 2013 | C54: 0 | E54: 0 | F54: 0 | G54: 0 | H54: 0 | I54: 0 | J54: 0 | K54: 0 | L54: 0 | M54: 0 | N54: 0 | O54: 0 | P54: 0 | Q54: 0 | R54: 0 | S54: 0 | T54: 0 | U54: 0 | V54: 0 | W54: 0 | X54: 0 | Y54: 0 | Z54: 0 | AA54: 0 | AB54: 0 | AC54: 0 | AD54: 0 | AE54: 0 | AF54: 0 | AG54: 0 | AH54: 0 | AI54: 0 | AJ54: 0 | AK54: 0 | AL54: 0 | AM54: 0 | AN54: 0 | AO54: 0 | AP54: 0 | AQ54: 0 | AR54: 0 | AS54: 0 | AT54: 0 | AU54: 0 | AV54: 0 | AW54: 0 | AX54: 0 | AY54: 0 | AZ54: 0 | BA54: 0 | BB54: 0 | BC54: 0 | BD54: 0 | BE54: 0 | BF54: 0 | BG54: 0 | BH54: 0 | BI54: 0 | BJ54: 0 | BK54: 0 | BL54: 0 | BM54: 0 | BN54: 0 | BO54: 0 | BP54: 0 | BQ54: 0 | BR54: 0 | BS54: 0 | BT54: 0 | BU54: 0 | BV54: 0 | BW54: 0 | BX54: 0 | BY54: 0 | BZ54: 0 | CA54: 0 | CB54: 0 | CC54: 0 | CD54: 0 | CE54: 0 | CF54: 0 | CG54: 0 | CH54: 0 | CI54: 0
A55: 2014 | C55: 0 | E55: 0 | F55: 0 | G55: 0 | H55: 0 | I55: 0 | J55: 0 | K55: 0 | L55: 0 | M55: 0 | N55: 0 | O55: 0 | P55: 0 | Q55: 0 | R55: 0 | S55: 0 | T55: 0 | U55: 0 | V55: 0 | W55: 0 | X55: 0 | Y55: 0 | Z55: 0 | AA55: 0 | AB55: 0 | AC55: 0 | AD55: 0 | AE55: 0 | AF55: 0 | AG55: 0 | AH55: 0 | AI55: 0 | AJ55: 0 | AK55: 0 | AL55: 0 | AM55: 0 | AN55: 0 | AO55: 0 | AP55: 0 | AQ55: 0 | AR55: 0 | AS55: 0 | AT55: 0 | AU55: 0 | AV55: 0 | AW55: 0 | AX55: 0 | AY55: 0 | AZ55: 0 | BA55: 0 | BB55: 0 | BC55: 0 | BD55: 0 | BE55: 0 | BF55: 0 | BG55: 0 | BH55: 0 | BI55: 0 | BJ55: 0 | BK55: 0 | BL55: 0 | BM55: 0 | BN55: 0 | BO55: 0 | BP55: 0 | BQ55: 0 | BR55: 0 | BS55: 0 | BT55: 0 | BU55: 0 | BV55: 0 | BW55: 0 | BX55: 0 | BY55: 0 | BZ55: 0 | CA55: 0 | CB55: 0 | CC55: 0 | CD55: 0 | CE55: 0 | CF55: 0 | CG55: 0 | CH55: 0 | CI55: 0
A56: 2015 | C56: 0 | E56: 0 | F56: 0 | G56: 0 | H56: 0 | I56: 0 | J56: 0 | K56: 0 | L56: 0 | M56: 0 | N56: 0 | O56: 0 | P56: 0 | Q56: 0 | R56: 0 | S56: 0 | T56: 0 | U56: 0 | V56: 0 | W56: 0 | X56: 0 | Y56: =+$F29 -> 0 | Z56: 0 | AA56: 0 | AB56: 0 | AC56: 0 | AD56: 0 | AE56: 0 | AF56: 0 | AG56: 0 | AH56: 0 | AI56: 0 | AJ56: 0 | AK56: 0 | AL56: 0 | AM56: 0 | AN56: 0 | AO56: 0 | AP56: 0 | AQ56: 0 | AR56: 0 | AS56: 0 | AT56: 0 | AU56: 0 | AV56: 0 | AW56: 0 | AX56: 0 | AY56: 0 | AZ56: 0 | BA56: 0 | BB56: 0 | BC56: 0 | BD56: 0 | BE56: 0 | BF56: 0 | BG56: 0 | BH56: 0 | BI56: 0 | BJ56: 0 | BK56: 0 | BL56: 0 | BM56: 0 | BN56: 0 | BO56: 0 | BP56: 0 | BQ56: 0 | BR56: 0 | BS56: 0 | BT56: 0 | BU56: 0 | BV56: 0 | BW56: 0 | BX56: 0 | BY56: 0 | BZ56: 0 | CA56: 0 | CB56: 0 | CC56: 0 | CD56: 0 | CE56: 0 | CF56: 0 | CG56: 0 | CH56: 0 | CI56: 0
A57: 2016 | C57: 0 | E57: =+$F30 -> 0 | F57: 0 | G57: 0 | H57: 0 | I57: 0 | J57: 0 | K57: 0 | L57: 0 | M57: 0 | N57: 0 | O57: 0 | P57: 0 | Q57: 0 | R57: 0 | S57: 0 | T57: 0 | U57: 0 | V57: 0 | W57: 0 | X57: 0 | Y57: 0 | Z57: 0 | AA57: 0 | AB57: 0 | AC57: 0 | AD57: 0 | AE57: 0 | AF57: 0 | AG57: 0 | AH57: 0 | AI57: 0 | AJ57: 0 | AK57: 0 | AL57: 0 | AM57: 0 | AN57: 0 | AO57: 0 | AP57: 0 | AQ57: 0 | AR57: 0 | AS57: 0 | AT57: 0 | AU57: 0 | AV57: 0 | AW57: 0 | AX57: 0 | AY57: 0 | AZ57: 0 | BA57: 0 | BB57: 0 | BC57: 0 | BD57: 0 | BE57: 0 | BF57: 0 | BG57: 0 | BH57: 0 | BI57: 0 | BJ57: 0 | BK57: 0 | BL57: 0 | BM57: 0 | BN57: 0 | BO57: 0 | BP57: 0 | BQ57: 0 | BR57: 0 | BS57: 0 | BT57: 0 | BU57: 0 | BV57: 0 | BW57: 0 | BX57: 0 | BY57: 0 | BZ57: 0 | CA57: 0 | CB57: 0 | CC57: 0 | CD57: 0 | CE57: 0 | CF57: 0 | CG57: 0 | CH57: 0 | CI57: 0
A58: 2017 | C58: 0 | E58: 0 | F58: 0 | G58: 0 | H58: 0 | I58: 0 | J58: 0 | K58: 0 | L58: 0 | M58: 0 | N58: 0 | O58: 0 | P58: 0 | Q58: 0 | R58: 0 | S58: 0 | T58: 0 | U58: 0 | V58: 0 | W58: 0 | X58: 0 | Y58: 0 | Z58: 0 | AA58: 0 | AB58: 0 | AC58: 0 | AD58: 0 | AE58: 0 | AF58: 0 | AG58: 0 | AH58: 0 | AI58: 0 | AJ58: 0 | AK58: 0 | AL58: 0 | AM58: 0 | AN58: 0 | AO58: 0 | AP58: 0 | AQ58: 0 | AR58: 0 | AS58: 0 | AT58: 0 | AU58: 0 | AV58: 0 | AW58: 0 | AX58: 0 | AY58: 0 | AZ58: 0 | BA58: 0 | BB58: 0 | BC58: 0 | BD58: 0 | BE58: 0 | BF58: 0 | BG58: 0 | BH58: 0 | BI58: 0 | BJ58: 0 | BK58: 0 | BL58: 0 | BM58: 0 | BN58: 0 | BO58: 0 | BP58: 0 | BQ58: 0 | BR58: 0 | BS58: 0 | BT58: 0 | BU58: 0 | BV58: 0 | BW58: 0 | BX58: 0 | BY58: 0 | BZ58: 0 | CA58: 0 | CB58: 0 | CC58: 0 | CD58: 0 | CE58: 0 | CF58: 0 | CG58: 0 | CH58: 0 | CI58: 0
B60: Total: | C60: =SUM(C38:C59) -> 0 | D60: Book Depr. Expense | E60: =SUM(E38:E58) -> 699.8418 | F60: 699.8418 | G60: 699.8418 | H60: 699.8418 | I60: 699.8418 | J60: 699.8418 | K60: 699.8418 | L60: 699.8418 | M60: 699.8418 | N60: 699.8418 | O60: 699.8418 | P60: 699.8418 | Q60: 699.8418 | R60: 699.8418 | S60: 699.8418 | T60: 699.8418 | U60: 699.8418 | V60: 699.8418 | W60: 699.8418 | X60: 699.8418 | Y60: 699.8418 | Z60: 699.8418 | AA60: 699.8418 | AB60: 699.8418 | AC60: 699.8418 | AD60: 699.8418 | AE60: 699.8418 | AF60: 699.8418 | AG60: 699.8418 | AH60: 699.8418 | AI60: 699.8418 | AJ60: 699.8418 | AK60: 699.8418 | AL60: 699.8418 | AM60: 699.8418 | AN60: 699.8418 | AO60: 699.8418 | AP60: 699.8418 | AQ60: 699.8418 | AR60: 699.8418 | AS60: 699.8418 | AT60: 699.8418 | AU60: 699.8418 | AV60: 699.8418 | AW60: 699.8418 | AX60: 699.8418 | AY60: 699.8418 | AZ60: =SUM(AZ38:AZ58) -> 699.8418 | BA60: 699.8418 | BB60: 699.8418 | BC60: 699.8418 | BD60: 699.8418 | BE60: 699.8418 | BF60: 699.8418 | BG60: 699.8418 | BH60: 699.8418 | BI60: 699.8418 | BJ60: 699.8418 | BK60: 699.8418 | BL60: 699.8418 | BM60: 699.8418 | BN60: 699.8418 | BO60: 699.8418 | BP60: 699.8418 | BQ60: 699.8418 | BR60: 699.8418 | BS60: 699.8418 | BT60: 699.8418 | BU60: 699.8418 | BV60: 699.8418 | BW60: 699.8418 | BX60: 699.8418 | BY60: 699.8418 | BZ60: 699.8418 | CA60: 699.8418 | CB60: 699.8418 | CC60: 699.8418 | CD60: 699.8418 | CE60: 699.8418 | CF60: 699.8418 | CG60: 699.8418 | CH60: 699.8418 | CI60: 699.8418
C65: (Aquired Value - Accum Depr - Bonus)
A66: Vintage | C66: Tax NBV | E66: Tax Deprecation
A67: 1997 & Prior | C67: =SUMIFS(CY_Report!$W:$W,CY_Report!$J:$J,$A67,CY_Report!$E:$E,MID(CELL("filename",$A$1),FIND("]",CELL("filename",$A$1))+1,255),CY_Report!$U:$U,"<>*d*",CY_Report!$U:$U,"<>*t*",CY_Report!$N:$N,"<>"&" 00 00") -> 0 | D67: =C67-SUM(E67:AY67) -> 0 | E67: =SUMIFS(Forecast!D:D,Forecast!$C:$C,$A67,Forecast!$B:$B,MID(CELL("filename",$A$1),FIND("]",CELL("filename",$A$1))+1,255)) -> 0 | F67: =SUMIFS(Forecast!E:E,Forecast!$C:$C,$A67,Forecast!$B:$B,MID(CELL("filename",$A$1),FIND("]",CELL("filename",$A$1))+1,255)) -> 0 | G67: =SUMIFS(Forecast!F:F,Forecast!$C:$C,$A67,Forecast!$B:$B,MID(CELL("filename",$A$1),FIND("]",CELL("filename",$A$1))+1,255)) -> 0 | H67: =SUMIFS(Forecast!G:G,Forecast!$C:$C,$A67,Forecast!$B:$B,MID(CELL("filename",$A$1),FIND("]",CELL("filename",$A$1))+1,255)) -> 0 | I67: =SUMIFS(Forecast!H:H,Forecast!$C:$C,$A67,Forecast!$B:$B,MID(CELL("filename",$A$1),FIND("]",CELL("filename",$A$1))+1,255)) -> 0 | J67: =SUMIFS(Forecast!I:I,Forecast!$C:$C,$A67,Forecast!$B:$B,MID(CELL("filename",$A$1),FIND("]",CELL("filename",$A$1))+1,255)) -> 0 | K67: =SUMIFS(Forecast!J:J,Forecast!$C:$C,$A67,Forecast!$B:$B,MID(CELL("filename",$A$1),FIND("]",CELL("filename",$A$1))+1,255)) -> 0 | L67: =SUMIFS(Forecast!K:K,Forecast!$C:$C,$A67,Forecast!$B:$B,MID(CELL("filename",$A$1),FIND("]",CELL("filename",$A$1))+1,255)) -> 0 | M67: =SUMIFS(Forecast!L:L,Forecast!$C:$C,$A67,Forecast!$B:$B,MID(CELL("filename",$A$1),FIND("]",CELL("filename",$A$1))+1,255)) -> 0 | N67: =SUMIFS(Forecast!M:M,Forecast!$C:$C,$A67,Forecast!$B:$B,MID(CELL("filename",$A$1),FIND("]",CELL("filename",$A$1))+1,255)) -> 0 | O67: =SUMIFS(Forecast!N:N,Forecast!$C:$C,$A67,Forecast!$B:$B,MID(CELL("filename",$A$1),FIND("]",CELL("filename",$A$1))+1,255)) -> 0 | P67: =SUMIFS(Forecast!O:O,Forecast!$C:$C,$A67,Forecast!$B:$B,MID(CELL("filename",$A$1),FIND("]",CELL("filename",$A$1))+1,255)) -> 0 | Q67: =SUMIFS(Forecast!P:P,Forecast!$C:$C,$A67,Forecast!$B:$B,MID(CELL("filename",$A$1),FIND("]",CELL("filename",$A$1))+1,255)) -> 0 | R67: =SUMIFS(Forecast!Q:Q,Forecast!$C:$C,$A67,Forecast!$B:$B,MID(CELL("filename",$A$1),FIND("]",CELL("filename",$A$1))+1,255)) -> 0 | S67: =SUMIFS(Forecast!R:R,Forecast!$C:$C,$A67,Forecast!$B:$B,MID(CELL("filename",$A$1),FIND("]",CELL("filename",$A$1))+1,255)) -> 0 | T67: =SUMIFS(Forecast!S:S,Forecast!$C:$C,$A67,Forecast!$B:$B,MID(CELL("filename",$A$1),FIND("]",CELL("filename",$A$1))+1,255)) -> 0 | U67: =SUMIFS(Forecast!T:T,Forecast!$C:$C,$A67,Forecast!$B:$B,MID(CELL("filename",$A$1),FIND("]",CELL("filename",$A$1))+1,255)) -> 0 | V67: =SUMIFS(Forecast!U:U,Forecast!$C:$C,$A67,Forecast!$B:$B,MID(CELL("filename",$A$1),FIND("]",CELL("filename",$A$1))+1,255)) -> 0 | W67: =SUMIFS(Forecast!V:V,Forecast!$C:$C,$A67,Forecast!$B:$B,MID(CELL("filename",$A$1),FIND("]",CELL("filename",$A$1))+1,255)) -> 0 | X67: =SUMIFS(Forecast!W:W,Forecast!$C:$C,$A67,Forecast!$B:$B,MID(CELL("filename",$A$1),FIND("]",CELL("filename",$A$1))+1,255)) -> 0 | Y67: =SUMIFS(Forecast!X:X,Forecast!$C:$C,$A67,Forecast!$B:$B,MID(CELL("filename",$A$1),FIND("]",CELL("filename",$A$1))+1,255)) -> 0 | Z67: =SUMIFS(Forecast!Y:Y,Forecast!$C:$C,$A67,Forecast!$B:$B,MID(CELL("filename",$A$1),FIND("]",CELL("filename",$A$1))+1,255)) -> 0 | AA67: =SUMIFS(Forecast!Z:Z,Forecast!$C:$C,$A67,Forecast!$B:$B,MID(CELL("filename",$A$1),FIND("]",CELL("filename",$A$1))+1,255)) -> 0 | AB67: =SUMIFS(Forecast!AA:AA,Forecast!$C:$C,$A67,Forecast!$B:$B,MID(CELL("filename",$A$1),FIND("]",CELL("filename",$A$1))+1,255)) -> 0 | AC67: =SUMIFS(Forecast!AB:AB,Forecast!$C:$C,$A67,Forecast!$B:$B,MID(CELL("filename",$A$1),FIND("]",CELL("filename",$A$1))+1,255)) -> 0 | AD67: =SUMIFS(Forecast!AC:AC,Forecast!$C:$C,$A67,Forecast!$B:$B,MID(CELL("filename",$A$1),FIND("]",CELL("filename",$A$1))+1,255)) -> 0 | AE67: =SUMIFS(Forecast!AD:AD,Forecast!$C:$C,$A67,Forecast!$B:$B,MID(CELL("filename",$A$1),FIND("]",CELL("filename",$A$1))+1,255)) -> 0 | AF67: =SUMIFS(Forecast!AE:AE,Forecast!$C:$C,$A67,Forecast!$B:$B,MID(CELL("filename",$A$1),FIND("]",CELL("filename",$A$1))+1,255)) -> 0 | AG67: =SUMIFS(Forecast!AF:AF,Forecast!$C:$C,$A67,Forecast!$B:$B,MID(CELL("filename",$A$1),FIND("]",CELL("filename",$A$1))+1,255)) -> 0 | AH67: =SUMIFS(Forecast!AG:AG,Forecast!$C:$C,$A67,Forecast!$B:$B,MID(CELL("filename",$A$1),FIND("]",CELL("filename",$A$1))+1,255)) -> 0 | AI67: =SUMIFS(Forecast!AH:AH,Forecast!$C:$C,$A67,Forecast!$B:$B,MID(CELL("filename",$A$1),FIND("]",CELL("filename",$A$1))+1,255)) -> 0 | AJ67: =SUMIFS(Forecast!AI:AI,Forecast!$C:$C,$A67,Forecast!$B:$B,MID(CELL("filename",$A$1),FIND("]",CELL("filename",$A$1))+1,255)) -> 0 | AK67: =SUMIFS(Forecast!AJ:AJ,Forecast!$C:$C,$A67,Forecast!$B:$B,MID(CELL("filename",$A$1),FIND("]",CELL("filename",$A$1))+1,255)) -> 0 | AL67: =SUMIFS(Forecast!AK:AK,Forecast!$C:$C,$A67,Forecast!$B:$B,MID(CELL("filename",$A$1),FIND("]",CELL("filename",$A$1))+1,255)) -> 0 | AM67: =SUMIFS(Forecast!AL:AL,Forecast!$C:$C,$A67,Forecast!$B:$B,MID(CELL("filename",$A$1),FIND("]",CELL("filename",$A$1))+1,255)) -> 0 | AN67: =SUMIFS(Forecast!AM:AM,Forecast!$C:$C,$A67,Forecast!$B:$B,MID(CELL("filename",$A$1),FIND("]",CELL("filename",$A$1))+1,255)) -> 0 | AO67: =SUMIFS(Forecast!AN:AN,Forecast!$C:$C,$A67,Forecast!$B:$B,MID(CELL("filename",$A$1),FIND("]",CELL("filename",$A$1))+1,255)) -> 0 | AP67: =SUMIFS(Forecast!AO:AO,Forecast!$C:$C,$A67,Forecast!$B:$B,MID(CELL("filename",$A$1),FIND("]",CELL("filename",$A$1))+1,255)) -> 0 | AQ67: =SUMIFS(Forecast!AP:AP,Forecast!$C:$C,$A67,Forecast!$B:$B,MID(CELL("filename",$A$1),FIND("]",CELL("filename",$A$1))+1,255)) -> 0 | AR67: =SUMIFS(Forecast!AQ:AQ,Forecast!$C:$C,$A67,Forecast!$B:$B,MID(CELL("filename",$A$1),FIND("]",CELL("filename",$A$1))+1,255)) -> 0 | AS67: =SUMIFS(Forecast!AR:AR,Forecast!$C:$C,$A67,Forecast!$B:$B,MID(CELL("filename",$A$1),FIND("]",CELL("filename",$A$1))+1,255)) -> 0 | AT67: =SUMIFS(Forecast!AS:AS,Forecast!$C:$C,$A67,Forecast!$B:$B,MID(CELL("filename",$A$1),FIND("]",CELL("filename",$A$1))+1,255)) -> 0 | AU67: =SUMIFS(Forecast!AT:AT,Forecast!$C:$C,$A67,Forecast!$B:$B,MID(CELL("filename",$A$1),FIND("]",CELL("filename",$A$1))+1,255)) -> 0 | AV67: =SUMIFS(Forecast!AU:AU,Forecast!$C:$C,$A67,Forecast!$B:$B,MID(CELL("filename",$A$1),FIND("]",CELL("filename",$A$1))+1,255)) -> 0 | AW67: =SUMIFS(Forecast!AV:AV,Forecast!$C:$C,$A67,Forecast!$B:$B,MID(CELL("filename",$A$1),FIND("]",CELL("filename",$A$1))+1,255)) -> 0 | AX67: =SUMIFS(Forecast!AW:AW,Forecast!$C:$C,$A67,Forecast!$B:$B,MID(CELL("filename",$A$1),FIND("]",CELL("filename",$A$1))+1,255)) -> 0 | AY67: =SUMIFS(Forecast!AX:AX,Forecast!$C:$C,$A67,Forecast!$B:$B,MID(CELL("filename",$A$1),FIND("]",CELL("filename",$A$1))+1,255)) -> 0 | AZ67: 0 | BA67: 0 | BB67: 0 | BC67: 0 | BD67: 0 | BE67: 0 | BF67: 0 | BG67: 0 | BH67: 0 | BI67: 0 | BJ67: 0 | BK67: 0 | BL67: 0 | BM67: 0 | BN67: 0 | BO67: 0 | BP67: 0 | BQ67: 0 | BR67: 0 | BS67: 0 | BT67: 0 | BU67: 0 | BV67: 0 | BW67: 0 | BX67: 0 | BY67: 0 | BZ67: 0 | CA67: 0 | CB67: 0 | CC67: 0 | CD67: 0 | CE67: 0 | CF67: 0 | CG67: 0 | CH67: 0 | CI67: 0
A68: 1998 | C68: =SUMIFS(CY_Report!$W:$W,CY_Report!$J:$J,$A68,CY_Report!$E:$E,MID(CELL("filename",$A$1),FIND("]",CELL("filename",$A$1))+1,255),CY_Report!$U:$U,"<>*d*",CY_Report!$U:$U,"<>*t*",CY_Report!$N:$N,"<>"&" 00 00") -> 0 | D68: =C68-SUM(E68:AY68) -> 0 | E68: =SUMIFS(Forecast!D:D,Forecast!$C:$C,$A68,Forecast!$B:$B,MID(CELL("filename",$A$1),FIND("]",CELL("filename",$A$1))+1,255)) -> 0 | F68: =SUMIFS(Forecast!E:E,Forecast!$C:$C,$A68,Forecast!$B:$B,MID(CELL("filename",$A$1),FIND("]",CELL("filename",$A$1))+1,255)) -> 0 | G68: =SUMIFS(Forecast!F:F,Forecast!$C:$C,$A68,Forecast!$B:$B,MID(CELL("filename",$A$1),FIND("]",CELL("filename",$A$1))+1,255)) -> 0 | H68: =SUMIFS(Forecast!G:G,Forecast!$C:$C,$A68,Forecast!$B:$B,MID(CELL("filename",$A$1),FIND("]",CELL("filename",$A$1))+1,255)) -> 0 | I68: =SUMIFS(Forecast!H:H,Forecast!$C:$C,$A68,Forecast!$B:$B,MID(CELL("filename",$A$1),FIND("]",CELL("filename",$A$1))+1,255)) -> 0 | J68: =SUMIFS(Forecast!I:I,Forecast!$C:$C,$A68,Forecast!$B:$B,MID(CELL("filename",$A$1),FIND("]",CELL("filename",$A$1))+1,255)) -> 0 | K68: =SUMIFS(Forecast!J:J,Forecast!$C:$C,$A68,Forecast!$B:$B,MID(CELL("filename",$A$1),FIND("]",CELL("filename",$A$1))+1,255)) -> 0 | L68: =SUMIFS(Forecast!K:K,Forecast!$C:$C,$A68,Forecast!$B:$B,MID(CELL("filename",$A$1),FIND("]",CELL("filename",$A$1))+1,255)) -> 0 | M68: =SUMIFS(Forecast!L:L,Forecast!$C:$C,$A68,Forecast!$B:$B,MID(CELL("filename",$A$1),FIND("]",CELL("filename",$A$1))+1,255)) -> 0 | N68: =SUMIFS(Forecast!M:M,Forecast!$C:$C,$A68,Forecast!$B:$B,MID(CELL("filename",$A$1),FIND("]",CELL("filename",$A$1))+1,255)) -> 0 | O68: =SUMIFS(Forecast!N:N,Forecast!$C:$C,$A68,Forecast!$B:$B,MID(CELL("filename",$A$1),FIND("]",CELL("filename",$A$1))+1,255)) -> 0 | P68: =SUMIFS(Forecast!O:O,Forecast!$C:$C,$A68,Forecast!$B:$B,MID(CELL("filename",$A$1),FIND("]",CELL("filename",$A$1))+1,255)) -> 0 | Q68: =SUMIFS(Forecast!P:P,Forecast!$C:$C,$A68,Forecast!$B:$B,MID(CELL("filename",$A$1),FIND("]",CELL("filename",$A$1))+1,255)) -> 0 | R68: =SUMIFS(Forecast!Q:Q,Forecast!$C:$C,$A68,Forecast!$B:$B,MID(CELL("filename",$A$1),FIND("]",CELL("filename",$A$1))+1,255)) -> 0 | S68: =SUMIFS(Forecast!R:R,Forecast!$C:$C,$A68,Forecast!$B:$B,MID(CELL("filename",$A$1),FIND("]",CELL("filename",$A$1))+1,255)) -> 0 | T68: =SUMIFS(Forecast!S:S,Forecast!$C:$C,$A68,Forecast!$B:$B,MID(CELL("filename",$A$1),FIND("]",CELL("filename",$A$1))+1,255)) -> 0 | U68: =SUMIFS(Forecast!T:T,Forecast!$C:$C,$A68,Forecast!$B:$B,MID(CELL("filename",$A$1),FIND("]",CELL("filename",$A$1))+1,255)) -> 0 | V68: =SUMIFS(Forecast!U:U,Forecast!$C:$C,$A68,Forecast!$B:$B,MID(CELL("filename",$A$1),FIND("]",CELL("filename",$A$1))+1,255)) -> 0 | W68: =SUMIFS(Forecast!V:V,Forecast!$C:$C,$A68,Forecast!$B:$B,MID(CELL("filename",$A$1),FIND("]",CELL("filename",$A$1))+1,255)) -> 0 | X68: =SUMIFS(Forecast!W:W,Forecast!$C:$C,$A68,Forecast!$B:$B,MID(CELL("filename",$A$1),FIND("]",CELL("filename",$A$1))+1,255)) -> 0 | Y68: =SUMIFS(Forecast!X:X,Forecast!$C:$C,$A68,Forecast!$B:$B,MID(CELL("filename",$A$1),FIND("]",CELL("filename",$A$1))+1,255)) -> 0 | Z68: =SUMIFS(Forecast!Y:Y,Forecast!$C:$C,$A68,Forecast!$B:$B,MID(CELL("filename",$A$1),FIND("]",CELL("filename",$A$1))+1,255)) -> 0 | AA68: =SUMIFS(Forecast!Z:Z,Forecast!$C:$C,$A68,Forecast!$B:$B,MID(CELL("filename",$A$1),FIND("]",CELL("filename",$A$1))+1,255)) -> 0 | AB68: =SUMIFS(Forecast!AA:AA,Forecast!$C:$C,$A68,Forecast!$B:$B,MID(CELL("filename",$A$1),FIND("]",CELL("filename",$A$1))+1,255)) -> 0 | AC68: =SUMIFS(Forecast!AB:AB,Forecast!$C:$C,$A68,Forecast!$B:$B,MID(CELL("filename",$A$1),FIND("]",CELL("filename",$A$1))+1,255)) -> 0 | AD68: =SUMIFS(Forecast!AC:AC,Forecast!$C:$C,$A68,Forecast!$B:$B,MID(CELL("filename",$A$1),FIND("]",CELL("filename",$A$1))+1,255)) -> 0 | AE68: =SUMIFS(Forecast!AD:AD,Forecast!$C:$C,$A68,Forecast!$B:$B,MID(CELL("filename",$A$1),FIND("]",CELL("filename",$A$1))+1,255)) -> 0 | AF68: =SUMIFS(Forecast!AE:AE,Forecast!$C:$C,$A68,Forecast!$B:$B,MID(CELL("filename",$A$1),FIND("]",CELL("filename",$A$1))+1,255)) -> 0 | AG68: =SUMIFS(Forecast!AF:AF,Forecast!$C:$C,$A68,Forecast!$B:$B,MID(CELL("filename",$A$1),FIND("]",CELL("filename",$A$1))+1,255)) -> 0 | AH68: =SUMIFS(Forecast!AG:AG,Forecast!$C:$C,$A68,Forecast!$B:$B,MID(CELL("filename",$A$1),FIND("]",CELL("filename",$A$1))+1,255)) -> 0 | AI68: =SUMIFS(Forecast!AH:AH,Forecast!$C:$C,$A68,Forecast!$B:$B,MID(CELL("filename",$A$1),FIND("]",CELL("filename",$A$1))+1,255)) -> 0 | AJ68: =SUMIFS(Forecast!AI:AI,Forecast!$C:$C,$A68,Forecast!$B:$B,MID(CELL("filename",$A$1),FIND("]",CELL("filename",$A$1))+1,255)) -> 0 | AK68: =SUMIFS(Forecast!AJ:AJ,Forecast!$C:$C,$A68,Forecast!$B:$B,MID(CELL("filename",$A$1),FIND("]",CELL("filename",$A$1))+1,255)) -> 0 | AL68: =SUMIFS(Forecast!AK:AK,Forecast!$C:$C,$A68,Forecast!$B:$B,MID(CELL("filename",$A$1),FIND("]",CELL("filename",$A$1))+1,255)) -> 0 | AM68: =SUMIFS(Forecast!AL:AL,Forecast!$C:$C,$A68,Forecast!$B:$B,MID(CELL("filename",$A$1),FIND("]",CELL("filename",$A$1))+1,255)) -> 0 | AN68: =SUMIFS(Forecast!AM:AM,Forecast!$C:$C,$A68,Forecast!$B:$B,MID(CELL("filename",$A$1),FIND("]",CELL("filename",$A$1))+1,255)) -> 0 | AO68: =SUMIFS(Forecast!AN:AN,Forecast!$C:$C,$A68,Forecast!$B:$B,MID(CELL("filename",$A$1),FIND("]",CELL("filename",$A$1))+1,255)) -> 0 | AP68: =SUMIFS(Forecast!AO:AO,Forecast!$C:$C,$A68,Forecast!$B:$B,MID(CELL("filename",$A$1),FIND("]",CELL("filename",$A$1))+1,255)) -> 0 | AQ68: =SUMIFS(Forecast!AP:AP,Forecast!$C:$C,$A68,Forecast!$B:$B,MID(CELL("filename",$A$1),FIND("]",CELL("filename",$A$1))+1,255)) -> 0 | AR68: =SUMIFS(Forecast!AQ:AQ,Forecast!$C:$C,$A68,Forecast!$B:$B,MID(CELL("filename",$A$1),FIND("]",CELL("filename",$A$1))+1,255)) -> 0 | AS68: =SUMIFS(Forecast!AR:AR,Forecast!$C:$C,$A68,Forecast!$B:$B,MID(CELL("filename",$A$1),FIND("]",CELL("filename",$A$1))+1,255)) -> 0 | AT68: =SUMIFS(Forecast!AS:AS,Forecast!$C:$C,$A68,Forecast!$B:$B,MID(CELL("filename",$A$1),FIND("]",CELL("filename",$A$1))+1,255)) -> 0 | AU68: =SUMIFS(Forecast!AT:AT,Forecast!$C:$C,$A68,Forecast!$B:$B,MID(CELL("filename",$A$1),FIND("]",CELL("filename",$A$1))+1,255)) -> 0 | AV68: =SUMIFS(Forecast!AU:AU,Forecast!$C:$C,$A68,Forecast!$B:$B,MID(CELL("filename",$A$1),FIND("]",CELL("filename",$A$1))+1,255)) -> 0 | AW68: =SUMIFS(Forecast!AV:AV,Forecast!$C:$C,$A68,Forecast!$B:$B,MID(CELL("filename",$A$1),FIND("]",CELL("filename",$A$1))+1,255)) -> 0 | AX68: =SUMIFS(Forecast!AW:AW,Forecast!$C:$C,$A68,Forecast!$B:$B,MID(CELL("filename",$A$1),FIND("]",CELL("filename",$A$1))+1,255)) -> 0 | AY68: =SUMIFS(Forecast!AX:AX,Forecast!$C:$C,$A68,Forecast!$B:$B,MID(CELL("filename",$A$1),FIND("]",CELL("filename",$A$1))+1,255)) -> 0 | AZ68: 0 | BA68: 0 | BB68: 0 | BC68: 0 | BD68: 0 | BE68: 0 | BF68: 0 | BG68: 0 | BH68: 0 | BI68: 0 | BJ68: 0 | BK68: 0 | BL68: 0 | BM68: 0 | BN68: 0 | BO68: 0 | BP68: 0 | BQ68: 0 | BR68: 0 | BS68: 0 | BT68: 0 | BU68: 0 | BV68: 0 | BW68: 0 | BX68: 0 | BY68: 0 | BZ68: 0 | CA68: 0 | CB68: 0 | CC68: 0 | CD68: 0 | CE68: 0 | CF68: 0 | CG68: 0 | CH68: 0 | CI68: 0
A69: 1999 | C69: =SUMIFS(CY_Report!$W:$W,CY_Report!$J:$J,$A69,CY_Report!$E:$E,MID(CELL("filename",$A$1),FIND("]",CELL("filename",$A$1))+1,255),CY_Report!$U:$U,"<>*d*",CY_Report!$U:$U,"<>*t*",CY_Report!$N:$N,"<>"&" 00 00") -> 0 | D69: 0 | E69: =SUMIFS(Forecast!D:D,Forecast!$C:$C,$A69,Forecast!$B:$B,MID(CELL("filename",$A$1),FIND("]",CELL("filename",$A$1))+1,255)) -> 0 | F69: =SUMIFS(Forecast!E:E,Forecast!$C:$C,$A69,Forecast!$B:$B,MID(CELL("filename",$A$1),FIND("]",CELL("filename",$A$1))+1,255)) -> 0 | G69: =SUMIFS(Forecast!F:F,Forecast!$C:$C,$A69,Forecast!$B:$B,MID(CELL("filename",$A$1),FIND("]",CELL("filename",$A$1))+1,255)) -> 0 | H69: =SUMIFS(Forecast!G:G,Forecast!$C:$C,$A69,Forecast!$B:$B,MID(CELL("filename",$A$1),FIND("]",CELL("filename",$A$1))+1,255)) -> 0 | I69: =SUMIFS(Forecast!H:H,Forecast!$C:$C,$A69,Forecast!$B:$B,MID(CELL("filename",$A$1),FIND("]",CELL("filename",$A$1))+1,255)) -> 0 | J69: =SUMIFS(Forecast!I:I,Forecast!$C:$C,$A69,Forecast!$B:$B,MID(CELL("filename",$A$1),FIND("]",CELL("filename",$A$1))+1,255)) -> 0 | K69: =SUMIFS(Forecast!J:J,Forecast!$C:$C,$A69,Forecast!$B:$B,MID(CELL("filename",$A$1),FIND("]",CELL("filename",$A$1))+1,255)) -> 0 | L69: =SUMIFS(Forecast!K:K,Forecast!$C:$C,$A69,Forecast!$B:$B,MID(CELL("filename",$A$1),FIND("]",CELL("filename",$A$1))+1,255)) -> 0 | M69: =SUMIFS(Forecast!L:L,Forecast!$C:$C,$A69,Forecast!$B:$B,MID(CELL("filename",$A$1),FIND("]",CELL("filename",$A$1))+1,255)) -> 0 | N69: =SUMIFS(Forecast!M:M,Forecast!$C:$C,$A69,Forecast!$B:$B,MID(CELL("filename",$A$1),FIND("]",CELL("filename",$A$1))+1,255)) -> 0 | O69: =SUMIFS(Forecast!N:N,Forecast!$C:$C,$A69,Forecast!$B:$B,MID(CELL("filename",$A$1),FIND("]",CELL("filename",$A$1))+1,255)) -> 0 | P69: =SUMIFS(Forecast!O:O,Forecast!$C:$C,$A69,Forecast!$B:$B,MID(CELL("filename",$A$1),FIND("]",CELL("filename",$A$1))+1,255)) -> 0 | Q69: =SUMIFS(Forecast!P:P,Forecast!$C:$C,$A69,Forecast!$B:$B,MID(CELL("filename",$A$1),FIND("]",CELL("filename",$A$1))+1,255)) -> 0 | R69: =SUMIFS(Forecast!Q:Q,Forecast!$C:$C,$A69,Forecast!$B:$B,MID(CELL("filename",$A$1),FIND("]",CELL("filename",$A$1))+1,255)) -> 0 | S69: =SUMIFS(Forecast!R:R,Forecast!$C:$C,$A69,Forecast!$B:$B,MID(CELL("filename",$A$1),FIND("]",CELL("filename",$A$1))+1,255)) -> 0 | T69: =SUMIFS(Forecast!S:S,Forecast!$C:$C,$A69,Forecast!$B:$B,MID(CELL("filename",$A$1),FIND("]",CELL("filename",$A$1))+1,255)) -> 0 | U69: =SUMIFS(Forecast!T:T,Forecast!$C:$C,$A69,Forecast!$B:$B,MID(CELL("filename",$A$1),FIND("]",CELL("filename",$A$1))+1,255)) -> 0 | V69: =SUMIFS(Forecast!U:U,Forecast!$C:$C,$A69,Forecast!$B:$B,MID(CELL("filename",$A$1),FIND("]",CELL("filename",$A$1))+1,255)) -> 0 | W69: =SUMIFS(Forecast!V:V,Forecast!$C:$C,$A69,Forecast!$B:$B,MID(CELL("filename",$A$1),FIND("]",CELL("filename",$A$1))+1,255)) -> 0 | X69: =SUMIFS(Forecast!W:W,Forecast!$C:$C,$A69,Forecast!$B:$B,MID(CELL("filename",$A$1),FIND("]",CELL("filename",$A$1))+1,255)) -> 0 | Y69: =SUMIFS(Forecast!X:X,Forecast!$C:$C,$A69,Forecast!$B:$B,MID(CELL("filename",$A$1),FIND("]",CELL("filename",$A$1))+1,255)) -> 0 | Z69: =SUMIFS(Forecast!Y:Y,Forecast!$C:$C,$A69,Forecast!$B:$B,MID(CELL("filename",$A$1),FIND("]",CELL("filename",$A$1))+1,255)) -> 0 | AA69: =SUMIFS(Forecast!Z:Z,Forecast!$C:$C,$A69,Forecast!$B:$B,MID(CELL("filename",$A$1),FIND("]",CELL("filename",$A$1))+1,255)) -> 0 | AB69: =SUMIFS(Forecast!AA:AA,Forecast!$C:$C,$A69,Forecast!$B:$B,MID(CELL("filename",$A$1),FIND("]",CELL("filename",$A$1))+1,255)) -> 0 | AC69: =SUMIFS(Forecast!AB:AB,Forecast!$C:$C,$A69,Forecast!$B:$B,MID(CELL("filename",$A$1),FIND("]",CELL("filename",$A$1))+1,255)) -> 0 | AD69: =SUMIFS(Forecast!AC:AC,Forecast!$C:$C,$A69,Forecast!$B:$B,MID(CELL("filename",$A$1),FIND("]",CELL("filename",$A$1))+1,255)) -> 0 | AE69: =SUMIFS(Forecast!AD:AD,Forecast!$C:$C,$A69,Forecast!$B:$B,MID(CELL("filename",$A$1),FIND("]",CELL("filename",$A$1))+1,255)) -> 0 | AF69: =SUMIFS(Forecast!AE:AE,Forecast!$C:$C,$A69,Forecast!$B:$B,MID(CELL("filename",$A$1),FIND("]",CELL("filename",$A$1))+1,255)) -> 0 | AG69: =SUMIFS(Forecast!AF:AF,Forecast!$C:$C,$A69,Forecast!$B:$B,MID(CELL("filename",$A$1),FIND("]",CELL("filename",$A$1))+1,255)) -> 0 | AH69: =SUMIFS(Forecast!AG:AG,Forecast!$C:$C,$A69,Forecast!$B:$B,MID(CELL("filename",$A$1),FIND("]",CELL("filename",$A$1))+1,255)) -> 0 | AI69: =SUMIFS(Forecast!AH:AH,Forecast!$C:$C,$A69,Forecast!$B:$B,MID(CELL("filename",$A$1),FIND("]",CELL("filename",$A$1))+1,255)) -> 0 | AJ69: =SUMIFS(Forecast!AI:AI,Forecast!$C:$C,$A69,Forecast!$B:$B,MID(CELL("filename",$A$1),FIND("]",CELL("filename",$A$1))+1,255)) -> 0 | AK69: =SUMIFS(Forecast!AJ:AJ,Forecast!$C:$C,$A69,Forecast!$B:$B,MID(CELL("filename",$A$1),FIND("]",CELL("filename",$A$1))+1,255)) -> 0 | AL69: =SUMIFS(Forecast!AK:AK,Forecast!$C:$C,$A69,Forecast!$B:$B,MID(CELL("filename",$A$1),FIND("]",CELL("filename",$A$1))+1,255)) -> 0 | AM69: =SUMIFS(Forecast!AL:AL,Forecast!$C:$C,$A69,Forecast!$B:$B,MID(CELL("filename",$A$1),FIND("]",CELL("filename",$A$1))+1,255)) -> 0 | AN69: =SUMIFS(Forecast!AM:AM,Forecast!$C:$C,$A69,Forecast!$B:$B,MID(CELL("filename",$A$1),FIND("]",CELL("filename",$A$1))+1,255)) -> 0 | AO69: =SUMIFS(Forecast!AN:AN,Forecast!$C:$C,$A69,Forecast!$B:$B,MID(CELL("filename",$A$1),FIND("]",CELL("filename",$A$1))+1,255)) -> 0 | AP69: =SUMIFS(Forecast!AO:AO,Forecast!$C:$C,$A69,Forecast!$B:$B,MID(CELL("filename",$A$1),FIND("]",CELL("filename",$A$1))+1,255)) -> 0 | AQ69: =SUMIFS(Forecast!AP:AP,Forecast!$C:$C,$A69,Forecast!$B:$B,MID(CELL("filename",$A$1),FIND("]",CELL("filename",$A$1))+1,255)) -> 0 | AR69: =SUMIFS(Forecast!AQ:AQ,Forecast!$C:$C,$A69,Forecast!$B:$B,MID(CELL("filename",$A$1),FIND("]",CELL("filename",$A$1))+1,255)) -> 0 | AS69: =SUMIFS(Forecast!AR:AR,Forecast!$C:$C,$A69,Forecast!$B:$B,MID(CELL("filename",$A$1),FIND("]",CELL("filename",$A$1))+1,255)) -> 0 | AT69: =SUMIFS(Forecast!AS:AS,Forecast!$C:$C,$A69,Forecast!$B:$B,MID(CELL("filename",$A$1),FIND("]",CELL("filename",$A$1))+1,255)) -> 0 | AU69: =SUMIFS(Forecast!AT:AT,Forecast!$C:$C,$A69,Forecast!$B:$B,MID(CELL("filename",$A$1),FIND("]",CELL("filename",$A$1))+1,255)) -> 0 | AV69: =SUMIFS(Forecast!AU:AU,Forecast!$C:$C,$A69,Forecast!$B:$B,MID(CELL("filename",$A$1),FIND("]",CELL("filename",$A$1))+1,255)) -> 0 | AW69: =SUMIFS(Forecast!AV:AV,Forecast!$C:$C,$A69,Forecast!$B:$B,MID(CELL("filename",$A$1),FIND("]",CELL("filename",$A$1))+1,255)) -> 0 | AX69: =SUMIFS(Forecast!AW:AW,Forecast!$C:$C,$A69,Forecast!$B:$B,MID(CELL("filename",$A$1),FIND("]",CELL("filename",$A$1))+1,255)) -> 0 | AY69: =SUMIFS(Forecast!AX:AX,Forecast!$C:$C,$A69,Forecast!$B:$B,MID(CELL("filename",$A$1),FIND("]",CELL("filename",$A$1))+1,255)) -> 0 | AZ69: 0 | BA69: 0 | BB69: 0 | BC69: 0 | BD69: 0 | BE69: 0 | BF69: 0 | BG69: 0 | BH69: 0 | BI69: 0 | BJ69: 0 | BK69: 0 | BL69: 0 | BM69: 0 | BN69: 0 | BO69: 0 | BP69: 0 | BQ69: 0 | BR69: 0 | BS69: 0 | BT69: 0 | BU69: 0 | BV69: 0 | BW69: 0 | BX69: 0 | BY69: 0 | BZ69: 0 | CA69: 0 | CB69: 0 | CC69: 0 | CD69: 0 | CE69: 0 | CF69: 0 | CG69: 0 | CH69: 0 | CI69: 0
A70: =A69+1 -> 2000 | C70: =SUMIFS(CY_Report!$W:$W,CY_Report!$J:$J,$A70,CY_Report!$E:$E,MID(CELL("filename",$A$1),FIND("]",CELL("filename",$A$1))+1,255),CY_Report!$U:$U,"<>*d*",CY_Report!$U:$U,"<>*t*",CY_Report!$N:$N,"<>"&" 00 00") -> 0 | D70: 0 | E70: =SUMIFS(Forecast!D:D,Forecast!$C:$C,$A70,Forecast!$B:$B,MID(CELL("filename",$A$1),FIND("]",CELL("filename",$A$1))+1,255)) -> 0 | F70: =SUMIFS(Forecast!E:E,Forecast!$C:$C,$A70,Forecast!$B:$B,MID(CELL("filename",$A$1),FIND("]",CELL("filename",$A$1))+1,255)) -> 0 | G70: =SUMIFS(Forecast!F:F,Forecast!$C:$C,$A70,Forecast!$B:$B,MID(CELL("filename",$A$1),FIND("]",CELL("filename",$A$1))+1,255)) -> 0 | H70: =SUMIFS(Forecast!G:G,Forecast!$C:$C,$A70,Forecast!$B:$B,MID(CELL("filename",$A$1),FIND("]",CELL("filename",$A$1))+1,255)) -> 0 | I70: =SUMIFS(Forecast!H:H,Forecast!$C:$C,$A70,Forecast!$B:$B,MID(CELL("filename",$A$1),FIND("]",CELL("filename",$A$1))+1,255)) -> 0 | J70: =SUMIFS(Forecast!I:I,Forecast!$C:$C,$A70,Forecast!$B:$B,MID(CELL("filename",$A$1),FIND("]",CELL("filename",$A$1))+1,255)) -> 0 | K70: =SUMIFS(Forecast!J:J,Forecast!$C:$C,$A70,Forecast!$B:$B,MID(CELL("filename",$A$1),FIND("]",CELL("filename",$A$1))+1,255)) -> 0 | L70: =SUMIFS(Forecast!K:K,Forecast!$C:$C,$A70,Forecast!$B:$B,MID(CELL("filename",$A$1),FIND("]",CELL("filename",$A$1))+1,255)) -> 0 | M70: =SUMIFS(Forecast!L:L,Forecast!$C:$C,$A70,Forecast!$B:$B,MID(CELL("filename",$A$1),FIND("]",CELL("filename",$A$1))+1,255)) -> 0 | N70: =SUMIFS(Forecast!M:M,Forecast!$C:$C,$A70,Forecast!$B:$B,MID(CELL("filename",$A$1),FIND("]",CELL("filename",$A$1))+1,255)) -> 0 | O70: =SUMIFS(Forecast!N:N,Forecast!$C:$C,$A70,Forecast!$B:$B,MID(CELL("filename",$A$1),FIND("]",CELL("filename",$A$1))+1,255)) -> 0 | P70: =SUMIFS(Forecast!O:O,Forecast!$C:$C,$A70,Forecast!$B:$B,MID(CELL("filename",$A$1),FIND("]",CELL("filename",$A$1))+1,255)) -> 0 | Q70: =SUMIFS(Forecast!P:P,Forecast!$C:$C,$A70,Forecast!$B:$B,MID(CELL("filename",$A$1),FIND("]",CELL("filename",$A$1))+1,255)) -> 0 | R70: =SUMIFS(Forecast!Q:Q,Forecast!$C:$C,$A70,Forecast!$B:$B,MID(CELL("filename",$A$1),FIND("]",CELL("filename",$A$1))+1,255)) -> 0 | S70: =SUMIFS(Forecast!R:R,Forecast!$C:$C,$A70,Forecast!$B:$B,MID(CELL("filename",$A$1),FIND("]",CELL("filename",$A$1))+1,255)) -> 0 | T70: =SUMIFS(Forecast!S:S,Forecast!$C:$C,$A70,Forecast!$B:$B,MID(CELL("filename",$A$1),FIND("]",CELL("filename",$A$1))+1,255)) -> 0 | U70: =SUMIFS(Forecast!T:T,Forecast!$C:$C,$A70,Forecast!$B:$B,MID(CELL("filename",$A$1),FIND("]",CELL("filename",$A$1))+1,255)) -> 0 | V70: =SUMIFS(Forecast!U:U,Forecast!$C:$C,$A70,Forecast!$B:$B,MID(CELL("filename",$A$1),FIND("]",CELL("filename",$A$1))+1,255)) -> 0 | W70: =SUMIFS(Forecast!V:V,Forecast!$C:$C,$A70,Forecast!$B:$B,MID(CELL("filename",$A$1),FIND("]",CELL("filename",$A$1))+1,255)) -> 0 | X70: =SUMIFS(Forecast!W:W,Forecast!$C:$C,$A70,Forecast!$B:$B,MID(CELL("filename",$A$1),FIND("]",CELL("filename",$A$1))+1,255)) -> 0 | Y70: =SUMIFS(Forecast!X:X,Forecast!$C:$C,$A70,Forecast!$B:$B,MID(CELL("filename",$A$1),FIND("]",CELL("filename",$A$1))+1,255)) -> 0 | Z70: =SUMIFS(Forecast!Y:Y,Forecast!$C:$C,$A70,Forecast!$B:$B,MID(CELL("filename",$A$1),FIND("]",CELL("filename",$A$1))+1,255)) -> 0 | AA70: =SUMIFS(Forecast!Z:Z,Forecast!$C:$C,$A70,Forecast!$B:$B,MID(CELL("filename",$A$1),FIND("]",CELL("filename",$A$1))+1,255)) -> 0 | AB70: =SUMIFS(Forecast!AA:AA,Forecast!$C:$C,$A70,Forecast!$B:$B,MID(CELL("filename",$A$1),FIND("]",CELL("filename",$A$1))+1,255)) -> 0 | AC70: =SUMIFS(Forecast!AB:AB,Forecast!$C:$C,$A70,Forecast!$B:$B,MID(CELL("filename",$A$1),FIND("]",CELL("filename",$A$1))+1,255)) -> 0 | AD70: =SUMIFS(Forecast!AC:AC,Forecast!$C:$C,$A70,Forecast!$B:$B,MID(CELL("filename",$A$1),FIND("]",CELL("filename",$A$1))+1,255)) -> 0 | AE70: =SUMIFS(Forecast!AD:AD,Forecast!$C:$C,$A70,Forecast!$B:$B,MID(CELL("filename",$A$1),FIND("]",CELL("filename",$A$1))+1,255)) -> 0 | AF70: =SUMIFS(Forecast!AE:AE,Forecast!$C:$C,$A70,Forecast!$B:$B,MID(CELL("filename",$A$1),FIND("]",CELL("filename",$A$1))+1,255)) -> 0 | AG70: =SUMIFS(Forecast!AF:AF,Forecast!$C:$C,$A70,Forecast!$B:$B,MID(CELL("filename",$A$1),FIND("]",CELL("filename",$A$1))+1,255)) -> 0 | AH70: =SUMIFS(Forecast!AG:AG,Forecast!$C:$C,$A70,Forecast!$B:$B,MID(CELL("filename",$A$1),FIND("]",CELL("filename",$A$1))+1,255)) -> 0 | AI70: =SUMIFS(Forecast!AH:AH,Forecast!$C:$C,$A70,Forecast!$B:$B,MID(CELL("filename",$A$1),FIND("]",CELL("filename",$A$1))+1,255)) -> 0 | AJ70: =SUMIFS(Forecast!AI:AI,Forecast!$C:$C,$A70,Forecast!$B:$B,MID(CELL("filename",$A$1),FIND("]",CELL("filename",$A$1))+1,255)) -> 0 | AK70: =SUMIFS(Forecast!AJ:AJ,Forecast!$C:$C,$A70,Forecast!$B:$B,MID(CELL("filename",$A$1),FIND("]",CELL("filename",$A$1))+1,255)) -> 0 | AL70: =SUMIFS(Forecast!AK:AK,Forecast!$C:$C,$A70,Forecast!$B:$B,MID(CELL("filename",$A$1),FIND("]",CELL("filename",$A$1))+1,255)) -> 0 | AM70: =SUMIFS(Forecast!AL:AL,Forecast!$C:$C,$A70,Forecast!$B:$B,MID(CELL("filename",$A$1),FIND("]",CELL("filename",$A$1))+1,255)) -> 0 | AN70: =SUMIFS(Forecast!AM:AM,Forecast!$C:$C,$A70,Forecast!$B:$B,MID(CELL("filename",$A$1),FIND("]",CELL("filename",$A$1))+1,255)) -> 0 | AO70: =SUMIFS(Forecast!AN:AN,Forecast!$C:$C,$A70,Forecast!$B:$B,MID(CELL("filename",$A$1),FIND("]",CELL("filename",$A$1))+1,255)) -> 0 | AP70: =SUMIFS(Forecast!AO:AO,Forecast!$C:$C,$A70,Forecast!$B:$B,MID(CELL("filename",$A$1),FIND("]",CELL("filename",$A$1))+1,255)) -> 0 | AQ70: =SUMIFS(Forecast!AP:AP,Forecast!$C:$C,$A70,Forecast!$B:$B,MID(CELL("filename",$A$1),FIND("]",CELL("filename",$A$1))+1,255)) -> 0 | AR70: =SUMIFS(Forecast!AQ:AQ,Forecast!$C:$C,$A70,Forecast!$B:$B,MID(CELL("filename",$A$1),FIND("]",CELL("filename",$A$1))+1,255)) -> 0 | AS70: =SUMIFS(Forecast!AR:AR,Forecast!$C:$C,$A70,Forecast!$B:$B,MID(CELL("filename",$A$1),FIND("]",CELL("filename",$A$1))+1,255)) -> 0 | AT70: =SUMIFS(Forecast!AS:AS,Forecast!$C:$C,$A70,Forecast!$B:$B,MID(CELL("filename",$A$1),FIND("]",CELL("filename",$A$1))+1,255)) -> 0 | AU70: =SUMIFS(Forecast!AT:AT,Forecast!$C:$C,$A70,Forecast!$B:$B,MID(CELL("filename",$A$1),FIND("]",CELL("filename",$A$1))+1,255)) -> 0 | AV70: =SUMIFS(Forecast!AU:AU,Forecast!$C:$C,$A70,Forecast!$B:$B,MID(CELL("filename",$A$1),FIND("]",CELL("filename",$A$1))+1,255)) -> 0 | AW70: =SUMIFS(Forecast!AV:AV,Forecast!$C:$C,$A70,Forecast!$B:$B,MID(CELL("filename",$A$1),FIND("]",CELL("filename",$A$1))+1,255)) -> 0 | AX70: =SUMIFS(Forecast!AW:AW,Forecast!$C:$C,$A70,Forecast!$B:$B,MID(CELL("filename",$A$1),FIND("]",CELL("filename",$A$1))+1,255)) -> 0 | AY70: =SUMIFS(Forecast!AX:AX,Forecast!$C:$C,$A70,Forecast!$B:$B,MID(CELL("filename",$A$1),FIND("]",CELL("filename",$A$1))+1,255)) -> 0 | AZ70: 0 | BA70: 0 | BB70: 0 | BC70: 0 | BD70: 0 | BE70: 0 | BF70: 0 | BG70: 0 | BH70: 0 | BI70: 0 | BJ70: 0 | BK70: 0 | BL70: 0 | BM70: 0 | BN70: 0 | BO70: 0 | BP70: 0 | BQ70: 0 | BR70: 0 | BS70: 0 | BT70: 0 | BU70: 0 | BV70: 0 | BW70: 0 | BX70: 0 | BY70: 0 | BZ70: 0 | CA70: 0 | CB70: 0 | CC70: 0 | CD70: 0 | CE70: 0 | CF70: 0 | CG70: 0 | CH70: 0 | CI70: 0
A71: =A70+1 -> 2001 | C71: =SUMIFS(CY_Report!$W:$W,CY_Report!$J:$J,$A71,CY_Report!$E:$E,MID(CELL("filename",$A$1),FIND("]",CELL("filename",$A$1))+1,255),CY_Report!$U:$U,"<>*d*",CY_Report!$U:$U,"<>*t*",CY_Report!$N:$N,"<>"&" 00 00") -> 0 | D71: 0 | E71: =SUMIFS(Forecast!D:D,Forecast!$C:$C,$A71,Forecast!$B:$B,MID(CELL("filename",$A$1),FIND("]",CELL("filename",$A$1))+1,255)) -> 0 | F71: =SUMIFS(Forecast!E:E,Forecast!$C:$C,$A71,Forecast!$B:$B,MID(CELL("filename",$A$1),FIND("]",CELL("filename",$A$1))+1,255)) -> 0 | G71: =SUMIFS(Forecast!F:F,Forecast!$C:$C,$A71,Forecast!$B:$B,MID(CELL("filename",$A$1),FIND("]",CELL("filename",$A$1))+1,255)) -> 0 | H71: =SUMIFS(Forecast!G:G,Forecast!$C:$C,$A71,Forecast!$B:$B,MID(CELL("filename",$A$1),FIND("]",CELL("filename",$A$1))+1,255)) -> 0 | I71: =SUMIFS(Forecast!H:H,Forecast!$C:$C,$A71,Forecast!$B:$B,MID(CELL("filename",$A$1),FIND("]",CELL("filename",$A$1))+1,255)) -> 0 | J71: =SUMIFS(Forecast!I:I,Forecast!$C:$C,$A71,Forecast!$B:$B,MID(CELL("filename",$A$1),FIND("]",CELL("filename",$A$1))+1,255)) -> 0 | K71: =SUMIFS(Forecast!J:J,Forecast!$C:$C,$A71,Forecast!$B:$B,MID(CELL("filename",$A$1),FIND("]",CELL("filename",$A$1))+1,255)) -> 0 | L71: =SUMIFS(Forecast!K:K,Forecast!$C:$C,$A71,Forecast!$B:$B,MID(CELL("filename",$A$1),FIND("]",CELL("filename",$A$1))+1,255)) -> 0 | M71: =SUMIFS(Forecast!L:L,Forecast!$C:$C,$A71,Forecast!$B:$B,MID(CELL("filename",$A$1),FIND("]",CELL("filename",$A$1))+1,255)) -> 0 | N71: =SUMIFS(Forecast!M:M,Forecast!$C:$C,$A71,Forecast!$B:$B,MID(CELL("filename",$A$1),FIND("]",CELL("filename",$A$1))+1,255)) -> 0 | O71: =SUMIFS(Forecast!N:N,Forecast!$C:$C,$A71,Forecast!$B:$B,MID(CELL("filename",$A$1),FIND("]",CELL("filename",$A$1))+1,255)) -> 0 | P71: =SUMIFS(Forecast!O:O,Forecast!$C:$C,$A71,Forecast!$B:$B,MID(CELL("filename",$A$1),FIND("]",CELL("filename",$A$1))+1,255)) -> 0 | Q71: =SUMIFS(Forecast!P:P,Forecast!$C:$C,$A71,Forecast!$B:$B,MID(CELL("filename",$A$1),FIND("]",CELL("filename",$A$1))+1,255)) -> 0 | R71: =SUMIFS(Forecast!Q:Q,Forecast!$C:$C,$A71,Forecast!$B:$B,MID(CELL("filename",$A$1),FIND("]",CELL("filename",$A$1))+1,255)) -> 0 | S71: =SUMIFS(Forecast!R:R,Forecast!$C:$C,$A71,Forecast!$B:$B,MID(CELL("filename",$A$1),FIND("]",CELL("filename",$A$1))+1,255)) -> 0 | T71: =SUMIFS(Forecast!S:S,Forecast!$C:$C,$A71,Forecast!$B:$B,MID(CELL("filename",$A$1),FIND("]",CELL("filename",$A$1))+1,255)) -> 0 | U71: =SUMIFS(Forecast!T:T,Forecast!$C:$C,$A71,Forecast!$B:$B,MID(CELL("filename",$A$1),FIND("]",CELL("filename",$A$1))+1,255)) -> 0 | V71: =SUMIFS(Forecast!U:U,Forecast!$C:$C,$A71,Forecast!$B:$B,MID(CELL("filename",$A$1),FIND("]",CELL("filename",$A$1))+1,255)) -> 0 | W71: =SUMIFS(Forecast!V:V,Forecast!$C:$C,$A71,Forecast!$B:$B,MID(CELL("filename",$A$1),FIND("]",CELL("filename",$A$1))+1,255)) -> 0 | X71: =SUMIFS(Forecast!W:W,Forecast!$C:$C,$A71,Forecast!$B:$B,MID(CELL("filename",$A$1),FIND("]",CELL("filename",$A$1))+1,255)) -> 0 | Y71: =SUMIFS(Forecast!X:X,Forecast!$C:$C,$A71,Forecast!$B:$B,MID(CELL("filename",$A$1),FIND("]",CELL("filename",$A$1))+1,255)) -> 0 | Z71: =SUMIFS(Forecast!Y:Y,Forecast!$C:$C,$A71,Forecast!$B:$B,MID(CELL("filename",$A$1),FIND("]",CELL("filename",$A$1))+1,255)) -> 0 | AA71: =SUMIFS(Forecast!Z:Z,Forecast!$C:$C,$A71,Forecast!$B:$B,MID(CELL("filename",$A$1),FIND("]",CELL("filename",$A$1))+1,255)) -> 0 | AB71: =SUMIFS(Forecast!AA:AA,Forecast!$C:$C,$A71,Forecast!$B:$B,MID(CELL("filename",$A$1),FIND("]",CELL("filename",$A$1))+1,255)) -> 0 | AC71: =SUMIFS(Forecast!AB:AB,Forecast!$C:$C,$A71,Forecast!$B:$B,MID(CELL("filename",$A$1),FIND("]",CELL("filename",$A$1))+1,255)) -> 0 | AD71: =SUMIFS(Forecast!AC:AC,Forecast!$C:$C,$A71,Forecast!$B:$B,MID(CELL("filename",$A$1),FIND("]",CELL("filename",$A$1))+1,255)) -> 0 | AE71: =SUMIFS(Forecast!AD:AD,Forecast!$C:$C,$A71,Forecast!$B:$B,MID(CELL("filename",$A$1),FIND("]",CELL("filename",$A$1))+1,255)) -> 0 | AF71: =SUMIFS(Forecast!AE:AE,Forecast!$C:$C,$A71,Forecast!$B:$B,MID(CELL("filename",$A$1),FIND("]",CELL("filename",$A$1))+1,255)) -> 0 | AG71: =SUMIFS(Forecast!AF:AF,Forecast!$C:$C,$A71,Forecast!$B:$B,MID(CELL("filename",$A$1),FIND("]",CELL("filename",$A$1))+1,255)) -> 0 | AH71: =SUMIFS(Forecast!AG:AG,Forecast!$C:$C,$A71,Forecast!$B:$B,MID(CELL("filename",$A$1),FIND("]",CELL("filename",$A$1))+1,255)) -> 0 | AI71: =SUMIFS(Forecast!AH:AH,Forecast!$C:$C,$A71,Forecast!$B:$B,MID(CELL("filename",$A$1),FIND("]",CELL("filename",$A$1))+1,255)) -> 0 | AJ71: =SUMIFS(Forecast!AI:AI,Forecast!$C:$C,$A71,Forecast!$B:$B,MID(CELL("filename",$A$1),FIND("]",CELL("filename",$A$1))+1,255)) -> 0 | AK71: =SUMIFS(Forecast!AJ:AJ,Forecast!$C:$C,$A71,Forecast!$B:$B,MID(CELL("filename",$A$1),FIND("]",CELL("filename",$A$1))+1,255)) -> 0 | AL71: =SUMIFS(Forecast!AK:AK,Forecast!$C:$C,$A71,Forecast!$B:$B,MID(CELL("filename",$A$1),FIND("]",CELL("filename",$A$1))+1,255)) -> 0 | AM71: =SUMIFS(Forecast!AL:AL,Forecast!$C:$C,$A71,Forecast!$B:$B,MID(CELL("filename",$A$1),FIND("]",CELL("filename",$A$1))+1,255)) -> 0 | AN71: =SUMIFS(Forecast!AM:AM,Forecast!$C:$C,$A71,Forecast!$B:$B,MID(CELL("filename",$A$1),FIND("]",CELL("filename",$A$1))+1,255)) -> 0 | AO71: =SUMIFS(Forecast!AN:AN,Forecast!$C:$C,$A71,Forecast!$B:$B,MID(CELL("filename",$A$1),FIND("]",CELL("filename",$A$1))+1,255)) -> 0 | AP71: =SUMIFS(Forecast!AO:AO,Forecast!$C:$C,$A71,Forecast!$B:$B,MID(CELL("filename",$A$1),FIND("]",CELL("filename",$A$1))+1,255)) -> 0 | AQ71: =SUMIFS(Forecast!AP:AP,Forecast!$C:$C,$A71,Forecast!$B:$B,MID(CELL("filename",$A$1),FIND("]",CELL("filename",$A$1))+1,255)) -> 0 | AR71: =SUMIFS(Forecast!AQ:AQ,Forecast!$C:$C,$A71,Forecast!$B:$B,MID(CELL("filename",$A$1),FIND("]",CELL("filename",$A$1))+1,255)) -> 0 | AS71: =SUMIFS(Forecast!AR:AR,Forecast!$C:$C,$A71,Forecast!$B:$B,MID(CELL("filename",$A$1),FIND("]",CELL("filename",$A$1))+1,255)) -> 0 | AT71: =SUMIFS(Forecast!AS:AS,Forecast!$C:$C,$A71,Forecast!$B:$B,MID(CELL("filename",$A$1),FIND("]",CELL("filename",$A$1))+1,255)) -> 0 | AU71: =SUMIFS(Forecast!AT:AT,Forecast!$C:$C,$A71,Forecast!$B:$B,MID(CELL("filename",$A$1),FIND("]",CELL("filename",$A$1))+1,255)) -> 0 | AV71: =SUMIFS(Forecast!AU:AU,Forecast!$C:$C,$A71,Forecast!$B:$B,MID(CELL("filename",$A$1),FIND("]",CELL("filename",$A$1))+1,255)) -> 0 | AW71: =SUMIFS(Forecast!AV:AV,Forecast!$C:$C,$A71,Forecast!$B:$B,MID(CELL("filename",$A$1),FIND("]",CELL("filename",$A$1))+1,255)) -> 0 | AX71: =SUMIFS(Forecast!AW:AW,Forecast!$C:$C,$A71,Forecast!$B:$B,MID(CELL("filename",$A$1),FIND("]",CELL("filename",$A$1))+1,255)) -> 0 | AY71: =SUMIFS(Forecast!AX:AX,Forecast!$C:$C,$A71,Forecast!$B:$B,MID(CELL("filename",$A$1),FIND("]",CELL("filename",$A$1))+1,255)) -> 0 | AZ71: 0 | BA71: 0 | BB71: 0 | BC71: 0 | BD71: 0 | BE71: 0 | BF71: 0 | BG71: 0 | BH71: 0 | BI71: 0 | BJ71: 0 | BK71: 0 | BL71: 0 | BM71: 0 | BN71: 0 | BO71: 0 | BP71: 0 | BQ71: 0 | BR71: 0 | BS71: 0 | BT71: 0 | BU71: 0 | BV71: 0 | BW71: 0 | BX71: 0 | BY71: 0 | BZ71: 0 | CA71: 0 | CB71: 0 | CC71: 0 | CD71: 0 | CE71: 0 | CF71: 0 | CG71: 0 | CH71: 0 | CI71: 0
A72: 2002 | C72: =SUMIFS(CY_Report!$W:$W,CY_Report!$J:$J,$A72,CY_Report!$E:$E,MID(CELL("filename",$A$1),FIND("]",CELL("filename",$A$1))+1,255),CY_Report!$U:$U,"<>*d*",CY_Report!$U:$U,"<>*t*",CY_Report!$N:$N,"<>"&" 00 00") -> 0 | D72: 0 | E72: =SUMIFS(Forecast!D:D,Forecast!$C:$C,$A72,Forecast!$B:$B,MID(CELL("filename",$A$1),FIND("]",CELL("filename",$A$1))+1,255)) -> 0 | F72: =SUMIFS(Forecast!E:E,Forecast!$C:$C,$A72,Forecast!$B:$B,MID(CELL("filename",$A$1),FIND("]",CELL("filename",$A$1))+1,255)) -> 0 | G72: =SUMIFS(Forecast!F:F,Forecast!$C:$C,$A72,Forecast!$B:$B,MID(CELL("filename",$A$1),FIND("]",CELL("filename",$A$1))+1,255)) -> 0 | H72: =SUMIFS(Forecast!G:G,Forecast!$C:$C,$A72,Forecast!$B:$B,MID(CELL("filename",$A$1),FIND("]",CELL("filename",$A$1))+1,255)) -> 0 | I72: =SUMIFS(Forecast!H:H,Forecast!$C:$C,$A72,Forecast!$B:$B,MID(CELL("filename",$A$1),FIND("]",CELL("filename",$A$1))+1,255)) -> 0 | J72: =SUMIFS(Forecast!I:I,Forecast!$C:$C,$A72,Forecast!$B:$B,MID(CELL("filename",$A$1),FIND("]",CELL("filename",$A$1))+1,255)) -> 0 | K72: =SUMIFS(Forecast!J:J,Forecast!$C:$C,$A72,Forecast!$B:$B,MID(CELL("filename",$A$1),FIND("]",CELL("filename",$A$1))+1,255)) -> 0 | L72: =SUMIFS(Forecast!K:K,Forecast!$C:$C,$A72,Forecast!$B:$B,MID(CELL("filename",$A$1),FIND("]",CELL("filename",$A$1))+1,255)) -> 0 | M72: =SUMIFS(Forecast!L:L,Forecast!$C:$C,$A72,Forecast!$B:$B,MID(CELL("filename",$A$1),FIND("]",CELL("filename",$A$1))+1,255)) -> 0 | N72: =SUMIFS(Forecast!M:M,Forecast!$C:$C,$A72,Forecast!$B:$B,MID(CELL("filename",$A$1),FIND("]",CELL("filename",$A$1))+1,255)) -> 0 | O72: =SUMIFS(Forecast!N:N,Forecast!$C:$C,$A72,Forecast!$B:$B,MID(CELL("filename",$A$1),FIND("]",CELL("filename",$A$1))+1,255)) -> 0 | P72: =SUMIFS(Forecast!O:O,Forecast!$C:$C,$A72,Forecast!$B:$B,MID(CELL("filename",$A$1),FIND("]",CELL("filename",$A$1))+1,255)) -> 0 | Q72: =SUMIFS(Forecast!P:P,Forecast!$C:$C,$A72,Forecast!$B:$B,MID(CELL("filename",$A$1),FIND("]",CELL("filename",$A$1))+1,255)) -> 0 | R72: =SUMIFS(Forecast!Q:Q,Forecast!$C:$C,$A72,Forecast!$B:$B,MID(CELL("filename",$A$1),FIND("]",CELL("filename",$A$1))+1,255)) -> 0 | S72: =SUMIFS(Forecast!R:R,Forecast!$C:$C,$A72,Forecast!$B:$B,MID(CELL("filename",$A$1),FIND("]",CELL("filename",$A$1))+1,255)) -> 0 | T72: =SUMIFS(Forecast!S:S,Forecast!$C:$C,$A72,Forecast!$B:$B,MID(CELL("filename",$A$1),FIND("]",CELL("filename",$A$1))+1,255)) -> 0 | U72: =SUMIFS(Forecast!T:T,Forecast!$C:$C,$A72,Forecast!$B:$B,MID(CELL("filename",$A$1),FIND("]",CELL("filename",$A$1))+1,255)) -> 0 | V72: =SUMIFS(Forecast!U:U,Forecast!$C:$C,$A72,Forecast!$B:$B,MID(CELL("filename",$A$1),FIND("]",CELL("filename",$A$1))+1,255)) -> 0 | W72: =SUMIFS(Forecast!V:V,Forecast!$C:$C,$A72,Forecast!$B:$B,MID(CELL("filename",$A$1),FIND("]",CELL("filename",$A$1))+1,255)) -> 0 | X72: =SUMIFS(Forecast!W:W,Forecast!$C:$C,$A72,Forecast!$B:$B,MID(CELL("filename",$A$1),FIND("]",CELL("filename",$A$1))+1,255)) -> 0 | Y72: =SUMIFS(Forecast!X:X,Forecast!$C:$C,$A72,Forecast!$B:$B,MID(CELL("filename",$A$1),FIND("]",CELL("filename",$A$1))+1,255)) -> 0 | Z72: =SUMIFS(Forecast!Y:Y,Forecast!$C:$C,$A72,Forecast!$B:$B,MID(CELL("filename",$A$1),FIND("]",CELL("filename",$A$1))+1,255)) -> 0 | AA72: =SUMIFS(Forecast!Z:Z,Forecast!$C:$C,$A72,Forecast!$B:$B,MID(CELL("filename",$A$1),FIND("]",CELL("filename",$A$1))+1,255)) -> 0 | AB72: =SUMIFS(Forecast!AA:AA,Forecast!$C:$C,$A72,Forecast!$B:$B,MID(CELL("filename",$A$1),FIND("]",CELL("filename",$A$1))+1,255)) -> 0 | AC72: =SUMIFS(Forecast!AB:AB,Forecast!$C:$C,$A72,Forecast!$B:$B,MID(CELL("filename",$A$1),FIND("]",CELL("filename",$A$1))+1,255)) -> 0 | AD72: =SUMIFS(Forecast!AC:AC,Forecast!$C:$C,$A72,Forecast!$B:$B,MID(CELL("filename",$A$1),FIND("]",CELL("filename",$A$1))+1,255)) -> 0 | AE72: =SUMIFS(Forecast!AD:AD,Forecast!$C:$C,$A72,Forecast!$B:$B,MID(CELL("filename",$A$1),FIND("]",CELL("filename",$A$1))+1,255)) -> 0 | AF72: =SUMIFS(Forecast!AE:AE,Forecast!$C:$C,$A72,Forecast!$B:$B,MID(CELL("filename",$A$1),FIND("]",CELL("filename",$A$1))+1,255)) -> 0 | AG72: =SUMIFS(Forecast!AF:AF,Forecast!$C:$C,$A72,Forecast!$B:$B,MID(CELL("filename",$A$1),FIND("]",CELL("filename",$A$1))+1,255)) -> 0 | AH72: =SUMIFS(Forecast!AG:AG,Forecast!$C:$C,$A72,Forecast!$B:$B,MID(CELL("filename",$A$1),FIND("]",CELL("filename",$A$1))+1,255)) -> 0 | AI72: =SUMIFS(Forecast!AH:AH,Forecast!$C:$C,$A72,Forecast!$B:$B,MID(CELL("filename",$A$1),FIND("]",CELL("filename",$A$1))+1,255)) -> 0 | AJ72: =SUMIFS(Forecast!AI:AI,Forecast!$C:$C,$A72,Forecast!$B:$B,MID(CELL("filename",$A$1),FIND("]",CELL("filename",$A$1))+1,255)) -> 0 | AK72: =SUMIFS(Forecast!AJ:AJ,Forecast!$C:$C,$A72,Forecast!$B:$B,MID(CELL("filename",$A$1),FIND("]",CELL("filename",$A$1))+1,255)) -> 0 | AL72: =SUMIFS(Forecast!AK:AK,Forecast!$C:$C,$A72,Forecast!$B:$B,MID(CELL("filename",$A$1),FIND("]",CELL("filename",$A$1))+1,255)) -> 0 | AM72: =SUMIFS(Forecast!AL:AL,Forecast!$C:$C,$A72,Forecast!$B:$B,MID(CELL("filename",$A$1),FIND("]",CELL("filename",$A$1))+1,255)) -> 0 | AN72: =SUMIFS(Forecast!AM:AM,Forecast!$C:$C,$A72,Forecast!$B:$B,MID(CELL("filename",$A$1),FIND("]",CELL("filename",$A$1))+1,255)) -> 0 | AO72: =SUMIFS(Forecast!AN:AN,Forecast!$C:$C,$A72,Forecast!$B:$B,MID(CELL("filename",$A$1),FIND("]",CELL("filename",$A$1))+1,255)) -> 0 | AP72: =SUMIFS(Forecast!AO:AO,Forecast!$C:$C,$A72,Forecast!$B:$B,MID(CELL("filename",$A$1),FIND("]",CELL("filename",$A$1))+1,255)) -> 0 | AQ72: =SUMIFS(Forecast!AP:AP,Forecast!$C:$C,$A72,Forecast!$B:$B,MID(CELL("filename",$A$1),FIND("]",CELL("filename",$A$1))+1,255)) -> 0 | AR72: =SUMIFS(Forecast!AQ:AQ,Forecast!$C:$C,$A72,Forecast!$B:$B,MID(CELL("filename",$A$1),FIND("]",CELL("filename",$A$1))+1,255)) -> 0 | AS72: =SUMIFS(Forecast!AR:AR,Forecast!$C:$C,$A72,Forecast!$B:$B,MID(CELL("filename",$A$1),FIND("]",CELL("filename",$A$1))+1,255)) -> 0 | AT72: =SUMIFS(Forecast!AS:AS,Forecast!$C:$C,$A72,Forecast!$B:$B,MID(CELL("filename",$A$1),FIND("]",CELL("filename",$A$1))+1,255)) -> 0 | AU72: =SUMIFS(Forecast!AT:AT,Forecast!$C:$C,$A72,Forecast!$B:$B,MID(CELL("filename",$A$1),FIND("]",CELL("filename",$A$1))+1,255)) -> 0 | AV72: =SUMIFS(Forecast!AU:AU,Forecast!$C:$C,$A72,Forecast!$B:$B,MID(CELL("filename",$A$1),FIND("]",CELL("filename",$A$1))+1,255)) -> 0 | AW72: =SUMIFS(Forecast!AV:AV,Forecast!$C:$C,$A72,Forecast!$B:$B,MID(CELL("filename",$A$1),FIND("]",CELL("filename",$A$1))+1,255)) -> 0 | AX72: =SUMIFS(Forecast!AW:AW,Forecast!$C:$C,$A72,Forecast!$B:$B,MID(CELL("filename",$A$1),FIND("]",CELL("filename",$A$1))+1,255)) -> 0 | AY72: =SUMIFS(Forecast!AX:AX,Forecast!$C:$C,$A72,Forecast!$B:$B,MID(CELL("filename",$A$1),FIND("]",CELL("filename",$A$1))+1,255)) -> 0 | AZ72: 0 | BA72: 0 | BB72: 0 | BC72: 0 | BD72: 0 | BE72: 0 | BF72: 0 | BG72: 0 | BH72: 0 | BI72: 0 | BJ72: 0 | BK72: 0 | BL72: 0 | BM72: 0 | BN72: 0 | BO72: 0 | BP72: 0 | BQ72: 0 | BR72: 0 | BS72: 0 | BT72: 0 | BU72: 0 | BV72: 0 | BW72: 0 | BX72: 0 | BY72: 0 | BZ72: 0 | CA72: 0 | CB72: 0 | CC72: 0 | CD72: 0 | CE72: 0 | CF72: 0 | CG72: 0 | CH72: 0 | CI72: 0
A73: 2003 | C73: =SUMIFS(CY_Report!$W:$W,CY_Report!$J:$J,$A73,CY_Report!$E:$E,MID(CELL("filename",$A$1),FIND("]",CELL("filename",$A$1))+1,255),CY_Report!$U:$U,"<>*d*",CY_Report!$U:$U,"<>*t*",CY_Report!$N:$N,"<>"&" 00 00") -> 0 | D73: 0 | E73: =SUMIFS(Forecast!D:D,Forecast!$C:$C,$A73,Forecast!$B:$B,MID(CELL("filename",$A$1),FIND("]",CELL("filename",$A$1))+1,255)) -> 0 | F73: =SUMIFS(Forecast!E:E,Forecast!$C:$C,$A73,Forecast!$B:$B,MID(CELL("filename",$A$1),FIND("]",CELL("filename",$A$1))+1,255)) -> 0 | G73: =SUMIFS(Forecast!F:F,Forecast!$C:$C,$A73,Forecast!$B:$B,MID(CELL("filename",$A$1),FIND("]",CELL("filename",$A$1))+1,255)) -> 0 | H73: =SUMIFS(Forecast!G:G,Forecast!$C:$C,$A73,Forecast!$B:$B,MID(CELL("filename",$A$1),FIND("]",CELL("filename",$A$1))+1,255)) -> 0 | I73: =SUMIFS(Forecast!H:H,Forecast!$C:$C,$A73,Forecast!$B:$B,MID(CELL("filename",$A$1),FIND("]",CELL("filename",$A$1))+1,255)) -> 0 | J73: =SUMIFS(Forecast!I:I,Forecast!$C:$C,$A73,Forecast!$B:$B,MID(CELL("filename",$A$1),FIND("]",CELL("filename",$A$1))+1,255)) -> 0 | K73: =SUMIFS(Forecast!J:J,Forecast!$C:$C,$A73,Forecast!$B:$B,MID(CELL("filename",$A$1),FIND("]",CELL("filename",$A$1))+1,255)) -> 0 | L73: =SUMIFS(Forecast!K:K,Forecast!$C:$C,$A73,Forecast!$B:$B,MID(CELL("filename",$A$1),FIND("]",CELL("filename",$A$1))+1,255)) -> 0 | M73: =SUMIFS(Forecast!L:L,Forecast!$C:$C,$A73,Forecast!$B:$B,MID(CELL("filename",$A$1),FIND("]",CELL("filename",$A$1))+1,255)) -> 0 | N73: =SUMIFS(Forecast!M:M,Forecast!$C:$C,$A73,Forecast!$B:$B,MID(CELL("filename",$A$1),FIND("]",CELL("filename",$A$1))+1,255)) -> 0 | O73: =SUMIFS(Forecast!N:N,Forecast!$C:$C,$A73,Forecast!$B:$B,MID(CELL("filename",$A$1),FIND("]",CELL("filename",$A$1))+1,255)) -> 0 | P73: =SUMIFS(Forecast!O:O,Forecast!$C:$C,$A73,Forecast!$B:$B,MID(CELL("filename",$A$1),FIND("]",CELL("filename",$A$1))+1,255)) -> 0 | Q73: =SUMIFS(Forecast!P:P,Forecast!$C:$C,$A73,Forecast!$B:$B,MID(CELL("filename",$A$1),FIND("]",CELL("filename",$A$1))+1,255)) -> 0 | R73: =SUMIFS(Forecast!Q:Q,Forecast!$C:$C,$A73,Forecast!$B:$B,MID(CELL("filename",$A$1),FIND("]",CELL("filename",$A$1))+1,255)) -> 0 | S73: =SUMIFS(Forecast!R:R,Forecast!$C:$C,$A73,Forecast!$B:$B,MID(CELL("filename",$A$1),FIND("]",CELL("filename",$A$1))+1,255)) -> 0 | T73: =SUMIFS(Forecast!S:S,Forecast!$C:$C,$A73,Forecast!$B:$B,MID(CELL("filename",$A$1),FIND("]",CELL("filename",$A$1))+1,255)) -> 0 | U73: =SUMIFS(Forecast!T:T,Forecast!$C:$C,$A73,Forecast!$B:$B,MID(CELL("filename",$A$1),FIND("]",CELL("filename",$A$1))+1,255)) -> 0 | V73: =SUMIFS(Forecast!U:U,Forecast!$C:$C,$A73,Forecast!$B:$B,MID(CELL("filename",$A$1),FIND("]",CELL("filename",$A$1))+1,255)) -> 0 | W73: =SUMIFS(Forecast!V:V,Forecast!$C:$C,$A73,Forecast!$B:$B,MID(CELL("filename",$A$1),FIND("]",CELL("filename",$A$1))+1,255)) -> 0 | X73: =SUMIFS(Forecast!W:W,Forecast!$C:$C,$A73,Forecast!$B:$B,MID(CELL("filename",$A$1),FIND("]",CELL("filename",$A$1))+1,255)) -> 0 | Y73: =SUMIFS(Forecast!X:X,Forecast!$C:$C,$A73,Forecast!$B:$B,MID(CELL("filename",$A$1),FIND("]",CELL("filename",$A$1))+1,255)) -> 0 | Z73: =SUMIFS(Forecast!Y:Y,Forecast!$C:$C,$A73,Forecast!$B:$B,MID(CELL("filename",$A$1),FIND("]",CELL("filename",$A$1))+1,255)) -> 0 | AA73: =SUMIFS(Forecast!Z:Z,Forecast!$C:$C,$A73,Forecast!$B:$B,MID(CELL("filename",$A$1),FIND("]",CELL("filename",$A$1))+1,255)) -> 0 | AB73: =SUMIFS(Forecast!AA:AA,Forecast!$C:$C,$A73,Forecast!$B:$B,MID(CELL("filename",$A$1),FIND("]",CELL("filename",$A$1))+1,255)) -> 0 | AC73: =SUMIFS(Forecast!AB:AB,Forecast!$C:$C,$A73,Forecast!$B:$B,MID(CELL("filename",$A$1),FIND("]",CELL("filename",$A$1))+1,255)) -> 0 | AD73: =SUMIFS(Forecast!AC:AC,Forecast!$C:$C,$A73,Forecast!$B:$B,MID(CELL("filename",$A$1),FIND("]",CELL("filename",$A$1))+1,255)) -> 0 | AE73: =SUMIFS(Forecast!AD:AD,Forecast!$C:$C,$A73,Forecast!$B:$B,MID(CELL("filename",$A$1),FIND("]",CELL("filename",$A$1))+1,255)) -> 0 | AF73: =SUMIFS(Forecast!AE:AE,Forecast!$C:$C,$A73,Forecast!$B:$B,MID(CELL("filename",$A$1),FIND("]",CELL("filename",$A$1))+1,255)) -> 0 | AG73: =SUMIFS(Forecast!AF:AF,Forecast!$C:$C,$A73,Forecast!$B:$B,MID(CELL("filename",$A$1),FIND("]",CELL("filename",$A$1))+1,255)) -> 0 | AH73: =SUMIFS(Forecast!AG:AG,Forecast!$C:$C,$A73,Forecast!$B:$B,MID(CELL("filename",$A$1),FIND("]",CELL("filename",$A$1))+1,255)) -> 0 | AI73: =SUMIFS(Forecast!AH:AH,Forecast!$C:$C,$A73,Forecast!$B:$B,MID(CELL("filename",$A$1),FIND("]",CELL("filename",$A$1))+1,255)) -> 0 | AJ73: =SUMIFS(Forecast!AI:AI,Forecast!$C:$C,$A73,Forecast!$B:$B,MID(CELL("filename",$A$1),FIND("]",CELL("filename",$A$1))+1,255)) -> 0 | AK73: =SUMIFS(Forecast!AJ:AJ,Forecast!$C:$C,$A73,Forecast!$B:$B,MID(CELL("filename",$A$1),FIND("]",CELL("filename",$A$1))+1,255)) -> 0 | AL73: =SUMIFS(Forecast!AK:AK,Forecast!$C:$C,$A73,Forecast!$B:$B,MID(CELL("filename",$A$1),FIND("]",CELL("filename",$A$1))+1,255)) -> 0 | AM73: =SUMIFS(Forecast!AL:AL,Forecast!$C:$C,$A73,Forecast!$B:$B,MID(CELL("filename",$A$1),FIND("]",CELL("filename",$A$1))+1,255)) -> 0 | AN73: =SUMIFS(Forecast!AM:AM,Forecast!$C:$C,$A73,Forecast!$B:$B,MID(CELL("filename",$A$1),FIND("]",CELL("filename",$A$1))+1,255)) -> 0 | AO73: =SUMIFS(Forecast!AN:AN,Forecast!$C:$C,$A73,Forecast!$B:$B,MID(CELL("filename",$A$1),FIND("]",CELL("filename",$A$1))+1,255)) -> 0 | AP73: =SUMIFS(Forecast!AO:AO,Forecast!$C:$C,$A73,Forecast!$B:$B,MID(CELL("filename",$A$1),FIND("]",CELL("filename",$A$1))+1,255)) -> 0 | AQ73: =SUMIFS(Forecast!AP:AP,Forecast!$C:$C,$A73,Forecast!$B:$B,MID(CELL("filename",$A$1),FIND("]",CELL("filename",$A$1))+1,255)) -> 0 | AR73: =SUMIFS(Forecast!AQ:AQ,Forecast!$C:$C,$A73,Forecast!$B:$B,MID(CELL("filename",$A$1),FIND("]",CELL("filename",$A$1))+1,255)) -> 0 | AS73: =SUMIFS(Forecast!AR:AR,Forecast!$C:$C,$A73,Forecast!$B:$B,MID(CELL("filename",$A$1),FIND("]",CELL("filename",$A$1))+1,255)) -> 0 | AT73: =SUMIFS(Forecast!AS:AS,Forecast!$C:$C,$A73,Forecast!$B:$B,MID(CELL("filename",$A$1),FIND("]",CELL("filename",$A$1))+1,255)) -> 0 | AU73: =SUMIFS(Forecast!AT:AT,Forecast!$C:$C,$A73,Forecast!$B:$B,MID(CELL("filename",$A$1),FIND("]",CELL("filename",$A$1))+1,255)) -> 0 | AV73: =SUMIFS(Forecast!AU:AU,Forecast!$C:$C,$A73,Forecast!$B:$B,MID(CELL("filename",$A$1),FIND("]",CELL("filename",$A$1))+1,255)) -> 0 | AW73: =SUMIFS(Forecast!AV:AV,Forecast!$C:$C,$A73,Forecast!$B:$B,MID(CELL("filename",$A$1),FIND("]",CELL("filename",$A$1))+1,255)) -> 0 | AX73: =SUMIFS(Forecast!AW:AW,Forecast!$C:$C,$A73,Forecast!$B:$B,MID(CELL("filename",$A$1),FIND("]",CELL("filename",$A$1))+1,255)) -> 0 | AY73: =SUMIFS(Forecast!AX:AX,Forecast!$C:$C,$A73,Forecast!$B:$B,MID(CELL("filename",$A$1),FIND("]",CELL("filename",$A$1))+1,255)) -> 0 | AZ73: 0 | BA73: 0 | BB73: 0 | BC73: 0 | BD73: 0 | BE73: 0 | BF73: 0 | BG73: 0 | BH73: 0 | BI73: 0 | BJ73: 0 | BK73: 0 | BL73: 0 | BM73: 0 | BN73: 0 | BO73: 0 | BP73: 0 | BQ73: 0 | BR73: 0 | BS73: 0 | BT73: 0 | BU73: 0 | BV73: 0 | BW73: 0 | BX73: 0 | BY73: 0 | BZ73: 0 | CA73: 0 | CB73: 0 | CC73: 0 | CD73: 0 | CE73: 0 | CF73: 0 | CG73: 0 | CH73: 0 | CI73: 0
A74: 2004 | C74: =SUMIFS(CY_Report!$W:$W,CY_Report!$J:$J,$A74,CY_Report!$E:$E,MID(CELL("filename",$A$1),FIND("]",CELL("filename",$A$1))+1,255),CY_Report!$U:$U,"<>*d*",CY_Report!$U:$U,"<>*t*",CY_Report!$N:$N,"<>"&" 00 00") -> 0 | D74: 0 | E74: =SUMIFS(Forecast!D:D,Forecast!$C:$C,$A74,Forecast!$B:$B,MID(CELL("filename",$A$1),FIND("]",CELL("filename",$A$1))+1,255)) -> 0 | F74: =SUMIFS(Forecast!E:E,Forecast!$C:$C,$A74,Forecast!$B:$B,MID(CELL("filename",$A$1),FIND("]",CELL("filename",$A$1))+1,255)) -> 0 | G74: =SUMIFS(Forecast!F:F,Forecast!$C:$C,$A74,Forecast!$B:$B,MID(CELL("filename",$A$1),FIND("]",CELL("filename",$A$1))+1,255)) -> 0 | H74: =SUMIFS(Forecast!G:G,Forecast!$C:$C,$A74,Forecast!$B:$B,MID(CELL("filename",$A$1),FIND("]",CELL("filename",$A$1))+1,255)) -> 0 | I74: =SUMIFS(Forecast!H:H,Forecast!$C:$C,$A74,Forecast!$B:$B,MID(CELL("filename",$A$1),FIND("]",CELL("filename",$A$1))+1,255)) -> 0 | J74: =SUMIFS(Forecast!I:I,Forecast!$C:$C,$A74,Forecast!$B:$B,MID(CELL("filename",$A$1),FIND("]",CELL("filename",$A$1))+1,255)) -> 0 | K74: =SUMIFS(Forecast!J:J,Forecast!$C:$C,$A74,Forecast!$B:$B,MID(CELL("filename",$A$1),FIND("]",CELL("filename",$A$1))+1,255)) -> 0 | L74: =SUMIFS(Forecast!K:K,Forecast!$C:$C,$A74,Forecast!$B:$B,MID(CELL("filename",$A$1),FIND("]",CELL("filename",$A$1))+1,255)) -> 0 | M74: =SUMIFS(Forecast!L:L,Forecast!$C:$C,$A74,Forecast!$B:$B,MID(CELL("filename",$A$1),FIND("]",CELL("filename",$A$1))+1,255)) -> 0 | N74: =SUMIFS(Forecast!M:M,Forecast!$C:$C,$A74,Forecast!$B:$B,MID(CELL("filename",$A$1),FIND("]",CELL("filename",$A$1))+1,255)) -> 0 | O74: =SUMIFS(Forecast!N:N,Forecast!$C:$C,$A74,Forecast!$B:$B,MID(CELL("filename",$A$1),FIND("]",CELL("filename",$A$1))+1,255)) -> 0 | P74: =SUMIFS(Forecast!O:O,Forecast!$C:$C,$A74,Forecast!$B:$B,MID(CELL("filename",$A$1),FIND("]",CELL("filename",$A$1))+1,255)) -> 0 | Q74: =SUMIFS(Forecast!P:P,Forecast!$C:$C,$A74,Forecast!$B:$B,MID(CELL("filename",$A$1),FIND("]",CELL("filename",$A$1))+1,255)) -> 0 | R74: =SUMIFS(Forecast!Q:Q,Forecast!$C:$C,$A74,Forecast!$B:$B,MID(CELL("filename",$A$1),FIND("]",CELL("filename",$A$1))+1,255)) -> 0 | S74: =SUMIFS(Forecast!R:R,Forecast!$C:$C,$A74,Forecast!$B:$B,MID(CELL("filename",$A$1),FIND("]",CELL("filename",$A$1))+1,255)) -> 0 | T74: =SUMIFS(Forecast!S:S,Forecast!$C:$C,$A74,Forecast!$B:$B,MID(CELL("filename",$A$1),FIND("]",CELL("filename",$A$1))+1,255)) -> 0 | U74: =SUMIFS(Forecast!T:T,Forecast!$C:$C,$A74,Forecast!$B:$B,MID(CELL("filename",$A$1),FIND("]",CELL("filename",$A$1))+1,255)) -> 0 | V74: =SUMIFS(Forecast!U:U,Forecast!$C:$C,$A74,Forecast!$B:$B,MID(CELL("filename",$A$1),FIND("]",CELL("filename",$A$1))+1,255)) -> 0 | W74: =SUMIFS(Forecast!V:V,Forecast!$C:$C,$A74,Forecast!$B:$B,MID(CELL("filename",$A$1),FIND("]",CELL("filename",$A$1))+1,255)) -> 0 | X74: =SUMIFS(Forecast!W:W,Forecast!$C:$C,$A74,Forecast!$B:$B,MID(CELL("filename",$A$1),FIND("]",CELL("filename",$A$1))+1,255)) -> 0 | Y74: =SUMIFS(Forecast!X:X,Forecast!$C:$C,$A74,Forecast!$B:$B,MID(CELL("filename",$A$1),FIND("]",CELL("filename",$A$1))+1,255)) -> 0 | Z74: =SUMIFS(Forecast!Y:Y,Forecast!$C:$C,$A74,Forecast!$B:$B,MID(CELL("filename",$A$1),FIND("]",CELL("filename",$A$1))+1,255)) -> 0 | AA74: =SUMIFS(Forecast!Z:Z,Forecast!$C:$C,$A74,Forecast!$B:$B,MID(CELL("filename",$A$1),FIND("]",CELL("filename",$A$1))+1,255)) -> 0 | AB74: =SUMIFS(Forecast!AA:AA,Forecast!$C:$C,$A74,Forecast!$B:$B,MID(CELL("filename",$A$1),FIND("]",CELL("filename",$A$1))+1,255)) -> 0 | AC74: =SUMIFS(Forecast!AB:AB,Forecast!$C:$C,$A74,Forecast!$B:$B,MID(CELL("filename",$A$1),FIND("]",CELL("filename",$A$1))+1,255)) -> 0 | AD74: =SUMIFS(Forecast!AC:AC,Forecast!$C:$C,$A74,Forecast!$B:$B,MID(CELL("filename",$A$1),FIND("]",CELL("filename",$A$1))+1,255)) -> 0 | AE74: =SUMIFS(Forecast!AD:AD,Forecast!$C:$C,$A74,Forecast!$B:$B,MID(CELL("filename",$A$1),FIND("]",CELL("filename",$A$1))+1,255)) -> 0 | AF74: =SUMIFS(Forecast!AE:AE,Forecast!$C:$C,$A74,Forecast!$B:$B,MID(CELL("filename",$A$1),FIND("]",CELL("filename",$A$1))+1,255)) -> 0 | AG74: =SUMIFS(Forecast!AF:AF,Forecast!$C:$C,$A74,Forecast!$B:$B,MID(CELL("filename",$A$1),FIND("]",CELL("filename",$A$1))+1,255)) -> 0 | AH74: =SUMIFS(Forecast!AG:AG,Forecast!$C:$C,$A74,Forecast!$B:$B,MID(CELL("filename",$A$1),FIND("]",CELL("filename",$A$1))+1,255)) -> 0 | AI74: =SUMIFS(Forecast!AH:AH,Forecast!$C:$C,$A74,Forecast!$B:$B,MID(CELL("filename",$A$1),FIND("]",CELL("filename",$A$1))+1,255)) -> 0 | AJ74: =SUMIFS(Forecast!AI:AI,Forecast!$C:$C,$A74,Forecast!$B:$B,MID(CELL("filename",$A$1),FIND("]",CELL("filename",$A$1))+1,255)) -> 0 | AK74: =SUMIFS(Forecast!AJ:AJ,Forecast!$C:$C,$A74,Forecast!$B:$B,MID(CELL("filename",$A$1),FIND("]",CELL("filename",$A$1))+1,255)) -> 0 | AL74: =SUMIFS(Forecast!AK:AK,Forecast!$C:$C,$A74,Forecast!$B:$B,MID(CELL("filename",$A$1),FIND("]",CELL("filename",$A$1))+1,255)) -> 0 | AM74: =SUMIFS(Forecast!AL:AL,Forecast!$C:$C,$A74,Forecast!$B:$B,MID(CELL("filename",$A$1),FIND("]",CELL("filename",$A$1))+1,255)) -> 0 | AN74: =SUMIFS(Forecast!AM:AM,Forecast!$C:$C,$A74,Forecast!$B:$B,MID(CELL("filename",$A$1),FIND("]",CELL("filename",$A$1))+1,255)) -> 0 | AO74: =SUMIFS(Forecast!AN:AN,Forecast!$C:$C,$A74,Forecast!$B:$B,MID(CELL("filename",$A$1),FIND("]",CELL("filename",$A$1))+1,255)) -> 0 | AP74: =SUMIFS(Forecast!AO:AO,Forecast!$C:$C,$A74,Forecast!$B:$B,MID(CELL("filename",$A$1),FIND("]",CELL("filename",$A$1))+1,255)) -> 0 | AQ74: =SUMIFS(Forecast!AP:AP,Forecast!$C:$C,$A74,Forecast!$B:$B,MID(CELL("filename",$A$1),FIND("]",CELL("filename",$A$1))+1,255)) -> 0 | AR74: =SUMIFS(Forecast!AQ:AQ,Forecast!$C:$C,$A74,Forecast!$B:$B,MID(CELL("filename",$A$1),FIND("]",CELL("filename",$A$1))+1,255)) -> 0 | AS74: =SUMIFS(Forecast!AR:AR,Forecast!$C:$C,$A74,Forecast!$B:$B,MID(CELL("filename",$A$1),FIND("]",CELL("filename",$A$1))+1,255)) -> 0 | AT74: =SUMIFS(Forecast!AS:AS,Forecast!$C:$C,$A74,Forecast!$B:$B,MID(CELL("filename",$A$1),FIND("]",CELL("filename",$A$1))+1,255)) -> 0 | AU74: =SUMIFS(Forecast!AT:AT,Forecast!$C:$C,$A74,Forecast!$B:$B,MID(CELL("filename",$A$1),FIND("]",CELL("filename",$A$1))+1,255)) -> 0 | AV74: =SUMIFS(Forecast!AU:AU,Forecast!$C:$C,$A74,Forecast!$B:$B,MID(CELL("filename",$A$1),FIND("]",CELL("filename",$A$1))+1,255)) -> 0 | AW74: =SUMIFS(Forecast!AV:AV,Forecast!$C:$C,$A74,Forecast!$B:$B,MID(CELL("filename",$A$1),FIND("]",CELL("filename",$A$1))+1,255)) -> 0 | AX74: =SUMIFS(Forecast!AW:AW,Forecast!$C:$C,$A74,Forecast!$B:$B,MID(CELL("filename",$A$1),FIND("]",CELL("filename",$A$1))+1,255)) -> 0 | AY74: =SUMIFS(Forecast!AX:AX,Forecast!$C:$C,$A74,Forecast!$B:$B,MID(CELL("filename",$A$1),FIND("]",CELL("filename",$A$1))+1,255)) -> 0 | AZ74: 0 | BA74: 0 | BB74: 0 | BC74: 0 | BD74: 0 | BE74: 0 | BF74: 0 | BG74: 0 | BH74: 0 | BI74: 0 | BJ74: 0 | BK74: 0 | BL74: 0 | BM74: 0 | BN74: 0 | BO74: 0 | BP74: 0 | BQ74: 0 | BR74: 0 | BS74: 0 | BT74: 0 | BU74: 0 | BV74: 0 | BW74: 0 | BX74: 0 | BY74: 0 | BZ74: 0 | CA74: 0 | CB74: 0 | CC74: 0 | CD74: 0 | CE74: 0 | CF74: 0 | CG74: 0 | CH74: 0 | CI74: 0
A75: 2005 | C75: =SUMIFS(CY_Report!$W:$W,CY_Report!$J:$J,$A75,CY_Report!$E:$E,MID(CELL("filename",$A$1),FIND("]",CELL("filename",$A$1))+1,255),CY_Report!$U:$U,"<>*d*",CY_Report!$U:$U,"<>*t*",CY_Report!$N:$N,"<>"&" 00 00") -> 0 | D75: 0 | E75: =SUMIFS(Forecast!D:D,Forecast!$C:$C,$A75,Forecast!$B:$B,MID(CELL("filename",$A$1),FIND("]",CELL("filename",$A$1))+1,255)) -> 0 | F75: =SUMIFS(Forecast!E:E,Forecast!$C:$C,$A75,Forecast!$B:$B,MID(CELL("filename",$A$1),FIND("]",CELL("filename",$A$1))+1,255)) -> 0 | G75: =SUMIFS(Forecast!F:F,Forecast!$C:$C,$A75,Forecast!$B:$B,MID(CELL("filename",$A$1),FIND("]",CELL("filename",$A$1))+1,255)) -> 0 | H75: =SUMIFS(Forecast!G:G,Forecast!$C:$C,$A75,Forecast!$B:$B,MID(CELL("filename",$A$1),FIND("]",CELL("filename",$A$1))+1,255)) -> 0 | I75: =SUMIFS(Forecast!H:H,Forecast!$C:$C,$A75,Forecast!$B:$B,MID(CELL("filename",$A$1),FIND("]",CELL("filename",$A$1))+1,255)) -> 0 | J75: =SUMIFS(Forecast!I:I,Forecast!$C:$C,$A75,Forecast!$B:$B,MID(CELL("filename",$A$1),FIND("]",CELL("filename",$A$1))+1,255)) -> 0 | K75: =SUMIFS(Forecast!J:J,Forecast!$C:$C,$A75,Forecast!$B:$B,MID(CELL("filename",$A$1),FIND("]",CELL("filename",$A$1))+1,255)) -> 0 | L75: =SUMIFS(Forecast!K:K,Forecast!$C:$C,$A75,Forecast!$B:$B,MID(CELL("filename",$A$1),FIND("]",CELL("filename",$A$1))+1,255)) -> 0 | M75: =SUMIFS(Forecast!L:L,Forecast!$C:$C,$A75,Forecast!$B:$B,MID(CELL("filename",$A$1),FIND("]",CELL("filename",$A$1))+1,255)) -> 0 | N75: =SUMIFS(Forecast!M:M,Forecast!$C:$C,$A75,Forecast!$B:$B,MID(CELL("filename",$A$1),FIND("]",CELL("filename",$A$1))+1,255)) -> 0 | O75: =SUMIFS(Forecast!N:N,Forecast!$C:$C,$A75,Forecast!$B:$B,MID(CELL("filename",$A$1),FIND("]",CELL("filename",$A$1))+1,255)) -> 0 | P75: =SUMIFS(Forecast!O:O,Forecast!$C:$C,$A75,Forecast!$B:$B,MID(CELL("filename",$A$1),FIND("]",CELL("filename",$A$1))+1,255)) -> 0 | Q75: =SUMIFS(Forecast!P:P,Forecast!$C:$C,$A75,Forecast!$B:$B,MID(CELL("filename",$A$1),FIND("]",CELL("filename",$A$1))+1,255)) -> 0 | R75: =SUMIFS(Forecast!Q:Q,Forecast!$C:$C,$A75,Forecast!$B:$B,MID(CELL("filename",$A$1),FIND("]",CELL("filename",$A$1))+1,255)) -> 0 | S75: =SUMIFS(Forecast!R:R,Forecast!$C:$C,$A75,Forecast!$B:$B,MID(CELL("filename",$A$1),FIND("]",CELL("filename",$A$1))+1,255)) -> 0 | T75: =SUMIFS(Forecast!S:S,Forecast!$C:$C,$A75,Forecast!$B:$B,MID(CELL("filename",$A$1),FIND("]",CELL("filename",$A$1))+1,255)) -> 0 | U75: =SUMIFS(Forecast!T:T,Forecast!$C:$C,$A75,Forecast!$B:$B,MID(CELL("filename",$A$1),FIND("]",CELL("filename",$A$1))+1,255)) -> 0 | V75: =SUMIFS(Forecast!U:U,Forecast!$C:$C,$A75,Forecast!$B:$B,MID(CELL("filename",$A$1),FIND("]",CELL("filename",$A$1))+1,255)) -> 0 | W75: =SUMIFS(Forecast!V:V,Forecast!$C:$C,$A75,Forecast!$B:$B,MID(CELL("filename",$A$1),FIND("]",CELL("filename",$A$1))+1,255)) -> 0 | X75: =SUMIFS(Forecast!W:W,Forecast!$C:$C,$A75,Forecast!$B:$B,MID(CELL("filename",$A$1),FIND("]",CELL("filename",$A$1))+1,255)) -> 0 | Y75: =SUMIFS(Forecast!X:X,Forecast!$C:$C,$A75,Forecast!$B:$B,MID(CELL("filename",$A$1),FIND("]",CELL("filename",$A$1))+1,255)) -> 0 | Z75: =SUMIFS(Forecast!Y:Y,Forecast!$C:$C,$A75,Forecast!$B:$B,MID(CELL("filename",$A$1),FIND("]",CELL("filename",$A$1))+1,255)) -> 0 | AA75: =SUMIFS(Forecast!Z:Z,Forecast!$C:$C,$A75,Forecast!$B:$B,MID(CELL("filename",$A$1),FIND("]",CELL("filename",$A$1))+1,255)) -> 0 | AB75: =SUMIFS(Forecast!AA:AA,Forecast!$C:$C,$A75,Forecast!$B:$B,MID(CELL("filename",$A$1),FIND("]",CELL("filename",$A$1))+1,255)) -> 0 | AC75: =SUMIFS(Forecast!AB:AB,Forecast!$C:$C,$A75,Forecast!$B:$B,MID(CELL("filename",$A$1),FIND("]",CELL("filename",$A$1))+1,255)) -> 0 | AD75: =SUMIFS(Forecast!AC:AC,Forecast!$C:$C,$A75,Forecast!$B:$B,MID(CELL("filename",$A$1),FIND("]",CELL("filename",$A$1))+1,255)) -> 0 | AE75: =SUMIFS(Forecast!AD:AD,Forecast!$C:$C,$A75,Forecast!$B:$B,MID(CELL("filename",$A$1),FIND("]",CELL("filename",$A$1))+1,255)) -> 0 | AF75: =SUMIFS(Forecast!AE:AE,Forecast!$C:$C,$A75,Forecast!$B:$B,MID(CELL("filename",$A$1),FIND("]",CELL("filename",$A$1))+1,255)) -> 0 | AG75: =SUMIFS(Forecast!AF:AF,Forecast!$C:$C,$A75,Forecast!$B:$B,MID(CELL("filename",$A$1),FIND("]",CELL("filename",$A$1))+1,255)) -> 0 | AH75: =SUMIFS(Forecast!AG:AG,Forecast!$C:$C,$A75,Forecast!$B:$B,MID(CELL("filename",$A$1),FIND("]",CELL("filename",$A$1))+1,255)) -> 0 | AI75: =SUMIFS(Forecast!AH:AH,Forecast!$C:$C,$A75,Forecast!$B:$B,MID(CELL("filename",$A$1),FIND("]",CELL("filename",$A$1))+1,255)) -> 0 | AJ75: =SUMIFS(Forecast!AI:AI,Forecast!$C:$C,$A75,Forecast!$B:$B,MID(CELL("filename",$A$1),FIND("]",CELL("filename",$A$1))+1,255)) -> 0 | AK75: =SUMIFS(Forecast!AJ:AJ,Forecast!$C:$C,$A75,Forecast!$B:$B,MID(CELL("filename",$A$1),FIND("]",CELL("filename",$A$1))+1,255)) -> 0 | AL75: =SUMIFS(Forecast!AK:AK,Forecast!$C:$C,$A75,Forecast!$B:$B,MID(CELL("filename",$A$1),FIND("]",CELL("filename",$A$1))+1,255)) -> 0 | AM75: =SUMIFS(Forecast!AL:AL,Forecast!$C:$C,$A75,Forecast!$B:$B,MID(CELL("filename",$A$1),FIND("]",CELL("filename",$A$1))+1,255)) -> 0 | AN75: =SUMIFS(Forecast!AM:AM,Forecast!$C:$C,$A75,Forecast!$B:$B,MID(CELL("filename",$A$1),FIND("]",CELL("filename",$A$1))+1,255)) -> 0 | AO75: =SUMIFS(Forecast!AN:AN,Forecast!$C:$C,$A75,Forecast!$B:$B,MID(CELL("filename",$A$1),FIND("]",CELL("filename",$A$1))+1,255)) -> 0 | AP75: =SUMIFS(Forecast!AO:AO,Forecast!$C:$C,$A75,Forecast!$B:$B,MID(CELL("filename",$A$1),FIND("]",CELL("filename",$A$1))+1,255)) -> 0 | AQ75: =SUMIFS(Forecast!AP:AP,Forecast!$C:$C,$A75,Forecast!$B:$B,MID(CELL("filename",$A$1),FIND("]",CELL("filename",$A$1))+1,255)) -> 0 | AR75: =SUMIFS(Forecast!AQ:AQ,Forecast!$C:$C,$A75,Forecast!$B:$B,MID(CELL("filename",$A$1),FIND("]",CELL("filename",$A$1))+1,255)) -> 0 | AS75: =SUMIFS(Forecast!AR:AR,Forecast!$C:$C,$A75,Forecast!$B:$B,MID(CELL("filename",$A$1),FIND("]",CELL("filename",$A$1))+1,255)) -> 0 | AT75: =SUMIFS(Forecast!AS:AS,Forecast!$C:$C,$A75,Forecast!$B:$B,MID(CELL("filename",$A$1),FIND("]",CELL("filename",$A$1))+1,255)) -> 0 | AU75: =SUMIFS(Forecast!AT:AT,Forecast!$C:$C,$A75,Forecast!$B:$B,MID(CELL("filename",$A$1),FIND("]",CELL("filename",$A$1))+1,255)) -> 0 | AV75: =SUMIFS(Forecast!AU:AU,Forecast!$C:$C,$A75,Forecast!$B:$B,MID(CELL("filename",$A$1),FIND("]",CELL("filename",$A$1))+1,255)) -> 0 | AW75: =SUMIFS(Forecast!AV:AV,Forecast!$C:$C,$A75,Forecast!$B:$B,MID(CELL("filename",$A$1),FIND("]",CELL("filename",$A$1))+1,255)) -> 0 | AX75: =SUMIFS(Forecast!AW:AW,Forecast!$C:$C,$A75,Forecast!$B:$B,MID(CELL("filename",$A$1),FIND("]",CELL("filename",$A$1))+1,255)) -> 0 | AY75: =SUMIFS(Forecast!AX:AX,Forecast!$C:$C,$A75,Forecast!$B:$B,MID(CELL("filename",$A$1),FIND("]",CELL("filename",$A$1))+1,255)) -> 0 | AZ75: 0 | BA75: 0 | BB75: 0 | BC75: 0 | BD75: 0 | BE75: 0 | BF75: 0 | BG75: 0 | BH75: 0 | BI75: 0 | BJ75: 0 | BK75: 0 | BL75: 0 | BM75: 0 | BN75: 0 | BO75: 0 | BP75: 0 | BQ75: 0 | BR75: 0 | BS75: 0 | BT75: 0 | BU75: 0 | BV75: 0 | BW75: 0 | BX75: 0 | BY75: 0 | BZ75: 0 | CA75: 0 | CB75: 0 | CC75: 0 | CD75: 0 | CE75: 0 | CF75: 0 | CG75: 0 | CH75: 0 | CI75: 0
A76: 2006 | C76: =SUMIFS(CY_Report!$W:$W,CY_Report!$J:$J,$A76,CY_Report!$E:$E,MID(CELL("filename",$A$1),FIND("]",CELL("filename",$A$1))+1,255),CY_Report!$U:$U,"<>*d*",CY_Report!$U:$U,"<>*t*",CY_Report!$N:$N,"<>"&" 00 00") -> 0 | D76: 0 | E76: =SUMIFS(Forecast!D:D,Forecast!$C:$C,$A76,Forecast!$B:$B,MID(CELL("filename",$A$1),FIND("]",CELL("filename",$A$1))+1,255)) -> 0 | F76: =SUMIFS(Forecast!E:E,Forecast!$C:$C,$A76,Forecast!$B:$B,MID(CELL("filename",$A$1),FIND("]",CELL("filename",$A$1))+1,255)) -> 0 | G76: =SUMIFS(Forecast!F:F,Forecast!$C:$C,$A76,Forecast!$B:$B,MID(CELL("filename",$A$1),FIND("]",CELL("filename",$A$1))+1,255)) -> 0 | H76: =SUMIFS(Forecast!G:G,Forecast!$C:$C,$A76,Forecast!$B:$B,MID(CELL("filename",$A$1),FIND("]",CELL("filename",$A$1))+1,255)) -> 0 | I76: =SUMIFS(Forecast!H:H,Forecast!$C:$C,$A76,Forecast!$B:$B,MID(CELL("filename",$A$1),FIND("]",CELL("filename",$A$1))+1,255)) -> 0 | J76: =SUMIFS(Forecast!I:I,Forecast!$C:$C,$A76,Forecast!$B:$B,MID(CELL("filename",$A$1),FIND("]",CELL("filename",$A$1))+1,255)) -> 0 | K76: =SUMIFS(Forecast!J:J,Forecast!$C:$C,$A76,Forecast!$B:$B,MID(CELL("filename",$A$1),FIND("]",CELL("filename",$A$1))+1,255)) -> 0 | L76: =SUMIFS(Forecast!K:K,Forecast!$C:$C,$A76,Forecast!$B:$B,MID(CELL("filename",$A$1),FIND("]",CELL("filename",$A$1))+1,255)) -> 0 | M76: =SUMIFS(Forecast!L:L,Forecast!$C:$C,$A76,Forecast!$B:$B,MID(CELL("filename",$A$1),FIND("]",CELL("filename",$A$1))+1,255)) -> 0 | N76: =SUMIFS(Forecast!M:M,Forecast!$C:$C,$A76,Forecast!$B:$B,MID(CELL("filename",$A$1),FIND("]",CELL("filename",$A$1))+1,255)) -> 0 | O76: =SUMIFS(Forecast!N:N,Forecast!$C:$C,$A76,Forecast!$B:$B,MID(CELL("filename",$A$1),FIND("]",CELL("filename",$A$1))+1,255)) -> 0 | P76: =SUMIFS(Forecast!O:O,Forecast!$C:$C,$A76,Forecast!$B:$B,MID(CELL("filename",$A$1),FIND("]",CELL("filename",$A$1))+1,255)) -> 0 | Q76: =SUMIFS(Forecast!P:P,Forecast!$C:$C,$A76,Forecast!$B:$B,MID(CELL("filename",$A$1),FIND("]",CELL("filename",$A$1))+1,255)) -> 0 | R76: =SUMIFS(Forecast!Q:Q,Forecast!$C:$C,$A76,Forecast!$B:$B,MID(CELL("filename",$A$1),FIND("]",CELL("filename",$A$1))+1,255)) -> 0 | S76: =SUMIFS(Forecast!R:R,Forecast!$C:$C,$A76,Forecast!$B:$B,MID(CELL("filename",$A$1),FIND("]",CELL("filename",$A$1))+1,255)) -> 0 | T76: =SUMIFS(Forecast!S:S,Forecast!$C:$C,$A76,Forecast!$B:$B,MID(CELL("filename",$A$1),FIND("]",CELL("filename",$A$1))+1,255)) -> 0 | U76: =SUMIFS(Forecast!T:T,Forecast!$C:$C,$A76,Forecast!$B:$B,MID(CELL("filename",$A$1),FIND("]",CELL("filename",$A$1))+1,255)) -> 0 | V76: =SUMIFS(Forecast!U:U,Forecast!$C:$C,$A76,Forecast!$B:$B,MID(CELL("filename",$A$1),FIND("]",CELL("filename",$A$1))+1,255)) -> 0 | W76: =SUMIFS(Forecast!V:V,Forecast!$C:$C,$A76,Forecast!$B:$B,MID(CELL("filename",$A$1),FIND("]",CELL("filename",$A$1))+1,255)) -> 0 | X76: =SUMIFS(Forecast!W:W,Forecast!$C:$C,$A76,Forecast!$B:$B,MID(CELL("filename",$A$1),FIND("]",CELL("filename",$A$1))+1,255)) -> 0 | Y76: =SUMIFS(Forecast!X:X,Forecast!$C:$C,$A76,Forecast!$B:$B,MID(CELL("filename",$A$1),FIND("]",CELL("filename",$A$1))+1,255)) -> 0 | Z76: =SUMIFS(Forecast!Y:Y,Forecast!$C:$C,$A76,Forecast!$B:$B,MID(CELL("filename",$A$1),FIND("]",CELL("filename",$A$1))+1,255)) -> 0 | AA76: =SUMIFS(Forecast!Z:Z,Forecast!$C:$C,$A76,Forecast!$B:$B,MID(CELL("filename",$A$1),FIND("]",CELL("filename",$A$1))+1,255)) -> 0 | AB76: =SUMIFS(Forecast!AA:AA,Forecast!$C:$C,$A76,Forecast!$B:$B,MID(CELL("filename",$A$1),FIND("]",CELL("filename",$A$1))+1,255)) -> 0 | AC76: =SUMIFS(Forecast!AB:AB,Forecast!$C:$C,$A76,Forecast!$B:$B,MID(CELL("filename",$A$1),FIND("]",CELL("filename",$A$1))+1,255)) -> 0 | AD76: =SUMIFS(Forecast!AC:AC,Forecast!$C:$C,$A76,Forecast!$B:$B,MID(CELL("filename",$A$1),FIND("]",CELL("filename",$A$1))+1,255)) -> 0 | AE76: =SUMIFS(Forecast!AD:AD,Forecast!$C:$C,$A76,Forecast!$B:$B,MID(CELL("filename",$A$1),FIND("]",CELL("filename",$A$1))+1,255)) -> 0 | AF76: =SUMIFS(Forecast!AE:AE,Forecast!$C:$C,$A76,Forecast!$B:$B,MID(CELL("filename",$A$1),FIND("]",CELL("filename",$A$1))+1,255)) -> 0 | AG76: =SUMIFS(Forecast!AF:AF,Forecast!$C:$C,$A76,Forecast!$B:$B,MID(CELL("filename",$A$1),FIND("]",CELL("filename",$A$1))+1,255)) -> 0 | AH76: =SUMIFS(Forecast!AG:AG,Forecast!$C:$C,$A76,Forecast!$B:$B,MID(CELL("filename",$A$1),FIND("]",CELL("filename",$A$1))+1,255)) -> 0 | AI76: =SUMIFS(Forecast!AH:AH,Forecast!$C:$C,$A76,Forecast!$B:$B,MID(CELL("filename",$A$1),FIND("]",CELL("filename",$A$1))+1,255)) -> 0 | AJ76: =SUMIFS(Forecast!AI:AI,Forecast!$C:$C,$A76,Forecast!$B:$B,MID(CELL("filename",$A$1),FIND("]",CELL("filename",$A$1))+1,255)) -> 0 | AK76: =SUMIFS(Forecast!AJ:AJ,Forecast!$C:$C,$A76,Forecast!$B:$B,MID(CELL("filename",$A$1),FIND("]",CELL("filename",$A$1))+1,255)) -> 0 | AL76: =SUMIFS(Forecast!AK:AK,Forecast!$C:$C,$A76,Forecast!$B:$B,MID(CELL("filename",$A$1),FIND("]",CELL("filename",$A$1))+1,255)) -> 0 | AM76: =SUMIFS(Forecast!AL:AL,Forecast!$C:$C,$A76,Forecast!$B:$B,MID(CELL("filename",$A$1),FIND("]",CELL("filename",$A$1))+1,255)) -> 0 | AN76: =SUMIFS(Forecast!AM:AM,Forecast!$C:$C,$A76,Forecast!$B:$B,MID(CELL("filename",$A$1),FIND("]",CELL("filename",$A$1))+1,255)) -> 0 | AO76: =SUMIFS(Forecast!AN:AN,Forecast!$C:$C,$A76,Forecast!$B:$B,MID(CELL("filename",$A$1),FIND("]",CELL("filename",$A$1))+1,255)) -> 0 | AP76: =SUMIFS(Forecast!AO:AO,Forecast!$C:$C,$A76,Forecast!$B:$B,MID(CELL("filename",$A$1),FIND("]",CELL("filename",$A$1))+1,255)) -> 0 | AQ76: =SUMIFS(Forecast!AP:AP,Forecast!$C:$C,$A76,Forecast!$B:$B,MID(CELL("filename",$A$1),FIND("]",CELL("filename",$A$1))+1,255)) -> 0 | AR76: =SUMIFS(Forecast!AQ:AQ,Forecast!$C:$C,$A76,Forecast!$B:$B,MID(CELL("filename",$A$1),FIND("]",CELL("filename",$A$1))+1,255)) -> 0 | AS76: =SUMIFS(Forecast!AR:AR,Forecast!$C:$C,$A76,Forecast!$B:$B,MID(CELL("filename",$A$1),FIND("]",CELL("filename",$A$1))+1,255)) -> 0 | AT76: =SUMIFS(Forecast!AS:AS,Forecast!$C:$C,$A76,Forecast!$B:$B,MID(CELL("filename",$A$1),FIND("]",CELL("filename",$A$1))+1,255)) -> 0 | AU76: =SUMIFS(Forecast!AT:AT,Forecast!$C:$C,$A76,Forecast!$B:$B,MID(CELL("filename",$A$1),FIND("]",CELL("filename",$A$1))+1,255)) -> 0 | AV76: =SUMIFS(Forecast!AU:AU,Forecast!$C:$C,$A76,Forecast!$B:$B,MID(CELL("filename",$A$1),FIND("]",CELL("filename",$A$1))+1,255)) -> 0 | AW76: =SUMIFS(Forecast!AV:AV,Forecast!$C:$C,$A76,Forecast!$B:$B,MID(CELL("filename",$A$1),FIND("]",CELL("filename",$A$1))+1,255)) -> 0 | AX76: =SUMIFS(Forecast!AW:AW,Forecast!$C:$C,$A76,Forecast!$B:$B,MID(CELL("filename",$A$1),FIND("]",CELL("filename",$A$1))+1,255)) -> 0 | AY76: =SUMIFS(Forecast!AX:AX,Forecast!$C:$C,$A76,Forecast!$B:$B,MID(CELL("filename",$A$1),FIND("]",CELL("filename",$A$1))+1,255)) -> 0 | AZ76: 0 | BA76: 0 | BB76: 0 | BC76: 0 | BD76: 0 | BE76: 0 | BF76: 0 | BG76: 0 | BH76: 0 | BI76: 0 | BJ76: 0 | BK76: 0 | BL76: 0 | BM76: 0 | BN76: 0 | BO76: 0 | BP76: 0 | BQ76: 0 | BR76: 0 | BS76: 0 | BT76: 0 | BU76: 0 | BV76: 0 | BW76: 0 | BX76: 0 | BY76: 0 | BZ76: 0 | CA76: 0 | CB76: 0 | CC76: 0 | CD76: 0 | CE76: 0 | CF76: 0 | CG76: 0 | CH76: 0 | CI76: 0
A77: 2007 | C77: =SUMIFS(CY_Report!$W:$W,CY_Report!$J:$J,$A77,CY_Report!$E:$E,MID(CELL("filename",$A$1),FIND("]",CELL("filename",$A$1))+1,255),CY_Report!$U:$U,"<>*d*",CY_Report!$U:$U,"<>*t*",CY_Report!$N:$N,"<>"&" 00 00") -> 0 | D77: 0 | E77: =SUMIFS(Forecast!D:D,Forecast!$C:$C,$A77,Forecast!$B:$B,MID(CELL("filename",$A$1),FIND("]",CELL("filename",$A$1))+1,255)) -> 0 | F77: =SUMIFS(Forecast!E:E,Forecast!$C:$C,$A77,Forecast!$B:$B,MID(CELL("filename",$A$1),FIND("]",CELL("filename",$A$1))+1,255)) -> 0 | G77: =SUMIFS(Forecast!F:F,Forecast!$C:$C,$A77,Forecast!$B:$B,MID(CELL("filename",$A$1),FIND("]",CELL("filename",$A$1))+1,255)) -> 0 | H77: =SUMIFS(Forecast!G:G,Forecast!$C:$C,$A77,Forecast!$B:$B,MID(CELL("filename",$A$1),FIND("]",CELL("filename",$A$1))+1,255)) -> 0 | I77: =SUMIFS(Forecast!H:H,Forecast!$C:$C,$A77,Forecast!$B:$B,MID(CELL("filename",$A$1),FIND("]",CELL("filename",$A$1))+1,255)) -> 0 | J77: =SUMIFS(Forecast!I:I,Forecast!$C:$C,$A77,Forecast!$B:$B,MID(CELL("filename",$A$1),FIND("]",CELL("filename",$A$1))+1,255)) -> 0 | K77: =SUMIFS(Forecast!J:J,Forecast!$C:$C,$A77,Forecast!$B:$B,MID(CELL("filename",$A$1),FIND("]",CELL("filename",$A$1))+1,255)) -> 0 | L77: =SUMIFS(Forecast!K:K,Forecast!$C:$C,$A77,Forecast!$B:$B,MID(CELL("filename",$A$1),FIND("]",CELL("filename",$A$1))+1,255)) -> 0 | M77: =SUMIFS(Forecast!L:L,Forecast!$C:$C,$A77,Forecast!$B:$B,MID(CELL("filename",$A$1),FIND("]",CELL("filename",$A$1))+1,255)) -> 0 | N77: =SUMIFS(Forecast!M:M,Forecast!$C:$C,$A77,Forecast!$B:$B,MID(CELL("filename",$A$1),FIND("]",CELL("filename",$A$1))+1,255)) -> 0 | O77: =SUMIFS(Forecast!N:N,Forecast!$C:$C,$A77,Forecast!$B:$B,MID(CELL("filename",$A$1),FIND("]",CELL("filename",$A$1))+1,255)) -> 0 | P77: =SUMIFS(Forecast!O:O,Forecast!$C:$C,$A77,Forecast!$B:$B,MID(CELL("filename",$A$1),FIND("]",CELL("filename",$A$1))+1,255)) -> 0 | Q77: =SUMIFS(Forecast!P:P,Forecast!$C:$C,$A77,Forecast!$B:$B,MID(CELL("filename",$A$1),FIND("]",CELL("filename",$A$1))+1,255)) -> 0 | R77: =SUMIFS(Forecast!Q:Q,Forecast!$C:$C,$A77,Forecast!$B:$B,MID(CELL("filename",$A$1),FIND("]",CELL("filename",$A$1))+1,255)) -> 0 | S77: =SUMIFS(Forecast!R:R,Forecast!$C:$C,$A77,Forecast!$B:$B,MID(CELL("filename",$A$1),FIND("]",CELL("filename",$A$1))+1,255)) -> 0 | T77: =SUMIFS(Forecast!S:S,Forecast!$C:$C,$A77,Forecast!$B:$B,MID(CELL("filename",$A$1),FIND("]",CELL("filename",$A$1))+1,255)) -> 0 | U77: =SUMIFS(Forecast!T:T,Forecast!$C:$C,$A77,Forecast!$B:$B,MID(CELL("filename",$A$1),FIND("]",CELL("filename",$A$1))+1,255)) -> 0 | V77: =SUMIFS(Forecast!U:U,Forecast!$C:$C,$A77,Forecast!$B:$B,MID(CELL("filename",$A$1),FIND("]",CELL("filename",$A$1))+1,255)) -> 0 | W77: =SUMIFS(Forecast!V:V,Forecast!$C:$C,$A77,Forecast!$B:$B,MID(CELL("filename",$A$1),FIND("]",CELL("filename",$A$1))+1,255)) -> 0 | X77: =SUMIFS(Forecast!W:W,Forecast!$C:$C,$A77,Forecast!$B:$B,MID(CELL("filename",$A$1),FIND("]",CELL("filename",$A$1))+1,255)) -> 0 | Y77: =SUMIFS(Forecast!X:X,Forecast!$C:$C,$A77,Forecast!$B:$B,MID(CELL("filename",$A$1),FIND("]",CELL("filename",$A$1))+1,255)) -> 0 | Z77: =SUMIFS(Forecast!Y:Y,Forecast!$C:$C,$A77,Forecast!$B:$B,MID(CELL("filename",$A$1),FIND("]",CELL("filename",$A$1))+1,255)) -> 0 | AA77: =SUMIFS(Forecast!Z:Z,Forecast!$C:$C,$A77,Forecast!$B:$B,MID(CELL("filename",$A$1),FIND("]",CELL("filename",$A$1))+1,255)) -> 0 | AB77: =SUMIFS(Forecast!AA:AA,Forecast!$C:$C,$A77,Forecast!$B:$B,MID(CELL("filename",$A$1),FIND("]",CELL("filename",$A$1))+1,255)) -> 0 | AC77: =SUMIFS(Forecast!AB:AB,Forecast!$C:$C,$A77,Forecast!$B:$B,MID(CELL("filename",$A$1),FIND("]",CELL("filename",$A$1))+1,255)) -> 0 | AD77: =SUMIFS(Forecast!AC:AC,Forecast!$C:$C,$A77,Forecast!$B:$B,MID(CELL("filename",$A$1),FIND("]",CELL("filename",$A$1))+1,255)) -> 0 | AE77: =SUMIFS(Forecast!AD:AD,Forecast!$C:$C,$A77,Forecast!$B:$B,MID(CELL("filename",$A$1),FIND("]",CELL("filename",$A$1))+1,255)) -> 0 | AF77: =SUMIFS(Forecast!AE:AE,Forecast!$C:$C,$A77,Forecast!$B:$B,MID(CELL("filename",$A$1),FIND("]",CELL("filename",$A$1))+1,255)) -> 0 | AG77: =SUMIFS(Forecast!AF:AF,Forecast!$C:$C,$A77,Forecast!$B:$B,MID(CELL("filename",$A$1),FIND("]",CELL("filename",$A$1))+1,255)) -> 0 | AH77: =SUMIFS(Forecast!AG:AG,Forecast!$C:$C,$A77,Forecast!$B:$B,MID(CELL("filename",$A$1),FIND("]",CELL("filename",$A$1))+1,255)) -> 0 | AI77: =SUMIFS(Forecast!AH:AH,Forecast!$C:$C,$A77,Forecast!$B:$B,MID(CELL("filename",$A$1),FIND("]",CELL("filename",$A$1))+1,255)) -> 0 | AJ77: =SUMIFS(Forecast!AI:AI,Forecast!$C:$C,$A77,Forecast!$B:$B,MID(CELL("filename",$A$1),FIND("]",CELL("filename",$A$1))+1,255)) -> 0 | AK77: =SUMIFS(Forecast!AJ:AJ,Forecast!$C:$C,$A77,Forecast!$B:$B,MID(CELL("filename",$A$1),FIND("]",CELL("filename",$A$1))+1,255)) -> 0 | AL77: =SUMIFS(Forecast!AK:AK,Forecast!$C:$C,$A77,Forecast!$B:$B,MID(CELL("filename",$A$1),FIND("]",CELL("filename",$A$1))+1,255)) -> 0 | AM77: =SUMIFS(Forecast!AL:AL,Forecast!$C:$C,$A77,Forecast!$B:$B,MID(CELL("filename",$A$1),FIND("]",CELL("filename",$A$1))+1,255)) -> 0 | AN77: =SUMIFS(Forecast!AM:AM,Forecast!$C:$C,$A77,Forecast!$B:$B,MID(CELL("filename",$A$1),FIND("]",CELL("filename",$A$1))+1,255)) -> 0 | AO77: =SUMIFS(Forecast!AN:AN,Forecast!$C:$C,$A77,Forecast!$B:$B,MID(CELL("filename",$A$1),FIND("]",CELL("filename",$A$1))+1,255)) -> 0 | AP77: =SUMIFS(Forecast!AO:AO,Forecast!$C:$C,$A77,Forecast!$B:$B,MID(CELL("filename",$A$1),FIND("]",CELL("filename",$A$1))+1,255)) -> 0 | AQ77: =SUMIFS(Forecast!AP:AP,Forecast!$C:$C,$A77,Forecast!$B:$B,MID(CELL("filename",$A$1),FIND("]",CELL("filename",$A$1))+1,255)) -> 0 | AR77: =SUMIFS(Forecast!AQ:AQ,Forecast!$C:$C,$A77,Forecast!$B:$B,MID(CELL("filename",$A$1),FIND("]",CELL("filename",$A$1))+1,255)) -> 0 | AS77: =SUMIFS(Forecast!AR:AR,Forecast!$C:$C,$A77,Forecast!$B:$B,MID(CELL("filename",$A$1),FIND("]",CELL("filename",$A$1))+1,255)) -> 0 | AT77: =SUMIFS(Forecast!AS:AS,Forecast!$C:$C,$A77,Forecast!$B:$B,MID(CELL("filename",$A$1),FIND("]",CELL("filename",$A$1))+1,255)) -> 0 | AU77: =SUMIFS(Forecast!AT:AT,Forecast!$C:$C,$A77,Forecast!$B:$B,MID(CELL("filename",$A$1),FIND("]",CELL("filename",$A$1))+1,255)) -> 0 | AV77: =SUMIFS(Forecast!AU:AU,Forecast!$C:$C,$A77,Forecast!$B:$B,MID(CELL("filename",$A$1),FIND("]",CELL("filename",$A$1))+1,255)) -> 0 | AW77: =SUMIFS(Forecast!AV:AV,Forecast!$C:$C,$A77,Forecast!$B:$B,MID(CELL("filename",$A$1),FIND("]",CELL("filename",$A$1))+1,255)) -> 0 | AX77: =SUMIFS(Forecast!AW:AW,Forecast!$C:$C,$A77,Forecast!$B:$B,MID(CELL("filename",$A$1),FIND("]",CELL("filename",$A$1))+1,255)) -> 0 | AY77: =SUMIFS(Forecast!AX:AX,Forecast!$C:$C,$A77,Forecast!$B:$B,MID(CELL("filename",$A$1),FIND("]",CELL("filename",$A$1))+1,255)) -> 0 | AZ77: 0 | BA77: 0 | BB77: 0 | BC77: 0 | BD77: 0 | BE77: 0 | BF77: 0 | BG77: 0 | BH77: 0 | BI77: 0 | BJ77: 0 | BK77: 0 | BL77: 0 | BM77: 0 | BN77: 0 | BO77: 0 | BP77: 0 | BQ77: 0 | BR77: 0 | BS77: 0 | BT77: 0 | BU77: 0 | BV77: 0 | BW77: 0 | BX77: 0 | BY77: 0 | BZ77: 0 | CA77: 0 | CB77: 0 | CC77: 0 | CD77: 0 | CE77: 0 | CF77: 0 | CG77: 0 | CH77: 0 | CI77: 0
A78: 2008 | C78: =SUMIFS(CY_Report!$W:$W,CY_Report!$J:$J,$A78,CY_Report!$E:$E,MID(CELL("filename",$A$1),FIND("]",CELL("filename",$A$1))+1,255),CY_Report!$U:$U,"<>*d*",CY_Report!$U:$U,"<>*t*",CY_Report!$N:$N,"<>"&" 00 00") -> 0 | D78: 0 | E78: =SUMIFS(Forecast!D:D,Forecast!$C:$C,$A78,Forecast!$B:$B,MID(CELL("filename",$A$1),FIND("]",CELL("filename",$A$1))+1,255)) -> 0 | F78: =SUMIFS(Forecast!E:E,Forecast!$C:$C,$A78,Forecast!$B:$B,MID(CELL("filename",$A$1),FIND("]",CELL("filename",$A$1))+1,255)) -> 0 | G78: =SUMIFS(Forecast!F:F,Forecast!$C:$C,$A78,Forecast!$B:$B,MID(CELL("filename",$A$1),FIND("]",CELL("filename",$A$1))+1,255)) -> 0 | H78: =SUMIFS(Forecast!G:G,Forecast!$C:$C,$A78,Forecast!$B:$B,MID(CELL("filename",$A$1),FIND("]",CELL("filename",$A$1))+1,255)) -> 0 | I78: =SUMIFS(Forecast!H:H,Forecast!$C:$C,$A78,Forecast!$B:$B,MID(CELL("filename",$A$1),FIND("]",CELL("filename",$A$1))+1,255)) -> 0 | J78: =SUMIFS(Forecast!I:I,Forecast!$C:$C,$A78,Forecast!$B:$B,MID(CELL("filename",$A$1),FIND("]",CELL("filename",$A$1))+1,255)) -> 0 | K78: =SUMIFS(Forecast!J:J,Forecast!$C:$C,$A78,Forecast!$B:$B,MID(CELL("filename",$A$1),FIND("]",CELL("filename",$A$1))+1,255)) -> 0 | L78: =SUMIFS(Forecast!K:K,Forecast!$C:$C,$A78,Forecast!$B:$B,MID(CELL("filename",$A$1),FIND("]",CELL("filename",$A$1))+1,255)) -> 0 | M78: =SUMIFS(Forecast!L:L,Forecast!$C:$C,$A78,Forecast!$B:$B,MID(CELL("filename",$A$1),FIND("]",CELL("filename",$A$1))+1,255)) -> 0 | N78: =SUMIFS(Forecast!M:M,Forecast!$C:$C,$A78,Forecast!$B:$B,MID(CELL("filename",$A$1),FIND("]",CELL("filename",$A$1))+1,255)) -> 0 | O78: =SUMIFS(Forecast!N:N,Forecast!$C:$C,$A78,Forecast!$B:$B,MID(CELL("filename",$A$1),FIND("]",CELL("filename",$A$1))+1,255)) -> 0 | P78: =SUMIFS(Forecast!O:O,Forecast!$C:$C,$A78,Forecast!$B:$B,MID(CELL("filename",$A$1),FIND("]",CELL("filename",$A$1))+1,255)) -> 0 | Q78: =SUMIFS(Forecast!P:P,Forecast!$C:$C,$A78,Forecast!$B:$B,MID(CELL("filename",$A$1),FIND("]",CELL("filename",$A$1))+1,255)) -> 0 | R78: =SUMIFS(Forecast!Q:Q,Forecast!$C:$C,$A78,Forecast!$B:$B,MID(CELL("filename",$A$1),FIND("]",CELL("filename",$A$1))+1,255)) -> 0 | S78: =SUMIFS(Forecast!R:R,Forecast!$C:$C,$A78,Forecast!$B:$B,MID(CELL("filename",$A$1),FIND("]",CELL("filename",$A$1))+1,255)) -> 0 | T78: =SUMIFS(Forecast!S:S,Forecast!$C:$C,$A78,Forecast!$B:$B,MID(CELL("filename",$A$1),FIND("]",CELL("filename",$A$1))+1,255)) -> 0 | U78: =SUMIFS(Forecast!T:T,Forecast!$C:$C,$A78,Forecast!$B:$B,MID(CELL("filename",$A$1),FIND("]",CELL("filename",$A$1))+1,255)) -> 0 | V78: =SUMIFS(Forecast!U:U,Forecast!$C:$C,$A78,Forecast!$B:$B,MID(CELL("filename",$A$1),FIND("]",CELL("filename",$A$1))+1,255)) -> 0 | W78: =SUMIFS(Forecast!V:V,Forecast!$C:$C,$A78,Forecast!$B:$B,MID(CELL("filename",$A$1),FIND("]",CELL("filename",$A$1))+1,255)) -> 0 | X78: =SUMIFS(Forecast!W:W,Forecast!$C:$C,$A78,Forecast!$B:$B,MID(CELL("filename",$A$1),FIND("]",CELL("filename",$A$1))+1,255)) -> 0 | Y78: =SUMIFS(Forecast!X:X,Forecast!$C:$C,$A78,Forecast!$B:$B,MID(CELL("filename",$A$1),FIND("]",CELL("filename",$A$1))+1,255)) -> 0 | Z78: =SUMIFS(Forecast!Y:Y,Forecast!$C:$C,$A78,Forecast!$B:$B,MID(CELL("filename",$A$1),FIND("]",CELL("filename",$A$1))+1,255)) -> 0 | AA78: =SUMIFS(Forecast!Z:Z,Forecast!$C:$C,$A78,Forecast!$B:$B,MID(CELL("filename",$A$1),FIND("]",CELL("filename",$A$1))+1,255)) -> 0 | AB78: =SUMIFS(Forecast!AA:AA,Forecast!$C:$C,$A78,Forecast!$B:$B,MID(CELL("filename",$A$1),FIND("]",CELL("filename",$A$1))+1,255)) -> 0 | AC78: =SUMIFS(Forecast!AB:AB,Forecast!$C:$C,$A78,Forecast!$B:$B,MID(CELL("filename",$A$1),FIND("]",CELL("filename",$A$1))+1,255)) -> 0 | AD78: =SUMIFS(Forecast!AC:AC,Forecast!$C:$C,$A78,Forecast!$B:$B,MID(CELL("filename",$A$1),FIND("]",CELL("filename",$A$1))+1,255)) -> 0 | AE78: =SUMIFS(Forecast!AD:AD,Forecast!$C:$C,$A78,Forecast!$B:$B,MID(CELL("filename",$A$1),FIND("]",CELL("filename",$A$1))+1,255)) -> 0 | AF78: =SUMIFS(Forecast!AE:AE,Forecast!$C:$C,$A78,Forecast!$B:$B,MID(CELL("filename",$A$1),FIND("]",CELL("filename",$A$1))+1,255)) -> 0 | AG78: =SUMIFS(Forecast!AF:AF,Forecast!$C:$C,$A78,Forecast!$B:$B,MID(CELL("filename",$A$1),FIND("]",CELL("filename",$A$1))+1,255)) -> 0 | AH78: =SUMIFS(Forecast!AG:AG,Forecast!$C:$C,$A78,Forecast!$B:$B,MID(CELL("filename",$A$1),FIND("]",CELL("filename",$A$1))+1,255)) -> 0 | AI78: =SUMIFS(Forecast!AH:AH,Forecast!$C:$C,$A78,Forecast!$B:$B,MID(CELL("filename",$A$1),FIND("]",CELL("filename",$A$1))+1,255)) -> 0 | AJ78: =SUMIFS(Forecast!AI:AI,Forecast!$C:$C,$A78,Forecast!$B:$B,MID(CELL("filename",$A$1),FIND("]",CELL("filename",$A$1))+1,255)) -> 0 | AK78: =SUMIFS(Forecast!AJ:AJ,Forecast!$C:$C,$A78,Forecast!$B:$B,MID(CELL("filename",$A$1),FIND("]",CELL("filename",$A$1))+1,255)) -> 0 | AL78: =SUMIFS(Forecast!AK:AK,Forecast!$C:$C,$A78,Forecast!$B:$B,MID(CELL("filename",$A$1),FIND("]",CELL("filename",$A$1))+1,255)) -> 0 | AM78: =SUMIFS(Forecast!AL:AL,Forecast!$C:$C,$A78,Forecast!$B:$B,MID(CELL("filename",$A$1),FIND("]",CELL("filename",$A$1))+1,255)) -> 0 | AN78: =SUMIFS(Forecast!AM:AM,Forecast!$C:$C,$A78,Forecast!$B:$B,MID(CELL("filename",$A$1),FIND("]",CELL("filename",$A$1))+1,255)) -> 0 | AO78: =SUMIFS(Forecast!AN:AN,Forecast!$C:$C,$A78,Forecast!$B:$B,MID(CELL("filename",$A$1),FIND("]",CELL("filename",$A$1))+1,255)) -> 0 | AP78: =SUMIFS(Forecast!AO:AO,Forecast!$C:$C,$A78,Forecast!$B:$B,MID(CELL("filename",$A$1),FIND("]",CELL("filename",$A$1))+1,255)) -> 0 | AQ78: =SUMIFS(Forecast!AP:AP,Forecast!$C:$C,$A78,Forecast!$B:$B,MID(CELL("filename",$A$1),FIND("]",CELL("filename",$A$1))+1,255)) -> 0 | AR78: =SUMIFS(Forecast!AQ:AQ,Forecast!$C:$C,$A78,Forecast!$B:$B,MID(CELL("filename",$A$1),FIND("]",CELL("filename",$A$1))+1,255)) -> 0 | AS78: =SUMIFS(Forecast!AR:AR,Forecast!$C:$C,$A78,Forecast!$B:$B,MID(CELL("filename",$A$1),FIND("]",CELL("filename",$A$1))+1,255)) -> 0 | AT78: =SUMIFS(Forecast!AS:AS,Forecast!$C:$C,$A78,Forecast!$B:$B,MID(CELL("filename",$A$1),FIND("]",CELL("filename",$A$1))+1,255)) -> 0 | AU78: =SUMIFS(Forecast!AT:AT,Forecast!$C:$C,$A78,Forecast!$B:$B,MID(CELL("filename",$A$1),FIND("]",CELL("filename",$A$1))+1,255)) -> 0 | AV78: =SUMIFS(Forecast!AU:AU,Forecast!$C:$C,$A78,Forecast!$B:$B,MID(CELL("filename",$A$1),FIND("]",CELL("filename",$A$1))+1,255)) -> 0 | AW78: =SUMIFS(Forecast!AV:AV,Forecast!$C:$C,$A78,Forecast!$B:$B,MID(CELL("filename",$A$1),FIND("]",CELL("filename",$A$1))+1,255)) -> 0 | AX78: =SUMIFS(Forecast!AW:AW,Forecast!$C:$C,$A78,Forecast!$B:$B,MID(CELL("filename",$A$1),FIND("]",CELL("filename",$A$1))+1,255)) -> 0 | AY78: =SUMIFS(Forecast!AX:AX,Forecast!$C:$C,$A78,Forecast!$B:$B,MID(CELL("filename",$A$1),FIND("]",CELL("filename",$A$1))+1,255)) -> 0 | AZ78: 0 | BA78: 0 | BB78: 0 | BC78: 0 | BD78: 0 | BE78: 0 | BF78: 0 | BG78: 0 | BH78: 0 | BI78: 0 | BJ78: 0 | BK78: 0 | BL78: 0 | BM78: 0 | BN78: 0 | BO78: 0 | BP78: 0 | BQ78: 0 | BR78: 0 | BS78: 0 | BT78: 0 | BU78: 0 | BV78: 0 | BW78: 0 | BX78: 0 | BY78: 0 | BZ78: 0 | CA78: 0 | CB78: 0 | CC78: 0 | CD78: 0 | CE78: 0 | CF78: 0 | CG78: 0 | CH78: 0 | CI78: 0
A79: 2009 | C79: =SUMIFS(CY_Report!$W:$W,CY_Report!$J:$J,$A79,CY_Report!$E:$E,MID(CELL("filename",$A$1),FIND("]",CELL("filename",$A$1))+1,255),CY_Report!$U:$U,"<>*d*",CY_Report!$U:$U,"<>*t*",CY_Report!$N:$N,"<>"&" 00 00") -> 0 | D79: 0 | E79: =SUMIFS(Forecast!D:D,Forecast!$C:$C,$A79,Forecast!$B:$B,MID(CELL("filename",$A$1),FIND("]",CELL("filename",$A$1))+1,255)) -> 0 | F79: =SUMIFS(Forecast!E:E,Forecast!$C:$C,$A79,Forecast!$B:$B,MID(CELL("filename",$A$1),FIND("]",CELL("filename",$A$1))+1,255)) -> 0 | G79: =SUMIFS(Forecast!F:F,Forecast!$C:$C,$A79,Forecast!$B:$B,MID(CELL("filename",$A$1),FIND("]",CELL("filename",$A$1))+1,255)) -> 0 | H79: =SUMIFS(Forecast!G:G,Forecast!$C:$C,$A79,Forecast!$B:$B,MID(CELL("filename",$A$1),FIND("]",CELL("filename",$A$1))+1,255)) -> 0 | I79: =SUMIFS(Forecast!H:H,Forecast!$C:$C,$A79,Forecast!$B:$B,MID(CELL("filename",$A$1),FIND("]",CELL("filename",$A$1))+1,255)) -> 0 | J79: =SUMIFS(Forecast!I:I,Forecast!$C:$C,$A79,Forecast!$B:$B,MID(CELL("filename",$A$1),FIND("]",CELL("filename",$A$1))+1,255)) -> 0 | K79: =SUMIFS(Forecast!J:J,Forecast!$C:$C,$A79,Forecast!$B:$B,MID(CELL("filename",$A$1),FIND("]",CELL("filename",$A$1))+1,255)) -> 0 | L79: =SUMIFS(Forecast!K:K,Forecast!$C:$C,$A79,Forecast!$B:$B,MID(CELL("filename",$A$1),FIND("]",CELL("filename",$A$1))+1,255)) -> 0 | M79: =SUMIFS(Forecast!L:L,Forecast!$C:$C,$A79,Forecast!$B:$B,MID(CELL("filename",$A$1),FIND("]",CELL("filename",$A$1))+1,255)) -> 0 | N79: =SUMIFS(Forecast!M:M,Forecast!$C:$C,$A79,Forecast!$B:$B,MID(CELL("filename",$A$1),FIND("]",CELL("filename",$A$1))+1,255)) -> 0 | O79: =SUMIFS(Forecast!N:N,Forecast!$C:$C,$A79,Forecast!$B:$B,MID(CELL("filename",$A$1),FIND("]",CELL("filename",$A$1))+1,255)) -> 0 | P79: =SUMIFS(Forecast!O:O,Forecast!$C:$C,$A79,Forecast!$B:$B,MID(CELL("filename",$A$1),FIND("]",CELL("filename",$A$1))+1,255)) -> 0 | Q79: =SUMIFS(Forecast!P:P,Forecast!$C:$C,$A79,Forecast!$B:$B,MID(CELL("filename",$A$1),FIND("]",CELL("filename",$A$1))+1,255)) -> 0 | R79: =SUMIFS(Forecast!Q:Q,Forecast!$C:$C,$A79,Forecast!$B:$B,MID(CELL("filename",$A$1),FIND("]",CELL("filename",$A$1))+1,255)) -> 0 | S79: =SUMIFS(Forecast!R:R,Forecast!$C:$C,$A79,Forecast!$B:$B,MID(CELL("filename",$A$1),FIND("]",CELL("filename",$A$1))+1,255)) -> 0 | T79: =SUMIFS(Forecast!S:S,Forecast!$C:$C,$A79,Forecast!$B:$B,MID(CELL("filename",$A$1),FIND("]",CELL("filename",$A$1))+1,255)) -> 0 | U79: =SUMIFS(Forecast!T:T,Forecast!$C:$C,$A79,Forecast!$B:$B,MID(CELL("filename",$A$1),FIND("]",CELL("filename",$A$1))+1,255)) -> 0 | V79: =SUMIFS(Forecast!U:U,Forecast!$C:$C,$A79,Forecast!$B:$B,MID(CELL("filename",$A$1),FIND("]",CELL("filename",$A$1))+1,255)) -> 0 | W79: =SUMIFS(Forecast!V:V,Forecast!$C:$C,$A79,Forecast!$B:$B,MID(CELL("filename",$A$1),FIND("]",CELL("filename",$A$1))+1,255)) -> 0 | X79: =SUMIFS(Forecast!W:W,Forecast!$C:$C,$A79,Forecast!$B:$B,MID(CELL("filename",$A$1),FIND("]",CELL("filename",$A$1))+1,255)) -> 0 | Y79: =SUMIFS(Forecast!X:X,Forecast!$C:$C,$A79,Forecast!$B:$B,MID(CELL("filename",$A$1),FIND("]",CELL("filename",$A$1))+1,255)) -> 0 | Z79: =SUMIFS(Forecast!Y:Y,Forecast!$C:$C,$A79,Forecast!$B:$B,MID(CELL("filename",$A$1),FIND("]",CELL("filename",$A$1))+1,255)) -> 0 | AA79: =SUMIFS(Forecast!Z:Z,Forecast!$C:$C,$A79,Forecast!$B:$B,MID(CELL("filename",$A$1),FIND("]",CELL("filename",$A$1))+1,255)) -> 0 | AB79: =SUMIFS(Forecast!AA:AA,Forecast!$C:$C,$A79,Forecast!$B:$B,MID(CELL("filename",$A$1),FIND("]",CELL("filename",$A$1))+1,255)) -> 0 | AC79: =SUMIFS(Forecast!AB:AB,Forecast!$C:$C,$A79,Forecast!$B:$B,MID(CELL("filename",$A$1),FIND("]",CELL("filename",$A$1))+1,255)) -> 0 | AD79: =SUMIFS(Forecast!AC:AC,Forecast!$C:$C,$A79,Forecast!$B:$B,MID(CELL("filename",$A$1),FIND("]",CELL("filename",$A$1))+1,255)) -> 0 | AE79: =SUMIFS(Forecast!AD:AD,Forecast!$C:$C,$A79,Forecast!$B:$B,MID(CELL("filename",$A$1),FIND("]",CELL("filename",$A$1))+1,255)) -> 0 | AF79: =SUMIFS(Forecast!AE:AE,Forecast!$C:$C,$A79,Forecast!$B:$B,MID(CELL("filename",$A$1),FIND("]",CELL("filename",$A$1))+1,255)) -> 0 | AG79: =SUMIFS(Forecast!AF:AF,Forecast!$C:$C,$A79,Forecast!$B:$B,MID(CELL("filename",$A$1),FIND("]",CELL("filename",$A$1))+1,255)) -> 0 | AH79: =SUMIFS(Forecast!AG:AG,Forecast!$C:$C,$A79,Forecast!$B:$B,MID(CELL("filename",$A$1),FIND("]",CELL("filename",$A$1))+1,255)) -> 0 | AI79: =SUMIFS(Forecast!AH:AH,Forecast!$C:$C,$A79,Forecast!$B:$B,MID(CELL("filename",$A$1),FIND("]",CELL("filename",$A$1))+1,255)) -> 0 | AJ79: =SUMIFS(Forecast!AI:AI,Forecast!$C:$C,$A79,Forecast!$B:$B,MID(CELL("filename",$A$1),FIND("]",CELL("filename",$A$1))+1,255)) -> 0 | AK79: =SUMIFS(Forecast!AJ:AJ,Forecast!$C:$C,$A79,Forecast!$B:$B,MID(CELL("filename",$A$1),FIND("]",CELL("filename",$A$1))+1,255)) -> 0 | AL79: =SUMIFS(Forecast!AK:AK,Forecast!$C:$C,$A79,Forecast!$B:$B,MID(CELL("filename",$A$1),FIND("]",CELL("filename",$A$1))+1,255)) -> 0 | AM79: =SUMIFS(Forecast!AL:AL,Forecast!$C:$C,$A79,Forecast!$B:$B,MID(CELL("filename",$A$1),FIND("]",CELL("filename",$A$1))+1,255)) -> 0 | AN79: =SUMIFS(Forecast!AM:AM,Forecast!$C:$C,$A79,Forecast!$B:$B,MID(CELL("filename",$A$1),FIND("]",CELL("filename",$A$1))+1,255)) -> 0 | AO79: =SUMIFS(Forecast!AN:AN,Forecast!$C:$C,$A79,Forecast!$B:$B,MID(CELL("filename",$A$1),FIND("]",CELL("filename",$A$1))+1,255)) -> 0 | AP79: =SUMIFS(Forecast!AO:AO,Forecast!$C:$C,$A79,Forecast!$B:$B,MID(CELL("filename",$A$1),FIND("]",CELL("filename",$A$1))+1,255)) -> 0 | AQ79: =SUMIFS(Forecast!AP:AP,Forecast!$C:$C,$A79,Forecast!$B:$B,MID(CELL("filename",$A$1),FIND("]",CELL("filename",$A$1))+1,255)) -> 0 | AR79: =SUMIFS(Forecast!AQ:AQ,Forecast!$C:$C,$A79,Forecast!$B:$B,MID(CELL("filename",$A$1),FIND("]",CELL("filename",$A$1))+1,255)) -> 0 | AS79: =SUMIFS(Forecast!AR:AR,Forecast!$C:$C,$A79,Forecast!$B:$B,MID(CELL("filename",$A$1),FIND("]",CELL("filename",$A$1))+1,255)) -> 0 | AT79: =SUMIFS(Forecast!AS:AS,Forecast!$C:$C,$A79,Forecast!$B:$B,MID(CELL("filename",$A$1),FIND("]",CELL("filename",$A$1))+1,255)) -> 0 | AU79: =SUMIFS(Forecast!AT:AT,Forecast!$C:$C,$A79,Forecast!$B:$B,MID(CELL("filename",$A$1),FIND("]",CELL("filename",$A$1))+1,255)) -> 0 | AV79: =SUMIFS(Forecast!AU:AU,Forecast!$C:$C,$A79,Forecast!$B:$B,MID(CELL("filename",$A$1),FIND("]",CELL("filename",$A$1))+1,255)) -> 0 | AW79: =SUMIFS(Forecast!AV:AV,Forecast!$C:$C,$A79,Forecast!$B:$B,MID(CELL("filename",$A$1),FIND("]",CELL("filename",$A$1))+1,255)) -> 0 | AX79: =SUMIFS(Forecast!AW:AW,Forecast!$C:$C,$A79,Forecast!$B:$B,MID(CELL("filename",$A$1),FIND("]",CELL("filename",$A$1))+1,255)) -> 0 | AY79: =SUMIFS(Forecast!AX:AX,Forecast!$C:$C,$A79,Forecast!$B:$B,MID(CELL("filename",$A$1),FIND("]",CELL("filename",$A$1))+1,255)) -> 0 | AZ79: 0 | BA79: 0 | BB79: 0 | BC79: 0 | BD79: 0 | BE79: 0 | BF79: 0 | BG79: 0 | BH79: 0 | BI79: 0 | BJ79: 0 | BK79: 0 | BL79: 0 | BM79: 0 | BN79: 0 | BO79: 0 | BP79: 0 | BQ79: 0 | BR79: 0 | BS79: 0 | BT79: 0 | BU79: 0 | BV79: 0 | BW79: 0 | BX79: 0 | BY79: 0 | BZ79: 0 | CA79: 0 | CB79: 0 | CC79: 0 | CD79: 0 | CE79: 0 | CF79: 0 | CG79: 0 | CH79: 0 | CI79: 0
A80: 2010 | C80: =SUMIFS(CY_Report!$W:$W,CY_Report!$J:$J,$A80,CY_Report!$E:$E,MID(CELL("filename",$A$1),FIND("]",CELL("filename",$A$1))+1,255),CY_Report!$U:$U,"<>*d*",CY_Report!$U:$U,"<>*t*",CY_Report!$N:$N,"<>"&" 00 00") -> 0 | D80: 0 | E80: =SUMIFS(Forecast!D:D,Forecast!$C:$C,$A80,Forecast!$B:$B,MID(CELL("filename",$A$1),FIND("]",CELL("filename",$A$1))+1,255)) -> 0 | F80: =SUMIFS(Forecast!E:E,Forecast!$C:$C,$A80,Forecast!$B:$B,MID(CELL("filename",$A$1),FIND("]",CELL("filename",$A$1))+1,255)) -> 0 | G80: =SUMIFS(Forecast!F:F,Forecast!$C:$C,$A80,Forecast!$B:$B,MID(CELL("filename",$A$1),FIND("]",CELL("filename",$A$1))+1,255)) -> 0 | H80: =SUMIFS(Forecast!G:G,Forecast!$C:$C,$A80,Forecast!$B:$B,MID(CELL("filename",$A$1),FIND("]",CELL("filename",$A$1))+1,255)) -> 0 | I80: =SUMIFS(Forecast!H:H,Forecast!$C:$C,$A80,Forecast!$B:$B,MID(CELL("filename",$A$1),FIND("]",CELL("filename",$A$1))+1,255)) -> 0 | J80: =SUMIFS(Forecast!I:I,Forecast!$C:$C,$A80,Forecast!$B:$B,MID(CELL("filename",$A$1),FIND("]",CELL("filename",$A$1))+1,255)) -> 0 | K80: =SUMIFS(Forecast!J:J,Forecast!$C:$C,$A80,Forecast!$B:$B,MID(CELL("filename",$A$1),FIND("]",CELL("filename",$A$1))+1,255)) -> 0 | L80: =SUMIFS(Forecast!K:K,Forecast!$C:$C,$A80,Forecast!$B:$B,MID(CELL("filename",$A$1),FIND("]",CELL("filename",$A$1))+1,255)) -> 0 | M80: =SUMIFS(Forecast!L:L,Forecast!$C:$C,$A80,Forecast!$B:$B,MID(CELL("filename",$A$1),FIND("]",CELL("filename",$A$1))+1,255)) -> 0 | N80: =SUMIFS(Forecast!M:M,Forecast!$C:$C,$A80,Forecast!$B:$B,MID(CELL("filename",$A$1),FIND("]",CELL("filename",$A$1))+1,255)) -> 0 | O80: =SUMIFS(Forecast!N:N,Forecast!$C:$C,$A80,Forecast!$B:$B,MID(CELL("filename",$A$1),FIND("]",CELL("filename",$A$1))+1,255)) -> 0 | P80: =SUMIFS(Forecast!O:O,Forecast!$C:$C,$A80,Forecast!$B:$B,MID(CELL("filename",$A$1),FIND("]",CELL("filename",$A$1))+1,255)) -> 0 | Q80: =SUMIFS(Forecast!P:P,Forecast!$C:$C,$A80,Forecast!$B:$B,MID(CELL("filename",$A$1),FIND("]",CELL("filename",$A$1))+1,255)) -> 0 | R80: =SUMIFS(Forecast!Q:Q,Forecast!$C:$C,$A80,Forecast!$B:$B,MID(CELL("filename",$A$1),FIND("]",CELL("filename",$A$1))+1,255)) -> 0 | S80: =SUMIFS(Forecast!R:R,Forecast!$C:$C,$A80,Forecast!$B:$B,MID(CELL("filename",$A$1),FIND("]",CELL("filename",$A$1))+1,255)) -> 0 | T80: =SUMIFS(Forecast!S:S,Forecast!$C:$C,$A80,Forecast!$B:$B,MID(CELL("filename",$A$1),FIND("]",CELL("filename",$A$1))+1,255)) -> 0 | U80: =SUMIFS(Forecast!T:T,Forecast!$C:$C,$A80,Forecast!$B:$B,MID(CELL("filename",$A$1),FIND("]",CELL("filename",$A$1))+1,255)) -> 0 | V80: =SUMIFS(Forecast!U:U,Forecast!$C:$C,$A80,Forecast!$B:$B,MID(CELL("filename",$A$1),FIND("]",CELL("filename",$A$1))+1,255)) -> 0 | W80: =SUMIFS(Forecast!V:V,Forecast!$C:$C,$A80,Forecast!$B:$B,MID(CELL("filename",$A$1),FIND("]",CELL("filename",$A$1))+1,255)) -> 0 | X80: =SUMIFS(Forecast!W:W,Forecast!$C:$C,$A80,Forecast!$B:$B,MID(CELL("filename",$A$1),FIND("]",CELL("filename",$A$1))+1,255)) -> 0 | Y80: =SUMIFS(Forecast!X:X,Forecast!$C:$C,$A80,Forecast!$B:$B,MID(CELL("filename",$A$1),FIND("]",CELL("filename",$A$1))+1,255)) -> 0 | Z80: =SUMIFS(Forecast!Y:Y,Forecast!$C:$C,$A80,Forecast!$B:$B,MID(CELL("filename",$A$1),FIND("]",CELL("filename",$A$1))+1,255)) -> 0 | AA80: =SUMIFS(Forecast!Z:Z,Forecast!$C:$C,$A80,Forecast!$B:$B,MID(CELL("filename",$A$1),FIND("]",CELL("filename",$A$1))+1,255)) -> 0 | AB80: =SUMIFS(Forecast!AA:AA,Forecast!$C:$C,$A80,Forecast!$B:$B,MID(CELL("filename",$A$1),FIND("]",CELL("filename",$A$1))+1,255)) -> 0 | AC80: =SUMIFS(Forecast!AB:AB,Forecast!$C:$C,$A80,Forecast!$B:$B,MID(CELL("filename",$A$1),FIND("]",CELL("filename",$A$1))+1,255)) -> 0 | AD80: =SUMIFS(Forecast!AC:AC,Forecast!$C:$C,$A80,Forecast!$B:$B,MID(CELL("filename",$A$1),FIND("]",CELL("filename",$A$1))+1,255)) -> 0 | AE80: =SUMIFS(Forecast!AD:AD,Forecast!$C:$C,$A80,Forecast!$B:$B,MID(CELL("filename",$A$1),FIND("]",CELL("filename",$A$1))+1,255)) -> 0 | AF80: =SUMIFS(Forecast!AE:AE,Forecast!$C:$C,$A80,Forecast!$B:$B,MID(CELL("filename",$A$1),FIND("]",CELL("filename",$A$1))+1,255)) -> 0 | AG80: =SUMIFS(Forecast!AF:AF,Forecast!$C:$C,$A80,Forecast!$B:$B,MID(CELL("filename",$A$1),FIND("]",CELL("filename",$A$1))+1,255)) -> 0 | AH80: =SUMIFS(Forecast!AG:AG,Forecast!$C:$C,$A80,Forecast!$B:$B,MID(CELL("filename",$A$1),FIND("]",CELL("filename",$A$1))+1,255)) -> 0 | AI80: =SUMIFS(Forecast!AH:AH,Forecast!$C:$C,$A80,Forecast!$B:$B,MID(CELL("filename",$A$1),FIND("]",CELL("filename",$A$1))+1,255)) -> 0 | AJ80: =SUMIFS(Forecast!AI:AI,Forecast!$C:$C,$A80,Forecast!$B:$B,MID(CELL("filename",$A$1),FIND("]",CELL("filename",$A$1))+1,255)) -> 0 | AK80: =SUMIFS(Forecast!AJ:AJ,Forecast!$C:$C,$A80,Forecast!$B:$B,MID(CELL("filename",$A$1),FIND("]",CELL("filename",$A$1))+1,255)) -> 0 | AL80: =SUMIFS(Forecast!AK:AK,Forecast!$C:$C,$A80,Forecast!$B:$B,MID(CELL("filename",$A$1),FIND("]",CELL("filename",$A$1))+1,255)) -> 0 | AM80: =SUMIFS(Forecast!AL:AL,Forecast!$C:$C,$A80,Forecast!$B:$B,MID(CELL("filename",$A$1),FIND("]",CELL("filename",$A$1))+1,255)) -> 0 | AN80: =SUMIFS(Forecast!AM:AM,Forecast!$C:$C,$A80,Forecast!$B:$B,MID(CELL("filename",$A$1),FIND("]",CELL("filename",$A$1))+1,255)) -> 0 | AO80: =SUMIFS(Forecast!AN:AN,Forecast!$C:$C,$A80,Forecast!$B:$B,MID(CELL("filename",$A$1),FIND("]",CELL("filename",$A$1))+1,255)) -> 0 | AP80: =SUMIFS(Forecast!AO:AO,Forecast!$C:$C,$A80,Forecast!$B:$B,MID(CELL("filename",$A$1),FIND("]",CELL("filename",$A$1))+1,255)) -> 0 | AQ80: =SUMIFS(Forecast!AP:AP,Forecast!$C:$C,$A80,Forecast!$B:$B,MID(CELL("filename",$A$1),FIND("]",CELL("filename",$A$1))+1,255)) -> 0 | AR80: =SUMIFS(Forecast!AQ:AQ,Forecast!$C:$C,$A80,Forecast!$B:$B,MID(CELL("filename",$A$1),FIND("]",CELL("filename",$A$1))+1,255)) -> 0 | AS80: =SUMIFS(Forecast!AR:AR,Forecast!$C:$C,$A80,Forecast!$B:$B,MID(CELL("filename",$A$1),FIND("]",CELL("filename",$A$1))+1,255)) -> 0 | AT80: =SUMIFS(Forecast!AS:AS,Forecast!$C:$C,$A80,Forecast!$B:$B,MID(CELL("filename",$A$1),FIND("]",CELL("filename",$A$1))+1,255)) -> 0 | AU80: =SUMIFS(Forecast!AT:AT,Forecast!$C:$C,$A80,Forecast!$B:$B,MID(CELL("filename",$A$1),FIND("]",CELL("filename",$A$1))+1,255)) -> 0 | AV80: =SUMIFS(Forecast!AU:AU,Forecast!$C:$C,$A80,Forecast!$B:$B,MID(CELL("filename",$A$1),FIND("]",CELL("filename",$A$1))+1,255)) -> 0 | AW80: =SUMIFS(Forecast!AV:AV,Forecast!$C:$C,$A80,Forecast!$B:$B,MID(CELL("filename",$A$1),FIND("]",CELL("filename",$A$1))+1,255)) -> 0 | AX80: =SUMIFS(Forecast!AW:AW,Forecast!$C:$C,$A80,Forecast!$B:$B,MID(CELL("filename",$A$1),FIND("]",CELL("filename",$A$1))+1,255)) -> 0 | AY80: =SUMIFS(Forecast!AX:AX,Forecast!$C:$C,$A80,Forecast!$B:$B,MID(CELL("filename",$A$1),FIND("]",CELL("filename",$A$1))+1,255)) -> 0 | AZ80: 0 | BA80: 0 | BB80: 0 | BC80: 0 | BD80: 0 | BE80: 0 | BF80: 0 | BG80: 0 | BH80: 0 | BI80: 0 | BJ80: 0 | BK80: 0 | BL80: 0 | BM80: 0 | BN80: 0 | BO80: 0 | BP80: 0 | BQ80: 0 | BR80: 0 | BS80: 0 | BT80: 0 | BU80: 0 | BV80: 0 | BW80: 0 | BX80: 0 | BY80: 0 | BZ80: 0 | CA80: 0 | CB80: 0 | CC80: 0 | CD80: 0 | CE80: 0 | CF80: 0 | CG80: 0 | CH80: 0 | CI80: 0
A81: =A80+1 -> 2011 | C81: =SUMIFS(CY_Report!$W:$W,CY_Report!$J:$J,$A81,CY_Report!$E:$E,MID(CELL("filename",$A$1),FIND("]",CELL("filename",$A$1))+1,255),CY_Report!$U:$U,"<>*d*",CY_Report!$U:$U,"<>*t*",CY_Report!$N:$N,"<>"&" 00 00") -> 0 | D81: 0 | E81: =SUMIFS(Forecast!D:D,Forecast!$C:$C,$A81,Forecast!$B:$B,MID(CELL("filename",$A$1),FIND("]",CELL("filename",$A$1))+1,255)) -> 0 | F81: =SUMIFS(Forecast!E:E,Forecast!$C:$C,$A81,Forecast!$B:$B,MID(CELL("filename",$A$1),FIND("]",CELL("filename",$A$1))+1,255)) -> 0 | G81: =SUMIFS(Forecast!F:F,Forecast!$C:$C,$A81,Forecast!$B:$B,MID(CELL("filename",$A$1),FIND("]",CELL("filename",$A$1))+1,255)) -> 0 | H81: =SUMIFS(Forecast!G:G,Forecast!$C:$C,$A81,Forecast!$B:$B,MID(CELL("filename",$A$1),FIND("]",CELL("filename",$A$1))+1,255)) -> 0 | I81: =SUMIFS(Forecast!H:H,Forecast!$C:$C,$A81,Forecast!$B:$B,MID(CELL("filename",$A$1),FIND("]",CELL("filename",$A$1))+1,255)) -> 0 | J81: =SUMIFS(Forecast!I:I,Forecast!$C:$C,$A81,Forecast!$B:$B,MID(CELL("filename",$A$1),FIND("]",CELL("filename",$A$1))+1,255)) -> 0 | K81: =SUMIFS(Forecast!J:J,Forecast!$C:$C,$A81,Forecast!$B:$B,MID(CELL("filename",$A$1),FIND("]",CELL("filename",$A$1))+1,255)) -> 0 | L81: =SUMIFS(Forecast!K:K,Forecast!$C:$C,$A81,Forecast!$B:$B,MID(CELL("filename",$A$1),FIND("]",CELL("filename",$A$1))+1,255)) -> 0 | M81: =SUMIFS(Forecast!L:L,Forecast!$C:$C,$A81,Forecast!$B:$B,MID(CELL("filename",$A$1),FIND("]",CELL("filename",$A$1))+1,255)) -> 0 | N81: =SUMIFS(Forecast!M:M,Forecast!$C:$C,$A81,Forecast!$B:$B,MID(CELL("filename",$A$1),FIND("]",CELL("filename",$A$1))+1,255)) -> 0 | O81: =SUMIFS(Forecast!N:N,Forecast!$C:$C,$A81,Forecast!$B:$B,MID(CELL("filename",$A$1),FIND("]",CELL("filename",$A$1))+1,255)) -> 0 | P81: =SUMIFS(Forecast!O:O,Forecast!$C:$C,$A81,Forecast!$B:$B,MID(CELL("filename",$A$1),FIND("]",CELL("filename",$A$1))+1,255)) -> 0 | Q81: =SUMIFS(Forecast!P:P,Forecast!$C:$C,$A81,Forecast!$B:$B,MID(CELL("filename",$A$1),FIND("]",CELL("filename",$A$1))+1,255)) -> 0 | R81: =SUMIFS(Forecast!Q:Q,Forecast!$C:$C,$A81,Forecast!$B:$B,MID(CELL("filename",$A$1),FIND("]",CELL("filename",$A$1))+1,255)) -> 0 | S81: =SUMIFS(Forecast!R:R,Forecast!$C:$C,$A81,Forecast!$B:$B,MID(CELL("filename",$A$1),FIND("]",CELL("filename",$A$1))+1,255)) -> 0 | T81: =SUMIFS(Forecast!S:S,Forecast!$C:$C,$A81,Forecast!$B:$B,MID(CELL("filename",$A$1),FIND("]",CELL("filename",$A$1))+1,255)) -> 0 | U81: =SUMIFS(Forecast!T:T,Forecast!$C:$C,$A81,Forecast!$B:$B,MID(CELL("filename",$A$1),FIND("]",CELL("filename",$A$1))+1,255)) -> 0 | V81: =SUMIFS(Forecast!U:U,Forecast!$C:$C,$A81,Forecast!$B:$B,MID(CELL("filename",$A$1),FIND("]",CELL("filename",$A$1))+1,255)) -> 0 | W81: =SUMIFS(Forecast!V:V,Forecast!$C:$C,$A81,Forecast!$B:$B,MID(CELL("filename",$A$1),FIND("]",CELL("filename",$A$1))+1,255)) -> 0 | X81: =SUMIFS(Forecast!W:W,Forecast!$C:$C,$A81,Forecast!$B:$B,MID(CELL("filename",$A$1),FIND("]",CELL("filename",$A$1))+1,255)) -> 0 | Y81: =SUMIFS(Forecast!X:X,Forecast!$C:$C,$A81,Forecast!$B:$B,MID(CELL("filename",$A$1),FIND("]",CELL("filename",$A$1))+1,255)) -> 0 | Z81: =SUMIFS(Forecast!Y:Y,Forecast!$C:$C,$A81,Forecast!$B:$B,MID(CELL("filename",$A$1),FIND("]",CELL("filename",$A$1))+1,255)) -> 0 | AA81: =SUMIFS(Forecast!Z:Z,Forecast!$C:$C,$A81,Forecast!$B:$B,MID(CELL("filename",$A$1),FIND("]",CELL("filename",$A$1))+1,255)) -> 0 | AB81: =SUMIFS(Forecast!AA:AA,Forecast!$C:$C,$A81,Forecast!$B:$B,MID(CELL("filename",$A$1),FIND("]",CELL("filename",$A$1))+1,255)) -> 0 | AC81: =SUMIFS(Forecast!AB:AB,Forecast!$C:$C,$A81,Forecast!$B:$B,MID(CELL("filename",$A$1),FIND("]",CELL("filename",$A$1))+1,255)) -> 0 | AD81: =SUMIFS(Forecast!AC:AC,Forecast!$C:$C,$A81,Forecast!$B:$B,MID(CELL("filename",$A$1),FIND("]",CELL("filename",$A$1))+1,255)) -> 0 | AE81: =SUMIFS(Forecast!AD:AD,Forecast!$C:$C,$A81,Forecast!$B:$B,MID(CELL("filename",$A$1),FIND("]",CELL("filename",$A$1))+1,255)) -> 0 | AF81: =SUMIFS(Forecast!AE:AE,Forecast!$C:$C,$A81,Forecast!$B:$B,MID(CELL("filename",$A$1),FIND("]",CELL("filename",$A$1))+1,255)) -> 0 | AG81: =SUMIFS(Forecast!AF:AF,Forecast!$C:$C,$A81,Forecast!$B:$B,MID(CELL("filename",$A$1),FIND("]",CELL("filename",$A$1))+1,255)) -> 0 | AH81: =SUMIFS(Forecast!AG:AG,Forecast!$C:$C,$A81,Forecast!$B:$B,MID(CELL("filename",$A$1),FIND("]",CELL("filename",$A$1))+1,255)) -> 0 | AI81: =SUMIFS(Forecast!AH:AH,Forecast!$C:$C,$A81,Forecast!$B:$B,MID(CELL("filename",$A$1),FIND("]",CELL("filename",$A$1))+1,255)) -> 0 | AJ81: =SUMIFS(Forecast!AI:AI,Forecast!$C:$C,$A81,Forecast!$B:$B,MID(CELL("filename",$A$1),FIND("]",CELL("filename",$A$1))+1,255)) -> 0 | AK81: =SUMIFS(Forecast!AJ:AJ,Forecast!$C:$C,$A81,Forecast!$B:$B,MID(CELL("filename",$A$1),FIND("]",CELL("filename",$A$1))+1,255)) -> 0 | AL81: =SUMIFS(Forecast!AK:AK,Forecast!$C:$C,$A81,Forecast!$B:$B,MID(CELL("filename",$A$1),FIND("]",CELL("filename",$A$1))+1,255)) -> 0 | AM81: =SUMIFS(Forecast!AL:AL,Forecast!$C:$C,$A81,Forecast!$B:$B,MID(CELL("filename",$A$1),FIND("]",CELL("filename",$A$1))+1,255)) -> 0 | AN81: =SUMIFS(Forecast!AM:AM,Forecast!$C:$C,$A81,Forecast!$B:$B,MID(CELL("filename",$A$1),FIND("]",CELL("filename",$A$1))+1,255)) -> 0 | AO81: =SUMIFS(Forecast!AN:AN,Forecast!$C:$C,$A81,Forecast!$B:$B,MID(CELL("filename",$A$1),FIND("]",CELL("filename",$A$1))+1,255)) -> 0 | AP81: =SUMIFS(Forecast!AO:AO,Forecast!$C:$C,$A81,Forecast!$B:$B,MID(CELL("filename",$A$1),FIND("]",CELL("filename",$A$1))+1,255)) -> 0 | AQ81: =SUMIFS(Forecast!AP:AP,Forecast!$C:$C,$A81,Forecast!$B:$B,MID(CELL("filename",$A$1),FIND("]",CELL("filename",$A$1))+1,255)) -> 0 | AR81: =SUMIFS(Forecast!AQ:AQ,Forecast!$C:$C,$A81,Forecast!$B:$B,MID(CELL("filename",$A$1),FIND("]",CELL("filename",$A$1))+1,255)) -> 0 | AS81: =SUMIFS(Forecast!AR:AR,Forecast!$C:$C,$A81,Forecast!$B:$B,MID(CELL("filename",$A$1),FIND("]",CELL("filename",$A$1))+1,255)) -> 0 | AT81: =SUMIFS(Forecast!AS:AS,Forecast!$C:$C,$A81,Forecast!$B:$B,MID(CELL("filename",$A$1),FIND("]",CELL("filename",$A$1))+1,255)) -> 0 | AU81: =SUMIFS(Forecast!AT:AT,Forecast!$C:$C,$A81,Forecast!$B:$B,MID(CELL("filename",$A$1),FIND("]",CELL("filename",$A$1))+1,255)) -> 0 | AV81: =SUMIFS(Forecast!AU:AU,Forecast!$C:$C,$A81,Forecast!$B:$B,MID(CELL("filename",$A$1),FIND("]",CELL("filename",$A$1))+1,255)) -> 0 | AW81: =SUMIFS(Forecast!AV:AV,Forecast!$C:$C,$A81,Forecast!$B:$B,MID(CELL("filename",$A$1),FIND("]",CELL("filename",$A$1))+1,255)) -> 0 | AX81: =SUMIFS(Forecast!AW:AW,Forecast!$C:$C,$A81,Forecast!$B:$B,MID(CELL("filename",$A$1),FIND("]",CELL("filename",$A$1))+1,255)) -> 0 | AY81: =SUMIFS(Forecast!AX:AX,Forecast!$C:$C,$A81,Forecast!$B:$B,MID(CELL("filename",$A$1),FIND("]",CELL("filename",$A$1))+1,255)) -> 0 | AZ81: 0 | BA81: 0 | BB81: 0 | BC81: 0 | BD81: 0 | BE81: 0 | BF81: 0 | BG81: 0 | BH81: 0 | BI81: 0 | BJ81: 0 | BK81: 0 | BL81: 0 | BM81: 0 | BN81: 0 | BO81: 0 | BP81: 0 | BQ81: 0 | BR81: 0 | BS81: 0 | BT81: 0 | BU81: 0 | BV81: 0 | BW81: 0 | BX81: 0 | BY81: 0 | BZ81: 0 | CA81: 0 | CB81: 0 | CC81: 0 | CD81: 0 | CE81: 0 | CF81: 0 | CG81: 0 | CH81: 0 | CI81: 0
A82: 2012 | C82: =SUMIFS(CY_Report!$W:$W,CY_Report!$J:$J,$A82,CY_Report!$E:$E,MID(CELL("filename",$A$1),FIND("]",CELL("filename",$A$1))+1,255),CY_Report!$U:$U,"<>*d*",CY_Report!$U:$U,"<>*t*",CY_Report!$N:$N,"<>"&" 00 00") -> 0 | D82: 0 | E82: =SUMIFS(Forecast!D:D,Forecast!$C:$C,$A82,Forecast!$B:$B,MID(CELL("filename",$A$1),FIND("]",CELL("filename",$A$1))+1,255)) -> 0 | F82: =SUMIFS(Forecast!E:E,Forecast!$C:$C,$A82,Forecast!$B:$B,MID(CELL("filename",$A$1),FIND("]",CELL("filename",$A$1))+1,255)) -> 0 | G82: =SUMIFS(Forecast!F:F,Forecast!$C:$C,$A82,Forecast!$B:$B,MID(CELL("filename",$A$1),FIND("]",CELL("filename",$A$1))+1,255)) -> 0 | H82: =SUMIFS(Forecast!G:G,Forecast!$C:$C,$A82,Forecast!$B:$B,MID(CELL("filename",$A$1),FIND("]",CELL("filename",$A$1))+1,255)) -> 0 | I82: =SUMIFS(Forecast!H:H,Forecast!$C:$C,$A82,Forecast!$B:$B,MID(CELL("filename",$A$1),FIND("]",CELL("filename",$A$1))+1,255)) -> 0 | J82: =SUMIFS(Forecast!I:I,Forecast!$C:$C,$A82,Forecast!$B:$B,MID(CELL("filename",$A$1),FIND("]",CELL("filename",$A$1))+1,255)) -> 0 | K82: =SUMIFS(Forecast!J:J,Forecast!$C:$C,$A82,Forecast!$B:$B,MID(CELL("filename",$A$1),FIND("]",CELL("filename",$A$1))+1,255)) -> 0 | L82: =SUMIFS(Forecast!K:K,Forecast!$C:$C,$A82,Forecast!$B:$B,MID(CELL("filename",$A$1),FIND("]",CELL("filename",$A$1))+1,255)) -> 0 | M82: =SUMIFS(Forecast!L:L,Forecast!$C:$C,$A82,Forecast!$B:$B,MID(CELL("filename",$A$1),FIND("]",CELL("filename",$A$1))+1,255)) -> 0 | N82: =SUMIFS(Forecast!M:M,Forecast!$C:$C,$A82,Forecast!$B:$B,MID(CELL("filename",$A$1),FIND("]",CELL("filename",$A$1))+1,255)) -> 0 | O82: =SUMIFS(Forecast!N:N,Forecast!$C:$C,$A82,Forecast!$B:$B,MID(CELL("filename",$A$1),FIND("]",CELL("filename",$A$1))+1,255)) -> 0 | P82: =SUMIFS(Forecast!O:O,Forecast!$C:$C,$A82,Forecast!$B:$B,MID(CELL("filename",$A$1),FIND("]",CELL("filename",$A$1))+1,255)) -> 0 | Q82: =SUMIFS(Forecast!P:P,Forecast!$C:$C,$A82,Forecast!$B:$B,MID(CELL("filename",$A$1),FIND("]",CELL("filename",$A$1))+1,255)) -> 0 | R82: =SUMIFS(Forecast!Q:Q,Forecast!$C:$C,$A82,Forecast!$B:$B,MID(CELL("filename",$A$1),FIND("]",CELL("filename",$A$1))+1,255)) -> 0 | S82: =SUMIFS(Forecast!R:R,Forecast!$C:$C,$A82,Forecast!$B:$B,MID(CELL("filename",$A$1),FIND("]",CELL("filename",$A$1))+1,255)) -> 0 | T82: =SUMIFS(Forecast!S:S,Forecast!$C:$C,$A82,Forecast!$B:$B,MID(CELL("filename",$A$1),FIND("]",CELL("filename",$A$1))+1,255)) -> 0 | U82: =SUMIFS(Forecast!T:T,Forecast!$C:$C,$A82,Forecast!$B:$B,MID(CELL("filename",$A$1),FIND("]",CELL("filename",$A$1))+1,255)) -> 0 | V82: =SUMIFS(Forecast!U:U,Forecast!$C:$C,$A82,Forecast!$B:$B,MID(CELL("filename",$A$1),FIND("]",CELL("filename",$A$1))+1,255)) -> 0 | W82: =SUMIFS(Forecast!V:V,Forecast!$C:$C,$A82,Forecast!$B:$B,MID(CELL("filename",$A$1),FIND("]",CELL("filename",$A$1))+1,255)) -> 0 | X82: =SUMIFS(Forecast!W:W,Forecast!$C:$C,$A82,Forecast!$B:$B,MID(CELL("filename",$A$1),FIND("]",CELL("filename",$A$1))+1,255)) -> 0 | Y82: =SUMIFS(Forecast!X:X,Forecast!$C:$C,$A82,Forecast!$B:$B,MID(CELL("filename",$A$1),FIND("]",CELL("filename",$A$1))+1,255)) -> 0 | Z82: =SUMIFS(Forecast!Y:Y,Forecast!$C:$C,$A82,Forecast!$B:$B,MID(CELL("filename",$A$1),FIND("]",CELL("filename",$A$1))+1,255)) -> 0 | AA82: =SUMIFS(Forecast!Z:Z,Forecast!$C:$C,$A82,Forecast!$B:$B,MID(CELL("filename",$A$1),FIND("]",CELL("filename",$A$1))+1,255)) -> 0 | AB82: =SUMIFS(Forecast!AA:AA,Forecast!$C:$C,$A82,Forecast!$B:$B,MID(CELL("filename",$A$1),FIND("]",CELL("filename",$A$1))+1,255)) -> 0 | AC82: =SUMIFS(Forecast!AB:AB,Forecast!$C:$C,$A82,Forecast!$B:$B,MID(CELL("filename",$A$1),FIND("]",CELL("filename",$A$1))+1,255)) -> 0 | AD82: =SUMIFS(Forecast!AC:AC,Forecast!$C:$C,$A82,Forecast!$B:$B,MID(CELL("filename",$A$1),FIND("]",CELL("filename",$A$1))+1,255)) -> 0 | AE82: =SUMIFS(Forecast!AD:AD,Forecast!$C:$C,$A82,Forecast!$B:$B,MID(CELL("filename",$A$1),FIND("]",CELL("filename",$A$1))+1,255)) -> 0 | AF82: =SUMIFS(Forecast!AE:AE,Forecast!$C:$C,$A82,Forecast!$B:$B,MID(CELL("filename",$A$1),FIND("]",CELL("filename",$A$1))+1,255)) -> 0 | AG82: =SUMIFS(Forecast!AF:AF,Forecast!$C:$C,$A82,Forecast!$B:$B,MID(CELL("filename",$A$1),FIND("]",CELL("filename",$A$1))+1,255)) -> 0 | AH82: =SUMIFS(Forecast!AG:AG,Forecast!$C:$C,$A82,Forecast!$B:$B,MID(CELL("filename",$A$1),FIND("]",CELL("filename",$A$1))+1,255)) -> 0 | AI82: =SUMIFS(Forecast!AH:AH,Forecast!$C:$C,$A82,Forecast!$B:$B,MID(CELL("filename",$A$1),FIND("]",CELL("filename",$A$1))+1,255)) -> 0 | AJ82: =SUMIFS(Forecast!AI:AI,Forecast!$C:$C,$A82,Forecast!$B:$B,MID(CELL("filename",$A$1),FIND("]",CELL("filename",$A$1))+1,255)) -> 0 | AK82: =SUMIFS(Forecast!AJ:AJ,Forecast!$C:$C,$A82,Forecast!$B:$B,MID(CELL("filename",$A$1),FIND("]",CELL("filename",$A$1))+1,255)) -> 0 | AL82: =SUMIFS(Forecast!AK:AK,Forecast!$C:$C,$A82,Forecast!$B:$B,MID(CELL("filename",$A$1),FIND("]",CELL("filename",$A$1))+1,255)) -> 0 | AM82: =SUMIFS(Forecast!AL:AL,Forecast!$C:$C,$A82,Forecast!$B:$B,MID(CELL("filename",$A$1),FIND("]",CELL("filename",$A$1))+1,255)) -> 0 | AN82: =SUMIFS(Forecast!AM:AM,Forecast!$C:$C,$A82,Forecast!$B:$B,MID(CELL("filename",$A$1),FIND("]",CELL("filename",$A$1))+1,255)) -> 0 | AO82: =SUMIFS(Forecast!AN:AN,Forecast!$C:$C,$A82,Forecast!$B:$B,MID(CELL("filename",$A$1),FIND("]",CELL("filename",$A$1))+1,255)) -> 0 | AP82: =SUMIFS(Forecast!AO:AO,Forecast!$C:$C,$A82,Forecast!$B:$B,MID(CELL("filename",$A$1),FIND("]",CELL("filename",$A$1))+1,255)) -> 0 | AQ82: =SUMIFS(Forecast!AP:AP,Forecast!$C:$C,$A82,Forecast!$B:$B,MID(CELL("filename",$A$1),FIND("]",CELL("filename",$A$1))+1,255)) -> 0 | AR82: =SUMIFS(Forecast!AQ:AQ,Forecast!$C:$C,$A82,Forecast!$B:$B,MID(CELL("filename",$A$1),FIND("]",CELL("filename",$A$1))+1,255)) -> 0 | AS82: =SUMIFS(Forecast!AR:AR,Forecast!$C:$C,$A82,Forecast!$B:$B,MID(CELL("filename",$A$1),FIND("]",CELL("filename",$A$1))+1,255)) -> 0 | AT82: =SUMIFS(Forecast!AS:AS,Forecast!$C:$C,$A82,Forecast!$B:$B,MID(CELL("filename",$A$1),FIND("]",CELL("filename",$A$1))+1,255)) -> 0 | AU82: =SUMIFS(Forecast!AT:AT,Forecast!$C:$C,$A82,Forecast!$B:$B,MID(CELL("filename",$A$1),FIND("]",CELL("filename",$A$1))+1,255)) -> 0 | AV82: =SUMIFS(Forecast!AU:AU,Forecast!$C:$C,$A82,Forecast!$B:$B,MID(CELL("filename",$A$1),FIND("]",CELL("filename",$A$1))+1,255)) -> 0 | AW82: =SUMIFS(Forecast!AV:AV,Forecast!$C:$C,$A82,Forecast!$B:$B,MID(CELL("filename",$A$1),FIND("]",CELL("filename",$A$1))+1,255)) -> 0 | AX82: =SUMIFS(Forecast!AW:AW,Forecast!$C:$C,$A82,Forecast!$B:$B,MID(CELL("filename",$A$1),FIND("]",CELL("filename",$A$1))+1,255)) -> 0 | AY82: =SUMIFS(Forecast!AX:AX,Forecast!$C:$C,$A82,Forecast!$B:$B,MID(CELL("filename",$A$1),FIND("]",CELL("filename",$A$1))+1,255)) -> 0 | AZ82: 0 | BA82: 0 | BB82: 0 | BC82: 0 | BD82: 0 | BE82: 0 | BF82: 0 | BG82: 0 | BH82: 0 | BI82: 0 | BJ82: 0 | BK82: 0 | BL82: 0 | BM82: 0 | BN82: 0 | BO82: 0 | BP82: 0 | BQ82: 0 | BR82: 0 | BS82: 0 | BT82: 0 | BU82: 0 | BV82: 0 | BW82: 0 | BX82: 0 | BY82: 0 | BZ82: 0 | CA82: 0 | CB82: 0 | CC82: 0 | CD82: 0 | CE82: 0 | CF82: 0 | CG82: 0 | CH82: 0 | CI82: 0
A83: 2013 | C83: =SUMIFS(CY_Report!$W:$W,CY_Report!$J:$J,$A83,CY_Report!$E:$E,MID(CELL("filename",$A$1),FIND("]",CELL("filename",$A$1))+1,255),CY_Report!$U:$U,"<>*d*",CY_Report!$U:$U,"<>*t*",CY_Report!$N:$N,"<>"&" 00 00") -> 0 | D83: 0 | E83: =SUMIFS(Forecast!D:D,Forecast!$C:$C,$A83,Forecast!$B:$B,MID(CELL("filename",$A$1),FIND("]",CELL("filename",$A$1))+1,255)) -> 0 | F83: =SUMIFS(Forecast!E:E,Forecast!$C:$C,$A83,Forecast!$B:$B,MID(CELL("filename",$A$1),FIND("]",CELL("filename",$A$1))+1,255)) -> 0 | G83: =SUMIFS(Forecast!F:F,Forecast!$C:$C,$A83,Forecast!$B:$B,MID(CELL("filename",$A$1),FIND("]",CELL("filename",$A$1))+1,255)) -> 0 | H83: =SUMIFS(Forecast!G:G,Forecast!$C:$C,$A83,Forecast!$B:$B,MID(CELL("filename",$A$1),FIND("]",CELL("filename",$A$1))+1,255)) -> 0 | I83: =SUMIFS(Forecast!H:H,Forecast!$C:$C,$A83,Forecast!$B:$B,MID(CELL("filename",$A$1),FIND("]",CELL("filename",$A$1))+1,255)) -> 0 | J83: =SUMIFS(Forecast!I:I,Forecast!$C:$C,$A83,Forecast!$B:$B,MID(CELL("filename",$A$1),FIND("]",CELL("filename",$A$1))+1,255)) -> 0 | K83: =SUMIFS(Forecast!J:J,Forecast!$C:$C,$A83,Forecast!$B:$B,MID(CELL("filename",$A$1),FIND("]",CELL("filename",$A$1))+1,255)) -> 0 | L83: =SUMIFS(Forecast!K:K,Forecast!$C:$C,$A83,Forecast!$B:$B,MID(CELL("filename",$A$1),FIND("]",CELL("filename",$A$1))+1,255)) -> 0 | M83: =SUMIFS(Forecast!L:L,Forecast!$C:$C,$A83,Forecast!$B:$B,MID(CELL("filename",$A$1),FIND("]",CELL("filename",$A$1))+1,255)) -> 0 | N83: =SUMIFS(Forecast!M:M,Forecast!$C:$C,$A83,Forecast!$B:$B,MID(CELL("filename",$A$1),FIND("]",CELL("filename",$A$1))+1,255)) -> 0 | O83: =SUMIFS(Forecast!N:N,Forecast!$C:$C,$A83,Forecast!$B:$B,MID(CELL("filename",$A$1),FIND("]",CELL("filename",$A$1))+1,255)) -> 0 | P83: =SUMIFS(Forecast!O:O,Forecast!$C:$C,$A83,Forecast!$B:$B,MID(CELL("filename",$A$1),FIND("]",CELL("filename",$A$1))+1,255)) -> 0 | Q83: =SUMIFS(Forecast!P:P,Forecast!$C:$C,$A83,Forecast!$B:$B,MID(CELL("filename",$A$1),FIND("]",CELL("filename",$A$1))+1,255)) -> 0 | R83: =SUMIFS(Forecast!Q:Q,Forecast!$C:$C,$A83,Forecast!$B:$B,MID(CELL("filename",$A$1),FIND("]",CELL("filename",$A$1))+1,255)) -> 0 | S83: =SUMIFS(Forecast!R:R,Forecast!$C:$C,$A83,Forecast!$B:$B,MID(CELL("filename",$A$1),FIND("]",CELL("filename",$A$1))+1,255)) -> 0 | T83: =SUMIFS(Forecast!S:S,Forecast!$C:$C,$A83,Forecast!$B:$B,MID(CELL("filename",$A$1),FIND("]",CELL("filename",$A$1))+1,255)) -> 0 | U83: =SUMIFS(Forecast!T:T,Forecast!$C:$C,$A83,Forecast!$B:$B,MID(CELL("filename",$A$1),FIND("]",CELL("filename",$A$1))+1,255)) -> 0 | V83: =SUMIFS(Forecast!U:U,Forecast!$C:$C,$A83,Forecast!$B:$B,MID(CELL("filename",$A$1),FIND("]",CELL("filename",$A$1))+1,255)) -> 0 | W83: =SUMIFS(Forecast!V:V,Forecast!$C:$C,$A83,Forecast!$B:$B,MID(CELL("filename",$A$1),FIND("]",CELL("filename",$A$1))+1,255)) -> 0 | X83: =SUMIFS(Forecast!W:W,Forecast!$C:$C,$A83,Forecast!$B:$B,MID(CELL("filename",$A$1),FIND("]",CELL("filename",$A$1))+1,255)) -> 0 | Y83: =SUMIFS(Forecast!X:X,Forecast!$C:$C,$A83,Forecast!$B:$B,MID(CELL("filename",$A$1),FIND("]",CELL("filename",$A$1))+1,255)) -> 0 | Z83: =SUMIFS(Forecast!Y:Y,Forecast!$C:$C,$A83,Forecast!$B:$B,MID(CELL("filename",$A$1),FIND("]",CELL("filename",$A$1))+1,255)) -> 0 | AA83: =SUMIFS(Forecast!Z:Z,Forecast!$C:$C,$A83,Forecast!$B:$B,MID(CELL("filename",$A$1),FIND("]",CELL("filename",$A$1))+1,255)) -> 0 | AB83: =SUMIFS(Forecast!AA:AA,Forecast!$C:$C,$A83,Forecast!$B:$B,MID(CELL("filename",$A$1),FIND("]",CELL("filename",$A$1))+1,255)) -> 0 | AC83: =SUMIFS(Forecast!AB:AB,Forecast!$C:$C,$A83,Forecast!$B:$B,MID(CELL("filename",$A$1),FIND("]",CELL("filename",$A$1))+1,255)) -> 0 | AD83: =SUMIFS(Forecast!AC:AC,Forecast!$C:$C,$A83,Forecast!$B:$B,MID(CELL("filename",$A$1),FIND("]",CELL("filename",$A$1))+1,255)) -> 0 | AE83: =SUMIFS(Forecast!AD:AD,Forecast!$C:$C,$A83,Forecast!$B:$B,MID(CELL("filename",$A$1),FIND("]",CELL("filename",$A$1))+1,255)) -> 0 | AF83: =SUMIFS(Forecast!AE:AE,Forecast!$C:$C,$A83,Forecast!$B:$B,MID(CELL("filename",$A$1),FIND("]",CELL("filename",$A$1))+1,255)) -> 0 | AG83: =SUMIFS(Forecast!AF:AF,Forecast!$C:$C,$A83,Forecast!$B:$B,MID(CELL("filename",$A$1),FIND("]",CELL("filename",$A$1))+1,255)) -> 0 | AH83: =SUMIFS(Forecast!AG:AG,Forecast!$C:$C,$A83,Forecast!$B:$B,MID(CELL("filename",$A$1),FIND("]",CELL("filename",$A$1))+1,255)) -> 0 | AI83: =SUMIFS(Forecast!AH:AH,Forecast!$C:$C,$A83,Forecast!$B:$B,MID(CELL("filename",$A$1),FIND("]",CELL("filename",$A$1))+1,255)) -> 0 | AJ83: =SUMIFS(Forecast!AI:AI,Forecast!$C:$C,$A83,Forecast!$B:$B,MID(CELL("filename",$A$1),FIND("]",CELL("filename",$A$1))+1,255)) -> 0 | AK83: =SUMIFS(Forecast!AJ:AJ,Forecast!$C:$C,$A83,Forecast!$B:$B,MID(CELL("filename",$A$1),FIND("]",CELL("filename",$A$1))+1,255)) -> 0 | AL83: =SUMIFS(Forecast!AK:AK,Forecast!$C:$C,$A83,Forecast!$B:$B,MID(CELL("filename",$A$1),FIND("]",CELL("filename",$A$1))+1,255)) -> 0 | AM83: =SUMIFS(Forecast!AL:AL,Forecast!$C:$C,$A83,Forecast!$B:$B,MID(CELL("filename",$A$1),FIND("]",CELL("filename",$A$1))+1,255)) -> 0 | AN83: =SUMIFS(Forecast!AM:AM,Forecast!$C:$C,$A83,Forecast!$B:$B,MID(CELL("filename",$A$1),FIND("]",CELL("filename",$A$1))+1,255)) -> 0 | AO83: =SUMIFS(Forecast!AN:AN,Forecast!$C:$C,$A83,Forecast!$B:$B,MID(CELL("filename",$A$1),FIND("]",CELL("filename",$A$1))+1,255)) -> 0 | AP83: =SUMIFS(Forecast!AO:AO,Forecast!$C:$C,$A83,Forecast!$B:$B,MID(CELL("filename",$A$1),FIND("]",CELL("filename",$A$1))+1,255)) -> 0 | AQ83: =SUMIFS(Forecast!AP:AP,Forecast!$C:$C,$A83,Forecast!$B:$B,MID(CELL("filename",$A$1),FIND("]",CELL("filename",$A$1))+1,255)) -> 0 | AR83: =SUMIFS(Forecast!AQ:AQ,Forecast!$C:$C,$A83,Forecast!$B:$B,MID(CELL("filename",$A$1),FIND("]",CELL("filename",$A$1))+1,255)) -> 0 | AS83: =SUMIFS(Forecast!AR:AR,Forecast!$C:$C,$A83,Forecast!$B:$B,MID(CELL("filename",$A$1),FIND("]",CELL("filename",$A$1))+1,255)) -> 0 | AT83: =SUMIFS(Forecast!AS:AS,Forecast!$C:$C,$A83,Forecast!$B:$B,MID(CELL("filename",$A$1),FIND("]",CELL("filename",$A$1))+1,255)) -> 0 | AU83: =SUMIFS(Forecast!AT:AT,Forecast!$C:$C,$A83,Forecast!$B:$B,MID(CELL("filename",$A$1),FIND("]",CELL("filename",$A$1))+1,255)) -> 0 | AV83: =SUMIFS(Forecast!AU:AU,Forecast!$C:$C,$A83,Forecast!$B:$B,MID(CELL("filename",$A$1),FIND("]",CELL("filename",$A$1))+1,255)) -> 0 | AW83: =SUMIFS(Forecast!AV:AV,Forecast!$C:$C,$A83,Forecast!$B:$B,MID(CELL("filename",$A$1),FIND("]",CELL("filename",$A$1))+1,255)) -> 0 | AX83: =SUMIFS(Forecast!AW:AW,Forecast!$C:$C,$A83,Forecast!$B:$B,MID(CELL("filename",$A$1),FIND("]",CELL("filename",$A$1))+1,255)) -> 0 | AY83: =SUMIFS(Forecast!AX:AX,Forecast!$C:$C,$A83,Forecast!$B:$B,MID(CELL("filename",$A$1),FIND("]",CELL("filename",$A$1))+1,255)) -> 0 | AZ83: 0 | BA83: 0 | BB83: 0 | BC83: 0 | BD83: 0 | BE83: 0 | BF83: 0 | BG83: 0 | BH83: 0 | BI83: 0 | BJ83: 0 | BK83: 0 | BL83: 0 | BM83: 0 | BN83: 0 | BO83: 0 | BP83: 0 | BQ83: 0 | BR83: 0 | BS83: 0 | BT83: 0 | BU83: 0 | BV83: 0 | BW83: 0 | BX83: 0 | BY83: 0 | BZ83: 0 | CA83: 0 | CB83: 0 | CC83: 0 | CD83: 0 | CE83: 0 | CF83: 0 | CG83: 0 | CH83: 0 | CI83: 0
A84: 2014 | C84: =SUMIFS(CY_Report!$W:$W,CY_Report!$J:$J,$A84,CY_Report!$E:$E,MID(CELL("filename",$A$1),FIND("]",CELL("filename",$A$1))+1,255),CY_Report!$U:$U,"<>*d*",CY_Report!$U:$U,"<>*t*",CY_Report!$N:$N,"<>"&" 00 00") -> 0 | D84: 0 | E84: =SUMIFS(Forecast!D:D,Forecast!$C:$C,$A84,Forecast!$B:$B,MID(CELL("filename",$A$1),FIND("]",CELL("filename",$A$1))+1,255)) -> 0 | F84: =SUMIFS(Forecast!E:E,Forecast!$C:$C,$A84,Forecast!$B:$B,MID(CELL("filename",$A$1),FIND("]",CELL("filename",$A$1))+1,255)) -> 0 | G84: =SUMIFS(Forecast!F:F,Forecast!$C:$C,$A84,Forecast!$B:$B,MID(CELL("filename",$A$1),FIND("]",CELL("filename",$A$1))+1,255)) -> 0 | H84: =SUMIFS(Forecast!G:G,Forecast!$C:$C,$A84,Forecast!$B:$B,MID(CELL("filename",$A$1),FIND("]",CELL("filename",$A$1))+1,255)) -> 0 | I84: =SUMIFS(Forecast!H:H,Forecast!$C:$C,$A84,Forecast!$B:$B,MID(CELL("filename",$A$1),FIND("]",CELL("filename",$A$1))+1,255)) -> 0 | J84: =SUMIFS(Forecast!I:I,Forecast!$C:$C,$A84,Forecast!$B:$B,MID(CELL("filename",$A$1),FIND("]",CELL("filename",$A$1))+1,255)) -> 0 | K84: =SUMIFS(Forecast!J:J,Forecast!$C:$C,$A84,Forecast!$B:$B,MID(CELL("filename",$A$1),FIND("]",CELL("filename",$A$1))+1,255)) -> 0 | L84: =SUMIFS(Forecast!K:K,Forecast!$C:$C,$A84,Forecast!$B:$B,MID(CELL("filename",$A$1),FIND("]",CELL("filename",$A$1))+1,255)) -> 0 | M84: =SUMIFS(Forecast!L:L,Forecast!$C:$C,$A84,Forecast!$B:$B,MID(CELL("filename",$A$1),FIND("]",CELL("filename",$A$1))+1,255)) -> 0 | N84: =SUMIFS(Forecast!M:M,Forecast!$C:$C,$A84,Forecast!$B:$B,MID(CELL("filename",$A$1),FIND("]",CELL("filename",$A$1))+1,255)) -> 0 | O84: =SUMIFS(Forecast!N:N,Forecast!$C:$C,$A84,Forecast!$B:$B,MID(CELL("filename",$A$1),FIND("]",CELL("filename",$A$1))+1,255)) -> 0 | P84: =SUMIFS(Forecast!O:O,Forecast!$C:$C,$A84,Forecast!$B:$B,MID(CELL("filename",$A$1),FIND("]",CELL("filename",$A$1))+1,255)) -> 0 | Q84: =SUMIFS(Forecast!P:P,Forecast!$C:$C,$A84,Forecast!$B:$B,MID(CELL("filename",$A$1),FIND("]",CELL("filename",$A$1))+1,255)) -> 0 | R84: =SUMIFS(Forecast!Q:Q,Forecast!$C:$C,$A84,Forecast!$B:$B,MID(CELL("filename",$A$1),FIND("]",CELL("filename",$A$1))+1,255)) -> 0 | S84: =SUMIFS(Forecast!R:R,Forecast!$C:$C,$A84,Forecast!$B:$B,MID(CELL("filename",$A$1),FIND("]",CELL("filename",$A$1))+1,255)) -> 0 | T84: =SUMIFS(Forecast!S:S,Forecast!$C:$C,$A84,Forecast!$B:$B,MID(CELL("filename",$A$1),FIND("]",CELL("filename",$A$1))+1,255)) -> 0 | U84: =SUMIFS(Forecast!T:T,Forecast!$C:$C,$A84,Forecast!$B:$B,MID(CELL("filename",$A$1),FIND("]",CELL("filename",$A$1))+1,255)) -> 0 | V84: =SUMIFS(Forecast!U:U,Forecast!$C:$C,$A84,Forecast!$B:$B,MID(CELL("filename",$A$1),FIND("]",CELL("filename",$A$1))+1,255)) -> 0 | W84: =SUMIFS(Forecast!V:V,Forecast!$C:$C,$A84,Forecast!$B:$B,MID(CELL("filename",$A$1),FIND("]",CELL("filename",$A$1))+1,255)) -> 0 | X84: =SUMIFS(Forecast!W:W,Forecast!$C:$C,$A84,Forecast!$B:$B,MID(CELL("filename",$A$1),FIND("]",CELL("filename",$A$1))+1,255)) -> 0 | Y84: =SUMIFS(Forecast!X:X,Forecast!$C:$C,$A84,Forecast!$B:$B,MID(CELL("filename",$A$1),FIND("]",CELL("filename",$A$1))+1,255)) -> 0 | Z84: =SUMIFS(Forecast!Y:Y,Forecast!$C:$C,$A84,Forecast!$B:$B,MID(CELL("filename",$A$1),FIND("]",CELL("filename",$A$1))+1,255)) -> 0 | AA84: =SUMIFS(Forecast!Z:Z,Forecast!$C:$C,$A84,Forecast!$B:$B,MID(CELL("filename",$A$1),FIND("]",CELL("filename",$A$1))+1,255)) -> 0 | AB84: =SUMIFS(Forecast!AA:AA,Forecast!$C:$C,$A84,Forecast!$B:$B,MID(CELL("filename",$A$1),FIND("]",CELL("filename",$A$1))+1,255)) -> 0 | AC84: =SUMIFS(Forecast!AB:AB,Forecast!$C:$C,$A84,Forecast!$B:$B,MID(CELL("filename",$A$1),FIND("]",CELL("filename",$A$1))+1,255)) -> 0 | AD84: =SUMIFS(Forecast!AC:AC,Forecast!$C:$C,$A84,Forecast!$B:$B,MID(CELL("filename",$A$1),FIND("]",CELL("filename",$A$1))+1,255)) -> 0 | AE84: =SUMIFS(Forecast!AD:AD,Forecast!$C:$C,$A84,Forecast!$B:$B,MID(CELL("filename",$A$1),FIND("]",CELL("filename",$A$1))+1,255)) -> 0 | AF84: =SUMIFS(Forecast!AE:AE,Forecast!$C:$C,$A84,Forecast!$B:$B,MID(CELL("filename",$A$1),FIND("]",CELL("filename",$A$1))+1,255)) -> 0 | AG84: =SUMIFS(Forecast!AF:AF,Forecast!$C:$C,$A84,Forecast!$B:$B,MID(CELL("filename",$A$1),FIND("]",CELL("filename",$A$1))+1,255)) -> 0 | AH84: =SUMIFS(Forecast!AG:AG,Forecast!$C:$C,$A84,Forecast!$B:$B,MID(CELL("filename",$A$1),FIND("]",CELL("filename",$A$1))+1,255)) -> 0 | AI84: =SUMIFS(Forecast!AH:AH,Forecast!$C:$C,$A84,Forecast!$B:$B,MID(CELL("filename",$A$1),FIND("]",CELL("filename",$A$1))+1,255)) -> 0 | AJ84: =SUMIFS(Forecast!AI:AI,Forecast!$C:$C,$A84,Forecast!$B:$B,MID(CELL("filename",$A$1),FIND("]",CELL("filename",$A$1))+1,255)) -> 0 | AK84: =SUMIFS(Forecast!AJ:AJ,Forecast!$C:$C,$A84,Forecast!$B:$B,MID(CELL("filename",$A$1),FIND("]",CELL("filename",$A$1))+1,255)) -> 0 | AL84: =SUMIFS(Forecast!AK:AK,Forecast!$C:$C,$A84,Forecast!$B:$B,MID(CELL("filename",$A$1),FIND("]",CELL("filename",$A$1))+1,255)) -> 0 | AM84: =SUMIFS(Forecast!AL:AL,Forecast!$C:$C,$A84,Forecast!$B:$B,MID(CELL("filename",$A$1),FIND("]",CELL("filename",$A$1))+1,255)) -> 0 | AN84: =SUMIFS(Forecast!AM:AM,Forecast!$C:$C,$A84,Forecast!$B:$B,MID(CELL("filename",$A$1),FIND("]",CELL("filename",$A$1))+1,255)) -> 0 | AO84: =SUMIFS(Forecast!AN:AN,Forecast!$C:$C,$A84,Forecast!$B:$B,MID(CELL("filename",$A$1),FIND("]",CELL("filename",$A$1))+1,255)) -> 0 | AP84: =SUMIFS(Forecast!AO:AO,Forecast!$C:$C,$A84,Forecast!$B:$B,MID(CELL("filename",$A$1),FIND("]",CELL("filename",$A$1))+1,255)) -> 0 | AQ84: =SUMIFS(Forecast!AP:AP,Forecast!$C:$C,$A84,Forecast!$B:$B,MID(CELL("filename",$A$1),FIND("]",CELL("filename",$A$1))+1,255)) -> 0 | AR84: =SUMIFS(Forecast!AQ:AQ,Forecast!$C:$C,$A84,Forecast!$B:$B,MID(CELL("filename",$A$1),FIND("]",CELL("filename",$A$1))+1,255)) -> 0 | AS84: =SUMIFS(Forecast!AR:AR,Forecast!$C:$C,$A84,Forecast!$B:$B,MID(CELL("filename",$A$1),FIND("]",CELL("filename",$A$1))+1,255)) -> 0 | AT84: =SUMIFS(Forecast!AS:AS,Forecast!$C:$C,$A84,Forecast!$B:$B,MID(CELL("filename",$A$1),FIND("]",CELL("filename",$A$1))+1,255)) -> 0 | AU84: =SUMIFS(Forecast!AT:AT,Forecast!$C:$C,$A84,Forecast!$B:$B,MID(CELL("filename",$A$1),FIND("]",CELL("filename",$A$1))+1,255)) -> 0 | AV84: =SUMIFS(Forecast!AU:AU,Forecast!$C:$C,$A84,Forecast!$B:$B,MID(CELL("filename",$A$1),FIND("]",CELL("filename",$A$1))+1,255)) -> 0 | AW84: =SUMIFS(Forecast!AV:AV,Forecast!$C:$C,$A84,Forecast!$B:$B,MID(CELL("filename",$A$1),FIND("]",CELL("filename",$A$1))+1,255)) -> 0 | AX84: =SUMIFS(Forecast!AW:AW,Forecast!$C:$C,$A84,Forecast!$B:$B,MID(CELL("filename",$A$1),FIND("]",CELL("filename",$A$1))+1,255)) -> 0 | AY84: =SUMIFS(Forecast!AX:AX,Forecast!$C:$C,$A84,Forecast!$B:$B,MID(CELL("filename",$A$1),FIND("]",CELL("filename",$A$1))+1,255)) -> 0 | AZ84: 0 | BA84: 0 | BB84: 0 | BC84: 0 | BD84: 0 | BE84: 0 | BF84: 0 | BG84: 0 | BH84: 0 | BI84: 0 | BJ84: 0 | BK84: 0 | BL84: 0 | BM84: 0 | BN84: 0 | BO84: 0 | BP84: 0 | BQ84: 0 | BR84: 0 | BS84: 0 | BT84: 0 | BU84: 0 | BV84: 0 | BW84: 0 | BX84: 0 | BY84: 0 | BZ84: 0 | CA84: 0 | CB84: 0 | CC84: 0 | CD84: 0 | CE84: 0 | CF84: 0 | CG84: 0 | CH84: 0 | CI84: 0
A85: 2015 | C85: =SUMIFS(CY_Report!$W:$W,CY_Report!$J:$J,$A85,CY_Report!$E:$E,MID(CELL("filename",$A$1),FIND("]",CELL("filename",$A$1))+1,255),CY_Report!$U:$U,"<>*d*",CY_Report!$U:$U,"<>*t*",CY_Report!$N:$N,"<>"&" 00 00") -> 0 | D85: 0 | E85: =SUMIFS(Forecast!D:D,Forecast!$C:$C,$A85,Forecast!$B:$B,MID(CELL("filename",$A$1),FIND("]",CELL("filename",$A$1))+1,255)) -> 0 | F85: =SUMIFS(Forecast!E:E,Forecast!$C:$C,$A85,Forecast!$B:$B,MID(CELL("filename",$A$1),FIND("]",CELL("filename",$A$1))+1,255)) -> 0 | G85: =SUMIFS(Forecast!F:F,Forecast!$C:$C,$A85,Forecast!$B:$B,MID(CELL("filename",$A$1),FIND("]",CELL("filename",$A$1))+1,255)) -> 0 | H85: =SUMIFS(Forecast!G:G,Forecast!$C:$C,$A85,Forecast!$B:$B,MID(CELL("filename",$A$1),FIND("]",CELL("filename",$A$1))+1,255)) -> 0 | I85: =SUMIFS(Forecast!H:H,Forecast!$C:$C,$A85,Forecast!$B:$B,MID(CELL("filename",$A$1),FIND("]",CELL("filename",$A$1))+1,255)) -> 0 | J85: =SUMIFS(Forecast!I:I,Forecast!$C:$C,$A85,Forecast!$B:$B,MID(CELL("filename",$A$1),FIND("]",CELL("filename",$A$1))+1,255)) -> 0 | K85: =SUMIFS(Forecast!J:J,Forecast!$C:$C,$A85,Forecast!$B:$B,MID(CELL("filename",$A$1),FIND("]",CELL("filename",$A$1))+1,255)) -> 0 | L85: =SUMIFS(Forecast!K:K,Forecast!$C:$C,$A85,Forecast!$B:$B,MID(CELL("filename",$A$1),FIND("]",CELL("filename",$A$1))+1,255)) -> 0 | M85: =SUMIFS(Forecast!L:L,Forecast!$C:$C,$A85,Forecast!$B:$B,MID(CELL("filename",$A$1),FIND("]",CELL("filename",$A$1))+1,255)) -> 0 | N85: =SUMIFS(Forecast!M:M,Forecast!$C:$C,$A85,Forecast!$B:$B,MID(CELL("filename",$A$1),FIND("]",CELL("filename",$A$1))+1,255)) -> 0 | O85: =SUMIFS(Forecast!N:N,Forecast!$C:$C,$A85,Forecast!$B:$B,MID(CELL("filename",$A$1),FIND("]",CELL("filename",$A$1))+1,255)) -> 0 | P85: =SUMIFS(Forecast!O:O,Forecast!$C:$C,$A85,Forecast!$B:$B,MID(CELL("filename",$A$1),FIND("]",CELL("filename",$A$1))+1,255)) -> 0 | Q85: =SUMIFS(Forecast!P:P,Forecast!$C:$C,$A85,Forecast!$B:$B,MID(CELL("filename",$A$1),FIND("]",CELL("filename",$A$1))+1,255)) -> 0 | R85: =SUMIFS(Forecast!Q:Q,Forecast!$C:$C,$A85,Forecast!$B:$B,MID(CELL("filename",$A$1),FIND("]",CELL("filename",$A$1))+1,255)) -> 0 | S85: =SUMIFS(Forecast!R:R,Forecast!$C:$C,$A85,Forecast!$B:$B,MID(CELL("filename",$A$1),FIND("]",CELL("filename",$A$1))+1,255)) -> 0 | T85: =SUMIFS(Forecast!S:S,Forecast!$C:$C,$A85,Forecast!$B:$B,MID(CELL("filename",$A$1),FIND("]",CELL("filename",$A$1))+1,255)) -> 0 | U85: =SUMIFS(Forecast!T:T,Forecast!$C:$C,$A85,Forecast!$B:$B,MID(CELL("filename",$A$1),FIND("]",CELL("filename",$A$1))+1,255)) -> 0 | V85: =SUMIFS(Forecast!U:U,Forecast!$C:$C,$A85,Forecast!$B:$B,MID(CELL("filename",$A$1),FIND("]",CELL("filename",$A$1))+1,255)) -> 0 | W85: =SUMIFS(Forecast!V:V,Forecast!$C:$C,$A85,Forecast!$B:$B,MID(CELL("filename",$A$1),FIND("]",CELL("filename",$A$1))+1,255)) -> 0 | X85: =SUMIFS(Forecast!W:W,Forecast!$C:$C,$A85,Forecast!$B:$B,MID(CELL("filename",$A$1),FIND("]",CELL("filename",$A$1))+1,255)) -> 0 | Y85: =SUMIFS(Forecast!X:X,Forecast!$C:$C,$A85,Forecast!$B:$B,MID(CELL("filename",$A$1),FIND("]",CELL("filename",$A$1))+1,255)) -> 0 | Z85: =SUMIFS(Forecast!Y:Y,Forecast!$C:$C,$A85,Forecast!$B:$B,MID(CELL("filename",$A$1),FIND("]",CELL("filename",$A$1))+1,255)) -> 0 | AA85: =SUMIFS(Forecast!Z:Z,Forecast!$C:$C,$A85,Forecast!$B:$B,MID(CELL("filename",$A$1),FIND("]",CELL("filename",$A$1))+1,255)) -> 0 | AB85: =SUMIFS(Forecast!AA:AA,Forecast!$C:$C,$A85,Forecast!$B:$B,MID(CELL("filename",$A$1),FIND("]",CELL("filename",$A$1))+1,255)) -> 0 | AC85: =SUMIFS(Forecast!AB:AB,Forecast!$C:$C,$A85,Forecast!$B:$B,MID(CELL("filename",$A$1),FIND("]",CELL("filename",$A$1))+1,255)) -> 0 | AD85: =SUMIFS(Forecast!AC:AC,Forecast!$C:$C,$A85,Forecast!$B:$B,MID(CELL("filename",$A$1),FIND("]",CELL("filename",$A$1))+1,255)) -> 0 | AE85: =SUMIFS(Forecast!AD:AD,Forecast!$C:$C,$A85,Forecast!$B:$B,MID(CELL("filename",$A$1),FIND("]",CELL("filename",$A$1))+1,255)) -> 0 | AF85: =SUMIFS(Forecast!AE:AE,Forecast!$C:$C,$A85,Forecast!$B:$B,MID(CELL("filename",$A$1),FIND("]",CELL("filename",$A$1))+1,255)) -> 0 | AG85: =SUMIFS(Forecast!AF:AF,Forecast!$C:$C,$A85,Forecast!$B:$B,MID(CELL("filename",$A$1),FIND("]",CELL("filename",$A$1))+1,255)) -> 0 | AH85: =SUMIFS(Forecast!AG:AG,Forecast!$C:$C,$A85,Forecast!$B:$B,MID(CELL("filename",$A$1),FIND("]",CELL("filename",$A$1))+1,255)) -> 0 | AI85: =SUMIFS(Forecast!AH:AH,Forecast!$C:$C,$A85,Forecast!$B:$B,MID(CELL("filename",$A$1),FIND("]",CELL("filename",$A$1))+1,255)) -> 0 | AJ85: =SUMIFS(Forecast!AI:AI,Forecast!$C:$C,$A85,Forecast!$B:$B,MID(CELL("filename",$A$1),FIND("]",CELL("filename",$A$1))+1,255)) -> 0 | AK85: =SUMIFS(Forecast!AJ:AJ,Forecast!$C:$C,$A85,Forecast!$B:$B,MID(CELL("filename",$A$1),FIND("]",CELL("filename",$A$1))+1,255)) -> 0 | AL85: =SUMIFS(Forecast!AK:AK,Forecast!$C:$C,$A85,Forecast!$B:$B,MID(CELL("filename",$A$1),FIND("]",CELL("filename",$A$1))+1,255)) -> 0 | AM85: =SUMIFS(Forecast!AL:AL,Forecast!$C:$C,$A85,Forecast!$B:$B,MID(CELL("filename",$A$1),FIND("]",CELL("filename",$A$1))+1,255)) -> 0 | AN85: =SUMIFS(Forecast!AM:AM,Forecast!$C:$C,$A85,Forecast!$B:$B,MID(CELL("filename",$A$1),FIND("]",CELL("filename",$A$1))+1,255)) -> 0 | AO85: =SUMIFS(Forecast!AN:AN,Forecast!$C:$C,$A85,Forecast!$B:$B,MID(CELL("filename",$A$1),FIND("]",CELL("filename",$A$1))+1,255)) -> 0 | AP85: =SUMIFS(Forecast!AO:AO,Forecast!$C:$C,$A85,Forecast!$B:$B,MID(CELL("filename",$A$1),FIND("]",CELL("filename",$A$1))+1,255)) -> 0 | AQ85: =SUMIFS(Forecast!AP:AP,Forecast!$C:$C,$A85,Forecast!$B:$B,MID(CELL("filename",$A$1),FIND("]",CELL("filename",$A$1))+1,255)) -> 0 | AR85: =SUMIFS(Forecast!AQ:AQ,Forecast!$C:$C,$A85,Forecast!$B:$B,MID(CELL("filename",$A$1),FIND("]",CELL("filename",$A$1))+1,255)) -> 0 | AS85: =SUMIFS(Forecast!AR:AR,Forecast!$C:$C,$A85,Forecast!$B:$B,MID(CELL("filename",$A$1),FIND("]",CELL("filename",$A$1))+1,255)) -> 0 | AT85: =SUMIFS(Forecast!AS:AS,Forecast!$C:$C,$A85,Forecast!$B:$B,MID(CELL("filename",$A$1),FIND("]",CELL("filename",$A$1))+1,255)) -> 0 | AU85: =SUMIFS(Forecast!AT:AT,Forecast!$C:$C,$A85,Forecast!$B:$B,MID(CELL("filename",$A$1),FIND("]",CELL("filename",$A$1))+1,255)) -> 0 | AV85: =SUMIFS(Forecast!AU:AU,Forecast!$C:$C,$A85,Forecast!$B:$B,MID(CELL("filename",$A$1),FIND("]",CELL("filename",$A$1))+1,255)) -> 0 | AW85: =SUMIFS(Forecast!AV:AV,Forecast!$C:$C,$A85,Forecast!$B:$B,MID(CELL("filename",$A$1),FIND("]",CELL("filename",$A$1))+1,255)) -> 0 | AX85: =SUMIFS(Forecast!AW:AW,Forecast!$C:$C,$A85,Forecast!$B:$B,MID(CELL("filename",$A$1),FIND("]",CELL("filename",$A$1))+1,255)) -> 0 | AY85: =SUMIFS(Forecast!AX:AX,Forecast!$C:$C,$A85,Forecast!$B:$B,MID(CELL("filename",$A$1),FIND("]",CELL("filename",$A$1))+1,255)) -> 0 | AZ85: 0 | BA85: 0 | BB85: 0 | BC85: 0 | BD85: 0 | BE85: 0 | BF85: 0 | BG85: 0 | BH85: 0 | BI85: 0 | BJ85: 0 | BK85: 0 | BL85: 0 | BM85: 0 | BN85: 0 | BO85: 0 | BP85: 0 | BQ85: 0 | BR85: 0 | BS85: 0 | BT85: 0 | BU85: 0 | BV85: 0 | BW85: 0 | BX85: 0 | BY85: 0 | BZ85: 0 | CA85: 0 | CB85: 0 | CC85: 0 | CD85: 0 | CE85: 0 | CF85: 0 | CG85: 0 | CH85: 0 | CI85: 0
A86: 2016 | C86: =SUMIFS(CY_Report!$W:$W,CY_Report!$J:$J,$A86,CY_Report!$E:$E,MID(CELL("filename",$A$1),FIND("]",CELL("filename",$A$1))+1,255),CY_Report!$U:$U,"<>*d*",CY_Report!$U:$U,"<>*t*",CY_Report!$N:$N,"<>"&" 00 00") -> 0 | D86: 0 | E86: =SUMIFS(Forecast!D:D,Forecast!$C:$C,$A86,Forecast!$B:$B,MID(CELL("filename",$A$1),FIND("]",CELL("filename",$A$1))+1,255)) -> 0 | F86: =SUMIFS(Forecast!E:E,Forecast!$C:$C,$A86,Forecast!$B:$B,MID(CELL("filename",$A$1),FIND("]",CELL("filename",$A$1))+1,255)) -> 0 | G86: =SUMIFS(Forecast!F:F,Forecast!$C:$C,$A86,Forecast!$B:$B,MID(CELL("filename",$A$1),FIND("]",CELL("filename",$A$1))+1,255)) -> 0 | H86: =SUMIFS(Forecast!G:G,Forecast!$C:$C,$A86,Forecast!$B:$B,MID(CELL("filename",$A$1),FIND("]",CELL("filename",$A$1))+1,255)) -> 0 | I86: =SUMIFS(Forecast!H:H,Forecast!$C:$C,$A86,Forecast!$B:$B,MID(CELL("filename",$A$1),FIND("]",CELL("filename",$A$1))+1,255)) -> 0 | J86: =SUMIFS(Forecast!I:I,Forecast!$C:$C,$A86,Forecast!$B:$B,MID(CELL("filename",$A$1),FIND("]",CELL("filename",$A$1))+1,255)) -> 0 | K86: =SUMIFS(Forecast!J:J,Forecast!$C:$C,$A86,Forecast!$B:$B,MID(CELL("filename",$A$1),FIND("]",CELL("filename",$A$1))+1,255)) -> 0 | L86: =SUMIFS(Forecast!K:K,Forecast!$C:$C,$A86,Forecast!$B:$B,MID(CELL("filename",$A$1),FIND("]",CELL("filename",$A$1))+1,255)) -> 0 | M86: =SUMIFS(Forecast!L:L,Forecast!$C:$C,$A86,Forecast!$B:$B,MID(CELL("filename",$A$1),FIND("]",CELL("filename",$A$1))+1,255)) -> 0 | N86: =SUMIFS(Forecast!M:M,Forecast!$C:$C,$A86,Forecast!$B:$B,MID(CELL("filename",$A$1),FIND("]",CELL("filename",$A$1))+1,255)) -> 0 | O86: =SUMIFS(Forecast!N:N,Forecast!$C:$C,$A86,Forecast!$B:$B,MID(CELL("filename",$A$1),FIND("]",CELL("filename",$A$1))+1,255)) -> 0 | P86: =SUMIFS(Forecast!O:O,Forecast!$C:$C,$A86,Forecast!$B:$B,MID(CELL("filename",$A$1),FIND("]",CELL("filename",$A$1))+1,255)) -> 0 | Q86: =SUMIFS(Forecast!P:P,Forecast!$C:$C,$A86,Forecast!$B:$B,MID(CELL("filename",$A$1),FIND("]",CELL("filename",$A$1))+1,255)) -> 0 | R86: =SUMIFS(Forecast!Q:Q,Forecast!$C:$C,$A86,Forecast!$B:$B,MID(CELL("filename",$A$1),FIND("]",CELL("filename",$A$1))+1,255)) -> 0 | S86: =SUMIFS(Forecast!R:R,Forecast!$C:$C,$A86,Forecast!$B:$B,MID(CELL("filename",$A$1),FIND("]",CELL("filename",$A$1))+1,255)) -> 0 | T86: =SUMIFS(Forecast!S:S,Forecast!$C:$C,$A86,Forecast!$B:$B,MID(CELL("filename",$A$1),FIND("]",CELL("filename",$A$1))+1,255)) -> 0 | U86: =SUMIFS(Forecast!T:T,Forecast!$C:$C,$A86,Forecast!$B:$B,MID(CELL("filename",$A$1),FIND("]",CELL("filename",$A$1))+1,255)) -> 0 | V86: =SUMIFS(Forecast!U:U,Forecast!$C:$C,$A86,Forecast!$B:$B,MID(CELL("filename",$A$1),FIND("]",CELL("filename",$A$1))+1,255)) -> 0 | W86: =SUMIFS(Forecast!V:V,Forecast!$C:$C,$A86,Forecast!$B:$B,MID(CELL("filename",$A$1),FIND("]",CELL("filename",$A$1))+1,255)) -> 0 | X86: =SUMIFS(Forecast!W:W,Forecast!$C:$C,$A86,Forecast!$B:$B,MID(CELL("filename",$A$1),FIND("]",CELL("filename",$A$1))+1,255)) -> 0 | Y86: =SUMIFS(Forecast!X:X,Forecast!$C:$C,$A86,Forecast!$B:$B,MID(CELL("filename",$A$1),FIND("]",CELL("filename",$A$1))+1,255)) -> 0 | Z86: =SUMIFS(Forecast!Y:Y,Forecast!$C:$C,$A86,Forecast!$B:$B,MID(CELL("filename",$A$1),FIND("]",CELL("filename",$A$1))+1,255)) -> 0 | AA86: =SUMIFS(Forecast!Z:Z,Forecast!$C:$C,$A86,Forecast!$B:$B,MID(CELL("filename",$A$1),FIND("]",CELL("filename",$A$1))+1,255)) -> 0 | AB86: =SUMIFS(Forecast!AA:AA,Forecast!$C:$C,$A86,Forecast!$B:$B,MID(CELL("filename",$A$1),FIND("]",CELL("filename",$A$1))+1,255)) -> 0 | AC86: =SUMIFS(Forecast!AB:AB,Forecast!$C:$C,$A86,Forecast!$B:$B,MID(CELL("filename",$A$1),FIND("]",CELL("filename",$A$1))+1,255)) -> 0 | AD86: =SUMIFS(Forecast!AC:AC,Forecast!$C:$C,$A86,Forecast!$B:$B,MID(CELL("filename",$A$1),FIND("]",CELL("filename",$A$1))+1,255)) -> 0 | AE86: =SUMIFS(Forecast!AD:AD,Forecast!$C:$C,$A86,Forecast!$B:$B,MID(CELL("filename",$A$1),FIND("]",CELL("filename",$A$1))+1,255)) -> 0 | AF86: =SUMIFS(Forecast!AE:AE,Forecast!$C:$C,$A86,Forecast!$B:$B,MID(CELL("filename",$A$1),FIND("]",CELL("filename",$A$1))+1,255)) -> 0 | AG86: =SUMIFS(Forecast!AF:AF,Forecast!$C:$C,$A86,Forecast!$B:$B,MID(CELL("filename",$A$1),FIND("]",CELL("filename",$A$1))+1,255)) -> 0 | AH86: =SUMIFS(Forecast!AG:AG,Forecast!$C:$C,$A86,Forecast!$B:$B,MID(CELL("filename",$A$1),FIND("]",CELL("filename",$A$1))+1,255)) -> 0 | AI86: =SUMIFS(Forecast!AH:AH,Forecast!$C:$C,$A86,Forecast!$B:$B,MID(CELL("filename",$A$1),FIND("]",CELL("filename",$A$1))+1,255)) -> 0 | AJ86: =SUMIFS(Forecast!AI:AI,Forecast!$C:$C,$A86,Forecast!$B:$B,MID(CELL("filename",$A$1),FIND("]",CELL("filename",$A$1))+1,255)) -> 0 | AK86: =SUMIFS(Forecast!AJ:AJ,Forecast!$C:$C,$A86,Forecast!$B:$B,MID(CELL("filename",$A$1),FIND("]",CELL("filename",$A$1))+1,255)) -> 0 | AL86: =SUMIFS(Forecast!AK:AK,Forecast!$C:$C,$A86,Forecast!$B:$B,MID(CELL("filename",$A$1),FIND("]",CELL("filename",$A$1))+1,255)) -> 0 | AM86: =SUMIFS(Forecast!AL:AL,Forecast!$C:$C,$A86,Forecast!$B:$B,MID(CELL("filename",$A$1),FIND("]",CELL("filename",$A$1))+1,255)) -> 0 | AN86: =SUMIFS(Forecast!AM:AM,Forecast!$C:$C,$A86,Forecast!$B:$B,MID(CELL("filename",$A$1),FIND("]",CELL("filename",$A$1))+1,255)) -> 0 | AO86: =SUMIFS(Forecast!AN:AN,Forecast!$C:$C,$A86,Forecast!$B:$B,MID(CELL("filename",$A$1),FIND("]",CELL("filename",$A$1))+1,255)) -> 0 | AP86: =SUMIFS(Forecast!AO:AO,Forecast!$C:$C,$A86,Forecast!$B:$B,MID(CELL("filename",$A$1),FIND("]",CELL("filename",$A$1))+1,255)) -> 0 | AQ86: =SUMIFS(Forecast!AP:AP,Forecast!$C:$C,$A86,Forecast!$B:$B,MID(CELL("filename",$A$1),FIND("]",CELL("filename",$A$1))+1,255)) -> 0 | AR86: =SUMIFS(Forecast!AQ:AQ,Forecast!$C:$C,$A86,Forecast!$B:$B,MID(CELL("filename",$A$1),FIND("]",CELL("filename",$A$1))+1,255)) -> 0 | AS86: =SUMIFS(Forecast!AR:AR,Forecast!$C:$C,$A86,Forecast!$B:$B,MID(CELL("filename",$A$1),FIND("]",CELL("filename",$A$1))+1,255)) -> 0 | AT86: =SUMIFS(Forecast!AS:AS,Forecast!$C:$C,$A86,Forecast!$B:$B,MID(CELL("filename",$A$1),FIND("]",CELL("filename",$A$1))+1,255)) -> 0 | AU86: =SUMIFS(Forecast!AT:AT,Forecast!$C:$C,$A86,Forecast!$B:$B,MID(CELL("filename",$A$1),FIND("]",CELL("filename",$A$1))+1,255)) -> 0 | AV86: =SUMIFS(Forecast!AU:AU,Forecast!$C:$C,$A86,Forecast!$B:$B,MID(CELL("filename",$A$1),FIND("]",CELL("filename",$A$1))+1,255)) -> 0 | AW86: =SUMIFS(Forecast!AV:AV,Forecast!$C:$C,$A86,Forecast!$B:$B,MID(CELL("filename",$A$1),FIND("]",CELL("filename",$A$1))+1,255)) -> 0 | AX86: =SUMIFS(Forecast!AW:AW,Forecast!$C:$C,$A86,Forecast!$B:$B,MID(CELL("filename",$A$1),FIND("]",CELL("filename",$A$1))+1,255)) -> 0 | AY86: =SUMIFS(Forecast!AX:AX,Forecast!$C:$C,$A86,Forecast!$B:$B,MID(CELL("filename",$A$1),FIND("]",CELL("filename",$A$1))+1,255)) -> 0 | AZ86: 0 | BA86: 0 | BB86: 0 | BC86: 0 | BD86: 0 | BE86: 0 | BF86: 0 | BG86: 0 | BH86: 0 | BI86: 0 | BJ86: 0 | BK86: 0 | BL86: 0 | BM86: 0 | BN86: 0 | BO86: 0 | BP86: 0 | BQ86: 0 | BR86: 0 | BS86: 0 | BT86: 0 | BU86: 0 | BV86: 0 | BW86: 0 | BX86: 0 | BY86: 0 | BZ86: 0 | CA86: 0 | CB86: 0 | CC86: 0 | CD86: 0 | CE86: 0 | CF86: 0 | CG86: 0 | CH86: 0 | CI86: 0
A87: 2017 | C87: =SUMIFS(CY_Report!$W:$W,CY_Report!$J:$J,$A87,CY_Report!$E:$E,MID(CELL("filename",$A$1),FIND("]",CELL("filename",$A$1))+1,255),CY_Report!$U:$U,"<>*d*",CY_Report!$U:$U,"<>*t*",CY_Report!$N:$N,"<>"&" 00 00") -> 0 | D87: 0 | E87: =SUMIFS(Forecast!D:D,Forecast!$C:$C,$A87,Forecast!$B:$B,MID(CELL("filename",$A$1),FIND("]",CELL("filename",$A$1))+1,255)) -> 0 | F87: =SUMIFS(Forecast!E:E,Forecast!$C:$C,$A87,Forecast!$B:$B,MID(CELL("filename",$A$1),FIND("]",CELL("filename",$A$1))+1,255)) -> 0 | G87: =SUMIFS(Forecast!F:F,Forecast!$C:$C,$A87,Forecast!$B:$B,MID(CELL("filename",$A$1),FIND("]",CELL("filename",$A$1))+1,255)) -> 0 | H87: =SUMIFS(Forecast!G:G,Forecast!$C:$C,$A87,Forecast!$B:$B,MID(CELL("filename",$A$1),FIND("]",CELL("filename",$A$1))+1,255)) -> 0 | I87: =SUMIFS(Forecast!H:H,Forecast!$C:$C,$A87,Forecast!$B:$B,MID(CELL("filename",$A$1),FIND("]",CELL("filename",$A$1))+1,255)) -> 0 | J87: =SUMIFS(Forecast!I:I,Forecast!$C:$C,$A87,Forecast!$B:$B,MID(CELL("filename",$A$1),FIND("]",CELL("filename",$A$1))+1,255)) -> 0 | K87: =SUMIFS(Forecast!J:J,Forecast!$C:$C,$A87,Forecast!$B:$B,MID(CELL("filename",$A$1),FIND("]",CELL("filename",$A$1))+1,255)) -> 0 | L87: =SUMIFS(Forecast!K:K,Forecast!$C:$C,$A87,Forecast!$B:$B,MID(CELL("filename",$A$1),FIND("]",CELL("filename",$A$1))+1,255)) -> 0 | M87: =SUMIFS(Forecast!L:L,Forecast!$C:$C,$A87,Forecast!$B:$B,MID(CELL("filename",$A$1),FIND("]",CELL("filename",$A$1))+1,255)) -> 0 | N87: =SUMIFS(Forecast!M:M,Forecast!$C:$C,$A87,Forecast!$B:$B,MID(CELL("filename",$A$1),FIND("]",CELL("filename",$A$1))+1,255)) -> 0 | O87: =SUMIFS(Forecast!N:N,Forecast!$C:$C,$A87,Forecast!$B:$B,MID(CELL("filename",$A$1),FIND("]",CELL("filename",$A$1))+1,255)) -> 0 | P87: =SUMIFS(Forecast!O:O,Forecast!$C:$C,$A87,Forecast!$B:$B,MID(CELL("filename",$A$1),FIND("]",CELL("filename",$A$1))+1,255)) -> 0 | Q87: =SUMIFS(Forecast!P:P,Forecast!$C:$C,$A87,Forecast!$B:$B,MID(CELL("filename",$A$1),FIND("]",CELL("filename",$A$1))+1,255)) -> 0 | R87: =SUMIFS(Forecast!Q:Q,Forecast!$C:$C,$A87,Forecast!$B:$B,MID(CELL("filename",$A$1),FIND("]",CELL("filename",$A$1))+1,255)) -> 0 | S87: =SUMIFS(Forecast!R:R,Forecast!$C:$C,$A87,Forecast!$B:$B,MID(CELL("filename",$A$1),FIND("]",CELL("filename",$A$1))+1,255)) -> 0 | T87: =SUMIFS(Forecast!S:S,Forecast!$C:$C,$A87,Forecast!$B:$B,MID(CELL("filename",$A$1),FIND("]",CELL("filename",$A$1))+1,255)) -> 0 | U87: =SUMIFS(Forecast!T:T,Forecast!$C:$C,$A87,Forecast!$B:$B,MID(CELL("filename",$A$1),FIND("]",CELL("filename",$A$1))+1,255)) -> 0 | V87: =SUMIFS(Forecast!U:U,Forecast!$C:$C,$A87,Forecast!$B:$B,MID(CELL("filename",$A$1),FIND("]",CELL("filename",$A$1))+1,255)) -> 0 | W87: =SUMIFS(Forecast!V:V,Forecast!$C:$C,$A87,Forecast!$B:$B,MID(CELL("filename",$A$1),FIND("]",CELL("filename",$A$1))+1,255)) -> 0 | X87: =SUMIFS(Forecast!W:W,Forecast!$C:$C,$A87,Forecast!$B:$B,MID(CELL("filename",$A$1),FIND("]",CELL("filename",$A$1))+1,255)) -> 0 | Y87: =SUMIFS(Forecast!X:X,Forecast!$C:$C,$A87,Forecast!$B:$B,MID(CELL("filename",$A$1),FIND("]",CELL("filename",$A$1))+1,255)) -> 0 | Z87: =SUMIFS(Forecast!Y:Y,Forecast!$C:$C,$A87,Forecast!$B:$B,MID(CELL("filename",$A$1),FIND("]",CELL("filename",$A$1))+1,255)) -> 0 | AA87: =SUMIFS(Forecast!Z:Z,Forecast!$C:$C,$A87,Forecast!$B:$B,MID(CELL("filename",$A$1),FIND("]",CELL("filename",$A$1))+1,255)) -> 0 | AB87: =SUMIFS(Forecast!AA:AA,Forecast!$C:$C,$A87,Forecast!$B:$B,MID(CELL("filename",$A$1),FIND("]",CELL("filename",$A$1))+1,255)) -> 0 | AC87: =SUMIFS(Forecast!AB:AB,Forecast!$C:$C,$A87,Forecast!$B:$B,MID(CELL("filename",$A$1),FIND("]",CELL("filename",$A$1))+1,255)) -> 0 | AD87: =SUMIFS(Forecast!AC:AC,Forecast!$C:$C,$A87,Forecast!$B:$B,MID(CELL("filename",$A$1),FIND("]",CELL("filename",$A$1))+1,255)) -> 0 | AE87: =SUMIFS(Forecast!AD:AD,Forecast!$C:$C,$A87,Forecast!$B:$B,MID(CELL("filename",$A$1),FIND("]",CELL("filename",$A$1))+1,255)) -> 0 | AF87: =SUMIFS(Forecast!AE:AE,Forecast!$C:$C,$A87,Forecast!$B:$B,MID(CELL("filename",$A$1),FIND("]",CELL("filename",$A$1))+1,255)) -> 0 | AG87: =SUMIFS(Forecast!AF:AF,Forecast!$C:$C,$A87,Forecast!$B:$B,MID(CELL("filename",$A$1),FIND("]",CELL("filename",$A$1))+1,255)) -> 0 | AH87: =SUMIFS(Forecast!AG:AG,Forecast!$C:$C,$A87,Forecast!$B:$B,MID(CELL("filename",$A$1),FIND("]",CELL("filename",$A$1))+1,255)) -> 0 | AI87: =SUMIFS(Forecast!AH:AH,Forecast!$C:$C,$A87,Forecast!$B:$B,MID(CELL("filename",$A$1),FIND("]",CELL("filename",$A$1))+1,255)) -> 0 | AJ87: =SUMIFS(Forecast!AI:AI,Forecast!$C:$C,$A87,Forecast!$B:$B,MID(CELL("filename",$A$1),FIND("]",CELL("filename",$A$1))+1,255)) -> 0 | AK87: =SUMIFS(Forecast!AJ:AJ,Forecast!$C:$C,$A87,Forecast!$B:$B,MID(CELL("filename",$A$1),FIND("]",CELL("filename",$A$1))+1,255)) -> 0 | AL87: =SUMIFS(Forecast!AK:AK,Forecast!$C:$C,$A87,Forecast!$B:$B,MID(CELL("filename",$A$1),FIND("]",CELL("filename",$A$1))+1,255)) -> 0 | AM87: =SUMIFS(Forecast!AL:AL,Forecast!$C:$C,$A87,Forecast!$B:$B,MID(CELL("filename",$A$1),FIND("]",CELL("filename",$A$1))+1,255)) -> 0 | AN87: =SUMIFS(Forecast!AM:AM,Forecast!$C:$C,$A87,Forecast!$B:$B,MID(CELL("filename",$A$1),FIND("]",CELL("filename",$A$1))+1,255)) -> 0 | AO87: =SUMIFS(Forecast!AN:AN,Forecast!$C:$C,$A87,Forecast!$B:$B,MID(CELL("filename",$A$1),FIND("]",CELL("filename",$A$1))+1,255)) -> 0 | AP87: =SUMIFS(Forecast!AO:AO,Forecast!$C:$C,$A87,Forecast!$B:$B,MID(CELL("filename",$A$1),FIND("]",CELL("filename",$A$1))+1,255)) -> 0 | AQ87: =SUMIFS(Forecast!AP:AP,Forecast!$C:$C,$A87,Forecast!$B:$B,MID(CELL("filename",$A$1),FIND("]",CELL("filename",$A$1))+1,255)) -> 0 | AR87: =SUMIFS(Forecast!AQ:AQ,Forecast!$C:$C,$A87,Forecast!$B:$B,MID(CELL("filename",$A$1),FIND("]",CELL("filename",$A$1))+1,255)) -> 0 | AS87: =SUMIFS(Forecast!AR:AR,Forecast!$C:$C,$A87,Forecast!$B:$B,MID(CELL("filename",$A$1),FIND("]",CELL("filename",$A$1))+1,255)) -> 0 | AT87: =SUMIFS(Forecast!AS:AS,Forecast!$C:$C,$A87,Forecast!$B:$B,MID(CELL("filename",$A$1),FIND("]",CELL("filename",$A$1))+1,255)) -> 0 | AU87: =SUMIFS(Forecast!AT:AT,Forecast!$C:$C,$A87,Forecast!$B:$B,MID(CELL("filename",$A$1),FIND("]",CELL("filename",$A$1))+1,255)) -> 0 | AV87: =SUMIFS(Forecast!AU:AU,Forecast!$C:$C,$A87,Forecast!$B:$B,MID(CELL("filename",$A$1),FIND("]",CELL("filename",$A$1))+1,255)) -> 0 | AW87: =SUMIFS(Forecast!AV:AV,Forecast!$C:$C,$A87,Forecast!$B:$B,MID(CELL("filename",$A$1),FIND("]",CELL("filename",$A$1))+1,255)) -> 0 | AX87: =SUMIFS(Forecast!AW:AW,Forecast!$C:$C,$A87,Forecast!$B:$B,MID(CELL("filename",$A$1),FIND("]",CELL("filename",$A$1))+1,255)) -> 0 | AY87: =SUMIFS(Forecast!AX:AX,Forecast!$C:$C,$A87,Forecast!$B:$B,MID(CELL("filename",$A$1),FIND("]",CELL("filename",$A$1))+1,255)) -> 0 | AZ87: 0 | BA87: 0 | BB87: 0 | BC87: 0 | BD87: 0 | BE87: 0 | BF87: 0 | BG87: 0 | BH87: 0 | BI87: 0 | BJ87: 0 | BK87: 0 | BL87: 0 | BM87: 0 | BN87: 0 | BO87: 0 | BP87: 0 | BQ87: 0 | BR87: 0 | BS87: 0 | BT87: 0 | BU87: 0 | BV87: 0 | BW87: 0 | BX87: 0 | BY87: 0 | BZ87: 0 | CA87: 0 | CB87: 0 | CC87: 0 | CD87: 0 | CE87: 0 | CF87: 0 | CG87: 0 | CH87: 0 | CI87: 0
E88: 0 | F88: 0 | G88: 0 | H88: 0 | I88: 0 | J88: 0 | K88: 0 | L88: 0 | M88: 0 | N88: 0 | O88: 0 | P88: 0 | Q88: 0 | R88: 0 | S88: 0 | T88: 0 | U88: 0 | V88: 0 | W88: 0 | X88: 0 | Y88: 0 | Z88: 0 | AA88: 0 | AB88: 0 | AC88: 0 | AD88: 0 | AE88: 0 | AF88: 0 | AG88: 0 | AH88: 0 | AI88: 0 | AJ88: 0 | AK88: 0 | AL88: 0 | AM88: 0 | AN88: 0 | AO88: 0 | AP88: 0 | AQ88: 0 | AR88: 0 | AS88: 0 | AT88: 0 | AU88: 0 | AV88: 0 | AW88: 0 | AX88: 0 | AY88: 0 | AZ88: 0 | BA88: 0 | BB88: 0 | BC88: 0 | BD88: 0 | BE88: 0 | BF88: 0 | BG88: 0 | BH88: 0 | BI88: 0 | BJ88: 0 | BK88: 0 | BL88: 0 | BM88: 0 | BN88: 0 | BO88: 0 | BP88: 0 | BQ88: 0 | BR88: 0 | BS88: 0 | BT88: 0 | BU88: 0 | BV88: 0 | BW88: 0 | BX88: 0 | BY88: 0 | BZ88: 0 | CA88: 0 | CB88: 0 | CC88: 0 | CD88: 0 | CE88: 0 | CF88: 0 | CG88: 0 | CH88: 0 | CI88: 0
B89: Total: | C89: =SUM(C67:C88) -> 0 | D89: Tax Depr. Expense | E89: =SUM(E67:E88) -> 0 | F89: =SUM(F67:F88) -> 0 | G89: =SUM(G67:G88) -> 0 | H89: 0 | I89: 0 | J89: 0 | K89: 0 | L89: 0 | M89: 0 | N89: 0 | O89: 0 | P89: 0 | Q89: 0 | R89: 0 | S89: 0 | T89: 0 | U89: 0 | V89: 0 | W89: 0 | X89: 0 | Y89: 0 | Z89: 0 | AA89: 0 | AB89: 0 | AC89: 0 | AD89: 0 | AE89: 0 | AF89: 0 | AG89: 0 | AH89: 0 | AI89: 0 | AJ89: 0 | AK89: 0 | AL89: 0 | AM89: 0 | AN89: 0 | AO89: 0 | AP89: 0 | AQ89: 0 | AR89: 0 | AS89: 0 | AT89: 0 | AU89: 0 | AV89: 0 | AW89: 0 | AX89: 0 | AY89: 0 | AZ89: =SUM(AZ67:AZ88) -> 0 | BA89: 0 | BB89: 0 | BC89: 0 | BD89: 0 | BE89: 0 | BF89: 0 | BG89: 0 | BH89: 0 | BI89: 0 | BJ89: 0 | BK89: 0 | BL89: 0 | BM89: 0 | BN89: 0 | BO89: 0 | BP89: 0 | BQ89: 0 | BR89: 0 | BS89: 0 | BT89: 0 | BU89: 0 | BV89: 0 | BW89: 0 | BX89: 0 | BY89: 0 | BZ89: 0 | CA89: 0 | CB89: 0 | CC89: 0 | CD89: 0 | CE89: 0 | CF89: 0 | CG89: 0 | CH89: 0 | CI89: 0
B93: Ending 2017 | E93: 2018 | F93: =E93+1 -> 2019 | G93: 2020 | H93: 2021 | I93: 2022 | J93: 2023 | K93: 2024 | L93: 2025 | M93: 2026 | N93: 2027 | O93: 2028 | P93: 2029 | Q93: 2030 | R93: 2031 | S93: 2032 | T93: 2033 | U93: 2034 | V93: 2035 | W93: 2036 | X93: 2037 | Y93: 2038 | Z93: 2039 | AA93: 2040 | AB93: 2041 | AC93: 2042 | AD93: 2043 | AE93: 2044 | AF93: 2045 | AG93: 2046 | AH93: 2047 | AI93: 2048 | AJ93: 2049 | AK93: 2050 | AL93: 2051 | AM93: 2052 | AN93: 2053 | AO93: 2054 | AP93: 2055 | AQ93: 2056 | AR93: 2057 | AS93: 2058 | AT93: 2059 | AU93: 2060 | AV93: 2061 | AW93: 2062 | AX93: 2063 | AY93: 2064 | AZ93: 2065 | BA93: 2066 | BB93: 2067 | BC93: 2068 | BD93: 2069 | BE93: 2070 | BF93: 2071 | BG93: 2072 | BH93: 2073 | BI93: 2074 | BJ93: 2075 | BK93: 2076 | BL93: 2077 | BM93: 2078 | BN93: 2079 | BO93: 2080 | BP93: 2081 | BQ93: 2082 | BR93: =BQ93+1 -> 2083 | BS93: 2084 | BT93: 2085 | BU93: 2086 | BV93: 2087 | BW93: 2088 | BX93: 2089 | BY93: 2090 | BZ93: 2091 | CA93: 2092 | CB93: 2093 | CC93: 2094 | CD93: 2095 | CE93: 2096 | CF93: 2097 | CG93: 2098 | CH93: 2099 | CI93: 2100
A94: 1997 & Prior | B94: Initial Difference | C94: =IF(VLOOKUP(A94,$A$38:$C$58,3)-VLOOKUP(A94,$A$67:$C$87,3)<0,0,VLOOKUP(A94,$A$38:$C$58,3)-VLOOKUP(A94,$A$67:$C$87,3)) -> 0 | D94: Begin Cumulative Difference | E94: =+$C94 -> 0 | F94: =+E96 -> 0 | G94: =+F96 -> 0 | H94: 0 | I94: 0 | J94: 0 | K94: 0 | L94: 0 | M94: 0 | N94: 0 | O94: 0 | P94: 0 | Q94: 0 | R94: 0 | S94: 0 | T94: 0 | U94: 0 | V94: 0 | W94: 0 | X94: 0 | Y94: 0 | Z94: 0 | AA94: 0 | AB94: 0 | AC94: 0 | AD94: 0 | AE94: 0 | AF94: 0 | AG94: 0 | AH94: 0 | AI94: 0 | AJ94: 0 | AK94: 0 | AL94: 0 | AM94: 0 | AN94: 0 | AO94: 0 | AP94: 0 | AQ94: 0 | AR94: 0 | AS94: 0 | AT94: 0 | AU94: 0 | AV94: 0 | AW94: 0 | AX94: 0 | AY94: 0 | AZ94: 0 | BA94: 0 | BB94: 0 | BC94: 0 | BD94: 0 | BE94: 0 | BF94: 0 | BG94: 0 | BH94: 0 | BI94: 0 | BJ94: 0 | BK94: 0 | BL94: 0 | BM94: 0 | BN94: 0 | BO94: 0 | BP94: 0 | BQ94: 0 | BR94: 0 | BS94: =+BR96 -> 0 | BT94: 0 | BU94: 0 | BV94: 0 | BW94: 0 | BX94: 0 | BY94: 0 | BZ94: 0 | CA94: 0 | CB94: 0 | CC94: 0 | CD94: 0 | CE94: 0 | CF94: 0 | CG94: 0 | CH94: 0 | CI94: 0
D95: Current Diff (Tax - Book) | E95: =IF(E94<=0, 0,VLOOKUP($A94,$A$67:$CI$87,E93-2013)-VLOOKUP($A94,$A$38:$CI$58,E93-2013)) -> 0 | F95: =IF(F94<=0, 0,VLOOKUP($A94,$A$67:$CI$87,F93-2013)-VLOOKUP($A94,$A$38:$CI$58,F93-2013)) -> 0 | G95: =IF(G94<=0, 0,VLOOKUP($A94,$A$67:$CI$87,G93-2013)-VLOOKUP($A94,$A$38:$CI$58,G93-2013)) -> 0 | H95: 0 | I95: 0 | J95: 0 | K95: 0 | L95: 0 | M95: 0 | N95: 0 | O95: 0 | P95: 0 | Q95: 0 | R95: 0 | S95: 0 | T95: 0 | U95: 0 | V95: 0 | W95: 0 | X95: 0 | Y95: 0 | Z95: 0 | AA95: 0 | AB95: 0 | AC95: 0 | AD95: 0 | AE95: 0 | AF95: 0 | AG95: 0 | AH95: 0 | AI95: 0 | AJ95: 0 | AK95: 0 | AL95: 0 | AM95: 0 | AN95: 0 | AO95: 0 | AP95: 0 | AQ95: 0 | AR95: 0 | AS95: 0 | AT95: 0 | AU95: 0 | AV95: 0 | AW95: 0 | AX95: 0 | AY95: 0 | AZ95: 0 | BA95: 0 | BB95: 0 | BC95: 0 | BD95: 0 | BE95: 0 | BF95: 0 | BG95: 0 | BH95: 0 | BI95: 0 | BJ95: 0 | BK95: 0 | BL95: 0 | BM95: 0 | BN95: 0 | BO95: 0 | BP95: 0 | BQ95: 0 | BR95: 0 | BS95: =IF(BS94<=0, 0,VLOOKUP($A94,$A$67:$CI$87,BS93-2013)-VLOOKUP($A94,$A$38:$CI$58,BS93-2013)) -> 0 | BT95: 0 | BU95: 0 | BV95: 0 | BW95: 0 | BX95: 0 | BY95: 0 | BZ95: 0 | CA95: 0 | CB95: 0 | CC95: 0 | CD95: 0 | CE95: 0 | CF95: 0 | CG95: 0 | CH95: 0 | CI95: 0
D96: End Cumulative Difference | E96: =+E94+E95 -> 0 | F96: =IF(F94+F95< 0, 0, F94+F95) -> 0 | G96: =IF(G94+G95< 0, 0, G94+G95) -> 0 | H96: 0 | I96: 0 | J96: 0 | K96: 0 | L96: 0 | M96: 0 | N96: 0 | O96: 0 | P96: 0 | Q96: 0 | R96: 0 | S96: 0 | T96: 0 | U96: 0 | V96: 0 | W96: 0 | X96: 0 | Y96: 0 | Z96: 0 | AA96: 0 | AB96: 0 | AC96: 0 | AD96: 0 | AE96: 0 | AF96: 0 | AG96: 0 | AH96: 0 | AI96: 0 | AJ96: 0 | AK96: 0 | AL96: 0 | AM96: 0 | AN96: 0 | AO96: 0 | AP96: 0 | AQ96: 0 | AR96: 0 | AS96: 0 | AT96: 0 | AU96: 0 | AV96: 0 | AW96: 0 | AX96: 0 | AY96: 0 | AZ96: =IF(AZ94+AZ95< 0, 0, AZ94+AZ95) -> 0 | BA96: =IF(BA94+BA95< 0, 0, BA94+BA95) -> 0 | BB96: 0 | BC96: 0 | BD96: 0 | BE96: 0 | BF96: 0 | BG96: 0 | BH96: 0 | BI96: 0 | BJ96: 0 | BK96: 0 | BL96: 0 | BM96: 0 | BN96: 0 | BO96: 0 | BP96: 0 | BQ96: 0 | BR96: 0 | BS96: 0 | BT96: 0 | BU96: 0 | BV96: 0 | BW96: 0 | BX96: 0 | BY96: 0 | BZ96: 0 | CA96: 0 | CB96: 0 | CC96: 0 | CD96: 0 | CE96: 0 | CF96: 0 | CG96: 0 | CH96: 0 | CI96: 0
D97: Current Diff (Tax - Book) Utilized | E97: =IF(E94+E95>0, E95, E94+E95) -> 0 | F97: =IF(F94+F95>0, F95, F94*-1) -> 0 | G97: =IF(G94+G95>0, G95, G94*-1) -> 0 | H97: 0 | I97: 0 | J97: 0 | K97: 0 | L97: 0 | M97: 0 | N97: 0 | O97: 0 | P97: 0 | Q97: 0 | R97: 0 | S97: 0 | T97: 0 | U97: 0 | V97: 0 | W97: 0 | X97: 0 | Y97: 0 | Z97: 0 | AA97: 0 | AB97: 0 | AC97: 0 | AD97: 0 | AE97: 0 | AF97: 0 | AG97: 0 | AH97: 0 | AI97: 0 | AJ97: 0 | AK97: 0 | AL97: 0 | AM97: 0 | AN97: 0 | AO97: 0 | AP97: 0 | AQ97: 0 | AR97: 0 | AS97: 0 | AT97: 0 | AU97: 0 | AV97: 0 | AW97: 0 | AX97: 0 | AY97: 0 | AZ97: 0 | BA97: 0 | BB97: 0 | BC97: 0 | BD97: 0 | BE97: 0 | BF97: 0 | BG97: 0 | BH97: 0 | BI97: 0 | BJ97: 0 | BK97: 0 | BL97: 0 | BM97: 0 | BN97: 0 | BO97: 0 | BP97: 0 | BQ97: 0 | BR97: 0 | BS97: =IF(BS94+BS95>0, BS95, BS94*-1) -> 0 | BT97: 0 | BU97: 0 | BV97: 0 | BW97: 0 | BX97: 0 | BY97: 0 | BZ97: 0 | CA97: 0 | CB97: 0 | CC97: 0 | CD97: 0 | CE97: 0 | CF97: 0 | CG97: 0 | CH97: 0 | CI97: 0
B98: Historical Tax rate | C98: =+$E$2 -> 0.38575 | D98: Tax rate (or ARAM rate) | E98: =IF(E94=0,0,IF(E95>0,$C99,C103)) -> 0 | F98: =IF(F94=0,0,IF(F95>0,$C99,E104)) -> 0 | G98: =IF(G94=0,0,IF(G95>0,$C99,F104)) -> 0 | H98: 0 | I98: 0 | J98: 0 | K98: 0 | L98: 0 | M98: 0 | N98: 0 | O98: 0 | P98: 0 | Q98: 0 | R98: 0 | S98: 0 | T98: 0 | U98: 0 | V98: 0 | W98: 0 | X98: 0 | Y98: 0 | Z98: 0 | AA98: 0 | AB98: 0 | AC98: 0 | AD98: 0 | AE98: 0 | AF98: 0 | AG98: 0 | AH98: 0 | AI98: 0 | AJ98: 0 | AK98: 0 | AL98: 0 | AM98: 0 | AN98: 0 | AO98: 0 | AP98: 0 | AQ98: 0 | AR98: 0 | AS98: 0 | AT98: 0 | AU98: 0 | AV98: 0 | AW98: 0 | AX98: 0 | AY98: 0 | AZ98: 0 | BA98: 0 | BB98: 0 | BC98: 0 | BD98: 0 | BE98: 0 | BF98: 0 | BG98: 0 | BH98: 0 | BI98: 0 | BJ98: 0 | BK98: 0 | BL98: 0 | BM98: 0 | BN98: 0 | BO98: 0 | BP98: 0 | BQ98: 0 | BR98: 0 | BS98: =IF(BS94=0,0,IF(BS95>0,$C99,BR104)) -> 0 | BT98: 0 | BU98: 0 | BV98: 0 | BW98: 0 | BX98: 0 | BY98: 0 | BZ98: 0 | CA98: 0 | CB98: 0 | CC98: 0 | CD98: 0 | CE98: 0 | CF98: 0 | CG98: 0 | CH98: 0 | CI98: 0
B99: Current Statutory Rate | C99: =+$E$3 -> 0.25345 | D99: Begin Current DFIT @ Current Statutory | E99: =IF(E94=0,0,E97*$C99) -> 0 | F99: =IF(F94=0,0,F97*$C99) -> 0 | G99: =IF(G94=0,0,G97*$C99) -> 0 | H99: 0 | I99: 0 | J99: 0 | K99: 0 | L99: 0 | M99: 0 | N99: 0 | O99: 0 | P99: 0 | Q99: 0 | R99: 0 | S99: 0 | T99: 0 | U99: 0 | V99: 0 | W99: 0 | X99: 0 | Y99: 0 | Z99: 0 | AA99: 0 | AB99: 0 | AC99: 0 | AD99: 0 | AE99: 0 | AF99: 0 | AG99: 0 | AH99: 0 | AI99: 0 | AJ99: 0 | AK99: 0 | AL99: 0 | AM99: 0 | AN99: 0 | AO99: 0 | AP99: 0 | AQ99: 0 | AR99: 0 | AS99: 0 | AT99: 0 | AU99: 0 | AV99: 0 | AW99: 0 | AX99: 0 | AY99: 0 | AZ99: 0 | BA99: 0 | BB99: 0 | BC99: 0 | BD99: 0 | BE99: 0 | BF99: 0 | BG99: 0 | BH99: 0 | BI99: 0 | BJ99: 0 | BK99: 0 | BL99: 0 | BM99: 0 | BN99: 0 | BO99: 0 | BP99: 0 | BQ99: 0 | BR99: 0 | BS99: =IF(BS94=0,0,BS97*$C99) -> 0 | BT99: 0 | BU99: 0 | BV99: 0 | BW99: 0 | BX99: 0 | BY99: 0 | BZ99: 0 | CA99: 0 | CB99: 0 | CC99: 0 | CD99: 0 | CE99: 0 | CF99: 0 | CG99: 0 | CH99: 0 | CI99: 0
D100: Begin Current DFIT at Statutory or ARAM Rate | E100: =+E97*E98 -> 0 | F100: =+F97*F98 -> 0 | G100: =+G97*G98 -> 0 | H100: 0 | I100: 0 | J100: 0 | K100: 0 | L100: 0 | M100: 0 | N100: 0 | O100: 0 | P100: 0 | Q100: 0 | R100: 0 | S100: 0 | T100: 0 | U100: 0 | V100: 0 | W100: 0 | X100: 0 | Y100: 0 | Z100: 0 | AA100: 0 | AB100: 0 | AC100: 0 | AD100: 0 | AE100: 0 | AF100: 0 | AG100: 0 | AH100: 0 | AI100: 0 | AJ100: 0 | AK100: 0 | AL100: 0 | AM100: 0 | AN100: 0 | AO100: 0 | AP100: 0 | AQ100: 0 | AR100: 0 | AS100: 0 | AT100: 0 | AU100: 0 | AV100: 0 | AW100: 0 | AX100: 0 | AY100: 0 | AZ100: 0 | BA100: 0 | BB100: 0 | BC100: 0 | BD100: 0 | BE100: 0 | BF100: 0 | BG100: 0 | BH100: 0 | BI100: 0 | BJ100: 0 | BK100: 0 | BL100: 0 | BM100: 0 | BN100: 0 | BO100: 0 | BP100: 0 | BQ100: 0 | BR100: 0 | BS100: =+BS97*BS98 -> 0 | BT100: 0 | BU100: 0 | BV100: 0 | BW100: 0 | BX100: 0 | BY100: 0 | BZ100: 0 | CA100: 0 | CB100: 0 | CC100: 0 | CD100: 0 | CE100: 0 | CF100: 0 | CG100: 0 | CH100: 0 | CI100: 0
B101: Initial Cumulative DFIT | C101: =+C94*C98 -> 0 | D101: Begin Cumulative DFIT | E101: =+C101 -> 0 | F101: =+E102 -> 0 | G101: =+F102 -> 0 | H101: 0 | I101: 0 | J101: 0 | K101: 0 | L101: 0 | M101: 0 | N101: 0 | O101: 0 | P101: 0 | Q101: 0 | R101: 0 | S101: 0 | T101: 0 | U101: 0 | V101: 0 | W101: 0 | X101: 0 | Y101: 0 | Z101: 0 | AA101: 0 | AB101: 0 | AC101: 0 | AD101: 0 | AE101: 0 | AF101: 0 | AG101: 0 | AH101: 0 | AI101: 0 | AJ101: 0 | AK101: 0 | AL101: 0 | AM101: 0 | AN101: 0 | AO101: 0 | AP101: 0 | AQ101: 0 | AR101: 0 | AS101: 0 | AT101: 0 | AU101: 0 | AV101: 0 | AW101: 0 | AX101: 0 | AY101: 0 | AZ101: 0 | BA101: 0 | BB101: 0 | BC101: 0 | BD101: 0 | BE101: 0 | BF101: 0 | BG101: 0 | BH101: 0 | BI101: 0 | BJ101: 0 | BK101: 0 | BL101: 0 | BM101: 0 | BN101: 0 | BO101: 0 | BP101: 0 | BQ101: 0 | BR101: 0 | BS101: =+BR102 -> 0 | BT101: 0 | BU101: 0 | BV101: 0 | BW101: 0 | BX101: 0 | BY101: 0 | BZ101: 0 | CA101: 0 | CB101: 0 | CC101: 0 | CD101: 0 | CE101: 0 | CF101: 0 | CG101: 0 | CH101: 0 | CI101: 0
D102: End Cumulative DFIT | E102: =+E101+E100 -> 0 | F102: =IF(F101+F100<=0,0, F101+F100) -> 0 | G102: =IF(G101+G100<=0,0, G101+G100) -> 0 | H102: 0 | I102: 0 | J102: 0 | K102: 0 | L102: 0 | M102: 0 | N102: 0 | O102: 0 | P102: 0 | Q102: 0 | R102: 0 | S102: 0 | T102: 0 | U102: 0 | V102: 0 | W102: 0 | X102: 0 | Y102: 0 | Z102: 0 | AA102: 0 | AB102: 0 | AC102: 0 | AD102: 0 | AE102: 0 | AF102: 0 | AG102: 0 | AH102: 0 | AI102: 0 | AJ102: 0 | AK102: 0 | AL102: 0 | AM102: 0 | AN102: 0 | AO102: 0 | AP102: 0 | AQ102: 0 | AR102: 0 | AS102: 0 | AT102: 0 | AU102: 0 | AV102: 0 | AW102: 0 | AX102: 0 | AY102: 0 | AZ102: 0 | BA102: 0 | BB102: 0 | BC102: 0 | BD102: 0 | BE102: 0 | BF102: 0 | BG102: 0 | BH102: 0 | BI102: 0 | BJ102: 0 | BK102: 0 | BL102: 0 | BM102: 0 | BN102: 0 | BO102: 0 | BP102: 0 | BQ102: 0 | BR102: 0 | BS102: =IF(BS101+BS100<=0,0, BS101+BS100) -> 0 | BT102: 0 | BU102: 0 | BV102: 0 | BW102: 0 | BX102: 0 | BY102: 0 | BZ102: 0 | CA102: 0 | CB102: 0 | CC102: 0 | CD102: 0 | CE102: 0 | CF102: 0 | CG102: 0 | CH102: 0 | CI102: 0
B103: Initial ARAM Rate (cum dfit/cum diff) | C103: =IF(C94=0,0,C101/C94) -> 0 | D103: Begin ARAM Rate (cum dfit/cum diff) | E103: =IF(E94=0,0,+E101/E94) -> 0 | F103: =IF(F94=0,0,+F101/F94) -> 0 | G103: =IF(G94=0,0,+G101/G94) -> 0 | H103: 0 | I103: 0 | J103: 0 | K103: 0 | L103: 0 | M103: 0 | N103: 0 | O103: 0 | P103: 0 | Q103: 0 | R103: 0 | S103: 0 | T103: 0 | U103: 0 | V103: 0 | W103: 0 | X103: 0 | Y103: 0 | Z103: 0 | AA103: 0 | AB103: 0 | AC103: 0 | AD103: 0 | AE103: 0 | AF103: 0 | AG103: 0 | AH103: 0 | AI103: 0 | AJ103: 0 | AK103: 0 | AL103: 0 | AM103: 0 | AN103: 0 | AO103: 0 | AP103: 0 | AQ103: 0 | AR103: 0 | AS103: 0 | AT103: 0 | AU103: 0 | AV103: 0 | AW103: 0 | AX103: 0 | AY103: 0 | AZ103: 0 | BA103: 0 | BB103: 0 | BC103: 0 | BD103: 0 | BE103: 0 | BF103: 0 | BG103: 0 | BH103: 0 | BI103: 0 | BJ103: 0 | BK103: 0 | BL103: 0 | BM103: 0 | BN103: 0 | BO103: 0 | BP103: 0 | BQ103: 0 | BR103: 0 | BS103: =IF(BS94=0,0,+BS101/BS94) -> 0 | BT103: 0 | BU103: 0 | BV103: 0 | BW103: 0 | BX103: 0 | BY103: 0 | BZ103: 0 | CA103: 0 | CB103: 0 | CC103: 0 | CD103: 0 | CE103: 0 | CF103: 0 | CG103: 0 | CH103: 0 | CI103: 0
D104: End ARAM Rate (cum dfit/cum diff) | E104: =IF(E96=0,0,+E102/E96) -> 0 | F104: =IF(F96=0,0,+F102/F96) -> 0 | G104: =IF(G96=0,0,+G102/G96) -> 0 | H104: 0 | I104: 0 | J104: 0 | K104: 0 | L104: 0 | M104: 0 | N104: 0 | O104: 0 | P104: 0 | Q104: 0 | R104: 0 | S104: 0 | T104: 0 | U104: 0 | V104: 0 | W104: 0 | X104: 0 | Y104: 0 | Z104: 0 | AA104: 0 | AB104: 0 | AC104: 0 | AD104: 0 | AE104: 0 | AF104: 0 | AG104: 0 | AH104: 0 | AI104: 0 | AJ104: 0 | AK104: 0 | AL104: 0 | AM104: 0 | AN104: 0 | AO104: 0 | AP104: 0 | AQ104: 0 | AR104: 0 | AS104: 0 | AT104: 0 | AU104: 0 | AV104: 0 | AW104: 0 | AX104: 0 | AY104: 0 | AZ104: 0 | BA104: 0 | BB104: 0 | BC104: 0 | BD104: 0 | BE104: 0 | BF104: 0 | BG104: 0 | BH104: 0 | BI104: 0 | BJ104: 0 | BK104: 0 | BL104: 0 | BM104: 0 | BN104: 0 | BO104: 0 | BP104: 0 | BQ104: 0 | BR104: 0 | BS104: =IF(BS96=0,0,+BS102/BS96) -> 0 | BT104: 0 | BU104: 0 | BV104: 0 | BW104: 0 | BX104: 0 | BY104: 0 | BZ104: 0 | CA104: 0 | CB104: 0 | CC104: 0 | CD104: 0 | CE104: 0 | CF104: 0 | CG104: 0 | CH104: 0 | CI104: 0
B105: Initial Cumulative DFIT at Historic Rate | C105: =+C94*C103 -> 0 | D105: Cumulative DFIT at Historic Rate | E105: =+C105+E100 -> 0 | F105: =+E105+F100 -> 0 | G105: =+F105+G100 -> 0 | H105: 0 | I105: 0 | J105: 0 | K105: 0 | L105: 0 | M105: 0 | N105: 0 | O105: 0 | P105: 0 | Q105: 0 | R105: 0 | S105: 0 | T105: 0 | U105: 0 | V105: 0 | W105: 0 | X105: 0 | Y105: 0 | Z105: 0 | AA105: 0 | AB105: 0 | AC105: 0 | AD105: 0 | AE105: 0 | AF105: 0 | AG105: 0 | AH105: 0 | AI105: 0 | AJ105: 0 | AK105: 0 | AL105: 0 | AM105: 0 | AN105: 0 | AO105: 0 | AP105: 0 | AQ105: 0 | AR105: 0 | AS105: 0 | AT105: 0 | AU105: 0 | AV105: 0 | AW105: 0 | AX105: 0 | AY105: 0 | AZ105: 0 | BA105: 0 | BB105: 0 | BC105: 0 | BD105: 0 | BE105: 0 | BF105: 0 | BG105: 0 | BH105: 0 | BI105: 0 | BJ105: 0 | BK105: 0 | BL105: 0 | BM105: 0 | BN105: 0 | BO105: 0 | BP105: 0 | BQ105: 0 | BR105: 0 | BS105: =+BR105+BS100 -> 0 | BT105: 0 | BU105: 0 | BV105: 0 | BW105: 0 | BX105: 0 | BY105: 0 | BZ105: 0 | CA105: 0 | CB105: 0 | CC105: 0 | CD105: 0 | CE105: 0 | CF105: 0 | CG105: 0 | CH105: 0 | CI105: 0
B106: Initial Cumulative DFIT at Statutory Rate | C106: =+C94*C99 -> 0 | D106: Cumulative DFIT at Statutory Rate | E106: =IF(E99<>0,+C106+E99,0) -> 0 | F106: =IF(F99<>0,+E106+F99,0) -> 0 | G106: =IF(G99<>0,+F106+G99,0) -> 0 | H106: 0 | I106: 0 | J106: 0 | K106: 0 | L106: 0 | M106: 0 | N106: 0 | O106: 0 | P106: 0 | Q106: 0 | R106: 0 | S106: 0 | T106: 0 | U106: 0 | V106: 0 | W106: 0 | X106: 0 | Y106: 0 | Z106: 0 | AA106: 0 | AB106: 0 | AC106: 0 | AD106: 0 | AE106: 0 | AF106: 0 | AG106: 0 | AH106: 0 | AI106: 0 | AJ106: 0 | AK106: 0 | AL106: 0 | AM106: 0 | AN106: 0 | AO106: 0 | AP106: 0 | AQ106: 0 | AR106: 0 | AS106: 0 | AT106: 0 | AU106: 0 | AV106: 0 | AW106: 0 | AX106: 0 | AY106: 0 | AZ106: 0 | BA106: 0 | BB106: 0 | BC106: 0 | BD106: 0 | BE106: 0 | BF106: 0 | BG106: 0 | BH106: 0 | BI106: 0 | BJ106: 0 | BK106: 0 | BL106: 0 | BM106: 0 | BN106: 0 | BO106: 0 | BP106: 0 | BQ106: 0 | BR106: 0 | BS106: =IF(BS99<>0,+BR106+BS99,0) -> 0 | BT106: 0 | BU106: 0 | BV106: 0 | BW106: 0 | BX106: 0 | BY106: 0 | BZ106: 0 | CA106: 0 | CB106: 0 | CC106: 0 | CD106: 0 | CE106: 0 | CF106: 0 | CG106: 0 | CH106: 0 | CI106: 0
D107: Begin Excess Deferred | E107: =+C109 -> 0 | F107: =+E109 -> 0 | G107: =+F109 -> 0 | H107: 0 | I107: 0 | J107: 0 | K107: 0 | L107: 0 | M107: 0 | N107: 0 | O107: 0 | P107: 0 | Q107: 0 | R107: 0 | S107: 0 | T107: 0 | U107: 0 | V107: 0 | W107: 0 | X107: 0 | Y107: 0 | Z107: 0 | AA107: 0 | AB107: 0 | AC107: 0 | AD107: 0 | AE107: 0 | AF107: 0 | AG107: 0 | AH107: 0 | AI107: 0 | AJ107: 0 | AK107: 0 | AL107: 0 | AM107: 0 | AN107: 0 | AO107: 0 | AP107: 0 | AQ107: 0 | AR107: 0 | AS107: 0 | AT107: 0 | AU107: 0 | AV107: 0 | AW107: 0 | AX107: 0 | AY107: 0 | AZ107: 0 | BA107: 0 | BB107: 0 | BC107: 0 | BD107: 0 | BE107: 0 | BF107: 0 | BG107: 0 | BH107: 0 | BI107: 0 | BJ107: 0 | BK107: 0 | BL107: 0 | BM107: 0 | BN107: 0 | BO107: 0 | BP107: 0 | BQ107: 0 | BR107: 0 | BS107: =+BR109 -> 0 | BT107: 0 | BU107: 0 | BV107: 0 | BW107: 0 | BX107: 0 | BY107: 0 | BZ107: 0 | CA107: 0 | CB107: 0 | CC107: 0 | CD107: 0 | CE107: 0 | CF107: 0 | CG107: 0 | CH107: 0 | CI107: 0
D108: Amortization of Excess Deferred | E108: =+E99-E100 -> 0 | F108: =+F99-F100 -> 0 | G108: 0 | H108: 0 | I108: 0 | J108: 0 | K108: 0 | L108: 0 | M108: 0 | N108: 0 | O108: 0 | P108: 0 | Q108: 0 | R108: 0 | S108: 0 | T108: 0 | U108: 0 | V108: 0 | W108: 0 | X108: 0 | Y108: 0 | Z108: 0 | AA108: 0 | AB108: 0 | AC108: 0 | AD108: 0 | AE108: 0 | AF108: 0 | AG108: 0 | AH108: 0 | AI108: 0 | AJ108: 0 | AK108: 0 | AL108: 0 | AM108: 0 | AN108: 0 | AO108: 0 | AP108: 0 | AQ108: 0 | AR108: 0 | AS108: 0 | AT108: 0 | AU108: 0 | AV108: 0 | AW108: 0 | AX108: 0 | AY108: 0 | AZ108: 0 | BA108: 0 | BB108: 0 | BC108: 0 | BD108: 0 | BE108: 0 | BF108: 0 | BG108: 0 | BH108: 0 | BI108: 0 | BJ108: 0 | BK108: 0 | BL108: 0 | BM108: 0 | BN108: 0 | BO108: 0 | BP108: 0 | BQ108: 0 | BR108: =+BR99-BR100 -> 0 | BS108: 0 | BT108: 0 | BU108: 0 | BV108: 0 | BW108: 0 | BX108: 0 | BY108: 0 | BZ108: 0 | CA108: 0 | CB108: 0 | CC108: 0 | CD108: 0 | CE108: 0 | CF108: 0 | CG108: 0 | CH108: 0 | CI108: 0
B109: Initial Excess Deferred | C109: =+C105-C106 -> 0 | D109: End Excess Deferred | E109: =+E107-E108 -> 0 | F109: =+F107-F108 -> 0 | G109: 0 | H109: 0 | I109: 0 | J109: 0 | K109: 0 | L109: 0 | M109: 0 | N109: 0 | O109: 0 | P109: 0 | Q109: 0 | R109: 0 | S109: 0 | T109: 0 | U109: 0 | V109: 0 | W109: 0 | X109: 0 | Y109: 0 | Z109: 0 | AA109: 0 | AB109: 0 | AC109: 0 | AD109: 0 | AE109: 0 | AF109: 0 | AG109: 0 | AH109: 0 | AI109: 0 | AJ109: 0 | AK109: 0 | AL109: 0 | AM109: 0 | AN109: 0 | AO109: 0 | AP109: 0 | AQ109: 0 | AR109: 0 | AS109: 0 | AT109: 0 | AU109: 0 | AV109: 0 | AW109: 0 | AX109: 0 | AY109: 0 | AZ109: 0 | BA109: 0 | BB109: 0 | BC109: 0 | BD109: 0 | BE109: 0 | BF109: 0 | BG109: 0 | BH109: 0 | BI109: 0 | BJ109: 0 | BK109: 0 | BL109: 0 | BM109: 0 | BN109: 0 | BO109: 0 | BP109: 0 | BQ109: 0 | BR109: =+BR107-BR108 -> 0 | BS109: 0 | BT109: 0 | BU109: 0 | BV109: 0 | BW109: 0 | BX109: 0 | BY109: 0 | BZ109: 0 | CA109: 0 | CB109: 0 | CC109: 0 | CD109: 0 | CE109: 0 | CF109: 0 | CG109: 0 | CH109: 0 | CI109: 0
B110: Amortization/Reduction to Tax | C110: Reversal Check | D110: =SUM(E110:CI110) -> 0 | E110: =+E99-E100 -> 0 | F110: =+F99-F100 -> 0 | G110: =+G99-G100 -> 0 | H110: 0 | I110: 0 | J110: 0 | K110: 0 | L110: 0 | M110: 0 | N110: 0 | O110: 0 | P110: 0 | Q110: 0 | R110: 0 | S110: 0 | T110: 0 | U110: 0 | V110: 0 | W110: 0 | X110: 0 | Y110: 0 | Z110: 0 | AA110: 0 | AB110: 0 | AC110: 0 | AD110: 0 | AE110: 0 | AF110: 0 | AG110: 0 | AH110: 0 | AI110: 0 | AJ110: 0 | AK110: 0 | AL110: 0 | AM110: 0 | AN110: 0 | AO110: 0 | AP110: 0 | AQ110: 0 | AR110: 0 | AS110: 0 | AT110: 0 | AU110: 0 | AV110: 0 | AW110: 0 | AX110: 0 | AY110: 0 | AZ110: 0 | BA110: 0 | BB110: 0 | BC110: 0 | BD110: 0 | BE110: 0 | BF110: 0 | BG110: 0 | BH110: 0 | BI110: 0 | BJ110: 0 | BK110: 0 | BL110: 0 | BM110: 0 | BN110: 0 | BO110: 0 | BP110: 0 | BQ110: 0 | BR110: 0 | BS110: =+BS99-BS100 -> 0 | BT110: 0 | BU110: 0 | BV110: 0 | BW110: 0 | BX110: 0 | BY110: 0 | BZ110: 0 | CA110: 0 | CB110: 0 | CC110: 0 | CD110: 0 | CE110: 0 | CF110: 0 | CG110: 0 | CH110: 0 | CI110: 0
B112: Ending 2017 | E112: 2018 | F112: =E112+1 -> 2019 | G112: 2020 | H112: 2021 | I112: 2022 | J112: 2023 | K112: 2024 | L112: 2025 | M112: 2026 | N112: 2027 | O112: 2028 | P112: 2029 | Q112: 2030 | R112: 2031 | S112: 2032 | T112: 2033 | U112: 2034 | V112: 2035 | W112: 2036 | X112: 2037 | Y112: 2038 | Z112: 2039 | AA112: 2040 | AB112: 2041 | AC112: 2042 | AD112: 2043 | AE112: 2044 | AF112: 2045 | AG112: 2046 | AH112: 2047 | AI112: 2048 | AJ112: 2049 | AK112: 2050 | AL112: 2051 | AM112: 2052 | AN112: 2053 | AO112: 2054 | AP112: 2055 | AQ112: 2056 | AR112: 2057 | AS112: 2058 | AT112: 2059 | AU112: 2060 | AV112: 2061 | AW112: 2062 | AX112: 2063 | AY112: 2064 | AZ112: 2065 | BA112: 2066 | BB112: 2067 | BC112: 2068 | BD112: 2069 | BE112: 2070 | BF112: 2071 | BG112: 2072 | BH112: 2073 | BI112: 2074 | BJ112: 2075 | BK112: 2076 | BL112: 2077 | BM112: 2078 | BN112: 2079 | BO112: 2080 | BP112: 2081 | BQ112: 2082 | BR112: =BQ112+1 -> 2083 | BS112: 2084 | BT112: 2085 | BU112: 2086 | BV112: 2087 | BW112: 2088 | BX112: 2089 | BY112: 2090 | BZ112: 2091 | CA112: 2092 | CB112: 2093 | CC112: 2094 | CD112: 2095 | CE112: 2096 | CF112: 2097 | CG112: 2098 | CH112: 2099 | CI112: 2100
A113: 1998 | B113: Initial Difference | C113: =IF(VLOOKUP(A113,$A$38:$C$58,3)-VLOOKUP(A113,$A$67:$C$87,3)<0,0,VLOOKUP(A113,$A$38:$C$58,3)-VLOOKUP(A113,$A$67:$C$87,3)) -> 0 | D113: Begin Cumulative Difference | E113: =+$C113 -> 0 | F113: =+E115 -> 0 | G113: =+F115 -> 0 | H113: 0 | I113: 0 | J113: 0 | K113: 0 | L113: 0 | M113: 0 | N113: 0 | O113: 0 | P113: 0 | Q113: 0 | R113: 0 | S113: 0 | T113: 0 | U113: 0 | V113: 0 | W113: 0 | X113: 0 | Y113: 0 | Z113: 0 | AA113: 0 | AB113: 0 | AC113: 0 | AD113: 0 | AE113: 0 | AF113: 0 | AG113: 0 | AH113: 0 | AI113: 0 | AJ113: 0 | AK113: 0 | AL113: 0 | AM113: 0 | AN113: 0 | AO113: 0 | AP113: 0 | AQ113: 0 | AR113: 0 | AS113: 0 | AT113: 0 | AU113: 0 | AV113: 0 | AW113: 0 | AX113: 0 | AY113: 0 | AZ113: 0 | BA113: 0 | BB113: 0 | BC113: 0 | BD113: 0 | BE113: 0 | BF113: 0 | BG113: 0 | BH113: 0 | BI113: 0 | BJ113: 0 | BK113: 0 | BL113: 0 | BM113: 0 | BN113: 0 | BO113: 0 | BP113: 0 | BQ113: 0 | BR113: 0 | BS113: =+BR115 -> 0 | BT113: 0 | BU113: 0 | BV113: 0 | BW113: 0 | BX113: 0 | BY113: 0 | BZ113: 0 | CA113: 0 | CB113: 0 | CC113: 0 | CD113: 0 | CE113: 0 | CF113: 0 | CG113: 0 | CH113: 0 | CI113: 0
D114: Current Diff (Tax - Book) | E114: =IF(E113<=0, 0,VLOOKUP($A113,$A$67:$CI$87,E112-2013)-VLOOKUP($A113,$A$38:$CI$58,E112-2013)) -> 0 | F114: =IF(F113<=0, 0,VLOOKUP($A113,$A$67:$CI$87,F112-2013)-VLOOKUP($A113,$A$38:$CI$58,F112-2013)) -> 0 | G114: 0 | H114: 0 | I114: 0 | J114: 0 | K114: 0 | L114: 0 | M114: 0 | N114: 0 | O114: 0 | P114: 0 | Q114: 0 | R114: 0 | S114: 0 | T114: 0 | U114: 0 | V114: 0 | W114: 0 | X114: 0 | Y114: 0 | Z114: 0 | AA114: 0 | AB114: 0 | AC114: 0 | AD114: 0 | AE114: 0 | AF114: 0 | AG114: 0 | AH114: 0 | AI114: 0 | AJ114: 0 | AK114: 0 | AL114: 0 | AM114: 0 | AN114: 0 | AO114: 0 | AP114: 0 | AQ114: 0 | AR114: 0 | AS114: 0 | AT114: 0 | AU114: 0 | AV114: 0 | AW114: 0 | AX114: 0 | AY114: 0 | AZ114: 0 | BA114: 0 | BB114: 0 | BC114: 0 | BD114: 0 | BE114: 0 | BF114: 0 | BG114: 0 | BH114: 0 | BI114: 0 | BJ114: 0 | BK114: 0 | BL114: 0 | BM114: 0 | BN114: 0 | BO114: 0 | BP114: 0 | BQ114: 0 | BR114: =IF(BR113<=0, 0,VLOOKUP($A113,$A$67:$CI$87,BR112-2013)-VLOOKUP($A113,$A$38:$CI$58,BR112-2013)) -> 0 | BS114: 0 | BT114: 0 | BU114: 0 | BV114: 0 | BW114: 0 | BX114: 0 | BY114: 0 | BZ114: 0 | CA114: 0 | CB114: 0 | CC114: 0 | CD114: 0 | CE114: 0 | CF114: 0 | CG114: 0 | CH114: 0 | CI114: 0
D115: End Cumulative Difference | E115: =+E113+E114 -> 0 | F115: =IF(F113+F114< 0, 0, F113+F114) -> 0 | G115: =IF(G113+G114< 0, 0, G113+G114) -> 0 | H115: 0 | I115: 0 | J115: 0 | K115: 0 | L115: 0 | M115: 0 | N115: 0 | O115: 0 | P115: 0 | Q115: 0 | R115: 0 | S115: 0 | T115: 0 | U115: 0 | V115: 0 | W115: 0 | X115: 0 | Y115: 0 | Z115: 0 | AA115: 0 | AB115: 0 | AC115: 0 | AD115: 0 | AE115: 0 | AF115: 0 | AG115: 0 | AH115: 0 | AI115: 0 | AJ115: 0 | AK115: 0 | AL115: 0 | AM115: 0 | AN115: 0 | AO115: 0 | AP115: 0 | AQ115: 0 | AR115: 0 | AS115: 0 | AT115: 0 | AU115: 0 | AV115: 0 | AW115: 0 | AX115: 0 | AY115: 0 | AZ115: 0 | BA115: 0 | BB115: 0 | BC115: 0 | BD115: 0 | BE115: 0 | BF115: 0 | BG115: 0 | BH115: 0 | BI115: 0 | BJ115: 0 | BK115: 0 | BL115: 0 | BM115: 0 | BN115: 0 | BO115: 0 | BP115: 0 | BQ115: 0 | BR115: 0 | BS115: =IF(BS113+BS114< 0, 0, BS113+BS114) -> 0 | BT115: 0 | BU115: 0 | BV115: 0 | BW115: 0 | BX115: 0 | BY115: 0 | BZ115: 0 | CA115: 0 | CB115: 0 | CC115: 0 | CD115: 0 | CE115: 0 | CF115: 0 | CG115: 0 | CH115: 0 | CI115: 0
D116: Current Diff (Tax - Book) Utilized | E116: =IF(E113+E114>0, E114, E113+E114) -> 0 | F116: =IF(F113+F114>0, F114, F113*-1) -> 0 | G116: =IF(G113+G114>0, G114, G113*-1) -> 0 | H116: 0 | I116: 0 | J116: 0 | K116: 0 | L116: 0 | M116: 0 | N116: 0 | O116: 0 | P116: 0 | Q116: 0 | R116: 0 | S116: 0 | T116: 0 | U116: 0 | V116: 0 | W116: 0 | X116: 0 | Y116: 0 | Z116: 0 | AA116: 0 | AB116: 0 | AC116: 0 | AD116: 0 | AE116: 0 | AF116: 0 | AG116: 0 | AH116: 0 | AI116: 0 | AJ116: 0 | AK116: 0 | AL116: 0 | AM116: 0 | AN116: 0 | AO116: 0 | AP116: 0 | AQ116: 0 | AR116: 0 | AS116: 0 | AT116: 0 | AU116: 0 | AV116: 0 | AW116: 0 | AX116: 0 | AY116: 0 | AZ116: 0 | BA116: 0 | BB116: 0 | BC116: 0 | BD116: 0 | BE116: 0 | BF116: 0 | BG116: 0 | BH116: 0 | BI116: 0 | BJ116: 0 | BK116: 0 | BL116: 0 | BM116: 0 | BN116: 0 | BO116: 0 | BP116: 0 | BQ116: 0 | BR116: 0 | BS116: =IF(BS113+BS114>0, BS114, BS113*-1) -> 0 | BT116: 0 | BU116: 0 | BV116: 0 | BW116: 0 | BX116: 0 | BY116: 0 | BZ116: 0 | CA116: 0 | CB116: 0 | CC116: 0 | CD116: 0 | CE116: 0 | CF116: 0 | CG116: 0 | CH116: 0 | CI116: 0
B117: Historical Tax rate | C117: =+$E$2 -> 0.38575 | D117: Tax rate (or ARAM rate) | E117: =IF(E113=0,0,IF(E114>0,$C118,C122)) -> 0 | F117: =IF(F113=0,0,IF(F114>0,$C118,E123)) -> 0 | G117: =IF(G113=0,0,IF(G114>0,$C118,F123)) -> 0 | H117: 0 | I117: 0 | J117: 0 | K117: 0 | L117: 0 | M117: 0 | N117: 0 | O117: 0 | P117: 0 | Q117: 0 | R117: 0 | S117: 0 | T117: 0 | U117: 0 | V117: 0 | W117: 0 | X117: 0 | Y117: 0 | Z117: 0 | AA117: 0 | AB117: 0 | AC117: 0 | AD117: 0 | AE117: 0 | AF117: 0 | AG117: 0 | AH117: 0 | AI117: 0 | AJ117: 0 | AK117: 0 | AL117: 0 | AM117: 0 | AN117: 0 | AO117: 0 | AP117: 0 | AQ117: 0 | AR117: 0 | AS117: 0 | AT117: 0 | AU117: 0 | AV117: 0 | AW117: 0 | AX117: 0 | AY117: 0 | AZ117: 0 | BA117: 0 | BB117: 0 | BC117: 0 | BD117: 0 | BE117: 0 | BF117: 0 | BG117: 0 | BH117: 0 | BI117: 0 | BJ117: 0 | BK117: 0 | BL117: 0 | BM117: 0 | BN117: 0 | BO117: 0 | BP117: 0 | BQ117: 0 | BR117: 0 | BS117: =IF(BS113=0,0,IF(BS114>0,$C118,BR123)) -> 0 | BT117: 0 | BU117: 0 | BV117: 0 | BW117: 0 | BX117: 0 | BY117: 0 | BZ117: 0 | CA117: 0 | CB117: 0 | CC117: 0 | CD117: 0 | CE117: 0 | CF117: 0 | CG117: 0 | CH117: 0 | CI117: 0
B118: Current Statutory Rate | C118: =+$E$3 -> 0.25345 | D118: Begin Current DFIT @ Current Statutory | E118: =IF(E113=0,0,E116*$C118) -> 0 | F118: =IF(F113=0,0,F116*$C118) -> 0 | G118: =IF(G113=0,0,G116*$C118) -> 0 | H118: 0 | I118: 0 | J118: 0 | K118: 0 | L118: 0 | M118: 0 | N118: 0 | O118: 0 | P118: 0 | Q118: 0 | R118: 0 | S118: 0 | T118: 0 | U118: 0 | V118: 0 | W118: 0 | X118: 0 | Y118: 0 | Z118: 0 | AA118: 0 | AB118: 0 | AC118: 0 | AD118: 0 | AE118: 0 | AF118: 0 | AG118: 0 | AH118: 0 | AI118: 0 | AJ118: 0 | AK118: 0 | AL118: 0 | AM118: 0 | AN118: 0 | AO118: 0 | AP118: 0 | AQ118: 0 | AR118: 0 | AS118: 0 | AT118: 0 | AU118: 0 | AV118: 0 | AW118: 0 | AX118: 0 | AY118: 0 | AZ118: 0 | BA118: 0 | BB118: 0 | BC118: 0 | BD118: 0 | BE118: 0 | BF118: 0 | BG118: 0 | BH118: 0 | BI118: 0 | BJ118: 0 | BK118: 0 | BL118: 0 | BM118: 0 | BN118: 0 | BO118: 0 | BP118: 0 | BQ118: 0 | BR118: 0 | BS118: =IF(BS113=0,0,BS116*$C118) -> 0 | BT118: 0 | BU118: 0 | BV118: 0 | BW118: 0 | BX118: 0 | BY118: 0 | BZ118: 0 | CA118: 0 | CB118: 0 | CC118: 0 | CD118: 0 | CE118: 0 | CF118: 0 | CG118: 0 | CH118: 0 | CI118: 0
D119: Begin Current DFIT at Statutory or ARAM Rate | E119: =+E116*E117 -> 0 | F119: =+F116*F117 -> 0 | G119: =+G116*G117 -> 0 | H119: 0 | I119: 0 | J119: 0 | K119: 0 | L119: 0 | M119: 0 | N119: 0 | O119: 0 | P119: 0 | Q119: 0 | R119: 0 | S119: 0 | T119: 0 | U119: 0 | V119: 0 | W119: 0 | X119: 0 | Y119: 0 | Z119: 0 | AA119: 0 | AB119: 0 | AC119: 0 | AD119: 0 | AE119: 0 | AF119: 0 | AG119: 0 | AH119: 0 | AI119: 0 | AJ119: 0 | AK119: 0 | AL119: 0 | AM119: 0 | AN119: 0 | AO119: 0 | AP119: 0 | AQ119: 0 | AR119: 0 | AS119: 0 | AT119: 0 | AU119: 0 | AV119: 0 | AW119: 0 | AX119: 0 | AY119: 0 | AZ119: 0 | BA119: 0 | BB119: 0 | BC119: 0 | BD119: 0 | BE119: 0 | BF119: 0 | BG119: 0 | BH119: 0 | BI119: 0 | BJ119: 0 | BK119: 0 | BL119: 0 | BM119: 0 | BN119: 0 | BO119: 0 | BP119: 0 | BQ119: 0 | BR119: 0 | BS119: =+BS116*BS117 -> 0 | BT119: 0 | BU119: 0 | BV119: 0 | BW119: 0 | BX119: 0 | BY119: 0 | BZ119: 0 | CA119: 0 | CB119: 0 | CC119: 0 | CD119: 0 | CE119: 0 | CF119: 0 | CG119: 0 | CH119: 0 | CI119: 0
B120: Initial Cumulative DFIT | C120: =+C113*C117 -> 0 | D120: Begin Cumulative DFIT | E120: =+C120 -> 0 | F120: =+E121 -> 0 | G120: =+F121 -> 0 | H120: 0 | I120: 0 | J120: 0 | K120: 0 | L120: 0 | M120: 0 | N120: 0 | O120: 0 | P120: 0 | Q120: 0 | R120: 0 | S120: 0 | T120: 0 | U120: 0 | V120: 0 | W120: 0 | X120: 0 | Y120: 0 | Z120: 0 | AA120: 0 | AB120: 0 | AC120: 0 | AD120: 0 | AE120: 0 | AF120: 0 | AG120: 0 | AH120: 0 | AI120: 0 | AJ120: 0 | AK120: 0 | AL120: 0 | AM120: 0 | AN120: 0 | AO120: 0 | AP120: 0 | AQ120: 0 | AR120: 0 | AS120: 0 | AT120: 0 | AU120: 0 | AV120: 0 | AW120: 0 | AX120: 0 | AY120: 0 | AZ120: 0 | BA120: 0 | BB120: 0 | BC120: 0 | BD120: 0 | BE120: 0 | BF120: 0 | BG120: 0 | BH120: 0 | BI120: 0 | BJ120: 0 | BK120: 0 | BL120: 0 | BM120: 0 | BN120: 0 | BO120: 0 | BP120: 0 | BQ120: 0 | BR120: 0 | BS120: =+BR121 -> 0 | BT120: 0 | BU120: 0 | BV120: 0 | BW120: 0 | BX120: 0 | BY120: 0 | BZ120: 0 | CA120: 0 | CB120: 0 | CC120: 0 | CD120: 0 | CE120: 0 | CF120: 0 | CG120: 0 | CH120: 0 | CI120: 0
D121: End Cumulative DFIT | E121: =+E120+E119 -> 0 | F121: =IF(F120+F119<=0,0, F120+F119) -> 0 | G121: =IF(G120+G119<=0,0, G120+G119) -> 0 | H121: 0 | I121: 0 | J121: 0 | K121: 0 | L121: 0 | M121: 0 | N121: 0 | O121: 0 | P121: 0 | Q121: 0 | R121: 0 | S121: 0 | T121: 0 | U121: 0 | V121: 0 | W121: 0 | X121: 0 | Y121: 0 | Z121: 0 | AA121: 0 | AB121: 0 | AC121: 0 | AD121: 0 | AE121: 0 | AF121: 0 | AG121: 0 | AH121: 0 | AI121: 0 | AJ121: 0 | AK121: 0 | AL121: 0 | AM121: 0 | AN121: 0 | AO121: 0 | AP121: 0 | AQ121: 0 | AR121: 0 | AS121: 0 | AT121: 0 | AU121: 0 | AV121: 0 | AW121: 0 | AX121: 0 | AY121: 0 | AZ121: 0 | BA121: 0 | BB121: 0 | BC121: 0 | BD121: 0 | BE121: 0 | BF121: 0 | BG121: 0 | BH121: 0 | BI121: 0 | BJ121: 0 | BK121: 0 | BL121: 0 | BM121: 0 | BN121: 0 | BO121: 0 | BP121: 0 | BQ121: 0 | BR121: 0 | BS121: =IF(BS120+BS119<=0,0, BS120+BS119) -> 0 | BT121: 0 | BU121: 0 | BV121: 0 | BW121: 0 | BX121: 0 | BY121: 0 | BZ121: 0 | CA121: 0 | CB121: 0 | CC121: 0 | CD121: 0 | CE121: 0 | CF121: 0 | CG121: 0 | CH121: 0 | CI121: 0
B122: Initial ARAM Rate (cum dfit/cum diff) | C122: =IF(C113=0,0,C120/C113) -> 0 | D122: Begin ARAM Rate (cum dfit/cum diff) | E122: =IF(E113=0,0,+E120/E113) -> 0 | F122: =IF(F113=0,0,+F120/F113) -> 0 | G122: =IF(G113=0,0,+G120/G113) -> 0 | H122: 0 | I122: 0 | J122: 0 | K122: 0 | L122: 0 | M122: 0 | N122: 0 | O122: 0 | P122: 0 | Q122: 0 | R122: 0 | S122: 0 | T122: 0 | U122: 0 | V122: 0 | W122: 0 | X122: 0 | Y122: 0 | Z122: 0 | AA122: 0 | AB122: 0 | AC122: 0 | AD122: 0 | AE122: 0 | AF122: 0 | AG122: 0 | AH122: 0 | AI122: 0 | AJ122: 0 | AK122: 0 | AL122: 0 | AM122: 0 | AN122: 0 | AO122: 0 | AP122: 0 | AQ122: 0 | AR122: 0 | AS122: 0 | AT122: 0 | AU122: 0 | AV122: 0 | AW122: 0 | AX122: 0 | AY122: 0 | AZ122: 0 | BA122: 0 | BB122: 0 | BC122: 0 | BD122: 0 | BE122: 0 | BF122: 0 | BG122: 0 | BH122: 0 | BI122: 0 | BJ122: 0 | BK122: 0 | BL122: 0 | BM122: 0 | BN122: 0 | BO122: 0 | BP122: 0 | BQ122: 0 | BR122: 0 | BS122: =IF(BS113=0,0,+BS120/BS113) -> 0 | BT122: 0 | BU122: 0 | BV122: 0 | BW122: 0 | BX122: 0 | BY122: 0 | BZ122: 0 | CA122: 0 | CB122: 0 | CC122: 0 | CD122: 0 | CE122: 0 | CF122: 0 | CG122: 0 | CH122: 0 | CI122: 0
D123: End ARAM Rate (cum dfit/cum diff) | E123: =IF(E115=0,0,+E121/E115) -> 0 | F123: =IF(F115=0,0,+F121/F115) -> 0 | G123: =IF(G115=0,0,+G121/G115) -> 0 | H123: 0 | I123: 0 | J123: 0 | K123: 0 | L123: 0 | M123: 0 | N123: 0 | O123: 0 | P123: 0 | Q123: 0 | R123: 0 | S123: 0 | T123: 0 | U123: 0 | V123: 0 | W123: 0 | X123: 0 | Y123: 0 | Z123: 0 | AA123: 0 | AB123: 0 | AC123: 0 | AD123: 0 | AE123: 0 | AF123: 0 | AG123: 0 | AH123: 0 | AI123: 0 | AJ123: 0 | AK123: 0 | AL123: 0 | AM123: 0 | AN123: 0 | AO123: 0 | AP123: 0 | AQ123: 0 | AR123: 0 | AS123: 0 | AT123: 0 | AU123: 0 | AV123: 0 | AW123: 0 | AX123: 0 | AY123: 0 | AZ123: 0 | BA123: 0 | BB123: 0 | BC123: 0 | BD123: 0 | BE123: 0 | BF123: 0 | BG123: 0 | BH123: 0 | BI123: 0 | BJ123: 0 | BK123: 0 | BL123: 0 | BM123: 0 | BN123: 0 | BO123: 0 | BP123: 0 | BQ123: 0 | BR123: 0 | BS123: =IF(BS115=0,0,+BS121/BS115) -> 0 | BT123: 0 | BU123: 0 | BV123: 0 | BW123: 0 | BX123: 0 | BY123: 0 | BZ123: 0 | CA123: 0 | CB123: 0 | CC123: 0 | CD123: 0 | CE123: 0 | CF123: 0 | CG123: 0 | CH123: 0 | CI123: 0
B124: Initial Cumulative DFIT at Historic Rate | C124: =+C113*C122 -> 0 | D124: Cumulative DFIT at Historic Rate | E124: =+C124+E119 -> 0 | F124: =+E124+F119 -> 0 | G124: =+F124+G119 -> 0 | H124: 0 | I124: 0 | J124: 0 | K124: 0 | L124: 0 | M124: 0 | N124: 0 | O124: 0 | P124: 0 | Q124: 0 | R124: 0 | S124: 0 | T124: 0 | U124: 0 | V124: 0 | W124: 0 | X124: 0 | Y124: 0 | Z124: 0 | AA124: 0 | AB124: 0 | AC124: 0 | AD124: 0 | AE124: 0 | AF124: 0 | AG124: 0 | AH124: 0 | AI124: 0 | AJ124: 0 | AK124: 0 | AL124: 0 | AM124: 0 | AN124: 0 | AO124: 0 | AP124: 0 | AQ124: 0 | AR124: 0 | AS124: 0 | AT124: 0 | AU124: 0 | AV124: 0 | AW124: 0 | AX124: 0 | AY124: 0 | AZ124: 0 | BA124: 0 | BB124: 0 | BC124: 0 | BD124: 0 | BE124: 0 | BF124: 0 | BG124: 0 | BH124: 0 | BI124: 0 | BJ124: 0 | BK124: 0 | BL124: 0 | BM124: 0 | BN124: 0 | BO124: 0 | BP124: 0 | BQ124: 0 | BR124: 0 | BS124: =+BR124+BS119 -> 0 | BT124: 0 | BU124: 0 | BV124: 0 | BW124: 0 | BX124: 0 | BY124: 0 | BZ124: 0 | CA124: 0 | CB124: 0 | CC124: 0 | CD124: 0 | CE124: 0 | CF124: 0 | CG124: 0 | CH124: 0 | CI124: 0
B125: Initial Cumulative DFIT at Statutory Rate | C125: =+C113*C118 -> 0 | D125: Cumulative DFIT at Statutory Rate | E125: =IF(E118<>0,+C125+E118,0) -> 0 | F125: =IF(F118<>0,+E125+F118,0) -> 0 | G125: =IF(G118<>0,+F125+G118,0) -> 0 | H125: 0 | I125: 0 | J125: 0 | K125: 0 | L125: 0 | M125: 0 | N125: 0 | O125: 0 | P125: 0 | Q125: 0 | R125: 0 | S125: 0 | T125: 0 | U125: 0 | V125: 0 | W125: 0 | X125: 0 | Y125: 0 | Z125: 0 | AA125: 0 | AB125: 0 | AC125: 0 | AD125: 0 | AE125: 0 | AF125: 0 | AG125: 0 | AH125: 0 | AI125: 0 | AJ125: 0 | AK125: 0 | AL125: 0 | AM125: 0 | AN125: 0 | AO125: 0 | AP125: 0 | AQ125: 0 | AR125: 0 | AS125: 0 | AT125: 0 | AU125: 0 | AV125: 0 | AW125: 0 | AX125: 0 | AY125: 0 | AZ125: 0 | BA125: 0 | BB125: 0 | BC125: 0 | BD125: 0 | BE125: 0 | BF125: 0 | BG125: 0 | BH125: 0 | BI125: 0 | BJ125: 0 | BK125: 0 | BL125: 0 | BM125: 0 | BN125: 0 | BO125: 0 | BP125: 0 | BQ125: 0 | BR125: 0 | BS125: =IF(BS118<>0,+BR125+BS118,0) -> 0 | BT125: 0 | BU125: 0 | BV125: 0 | BW125: 0 | BX125: 0 | BY125: 0 | BZ125: 0 | CA125: 0 | CB125: 0 | CC125: 0 | CD125: 0 | CE125: 0 | CF125: 0 | CG125: 0 | CH125: 0 | CI125: 0
... 145 more rows

Sheet 3020
A1: Excess Reserve Amortized | B1: =+D493 -> 153.5477499
A2: Initial Excess Reserve Calc | B2: =+C493 -> 153.5477499 | D2: Historical Tax Rate | E2: =+Summary!G2 -> 0.38575
A3: Diff due to negative tax depr | B3: =+B1-B2 -> 0 | D3: Current Tax Rate | E3: =+Summary!G3 -> 0.25345
A5: Excess Reserve Gross Calc | B5: =+(C60-C89)*(E2-E3) -> 153.192816
D6: Plant Balance | E6: Book NBV | F6: Depr %
D7: From: Plant Balance #1 | E7: From: Depreciation Expense #4 | F7: From: Depreciation Expense #4
D8: =SUMIFS('Plant Balance'!Q:Q,'Plant Balance'!B:B,MID(CELL("filename",$A$1),FIND("]",CELL("filename",$A$1))+1,255)) -> 14132.29 | E8: =SUMIFS('ACCUM DEPR'!Y:Y,'ACCUM DEPR'!C:C,MID(CELL("filename",$A$1),FIND("]",CELL("filename",$A$1))+1,255)) -> 1161.7 | F8: =SUMIFS('New Calc'!D:D,'New Calc'!B:B,MID(CELL("filename",$A$1),FIND("]",CELL("filename",$A$1))+1,255)) -> 0.03
A9: Book Data from FAS and Rollforwards
A10: Vintage | B10: Acquired Value from FAS | C10: Vintage Allocation Percentage | D10: Plant Balance allocated to Vintages | E10: Depreciation Years | F10: Depr % by Vintage | G10: Accumulated Reserve | H10: Initial NBV by Vintage | I10: Book NBV with 1997 and prior adjusted
A11: 1997 & Prior | B11: =SUMIFS(CY_Report!$L:$L,CY_Report!$J:$J,$A11,CY_Report!$E:$E,MID(CELL("filename",$A$1),FIND("]",CELL("filename",$A$1))+1,255),CY_Report!$U:$U,"<>*d*",CY_Report!$U:$U,"<>*t*",CY_Report!$N:$N,"<>"&" 00 00") -> 10639 | C11: =IFERROR(+B11/$B$32,0) -> 0.999240168 | D11: =+C11*$D$8 -> 14121.55183 | E11: =2018-1997 -> 21 | F11: =+D11*$F$8 -> 423.646555 | G11: =+F11*E11 -> 8896.577655 | H11: =+IF(D11-G11<0,0,D11-G11) -> 5224.974178 | I11: =+$E$8*J11 -> 1160.602796 | J11: =IF($H$32=0,IF($B$32=0,0,C11),H11/$H$32) -> 0.9990555185
A12: 1998 | B12: =SUMIFS(CY_Report!$L:$L,CY_Report!$J:$J,$A12,CY_Report!$E:$E,MID(CELL("filename",$A$1),FIND("]",CELL("filename",$A$1))+1,255),CY_Report!$U:$U,"<>*d*",CY_Report!$U:$U,"<>*t*",CY_Report!$N:$N,"<>"&" 00 00") -> 0 | C12: =IFERROR(+B12/$B$32,0) -> 0 | D12: =+C12*$D$8 -> 0 | E12: =2018-A12 -> 20 | F12: =+D12*$F$8 -> 0 | G12: =+F12*E12 -> 0 | H12: =+IF(D12-G12<0,0,D12-G12) -> 0 | I12: =+$E$8*J12 -> 0 | J12: =IF($H$32=0,IF($B$32=0,0,C12),H12/$H$32) -> 0
A13: 1999 | B13: =SUMIFS(CY_Report!$L:$L,CY_Report!$J:$J,$A13,CY_Report!$E:$E,MID(CELL("filename",$A$1),FIND("]",CELL("filename",$A$1))+1,255),CY_Report!$U:$U,"<>*d*",CY_Report!$U:$U,"<>*t*",CY_Report!$N:$N,"<>"&" 00 00") -> 0 | C13: 0 | D13: 0 | E13: =2018-A13 -> 19 | F13: 0 | G13: 0 | H13: 0 | I13: 0 | J13: 0
A14: 2000 | B14: =SUMIFS(CY_Report!$L:$L,CY_Report!$J:$J,$A14,CY_Report!$E:$E,MID(CELL("filename",$A$1),FIND("]",CELL("filename",$A$1))+1,255),CY_Report!$U:$U,"<>*d*",CY_Report!$U:$U,"<>*t*",CY_Report!$N:$N,"<>"&" 00 00") -> 8.09 | C14: 0.0007598320292 | D14: 10.73816659 | E14: 18 | F14: 0.3221449976 | G14: 5.798609958 | H14: 4.939556631 | I14: 1.097204128 | J14: 0.0009444814735
A15: 2001 | B15: =SUMIFS(CY_Report!$L:$L,CY_Report!$J:$J,$A15,CY_Report!$E:$E,MID(CELL("filename",$A$1),FIND("]",CELL("filename",$A$1))+1,255),CY_Report!$U:$U,"<>*d*",CY_Report!$U:$U,"<>*t*",CY_Report!$N:$N,"<>"&" 00 00") -> 0 | C15: 0 | D15: 0 | E15: 17 | F15: 0 | G15: 0 | H15: 0 | I15: 0 | J15: 0
A16: 2002 | B16: =SUMIFS(CY_Report!$L:$L,CY_Report!$J:$J,$A16,CY_Report!$E:$E,MID(CELL("filename",$A$1),FIND("]",CELL("filename",$A$1))+1,255),CY_Report!$U:$U,"<>*d*",CY_Report!$U:$U,"<>*t*",CY_Report!$N:$N,"<>"&" 00 00") -> 0 | C16: 0 | D16: 0 | E16: 16 | F16: 0 | G16: 0 | H16: 0 | I16: 0 | J16: 0
A17: 2003 | B17: =SUMIFS(CY_Report!$L:$L,CY_Report!$J:$J,$A17,CY_Report!$E:$E,MID(CELL("filename",$A$1),FIND("]",CELL("filename",$A$1))+1,255),CY_Report!$U:$U,"<>*d*",CY_Report!$U:$U,"<>*t*",CY_Report!$N:$N,"<>"&" 00 00") -> 0 | C17: 0 | D17: 0 | E17: 15 | F17: 0 | G17: 0 | H17: 0 | I17: 0 | J17: 0
A18: 2004 | B18: =SUMIFS(CY_Report!$L:$L,CY_Report!$J:$J,$A18,CY_Report!$E:$E,MID(CELL("filename",$A$1),FIND("]",CELL("filename",$A$1))+1,255),CY_Report!$U:$U,"<>*d*",CY_Report!$U:$U,"<>*t*",CY_Report!$N:$N,"<>"&" 00 00") -> 0 | C18: 0 | D18: 0 | E18: 14 | F18: 0 | G18: 0 | H18: 0 | I18: 0 | J18: 0
A19: 2005 | B19: =SUMIFS(CY_Report!$L:$L,CY_Report!$J:$J,$A19,CY_Report!$E:$E,MID(CELL("filename",$A$1),FIND("]",CELL("filename",$A$1))+1,255),CY_Report!$U:$U,"<>*d*",CY_Report!$U:$U,"<>*t*",CY_Report!$N:$N,"<>"&" 00 00") -> 0 | C19: 0 | D19: 0 | E19: 13 | F19: 0 | G19: 0 | H19: 0 | I19: 0 | J19: 0
A20: 2006 | B20: =SUMIFS(CY_Report!$L:$L,CY_Report!$J:$J,$A20,CY_Report!$E:$E,MID(CELL("filename",$A$1),FIND("]",CELL("filename",$A$1))+1,255),CY_Report!$U:$U,"<>*d*",CY_Report!$U:$U,"<>*t*",CY_Report!$N:$N,"<>"&" 00 00") -> 0 | C20: 0 | D20: 0 | E20: 12 | F20: 0 | G20: 0 | H20: 0 | I20: 0 | J20: 0
A21: 2007 | B21: =SUMIFS(CY_Report!$L:$L,CY_Report!$J:$J,$A21,CY_Report!$E:$E,MID(CELL("filename",$A$1),FIND("]",CELL("filename",$A$1))+1,255),CY_Report!$U:$U,"<>*d*",CY_Report!$U:$U,"<>*t*",CY_Report!$N:$N,"<>"&" 00 00") -> 0 | C21: 0 | D21: 0 | E21: 11 | F21: 0 | G21: 0 | H21: 0 | I21: 0 | J21: 0
A22: 2008 | B22: =SUMIFS(CY_Report!$L:$L,CY_Report!$J:$J,$A22,CY_Report!$E:$E,MID(CELL("filename",$A$1),FIND("]",CELL("filename",$A$1))+1,255),CY_Report!$U:$U,"<>*d*",CY_Report!$U:$U,"<>*t*",CY_Report!$N:$N,"<>"&" 00 00") -> 0 | C22: 0 | D22: 0 | E22: 10 | F22: 0 | G22: 0 | H22: 0 | I22: 0 | J22: 0
A23: 2009 | B23: =SUMIFS(CY_Report!$L:$L,CY_Report!$J:$J,$A23,CY_Report!$E:$E,MID(CELL("filename",$A$1),FIND("]",CELL("filename",$A$1))+1,255),CY_Report!$U:$U,"<>*d*",CY_Report!$U:$U,"<>*t*",CY_Report!$N:$N,"<>"&" 00 00") -> 0 | C23: 0 | D23: 0 | E23: 9 | F23: 0 | G23: 0 | H23: 0 | I23: 0 | J23: 0
A24: 2010 | B24: =SUMIFS(CY_Report!$L:$L,CY_Report!$J:$J,$A24,CY_Report!$E:$E,MID(CELL("filename",$A$1),FIND("]",CELL("filename",$A$1))+1,255),CY_Report!$U:$U,"<>*d*",CY_Report!$U:$U,"<>*t*",CY_Report!$N:$N,"<>"&" 00 00") -> 0 | C24: 0 | D24: 0 | E24: 8 | F24: 0 | G24: 0 | H24: 0 | I24: 0 | J24: 0
A25: 2011 | B25: =SUMIFS(CY_Report!$L:$L,CY_Report!$J:$J,$A25,CY_Report!$E:$E,MID(CELL("filename",$A$1),FIND("]",CELL("filename",$A$1))+1,255),CY_Report!$U:$U,"<>*d*",CY_Report!$U:$U,"<>*t*",CY_Report!$N:$N,"<>"&" 00 00") -> 0 | C25: 0 | D25: 0 | E25: 7 | F25: 0 | G25: 0 | H25: 0 | I25: 0 | J25: 0
A26: 2012 | B26: =SUMIFS(CY_Report!$L:$L,CY_Report!$J:$J,$A26,CY_Report!$E:$E,MID(CELL("filename",$A$1),FIND("]",CELL("filename",$A$1))+1,255),CY_Report!$U:$U,"<>*d*",CY_Report!$U:$U,"<>*t*",CY_Report!$N:$N,"<>"&" 00 00") -> 0 | C26: 0 | D26: 0 | E26: 6 | F26: 0 | G26: 0 | H26: 0 | I26: 0 | J26: 0
A27: 2013 | B27: =SUMIFS(CY_Report!$L:$L,CY_Report!$J:$J,$A27,CY_Report!$E:$E,MID(CELL("filename",$A$1),FIND("]",CELL("filename",$A$1))+1,255),CY_Report!$U:$U,"<>*d*",CY_Report!$U:$U,"<>*t*",CY_Report!$N:$N,"<>"&" 00 00") -> 0 | C27: 0 | D27: 0 | E27: 5 | F27: 0 | G27: 0 | H27: 0 | I27: 0 | J27: 0
A28: 2014 | B28: =SUMIFS(CY_Report!$L:$L,CY_Report!$J:$J,$A28,CY_Report!$E:$E,MID(CELL("filename",$A$1),FIND("]",CELL("filename",$A$1))+1,255),CY_Report!$U:$U,"<>*d*",CY_Report!$U:$U,"<>*t*",CY_Report!$N:$N,"<>"&" 00 00") -> 0 | C28: 0 | D28: 0 | E28: 4 | F28: 0 | G28: 0 | H28: 0 | I28: 0 | J28: 0
A29: 2015 | B29: =SUMIFS(CY_Report!$L:$L,CY_Report!$J:$J,$A29,CY_Report!$E:$E,MID(CELL("filename",$A$1),FIND("]",CELL("filename",$A$1))+1,255),CY_Report!$U:$U,"<>*d*",CY_Report!$U:$U,"<>*t*",CY_Report!$N:$N,"<>"&" 00 00") -> 0 | C29: 0 | D29: 0 | E29: 3 | F29: 0 | G29: 0 | H29: 0 | I29: 0 | J29: 0
A30: 2016 | B30: =SUMIFS(CY_Report!$L:$L,CY_Report!$J:$J,$A30,CY_Report!$E:$E,MID(CELL("filename",$A$1),FIND("]",CELL("filename",$A$1))+1,255),CY_Report!$U:$U,"<>*d*",CY_Report!$U:$U,"<>*t*",CY_Report!$N:$N,"<>"&" 00 00") -> 0 | C30: 0 | D30: 0 | E30: 2 | F30: 0 | G30: 0 | H30: 0 | I30: 0 | J30: 0
A31: 2017 | B31: =SUMIFS(CY_Report!$L:$L,CY_Report!$J:$J,$A31,CY_Report!$E:$E,MID(CELL("filename",$A$1),FIND("]",CELL("filename",$A$1))+1,255),CY_Report!$U:$U,"<>*d*",CY_Report!$U:$U,"<>*t*",CY_Report!$N:$N,"<>"&" 00 00") -> 0 | C31: 0 | D31: 0 | E31: 1 | F31: 0 | G31: 0 | H31: 0 | I31: 0 | J31: 0
A32: Total | B32: =SUM(B11:B31) -> 10647.09 | D32: =SUM(D11:D31) -> 14132.29 | F32: =SUM(F11:F31) -> 423.9687 | G32: =SUM(G11:G31) -> 8902.376265 | H32: =SUM(H11:H31) -> 5229.913735 | I32: =SUM(I11:I31) -> 1161.7
A36: Vintage | C36: Book NBV | E36: Book Deprecation
E37: 2018 | F37: =E37+1 -> 2019 | G37: =F37+1 -> 2020 | H37: 2021 | I37: 2022 | J37: 2023 | K37: 2024 | L37: 2025 | M37: 2026 | N37: 2027 | O37: 2028 | P37: 2029 | Q37: 2030 | R37: 2031 | S37: 2032 | T37: 2033 | U37: 2034 | V37: 2035 | W37: 2036 | X37: 2037 | Y37: 2038 | Z37: 2039 | AA37: 2040 | AB37: 2041 | AC37: 2042 | AD37: 2043 | AE37: 2044 | AF37: 2045 | AG37: 2046 | AH37: 2047 | AI37: 2048 | AJ37: 2049 | AK37: 2050 | AL37: 2051 | AM37: 2052 | AN37: 2053 | AO37: 2054 | AP37: 2055 | AQ37: 2056 | AR37: 2057 | AS37: 2058 | AT37: 2059 | AU37: 2060 | AV37: 2061 | AW37: 2062 | AX37: 2063 | AY37: 2064 | AZ37: 2065 | BA37: 2066 | BB37: 2067 | BC37: 2068 | BD37: 2069 | BE37: 2070 | BF37: 2071 | BG37: 2072 | BH37: 2073 | BI37: 2074 | BJ37: 2075 | BK37: 2076 | BL37: 2077 | BM37: 2078 | BN37: 2079 | BO37: 2080 | BP37: 2081 | BQ37: 2082 | BR37: 2083 | BS37: =BR37+1 -> 2084 | BT37: 2085 | BU37: 2086 | BV37: 2087 | BW37: 2088 | BX37: 2089 | BY37: 2090 | BZ37: 2091 | CA37: 2092 | CB37: 2093 | CC37: 2094 | CD37: 2095 | CE37: 2096 | CF37: 2097 | CG37: 2098 | CH37: 2099 | CI37: 2100
